Workbook

Sheet Forside
B7: Anlæggets navn:
B8: Vej og husnummer:
B9: Postnummer og by:
B10: CVR/CPR-nummer:
B11: Anlæggets opholdstid: | C11: 1 | D11: dage
B12: Metanudslip: | C12: 0.05
B13: Fossil reference:
G24: Udviklet af
F25: *Dette værktøj er udviklet for Energistyrelsens biogas taskforce. Brug af værktøjet og dets resultater sker på brugerens eget ansvar. v. 1.11

Sheet Brugervejledning
A1: Denne brugervejledning beskriver kort de forskellige funktioner i værktøjet. For at tilgå beregningsforudsætninger og eksempel på CO2e-udregning, se startsiden.
A3: Startside
A4: Her indsættes basisoplysninger vedrørende biogasanlægget, som skal indgå i indberetningen til Energinet.dk. Derudover kan man ved hjælp af knapperne tilgå de forskellige funktioner i værktøjet.
B6: Ved flueben gives der mulighed for at indtaste oplysninger, der er nødvendige for at kunne bæredygtighedscertificere biogassen. Dette giver i sidste ende mulighed for at beregne en massebalance og biogassens drivhusgasfortrængning sammenlignet med fossil energi. Ingen flueben begrænser indtastningsarket til kun at omfatte de oplysninger der er obligatoriske til indberetningen til Energinet.dk.
B7: For at kunne beregne en massebalance og CO2e fortrængningen skal der vælges en fossil reference. Ved transportformål er referencen sat til 83.8 gCO2e/MJ udfra EU direktivet om vedvarende energi (2009/28/EF). Hvis biogassen skal bruges til andre formål kan man vælge naturgas som reference scenarie som er sat til 56.79 gCO2e/MJ.
B8: Metantabet fra biogasanlægget skal indsættes i % af den samlede gasproduktion. Dette kræver, at der er foretaget en måling af udledningen f.eks. som led i det frivillige måleprogram, som Brancheforeningen for Biogas står for. Standardværdien er sat til 5 % ud fra IPCC's retningslinjer som kan ses her: http://www.ipcc-nggip.iges.or.jp/public/2006gl/pdf/5_Volume5/V5_4_Ch4_Bio_Treat.pdf
B10: Anlæggets opholdstid bruges til at beregne den teoretiske gasproduktion og derved massebalancen, som er nødvendig ift. certificering. Opholdstiden skal være imellem 1 og 40 dage - typisk 30 dage.
B12: Her vælger man en dato og tilgår derefter indberetningsarket, hvor man kan indtaste de biomasser, der er tilført anlægget den pågældende dag. Fra data-arket er der også mulighed for at indtaste årlige eller månedlige data. Dette er især relevant for brugere som kun vil benytte værktøjet til at danne en rapport til Energinet.dk. Ved generering af Energinet.dk rapport skal man være opmærksom på, at der ikke må være indtastet data for andre dage i perioden. Derudover kan det også bruges til at få et hurtigt overblik over modellens beregnede teoretiske gasproduktion og sammenholde den med anlæggets faktiske gasproduktion. Man kan også indtaste sine CO2e data. Det vil dog ikke være tilstrækkeligt til certificeringsformål, hvor der ofte vil være krav om at alle processer i produktionen er dokumenterede.
B14: Her kan man se en årsoversigt fordelt på måned over mængderne af den indberettede biomasse samt gasproduktionen.
B16: Her tilgår man listen over leverandører af biomasse. Der er mulighed for at tilføje ny leverandører eller redigere i eksisterende. Leverandørlisten tilgås i indberetningsarket ved indberetning af biomasser og er kun synlig ved certificering.
B18: Her kan man tilføje en ny biomasse til biomasselisten eller redigere i eksisterende. Trykker man på knappen ”Rediger eksisterende” kan man se for hvilke biomasser værktøjet har oplysninger om gaspotentiale, VS-andel og defaultværdi for CO2-udledningen pr. ton biomasse. Defaultværdien udtrykker den udledning der har været ved fremskaffelse af biomassen. Den er nul som standard, men kan ændres i biomassearket, som tilgås fra startsiden. Defaultværdien kan bruges i stedet for at indtaste noget i kolonnen ”Biomassproducent/first Gathering Point”, hvis man ikke har faktiske værdier for den CO2-udledning, der er forbundet med fremskaffelsen af biomassen. Har man faktiske værdier kan man indtaste dem i Kolonnen ”Biomasseproducent/First Gathering Point” og de indtastede værdier vil så overskrive defaultværdien. Der er i øvrigt mulighed for maksimalt at tilføje 10 nye biomasser i biomassearket.
B20: Her skal man beregne anlæggets egen CO2e udledning, som skal bruges til at udregne CO2e fortrængningen til certificeringsformål. Det beregnes på baggrund af data for el- og varme forbrug, som indtastes her samt metantab, som indtastes på forsiden, samt andre kilder. Se evt. eksempel på beregning af et anlægs udledning af CO2e under fanen 'CO2 eksempel'.
B22: Her dannes rapporten til indberetning til Energinet.dk. Der dannes et PDF dokument som kan gemmes på computeren.
B24: Her beregnes massebalance og CO2e fortrængning. Man kan selv vælge hvilket tidsinterval man ønsker. Visse certificeringsordninger, f.eks. REDCert, kræver, at massebalancen kan verificeres i tidsinterval på tre måneder. Selve beregningen kan tage et stykke tid alt efter hastigheden på ens computer, men forvent imellem 5 og 10 minutter.
A27: Indberetningsark
A28: Her indberettes det daglige input til biogasanlægget. Arket ser forskelligt ud alt efter om der indberettes til certificering eller ej. Der er i alt plads til 100 daglige inputs. Ét input skal have samme leverandør og samme biomassetype. Derudover indberettes den daglige gasproduktion.
A30: Mængde biomasse (Ton) | B30: Summerer den samlede mængde biomasse for den pågældende dato.
A32: Gasproduktion | B32: Her skal indsættes den totale gasproduktion på den pågældende dag i m3 METAN (CH4).
A34: Leverandør | B34: Her vælges leverandør for den pågældende biomasse. Hvis leverandøren ikke forekommer på listen, kan han tilføjes ved tryk på knappen "Tilføj ny leverandør" ovenover.
A36: Certificeret | B36: Her vælges om den pågældende biomasse er certificeret eller ej.
A38: Råvarer input | B38: Her vælges biomassetypen. Hvis biomassetypen ikke er på listen kan den tilføjes fra startsiden ved tryk på knappen "Indsæt ny biomassetype". Der kan maksimalt tilføjes 10 nye biomasser.
A40: Mængder (Ton vådvægt) | B40: Her angives vådvægten af den pågældende biomasse i ton.
A42: Tørstof % | B42: Her angives tørstofprocenten for den pågældende biomasse.
A44: Omsættelig tørstof % | B44: Den omsættelige tørstof procent hentes automatisk fra biomasse arket og kan ikke redigeres i Indberetningsarket. Hvis man vil ændre i den omsættelige tørstofprocent for en specifik biomassetype, så tilgås det fra startsiden ved tryk på knappen "Indsæt ny biomassetype" og derefter "Redigér eksisterende".
A46: Gaspotentiale m³ CH4/tons | B46: Gaspotentialet hentes automatisk fra biomasse arket og kan ikke redigeres i Indberetningsarket. Hvis man vil ændre i gaspotentialet for en specifik biomassetype, så tilgås det fra startsiden ved tryk på knappen "Indsæt ny biomassetype" og derefter "Redigér eksisterende". Vær opmærksom på at gaspotentialet er angivet i m3 Metan (CH4).
B48: Default værdien udtrykker den udledning, der er forbundet med fremskaffelse af biomassen. Default-værdien hentes automatisk fra fanen ’Biomasser’ ud fra hvilken biomasse man har valgt som råvare input. Den er nul som standard, men kan ændres i biomassearket, som tilgås via ”Ny/rediger biomassetype” fra startsiden og derefter "Redigér eksisterende”. I yderste kolonne til højre kan indsættes en default-værdi for CO2e udledningen angivet i gCO2e/ton biomasse. Defaultværdien kan bruges i stedet for at indtaste noget i kolonnen ”Biomassproducent/first Gathering Point”, hvis man ikke har faktiske værdier for den CO2-udledning, der er forbundet med fremskaffelsen af biomassen. Har man faktiske værdier kan man indtaste dem i Kolonnen ”Biomasseproducent/First Gathering Point” og de indtastede værdier vil så overskrive defaultværdien.
A51: Hvert led repræsenterer et led i biomassens produktionskæde. Her skal indtastes CO2e udledningen i gCO2e/ton biomasse, som det pågældende led har givet anledning til. I kolonnen ”Biomasseproducent/FGP” skal man indtaste CO2-udledningen fra produktion og transport af biomassen inden den afleveres på biogasanlægget . Dette skal gøres for hver eneste række med en certificeret biomasse.
B53: Her kan man kopiere tidligere dages input til den pågældende dag. Man kan selv vælge hvilke kolonner der skal kopieres. Bemærk at eventuelt indtastede data for den pågældende dag bliver slettet.
B55: Her tilgår man listen over leverandører af biomasse. Der er mulighed for at tilføje ny leverandører eller redigere i eksisterende. Ved tilføjelse af en ny leverandør, tilføjes denne drop down listen.

Sheet Definition af led
A2: Værktøjet tager udgangspunkt i Energistyrelsens rapport 'Bæredygtighedscertificering af biogas til transport i Danmark', som kan hentes her. (https://ens.dk/ansvarsomraader/bioenergi/biogas-taskforce) Det anbefales at gennemgå rapporten for at få et indblik i certificeringsprocessen. Der er en lang række yderligere krav til certificering udover CO2e udledningen som gennemgås i denne rapport. Certificeringsprocessen opdeler produktionskæden i flere led som hver især har specifikke krav til dokumentation og skal have beregnet dets bidrag til den samlede CO2e udledning. De forgående led er forpligtet til at videresende opgørelser over drivhusgasudledninger fra deres aktiviteter.
A4: Overblik over produktionskæden:
A20: Biomasseproducent / First Gathering Point
A21: Biomasseproducenten er den som dyrker biomassen eller har den som et biprodukt i deres produktion. Der skal skelnes imellem to forskellige typer af biomasseproducenter, producenter af energiafgrøder (1st generation) og producenter af affalds- og restprodukter (2nd generation). Der er forskellige krav til hver type producent i forhold til hvad de skal dokumentere. Affalds- og restprodukters udledning er som defaultværdi sat til 0 inden de transporteres til biogasanlægget. First Gathering Point (FGP) er det led i produktionskæden, som står for opkøb af den rå biomasse fra biomasseproducenten, evt. forarbejdning og videresalg til biogasanlægget. Det kan fx være et firma, der afhenter madaffald o. lign. fra restauranter mm., forarbejder det og sælger det videre til et biogasanlæg. Eller den landmand der leverer gylle. Oplagringsfaciliteter, der er mellemled imellem biomasseproducenten og FGP indgår i samme led som FGP. Da Biomasseproducent ofte er First Gathering Point er det valgt at sammensætte disse to i værktøjet.
A23: Konvertering (biogasanlæg)
A24: Biogasanlægget er det led i produktionskæden, hvor biomassen bliver konverteret til biogas. Hvis biogasanlægget er det sidste led i produktionskæden, så har det ansvaret for at beregne den samlede drivhusgasfortrængning fra alle led og sikre, at det overstiger minimumsniveauet som er krævet i VE-direktivet. Hvis de foregående led er certificeret, er de forpligtet til at videresende opgørelser over drivhusgasudledninger fra deres aktiviteter til biogasanlægget.
A27: Distribution
A28: Hvis biogassen ikke fødes ind i naturgasnettet efter produktionen på biogasanlægget og i stedet transporteres, fx ved lastbil, så skal distributøren af gassen certificeres. Dette indbefatter ikke tankstationen som fysisk enhed, men selve firmaet der står for distributionen, altså den økonomiske enhed. Derimod hvis biogassen fødes ind i naturgasnettet og derved blandes med fossil gas, så er opgraderingsanlægget det sidste led der skal certificeres. Det betyder, at naturgasnettet ikke skal certificeres, da det opfattes som transport.
A30: Transport
A31: Udslip fra naturgasnettet forekommer principielt ikke, men der kan forekomme lækager og såkaldte blow-outs, hvor man tømmer en strækning for naturgas og leder det ud i det fri. Derudover sker der også et tab ved tankning. Transport mellem de forskellige led i produktionskæden, som f.x lastbiltransport af biomasse, skal ikke certificeres, men deres drivhusgasudledning skal medregnes i det samlede regnskab. Den værdi, der skal indtastes er CO2e-udledningen pr ton biomasse, som transporten har givet anledning til. Denne skal beregnes ud fra den kørte distance (inklusiv evt. tom returtransport), typen af transportmiddel samt mængden af transporteret biomasse. Som emissionsfaktorer fra brændstof og køretøjers brændstofforbrug kan man bruge standardværdier fra anerkendt litteratur. Det er altid det modtagende produktionsled, der skal inkludere udledningen fra transport. Se et eksempel på beregningen i ”CO2e eksempel”.

Sheet Beregningsforudsætninger
A1: Energinet.dk rapport
A3: Perioden for indberetning til Energinet.dk løber fra d. 1. august til d. 31. juli. Det er op til brugeren selv at sikre, at alle datoer er udfyldt. Man kan få et overblik i årsoversigten som tilgås fra startsiden.
A5: Værktøjet beregner automatisk den gennemsnitlige tørstofprocent for alle indberettede biomassetyper. Der ses bort fra de tilfælde hvor der ikke er angivet en tørstofprocent på indtastningssiden, dvs. de påvirker ikke den gennemsnitlige tørstofprocent. Mængden tælles selvfølgelig stadig med.
A7: Rapporten fremstår som den officielle Energinet.dk rapport med samme biomassetyper og kategoriseringer. Indberettede biomassetyper som ikke fremgår i den officielle Energinet.dk rapportbliver tilføjet nederst under kategorien 'Andre biomasser'. Det betyder at hvis man fx indberetter en energiafgrøde som ikke er på den officielle liste, så vil den fremgå under 'Andre biomasser' og ikke under kategorien 'Energiafgrøder'.
A9: Det er brugerens eget ansvar at sikre at energiafgrøder efter gældende definition ikke overstiger den maksimale andel (25 %).
A11: Massebalance
A13: Beregning af CO2e-fortrængning opdeler gasproduktionen i certificeret gas, ikke-certificeret gas og gas der kan dobbelttælles ift. iblandingskravet for biobrændstoffer til transport. Den andel, der dobbelttælles, skal være certificeret. Opdelingen af gasproduktionen sker i forhold til den beregnede mængde gas, altså den teoretiske gasproduktion, som må forventes at ligge lidt over den faktiske produktion. Værktøjet er opbygget efter VE-direktivets retningslinjer for beregning af drivhusgas-fortrængningen. Direktivet kræver, at der tilknyttes bæredygtighedsoplysninger til de enkelte partier gasproduktion efter den såkaldte massebalancemetode. Det tillades heri, at biogasmængder med forskellige bæredygtighedskriterier blandes fysisk, hvis oplysninger om partiernes størrelse og bæredygtighedskarakteristika forbliver knyttet til blandingen. Summen af alle partier, der trækkes ud af blandingen, skal have de samme bæredygtighedskarakteristika i de samme mængder, som summen af de partier, der tilføres blandingen. Et biogasanlæg tilføres typisk forskellige biomasser, der hver især giver anledning til produktion af en biogasmængde med hver sin tilknyttede CO2 fortrængning. Nogle biomasser kan komme fra certificerede leverandører, mens andre ikke gør. Værktøjet beregner CO2-fortrængningen fra den certificerede delmængde af biogassen på grundlag af oplysningerne om de tilførte biomassers gaspotentiale og CO2-udledning.
A15: Beregningen af de forskellige andele bygger på en lineær afgasningsmodel ud fra en teoretisk gasproduktion. Gasproduktionen er beregnet ud fra gaspotentialet (gaspot), tørstofprocenten (TS), den omsættelige tørstofprocent (VS) samt mængden i ton af den pågældende biomassetype:
A19: Derudover antager modellen at hele gaspotentialet bliver afgasset i anlægget. Derfor må det formodes, at den teoretiske gasproduktion vil ligge lidt over den faktiske produktion, hvis biomassen fjernes før den er fuldt afgasset. Derudover fratrækkes metantabet fra anlægget, som angives på startsiden, som standard er sat til 5 %.
A21: Gaspotentialer og omsættelige tørstofprocenter er indhentet fra Faktaark om biogas fra 2012 på Energinet.dk's hjemmeside:
A22: http://www.energinet.dk/SiteCollectionDocuments/Danske%20dokumenter/Gas/Faktaark_biogas_2012_ver1.xls
A24: Bemærk at gaspotentialerne angives i metan (CH4).
A25: Anlæggets opholdstid indgår også i modellen og angives af brugeren på startsiden. Den kan sættes til mellem 1 og 40 dage.
A27: Modellen er opsat ud fra et forsigtighedsprincip som betyder at mængden af den certificerede og dobbelttalte gas maksimalt kan udgøre den teoretisk beregnede. Dette gælder også selvom alle inputs til anlægget er certificerede. Hvis der forekommer en rest imellem den teoretisk beregnede gasproduktion og den faktiske gasproduktion, så tilgår den 'ikke certificeret' gas.
A29: Resultatark - CO2e fortrængning
A31: Ved transportformål skal CO2e udledningen fra biogassens produktionskæde minimum fortrænge 35 % (år 2015) ift. et fossilt reference scenarie for at biogassen kan klassificeres som bæredygtig. Reference scenariet er sat til 83.8 gCO2e/MJ udfra EU direktivet om vedvarende energi (2009/28/EF). Hvis biogassen skal bruges til andre formål kan man vælge naturgas som reference scenarie som er sat til 56.79 gCO2e/MJ.
A33: Energiindholdet i metan (CH4) er sat til 35,9 MJ/m3.
A35: Metanudslippet fra anlægget skal omregnes til CO2e ækvivalenter, da metan er en kraftigere drivhusgas end CO2e. Her er massefylden sat til 750 gCH4/m3 CH4 og 1 g CH4 svarer til 25 g CO2e.

Sheet CO2 konvertering
B4: Vælg år:
B6: År | C6: 2015
B7: Årligt elforbrug | D7: kWh | E7: Nettab: | F7: 0.05
B8: Årligt varmeforbrug | D8: kWh
B9: Årligt biomasseinput | D9: ton
B10: Årlig gasleverance | D10: m3 CH4
B11: Anden CO2 udledning (total) | D11: kg CO2e
B12: Emissionsfaktor for varme | D12: g CO2e/kWh | E12: Emissionsfaktor afhænger af varmekilden.
B13: Emissionsfaktor for el | D13: g CO2e/kWh
B14: Anlæggets udledning | C14: =IFERROR(((C7*(1+F7)*C13)+(C8*C12)+(C11*1000)+(((C10/(1-Forside!$C$12)*Forside!$C$12)*'Faktor ark'!C21*'Faktor ark'!C22)*1000))/C9,0) -> 0 | D14: g CO2e/ton biomasse
B15: År | C15: 2016
B16: Årligt elforbrug | D16: kWh | E16: Nettab: | F16: 0.05
B17: Årligt varmeforbrug | D17: kWh
B18: Årligt biomasseinput | D18: ton
B19: Årlig gasleverance | D19: m3 CH4
B20: Anden CO2 udledning (total) | D20: kg CO2
B21: Emissionsfaktor for varme | D21: g CO2/kWh | E21: Emissionsfaktor afhænger af varmekilden
B22: Emissionsfaktor for el | D22: g CO2/kWh
B23: Anlæggets udledning | C23: =IFERROR(((C16*(1+F16)*C22)+(C17*C21)+(C20*1000)+(((C19/(1-Forside!$C$12)*Forside!$C$12)*'Faktor ark'!C21*'Faktor ark'!C22)*1000))/C18,0) -> 0 | D23: g CO2/ton biomasse
C25: =IF(AND(C23=0,C14=0),"ja","Nej") -> ja

Sheet CO2 eksempel
A3: Forudsætninger:
A4: Biomasserne bliver kørt direkte fra biomasseproducenten til biogasanlægget (Konvertering). Dette eliminerer alle mellemled.
A6: Distance fra biomasseproducenter til biogasanlæg:
A7: Hans Hansen | C7: 30 | D7: km
A8: Jens Jensen | C8: 15 | D8: km
A9: Lars Larsen | C9: 10 | D9: km
A11: Årligt elforbrug | C11: Nettab 5 %
A12: 1440000 | B12: kWh | C12: =A12*0.05 -> 72000
A13: Årligt varmeforbrug
A14: 8160000 | B14: kWh
A15: Årlig mængde biomasse input:
A16: 240000 | B16: ton
A17: Elforbrug per ton biomasse
A18: =A12/A16 -> 6 | B18: kWh/ton
A19: Varmeforbrug per ton biomasse
A20: =A14/A16 -> 34 | B20: kWh/ton
A21: Metanudslip per ton biomasse
A22: 2 | B22: m3 CH4
A23: Emissionsfaktorer
A24: Lastbil - tørprodukt | C24: 82.3816 | D24: gCO2e/ton km (Biograce)
A25: Lastbil - vådprodukt | C25: 88.5164 | D25: gCO2e/ton km (Biograce)
A26: El | C26: 292 | D26: gCO2e/kWh - 125 % metoden 2014 (http://energinet.dk/DA/KLIMA-OG-MILJOE/Miljoedeklarationer/Sider/Miljoedeklarering-af-1-kWh-el.aspx)
A27: Varme (naturgas) | C27: 205.452 | D27: gCO2e/kWh - (http://energinet.dk/DA/GAS/Gasdata-og-kvalitet/Sider/Braendvaerdier.aspx)
A28: CO2e udledning fra dyrkning af majs | C28: 444 | D28: gCO2e/ton (Biograce - Ethanol from corn tilnærmelse)
A29: Andet
A30: MJ/m3 CH4 | C30: 35.9 | D30: MJ
A31: Fossil reference | C31: 83.8 | D31: gCO2e/MJ
A32: CO2 ækvivalent for 1 m3 metan | C32: 15364 | D32: gCO2e/m3 CH4
A35: Eksempel på data i indtastningsark
A36: Leverandør | C36: Certificeret | E36: Råvarer input | G36: Mængder Ton | I36: Tørstof % | K36: Omsættelig tørstof % | M36: Gaspotentiale m³ CH4/ton VS | O36: Teoretisk gasproduktion m³ CH4 | Q36: gCO2/ton biomasse | AC36: Total
A38: Hans Hansen | C38: Ja | E38: Majs | G38: 5 | I38: 0.4 | K38: 0.95 | M38: 305 | O38: =G38*I38*K38*M38 -> 579.5 | T38: =C28 -> 444 | V38: =C24*C7 -> 2471.448 | X38: =A18*C26+A20*C27+A22*C32 -> 39465.368 | AC38: =SUM(T38,X38,V38) -> 42380.816
A39: Jens Jensen | C39: Ja | E39: Kvæggylle | G39: 10 | I39: 0.075 | K39: 0.85 | M39: 198 | O39: =G39*I39*K39*M39 -> 126.225 | T39: 0 | V39: =C25*C8 -> 1327.746 | X39: =A18*C26+A20*C27+A22*C32 -> 39465.368 | AC39: =SUM(T39,X39,V39) -> 40793.114
A40: Lars Larsen | C40: Nej | E40: Organisk husholdningsaffald | G40: 20 | I40: 0.3 | K40: 0.88 | M40: 400 | O40: =G40*I40*K40*M40 -> 2112 | T40: 0 | V40: =C24*C9 -> 823.816 | X40: =A18*C26+A20*C27+A22*C32 -> 39465.368 | AC40: 40289.184
A42: Eksempel på resultatark
D46: Gasproduktion (CH4 m3) | J46: CO2e fra certificeret gas | P46: CO2e fra total gasproduktion
B47: Biomasse (ton) | D47: Total | E47: Certificeret | F47: Ikke-certificeret | H47: Certificeret Dobbelttællende | J47: Udledning (g) | L47: gCO2e/MJ gas | N47: Fortrængning | P47: Udledning (g) | S47: gCO2e/MJ gas | U47: Fortrængning
A48: 2014 | B48: =SUM(G38:G40) -> 35 | D48: =SUM(O38:O40) -> 2817.725 | E48: =SUM(O38) -> 579.5 | F48: =SUM(O40) -> 2112 | H48: =SUM(O39) -> 126.225 | J48: =G38*AC38+G39*AC39 -> 619835.22 | L48: =J48/(SUM(E48,H48)*C30) -> 24.46506077 | N48: =(C31-L48)/C31 -> 0.7080541674 | P48: =G38*AC38+G39*AC39+G40*AC40 -> 1425618.9 | S48: =J48/(SUM(E48:I48)*C30) -> 6.127498253 | U48: =(C31-S48)/C31 -> 0.9268794958

Sheet Kalender2015
B6: Måned | C6: Man | D6: Tir | E6: Ons | F6: Tor | G6: Fre | H6: Lør | I6: Søn | J6: Man | K6: Tir | L6: Ons | M6: Tor | N6: Fre | O6: Lør | P6: Søn | Q6: Man | R6: Tir | S6: Ons | T6: Tor | U6: Fre | V6: Lør | W6: Søn | X6: Man | Y6: Tir | Z6: Ons | AA6: Tor | AB6: Fre | AC6: Lør | AD6: Søn | AE6: Man | AF6: Tir | AG6: Ons | AH6: Tor | AI6: Fre | AJ6: Lør | AK6: Søn | AL6: Man | AM6: Tir
B7: Januar | F7: 1 | G7: 2 | H7: 3 | I7: 4 | J7: 5 | K7: 6 | L7: 7 | M7: 8 | N7: 9 | O7: 10 | P7: 11 | Q7: 12 | R7: 13 | S7: 14 | T7: 15 | U7: 16 | V7: 17 | W7: 18 | X7: 19 | Y7: 20 | Z7: 21 | AA7: 22 | AB7: 23 | AC7: 24 | AD7: 25 | AE7: 26 | AF7: 27 | AG7: 28 | AH7: 29 | AI7: 30 | AJ7: 31
B8: Februar | I8: 1 | J8: 2 | K8: 3 | L8: 4 | M8: 5 | N8: 6 | O8: 7 | P8: 8 | Q8: 9 | R8: 10 | S8: 11 | T8: 12 | U8: 13 | V8: 14 | W8: 15 | X8: 16 | Y8: 17 | Z8: 18 | AA8: 19 | AB8: 20 | AC8: 21 | AD8: 22 | AE8: 23 | AF8: 24 | AG8: 25 | AH8: 26 | AI8: 27 | AJ8: 28
B9: Marts | I9: 1 | J9: 2 | K9: 3 | L9: 4 | M9: 5 | N9: 6 | O9: 7 | P9: 8 | Q9: 9 | R9: 10 | S9: 11 | T9: 12 | U9: 13 | V9: 14 | W9: 15 | X9: 16 | Y9: 17 | Z9: 18 | AA9: 19 | AB9: 20 | AC9: 21 | AD9: 22 | AE9: 23 | AF9: 24 | AG9: 25 | AH9: 26 | AI9: 27 | AJ9: 28 | AK9: 29 | AL9: 30 | AM9: 31
B10: April | E10: 1 | F10: 2 | G10: 3 | H10: 4 | I10: 5 | J10: 6 | K10: 7 | L10: 8 | M10: 9 | N10: 10 | O10: 11 | P10: 12 | Q10: 13 | R10: 14 | S10: 15 | T10: 16 | U10: 17 | V10: 18 | W10: 19 | X10: 20 | Y10: 21 | Z10: 22 | AA10: 23 | AB10: 24 | AC10: 25 | AD10: 26 | AE10: 27 | AF10: 28 | AG10: 29 | AH10: 30
B11: Maj | G11: 1 | H11: 2 | I11: 3 | J11: 4 | K11: 5 | L11: 6 | M11: 7 | N11: 8 | O11: 9 | P11: 10 | Q11: 11 | R11: 12 | S11: 13 | T11: 14 | U11: 15 | V11: 16 | W11: 17 | X11: 18 | Y11: 19 | Z11: 20 | AA11: 21 | AB11: 22 | AC11: 23 | AD11: 24 | AE11: 25 | AF11: 26 | AG11: 27 | AH11: 28 | AI11: 29 | AJ11: 30 | AK11: 31
B12: Juni | C12: 1 | D12: 2 | E12: 3 | F12: 4 | G12: 5 | H12: 6 | I12: 7 | J12: 8 | K12: 9 | L12: 10 | M12: 11 | N12: 12 | O12: 13 | P12: 14 | Q12: 15 | R12: 16 | S12: 17 | T12: 18 | U12: 19 | V12: 20 | W12: 21 | X12: 22 | Y12: 23 | Z12: 24 | AA12: 25 | AB12: 26 | AC12: 27 | AD12: 28 | AE12: 29 | AF12: 30
B13: Juli | E13: 1 | F13: 2 | G13: 3 | H13: 4 | I13: 5 | J13: 6 | K13: 7 | L13: 8 | M13: 9 | N13: 10 | O13: 11 | P13: 12 | Q13: 13 | R13: 14 | S13: 15 | T13: 16 | U13: 17 | V13: 18 | W13: 19 | X13: 20 | Y13: 21 | Z13: 22 | AA13: 23 | AB13: 24 | AC13: 25 | AD13: 26 | AE13: 27 | AF13: 28 | AG13: 29 | AH13: 30 | AI13: 31
B14: August | H14: 1 | I14: 2 | J14: 3 | K14: 4 | L14: 5 | M14: 6 | N14: 7 | O14: 8 | P14: 9 | Q14: 10 | R14: 11 | S14: 12 | T14: 13 | U14: 14 | V14: 15 | W14: 16 | X14: 17 | Y14: 18 | Z14: 19 | AA14: 20 | AB14: 21 | AC14: 22 | AD14: 23 | AE14: 24 | AF14: 25 | AG14: 26 | AH14: 27 | AI14: 28 | AJ14: 29 | AK14: 30 | AL14: 31
B15: September | D15: 1 | E15: 2 | F15: 3 | G15: 4 | H15: 5 | I15: 6 | J15: 7 | K15: 8 | L15: 9 | M15: 10 | N15: 11 | O15: 12 | P15: 13 | Q15: 14 | R15: 15 | S15: 16 | T15: 17 | U15: 18 | V15: 19 | W15: 20 | X15: 21 | Y15: 22 | Z15: 23 | AA15: 24 | AB15: 25 | AC15: 26 | AD15: 27 | AE15: 28 | AF15: 29 | AG15: 30
B16: Oktober | F16: 1 | G16: 2 | H16: 3 | I16: 4 | J16: 5 | K16: 6 | L16: 7 | M16: 8 | N16: 9 | O16: 10 | P16: 11 | Q16: 12 | R16: 13 | S16: 14 | T16: 15 | U16: 16 | V16: 17 | W16: 18 | X16: 19 | Y16: 20 | Z16: 21 | AA16: 22 | AB16: 23 | AC16: 24 | AD16: 25 | AE16: 26 | AF16: 27 | AG16: 28 | AH16: 29 | AI16: 30 | AJ16: 31
B17: November | I17: 1 | J17: 2 | K17: 3 | L17: 4 | M17: 5 | N17: 6 | O17: 7 | P17: 8 | Q17: 9 | R17: 10 | S17: 11 | T17: 12 | U17: 13 | V17: 14 | W17: 15 | X17: 16 | Y17: 17 | Z17: 18 | AA17: 19 | AB17: 20 | AC17: 21 | AD17: 22 | AE17: 23 | AF17: 24 | AG17: 25 | AH17: 26 | AI17: 27 | AJ17: 28 | AK17: 29 | AL17: 30
B18: December | D18: 1 | E18: 2 | F18: 3 | G18: 4 | H18: 5 | I18: 6 | J18: 7 | K18: 8 | L18: 9 | M18: 10 | N18: 11 | O18: 12 | P18: 13 | Q18: 14 | R18: 15 | S18: 16 | T18: 17 | U18: 18 | V18: 19 | W18: 20 | X18: 21 | Y18: 22 | Z18: 23 | AA18: 24 | AB18: 25 | AC18: 26 | AD18: 27 | AE18: 28 | AF18: 29 | AG18: 30 | AH18: 31

Sheet Kalender2016
B6: Måned | C6: Man | D6: Tir | E6: Ons | F6: Tor | G6: Fre | H6: Lør | I6: Søn | J6: Man | K6: Tir | L6: Ons | M6: Tor | N6: Fre | O6: Lør | P6: Søn | Q6: Man | R6: Tir | S6: Ons | T6: Tor | U6: Fre | V6: Lør | W6: Søn | X6: Man | Y6: Tir | Z6: Ons | AA6: Tor | AB6: Fre | AC6: Lør | AD6: Søn | AE6: Man | AF6: Tir | AG6: Ons | AH6: Tor | AI6: Fre | AJ6: Lør | AK6: Søn | AL6: Man | AM6: Tir
B7: Januar | G7: 1 | H7: 2 | I7: 3 | J7: 4 | K7: 5 | L7: 6 | M7: 7 | N7: 8 | O7: 9 | P7: 10 | Q7: 11 | R7: 12 | S7: 13 | T7: 14 | U7: 15 | V7: 16 | W7: 17 | X7: 18 | Y7: 19 | Z7: 20 | AA7: 21 | AB7: 22 | AC7: 23 | AD7: 24 | AE7: 25 | AF7: 26 | AG7: 27 | AH7: 28 | AI7: 29 | AJ7: 30 | AK7: 31
B8: Februar | C8: 1 | D8: 2 | E8: 3 | F8: 4 | G8: 5 | H8: 6 | I8: 7 | J8: 8 | K8: 9 | L8: 10 | M8: 11 | N8: 12 | O8: 13 | P8: 14 | Q8: 15 | R8: 16 | S8: 17 | T8: 18 | U8: 19 | V8: 20 | W8: 21 | X8: 22 | Y8: 23 | Z8: 24 | AA8: 25 | AB8: 26 | AC8: 27 | AD8: 28 | AE8: 29
B9: Marts | D9: 1 | E9: 2 | F9: 3 | G9: 4 | H9: 5 | I9: 6 | J9: 7 | K9: 8 | L9: 9 | M9: 10 | N9: 11 | O9: 12 | P9: 13 | Q9: 14 | R9: 15 | S9: 16 | T9: 17 | U9: 18 | V9: 19 | W9: 20 | X9: 21 | Y9: 22 | Z9: 23 | AA9: 24 | AB9: 25 | AC9: 26 | AD9: 27 | AE9: 28 | AF9: 29 | AG9: 30 | AH9: 31
B10: April | G10: 1 | H10: 2 | I10: 3 | J10: 4 | K10: 5 | L10: 6 | M10: 7 | N10: 8 | O10: 9 | P10: 10 | Q10: 11 | R10: 12 | S10: 13 | T10: 14 | U10: 15 | V10: 16 | W10: 17 | X10: 18 | Y10: 19 | Z10: 20 | AA10: 21 | AB10: 22 | AC10: 23 | AD10: 24 | AE10: 25 | AF10: 26 | AG10: 27 | AH10: 28 | AI10: 29 | AJ10: 30
B11: Maj | I11: 1 | J11: 2 | K11: 3 | L11: 4 | M11: 5 | N11: 6 | O11: 7 | P11: 8 | Q11: 9 | R11: 10 | S11: 11 | T11: 12 | U11: 13 | V11: 14 | W11: 15 | X11: 16 | Y11: 17 | Z11: 18 | AA11: 19 | AB11: 20 | AC11: 21 | AD11: 22 | AE11: 23 | AF11: 24 | AG11: 25 | AH11: 26 | AI11: 27 | AJ11: 28 | AK11: 29 | AL11: 30 | AM11: 31
B12: Juni | E12: 1 | F12: 2 | G12: 3 | H12: 4 | I12: 5 | J12: 6 | K12: 7 | L12: 8 | M12: 9 | N12: 10 | O12: 11 | P12: 12 | Q12: 13 | R12: 14 | S12: 15 | T12: 16 | U12: 17 | V12: 18 | W12: 19 | X12: 20 | Y12: 21 | Z12: 22 | AA12: 23 | AB12: 24 | AC12: 25 | AD12: 26 | AE12: 27 | AF12: 28 | AG12: 29 | AH12: 30
B13: Juli | G13: 1 | H13: 2 | I13: 3 | J13: 4 | K13: 5 | L13: 6 | M13: 7 | N13: 8 | O13: 9 | P13: 10 | Q13: 11 | R13: 12 | S13: 13 | T13: 14 | U13: 15 | V13: 16 | W13: 17 | X13: 18 | Y13: 19 | Z13: 20 | AA13: 21 | AB13: 22 | AC13: 23 | AD13: 24 | AE13: 25 | AF13: 26 | AG13: 27 | AH13: 28 | AI13: 29 | AJ13: 30 | AK13: 31
B14: August | C14: 1 | D14: 2 | E14: 3 | F14: 4 | G14: 5 | H14: 6 | I14: 7 | J14: 8 | K14: 9 | L14: 10 | M14: 11 | N14: 12 | O14: 13 | P14: 14 | Q14: 15 | R14: 16 | S14: 17 | T14: 18 | U14: 19 | V14: 20 | W14: 21 | X14: 22 | Y14: 23 | Z14: 24 | AA14: 25 | AB14: 26 | AC14: 27 | AD14: 28 | AE14: 29 | AF14: 30 | AG14: 31
B15: September | F15: 1 | G15: 2 | H15: 3 | I15: 4 | J15: 5 | K15: 6 | L15: 7 | M15: 8 | N15: 9 | O15: 10 | P15: 11 | Q15: 12 | R15: 13 | S15: 14 | T15: 15 | U15: 16 | V15: 17 | W15: 18 | X15: 19 | Y15: 20 | Z15: 21 | AA15: 22 | AB15: 23 | AC15: 24 | AD15: 25 | AE15: 26 | AF15: 27 | AG15: 28 | AH15: 29 | AI15: 30
B16: Oktober | H16: 1 | I16: 2 | J16: 3 | K16: 4 | L16: 5 | M16: 6 | N16: 7 | O16: 8 | P16: 9 | Q16: 10 | R16: 11 | S16: 12 | T16: 13 | U16: 14 | V16: 15 | W16: 16 | X16: 17 | Y16: 18 | Z16: 19 | AA16: 20 | AB16: 21 | AC16: 22 | AD16: 23 | AE16: 24 | AF16: 25 | AG16: 26 | AH16: 27 | AI16: 28 | AJ16: 29 | AK16: 30 | AL16: 31
B17: November | D17: 1 | E17: 2 | F17: 3 | G17: 4 | H17: 5 | I17: 6 | J17: 7 | K17: 8 | L17: 9 | M17: 10 | N17: 11 | O17: 12 | P17: 13 | Q17: 14 | R17: 15 | S17: 16 | T17: 17 | U17: 18 | V17: 19 | W17: 20 | X17: 21 | Y17: 22 | Z17: 23 | AA17: 24 | AB17: 25 | AC17: 26 | AD17: 27 | AE17: 28 | AF17: 29 | AG17: 30
B18: December | F18: 1 | G18: 2 | H18: 3 | I18: 4 | J18: 5 | K18: 6 | L18: 7 | M18: 8 | N18: 9 | O18: 10 | P18: 11 | Q18: 12 | R18: 13 | S18: 14 | T18: 15 | U18: 16 | V18: 17 | W18: 18 | X18: 19 | Y18: 20 | Z18: 21 | AA18: 22 | AB18: 23 | AC18: 24 | AD18: 25 | AE18: 26 | AF18: 27 | AG18: 28 | AH18: 29 | AI18: 30 | AJ18: 31

Sheet Vejl Årsindberetning
B2: Indberetning på baggrund af månedsdata eller årsdata
B4: Denne vejledning beskriver hvordan man kan indtaste årlige eller månedlige data i værktøjet. Dette er relevant for brugere som kun vil benytte værktøjet til at danne en rapport til Energinet.dk. Ved generering af Energinet.dk rapport skal man være opmærksom på, at der ikke må være indtastet data for andre dage i perioden. Derudover kan det også bruges til at få et hurtigt overblik over modellens beregnede teoretiske gasproduktion og sammenholde den med anlæggets faktiske gasproduktion. Man kan også indtaste sine CO2e data. Det vil dog ikke være tilstrækkeligt til certificeringsformål, hvor der ofte vil være krav om at alle processer i produktionen er dokumenterede.
B7: Man skal være opmærksom på at det ikke vil give et helt reelt billede af den årlige produktion, da der ikke tages højde for input fra året før, der afgasses i januar og input i december måned, som afgasses året efter. Dog kan disse jo til dels modsvare hinanden.
B9: Ved månedsdata er princippet at indtaste en måneds data per dag i fx januar - så data for januar måned indtastes 1. januar, data for februar indtastes 2. januar osv. (se nedenfor). Ved årsdata indtaster man bare alle data 1. januar. HUSK at den målte gasproduktion for en måned skal indtastes måneden efter. Det betyder at den biogas derproduceres med inputdata fra januar skal skrives ind i februar. Ved årsdata kan hver dag betragtes som et år. På samme måde som ved månedsdata indtastes et års data fx 1 januar, mens den mængde biogas der blev produceret i det år indtastes dagen efter fx 2 januar.
B12: På startsiden skal opholdstiden sættes til 1 dag både ved måneds- og årsdata:
B16: Når man vil beregne en massebalance så tidsperioden som minimum gå fra 1. januar til 13. januar. Man kan også sætte den til længere:
P36: Defaultværdi
B39: Dato: | F39: Mængde biomasse (Ton) | H39: Gasproduktion
B40: 1. januar | C40: 2015 | F40: =SUM(H42:H101) -> 0 | I40: m3 CH4
B41: Leverandør | D41: Certificeret | F41: Råvarer input | H41: Mængder Ton | J41: Tørstof % | L41: Omsættelig tørstof % | N41: Gaspotentiale m³ CH4/ton VS
D42: Ja | P42: =IFERROR(VLOOKUP(C42,Biomasser!$A$3:$M$88,13,FALSE),) -> 0 | AD42: =IF(C42<>"",'CO2 konvertering'!$C$14,) -> 0
B44: Dato: | F44: Mængde biomasse (Ton) | H44: Gasproduktion
B45: 2. januar | C45: 2015 | F45: =SUM(H47:H106) -> 0 | I45: m3 CH4
B46: Leverandør | D46: Certificeret | F46: Råvarer input | H46: Mængder Ton | J46: Tørstof % | L46: Omsættelig tørstof % | N46: Gaspotentiale m³ CH4/ton VS
D47: Ja | P47: =IFERROR(VLOOKUP(C47,Biomasser!$A$3:$M$88,13,FALSE),) -> 0 | AD47: =IF(C47<>"",'CO2 konvertering'!$C$14,) -> 0
B49: Dato: | F49: Mængde biomasse (Ton) | H49: Gasproduktion
B50: 3. januar | C50: 2015 | F50: =SUM(H52:H111) -> 0 | I50: m3 CH4
B51: Leverandør | D51: Certificeret | F51: Råvarer input | H51: Mængder Ton | J51: Tørstof % | L51: Omsættelig tørstof % | N51: Gaspotentiale m³ CH4/ton VS
D52: Ja | P52: =IFERROR(VLOOKUP(C52,Biomasser!$A$3:$M$88,13,FALSE),) -> 0 | AD52: =IF(C52<>"",'CO2 konvertering'!$C$14,) -> 0
B58: Dato: | F58: Mængde biomasse (Ton) | H58: Gasproduktion
B59: 12. januar | C59: 2015 | F59: =SUM(H61:H116) -> 0 | I59: m3 CH4
B60: Leverandør | D60: Certificeret | F60: Råvarer input | H60: Mængder Ton | J60: Tørstof % | L60: Omsættelig tørstof % | N60: Gaspotentiale m³ CH4/ton VS
D61: Ja | P61: =IFERROR(VLOOKUP(C61,Biomasser!$A$3:$M$88,13,FALSE),) -> 0 | AD61: =IF(C61<>"",'CO2 konvertering'!$C$14,) -> 0

Sheet Input
R1: * CO2e værdierne skal indsættes som gCO2e/ ton biomasse
S4: Defaultværdi | AD4: CO2 total
B6: Dato: | F6: Mængde biomasse (Ton) | H6: Gasproduktion
A7: Gas | B7: 1. januar | C7: 2015 | F7: =SUM(H10:H110) -> 0 | I7: m3 CH4
B8: Leverandør | D8: Certificeret | F8: Råvarer input | G8: Mængder (Ton vådvægt) | J8: Tørstof % | L8: Omsættelig tørstof % | N8: Gaspotentiale m³ CH4/ton VS | P8: Teoretisk gasproduktion m³ CH4
A10: =B7&C7 -> 1. januar2015 | D10: Ja | I10: =IF(AND(F10<>"",ISBLANK(H10)),"Indtast vægt","") ->  | K10: =IF(AND(F10<>"",ISBLANK(J10)),"Indtast tørstof %","") ->  | L10: =IFERROR(VLOOKUP(F10,Biomasser!$A$3:$E$88,4,FALSE),) -> 0 | N10: =IFERROR(VLOOKUP(F10,Biomasser!$A$3:$E$88,5,FALSE),0) -> 0 | O10: =IF(AND(F10<>"",(N10=0)),"Opdater biomasseark","") ->  | P10: =J10*L10*N10*H10 -> 0 | S10: =IFERROR(VLOOKUP(F10,Biomasser!$A$3:$M$88,13,FALSE),) -> 0 | U10: 0 | W10: 512 | Y10: =IF(F10<>"",'CO2 konvertering'!$C$14,) -> 0 | AA10: 561 | AC10: 551 | AD10: =SUM(S10:AC10) -> 1624
D11: Ja | I11: =IF(AND(F11<>"",ISBLANK(H11)),"Indtast vægt","") ->  | K11: =IF(AND(F11<>"",ISBLANK(J11)),"Indtast tørstof %","") ->  | L11: =IFERROR(VLOOKUP(F11,Biomasser!$A$3:$E$88,4,FALSE),0) -> 0 | N11: =IFERROR(VLOOKUP(F11,Biomasser!$A$3:$E$88,5,FALSE),0) -> 0 | P11: 0 | S11: =IFERROR(VLOOKUP(F11,Biomasser!$A$3:$M$88,13,FALSE),) -> 0 | Y11: =IF(F11<>"",'CO2 konvertering'!$C$14,) -> 0 | AD11: 0
D12: Ja | L12: =IFERROR(VLOOKUP(F12,Biomasser!$A$3:$E$88,4,FALSE),0) -> 0 | N12: =IFERROR(VLOOKUP(F12,Biomasser!$A$3:$E$88,5,FALSE),0) -> 0 | P12: 0 | S12: =IFERROR(VLOOKUP(F12,Biomasser!$A$3:$M$88,13,FALSE),) -> 0 | Y12: =IF(F12<>"",'CO2 konvertering'!$C$14,) -> 0 | AD12: 0
D13: Ja | L13: =IFERROR(VLOOKUP(F13,Biomasser!$A$3:$E$88,4,FALSE),0) -> 0 | N13: =IFERROR(VLOOKUP(F13,Biomasser!$A$3:$E$88,5,FALSE),0) -> 0 | O13: =IF(AND(F13<>"",(N13=0)),"Opdater biomasseark","") ->  | P13: 0 | S13: =IFERROR(VLOOKUP(F13,Biomasser!$A$3:$M$88,13,FALSE),) -> 0 | Y13: =IF(F13<>"",'CO2 konvertering'!$C$14,) -> 0 | AD13: 0
D14: Ja | L14: =IFERROR(VLOOKUP(F14,Biomasser!$A$3:$E$88,4,FALSE),0) -> 0 | N14: =IFERROR(VLOOKUP(F14,Biomasser!$A$3:$E$88,5,FALSE),0) -> 0 | O14: =IF(AND(F14<>"",(N14=0)),"Opdater biomasseark","") ->  | P14: 0 | S14: =IFERROR(VLOOKUP(F14,Biomasser!$A$3:$M$88,13,FALSE),) -> 0 | Y14: =IF(F14<>"",'CO2 konvertering'!$C$14,) -> 0 | AD14: 0
D15: Ja | L15: =IFERROR(VLOOKUP(F15,Biomasser!$A$3:$E$88,4,FALSE),0) -> 0 | N15: =IFERROR(VLOOKUP(F15,Biomasser!$A$3:$E$88,5,FALSE),0) -> 0 | P15: 0 | S15: =IFERROR(VLOOKUP(F15,Biomasser!$A$3:$M$88,13,FALSE),) -> 0 | Y15: =IF(F15<>"",'CO2 konvertering'!$C$14,) -> 0 | AD15: 0
D16: Ja | L16: =IFERROR(VLOOKUP(F16,Biomasser!$A$3:$E$88,4,FALSE),0) -> 0 | N16: =IFERROR(VLOOKUP(F16,Biomasser!$A$3:$E$88,5,FALSE),0) -> 0 | P16: 0 | S16: =IFERROR(VLOOKUP(F16,Biomasser!$A$3:$M$88,13,FALSE),) -> 0 | Y16: =IF(F16<>"",'CO2 konvertering'!$C$14,) -> 0 | AD16: 0
D17: Ja | L17: =IFERROR(VLOOKUP(F17,Biomasser!$A$3:$E$88,4,FALSE),0) -> 0 | N17: =IFERROR(VLOOKUP(F17,Biomasser!$A$3:$E$88,5,FALSE),0) -> 0 | P17: 0 | S17: =IFERROR(VLOOKUP(F17,Biomasser!$A$3:$M$88,13,FALSE),) -> 0 | Y17: =IF(F17<>"",'CO2 konvertering'!$C$14,) -> 0 | AD17: 0
D18: Ja | L18: =IFERROR(VLOOKUP(F18,Biomasser!$A$3:$E$88,4,FALSE),0) -> 0 | N18: =IFERROR(VLOOKUP(F18,Biomasser!$A$3:$E$88,5,FALSE),0) -> 0 | P18: 0 | S18: =IFERROR(VLOOKUP(F18,Biomasser!$A$3:$M$88,13,FALSE),) -> 0 | Y18: =IF(F18<>"",'CO2 konvertering'!$C$14,) -> 0 | AD18: 0
D19: Ja | L19: =IFERROR(VLOOKUP(F19,Biomasser!$A$3:$E$88,4,FALSE),0) -> 0 | N19: =IFERROR(VLOOKUP(F19,Biomasser!$A$3:$E$88,5,FALSE),0) -> 0 | P19: 0 | S19: =IFERROR(VLOOKUP(F19,Biomasser!$A$3:$M$88,13,FALSE),) -> 0 | Y19: =IF(F19<>"",'CO2 konvertering'!$C$14,) -> 0 | AD19: 0
D20: Ja | L20: =IFERROR(VLOOKUP(F20,Biomasser!$A$3:$E$88,4,FALSE),0) -> 0 | N20: =IFERROR(VLOOKUP(F20,Biomasser!$A$3:$E$88,5,FALSE),0) -> 0 | P20: 0 | S20: =IFERROR(VLOOKUP(F20,Biomasser!$A$3:$M$88,13,FALSE),) -> 0 | Y20: =IF(F20<>"",'CO2 konvertering'!$C$14,) -> 0 | AD20: 0
D21: Ja | L21: =IFERROR(VLOOKUP(F21,Biomasser!$A$3:$E$88,4,FALSE),0) -> 0 | N21: =IFERROR(VLOOKUP(F21,Biomasser!$A$3:$E$88,5,FALSE),0) -> 0 | P21: 0 | S21: =IFERROR(VLOOKUP(F21,Biomasser!$A$3:$M$88,13,FALSE),) -> 0 | Y21: =IF(F21<>"",'CO2 konvertering'!$C$14,) -> 0 | AD21: 0
D22: Ja | L22: =IFERROR(VLOOKUP(F22,Biomasser!$A$3:$E$88,4,FALSE),0) -> 0 | N22: =IFERROR(VLOOKUP(F22,Biomasser!$A$3:$E$88,5,FALSE),0) -> 0 | P22: 0 | S22: =IFERROR(VLOOKUP(F22,Biomasser!$A$3:$M$88,13,FALSE),) -> 0 | Y22: =IF(F22<>"",'CO2 konvertering'!$C$14,) -> 0 | AD22: 0
D23: Ja | L23: =IFERROR(VLOOKUP(F23,Biomasser!$A$3:$E$88,4,FALSE),0) -> 0 | N23: =IFERROR(VLOOKUP(F23,Biomasser!$A$3:$E$88,5,FALSE),0) -> 0 | P23: 0 | S23: =IFERROR(VLOOKUP(F23,Biomasser!$A$3:$M$88,13,FALSE),) -> 0 | Y23: =IF(F23<>"",'CO2 konvertering'!$C$14,) -> 0 | AD23: 0
D24: Ja | L24: =IFERROR(VLOOKUP(F24,Biomasser!$A$3:$E$88,4,FALSE),0) -> 0 | N24: =IFERROR(VLOOKUP(F24,Biomasser!$A$3:$E$88,5,FALSE),0) -> 0 | P24: 0 | S24: =IFERROR(VLOOKUP(F24,Biomasser!$A$3:$M$88,13,FALSE),) -> 0 | Y24: =IF(F24<>"",'CO2 konvertering'!$C$14,) -> 0 | AD24: 0
D25: Ja | L25: =IFERROR(VLOOKUP(F25,Biomasser!$A$3:$E$88,4,FALSE),0) -> 0 | N25: =IFERROR(VLOOKUP(F25,Biomasser!$A$3:$E$88,5,FALSE),0) -> 0 | P25: 0 | S25: =IFERROR(VLOOKUP(F25,Biomasser!$A$3:$M$88,13,FALSE),) -> 0 | Y25: =IF(F25<>"",'CO2 konvertering'!$C$14,) -> 0 | AD25: 0
D26: Ja | L26: =IFERROR(VLOOKUP(F26,Biomasser!$A$3:$E$88,4,FALSE),0) -> 0 | N26: =IFERROR(VLOOKUP(F26,Biomasser!$A$3:$E$88,5,FALSE),0) -> 0 | P26: 0 | S26: =IFERROR(VLOOKUP(F26,Biomasser!$A$3:$M$88,13,FALSE),) -> 0 | Y26: =IF(F26<>"",'CO2 konvertering'!$C$14,) -> 0 | AD26: 0
D27: Ja | L27: =IFERROR(VLOOKUP(F27,Biomasser!$A$3:$E$88,4,FALSE),0) -> 0 | N27: =IFERROR(VLOOKUP(F27,Biomasser!$A$3:$E$88,5,FALSE),0) -> 0 | P27: 0 | S27: =IFERROR(VLOOKUP(F27,Biomasser!$A$3:$M$88,13,FALSE),) -> 0 | Y27: =IF(F27<>"",'CO2 konvertering'!$C$14,) -> 0 | AD27: 0
D28: Ja | L28: =IFERROR(VLOOKUP(F28,Biomasser!$A$3:$E$88,4,FALSE),0) -> 0 | N28: =IFERROR(VLOOKUP(F28,Biomasser!$A$3:$E$88,5,FALSE),0) -> 0 | P28: 0 | S28: =IFERROR(VLOOKUP(F28,Biomasser!$A$3:$M$88,13,FALSE),) -> 0 | Y28: =IF(F28<>"",'CO2 konvertering'!$C$14,) -> 0 | AD28: 0
D29: Ja | L29: =IFERROR(VLOOKUP(F29,Biomasser!$A$3:$E$88,4,FALSE),0) -> 0 | N29: =IFERROR(VLOOKUP(F29,Biomasser!$A$3:$E$88,5,FALSE),0) -> 0 | P29: 0 | S29: =IFERROR(VLOOKUP(F29,Biomasser!$A$3:$M$88,13,FALSE),) -> 0 | Y29: =IF(F29<>"",'CO2 konvertering'!$C$14,) -> 0 | AD29: 0
D30: Ja | L30: =IFERROR(VLOOKUP(F30,Biomasser!$A$3:$E$88,4,FALSE),0) -> 0 | N30: =IFERROR(VLOOKUP(F30,Biomasser!$A$3:$E$88,5,FALSE),0) -> 0 | P30: 0 | S30: =IFERROR(VLOOKUP(F30,Biomasser!$A$3:$M$88,13,FALSE),) -> 0 | Y30: =IF(F30<>"",'CO2 konvertering'!$C$14,) -> 0 | AD30: 0
D31: Ja | L31: =IFERROR(VLOOKUP(F31,Biomasser!$A$3:$E$88,4,FALSE),0) -> 0 | N31: =IFERROR(VLOOKUP(F31,Biomasser!$A$3:$E$88,5,FALSE),0) -> 0 | P31: 0 | S31: =IFERROR(VLOOKUP(F31,Biomasser!$A$3:$M$88,13,FALSE),) -> 0 | Y31: =IF(F31<>"",'CO2 konvertering'!$C$14,) -> 0 | AD31: 0
D32: Ja | L32: =IFERROR(VLOOKUP(F32,Biomasser!$A$3:$E$88,4,FALSE),0) -> 0 | N32: =IFERROR(VLOOKUP(F32,Biomasser!$A$3:$E$88,5,FALSE),0) -> 0 | P32: 0 | S32: =IFERROR(VLOOKUP(F32,Biomasser!$A$3:$M$88,13,FALSE),) -> 0 | Y32: =IF(F32<>"",'CO2 konvertering'!$C$14,) -> 0 | AD32: 0
D33: Ja | L33: =IFERROR(VLOOKUP(F33,Biomasser!$A$3:$E$88,4,FALSE),0) -> 0 | N33: =IFERROR(VLOOKUP(F33,Biomasser!$A$3:$E$88,5,FALSE),0) -> 0 | P33: 0 | S33: =IFERROR(VLOOKUP(F33,Biomasser!$A$3:$M$88,13,FALSE),) -> 0 | Y33: =IF(F33<>"",'CO2 konvertering'!$C$14,) -> 0 | AD33: 0
D34: Ja | L34: =IFERROR(VLOOKUP(F34,Biomasser!$A$3:$E$88,4,FALSE),0) -> 0 | N34: =IFERROR(VLOOKUP(F34,Biomasser!$A$3:$E$88,5,FALSE),0) -> 0 | P34: 0 | S34: =IFERROR(VLOOKUP(F34,Biomasser!$A$3:$M$88,13,FALSE),) -> 0 | Y34: =IF(F34<>"",'CO2 konvertering'!$C$14,) -> 0 | AD34: 0
D35: Ja | L35: =IFERROR(VLOOKUP(F35,Biomasser!$A$3:$E$88,4,FALSE),0) -> 0 | N35: =IFERROR(VLOOKUP(F35,Biomasser!$A$3:$E$88,5,FALSE),0) -> 0 | P35: 0 | S35: =IFERROR(VLOOKUP(F35,Biomasser!$A$3:$M$88,13,FALSE),) -> 0 | Y35: =IF(F35<>"",'CO2 konvertering'!$C$14,) -> 0 | AD35: 0
D36: Ja | L36: =IFERROR(VLOOKUP(F36,Biomasser!$A$3:$E$88,4,FALSE),0) -> 0 | N36: =IFERROR(VLOOKUP(F36,Biomasser!$A$3:$E$88,5,FALSE),0) -> 0 | P36: 0 | S36: =IFERROR(VLOOKUP(F36,Biomasser!$A$3:$M$88,13,FALSE),) -> 0 | Y36: =IF(F36<>"",'CO2 konvertering'!$C$14,) -> 0 | AD36: 0
D37: Ja | L37: =IFERROR(VLOOKUP(F37,Biomasser!$A$3:$E$88,4,FALSE),0) -> 0 | N37: =IFERROR(VLOOKUP(F37,Biomasser!$A$3:$E$88,5,FALSE),0) -> 0 | P37: 0 | S37: =IFERROR(VLOOKUP(F37,Biomasser!$A$3:$M$88,13,FALSE),) -> 0 | Y37: =IF(F37<>"",'CO2 konvertering'!$C$14,) -> 0 | AD37: 0
D38: Ja | L38: =IFERROR(VLOOKUP(F38,Biomasser!$A$3:$E$88,4,FALSE),0) -> 0 | N38: =IFERROR(VLOOKUP(F38,Biomasser!$A$3:$E$88,5,FALSE),0) -> 0 | P38: 0 | S38: =IFERROR(VLOOKUP(F38,Biomasser!$A$3:$M$88,13,FALSE),) -> 0 | Y38: =IF(F38<>"",'CO2 konvertering'!$C$14,) -> 0 | AD38: 0
D39: Ja | L39: =IFERROR(VLOOKUP(F39,Biomasser!$A$3:$E$88,4,FALSE),0) -> 0 | N39: =IFERROR(VLOOKUP(F39,Biomasser!$A$3:$E$88,5,FALSE),0) -> 0 | P39: 0 | S39: =IFERROR(VLOOKUP(F39,Biomasser!$A$3:$M$88,13,FALSE),) -> 0 | Y39: =IF(F39<>"",'CO2 konvertering'!$C$14,) -> 0 | AD39: 0
D40: Ja | L40: =IFERROR(VLOOKUP(F40,Biomasser!$A$3:$E$88,4,FALSE),0) -> 0 | N40: =IFERROR(VLOOKUP(F40,Biomasser!$A$3:$E$88,5,FALSE),0) -> 0 | P40: 0 | S40: =IFERROR(VLOOKUP(F40,Biomasser!$A$3:$M$88,13,FALSE),) -> 0 | Y40: =IF(F40<>"",'CO2 konvertering'!$C$14,) -> 0 | AD40: 0
D41: Ja | L41: =IFERROR(VLOOKUP(F41,Biomasser!$A$3:$E$88,4,FALSE),0) -> 0 | N41: =IFERROR(VLOOKUP(F41,Biomasser!$A$3:$E$88,5,FALSE),0) -> 0 | P41: 0 | S41: =IFERROR(VLOOKUP(F41,Biomasser!$A$3:$M$88,13,FALSE),) -> 0 | Y41: =IF(F41<>"",'CO2 konvertering'!$C$14,) -> 0 | AD41: 0
D42: Ja | L42: =IFERROR(VLOOKUP(F42,Biomasser!$A$3:$E$88,4,FALSE),0) -> 0 | N42: =IFERROR(VLOOKUP(F42,Biomasser!$A$3:$E$88,5,FALSE),0) -> 0 | P42: =J42*L42*N42*H42 -> 0 | S42: =IFERROR(VLOOKUP(F42,Biomasser!$A$3:$M$88,13,FALSE),) -> 0 | Y42: =IF(F42<>"",'CO2 konvertering'!$C$14,) -> 0 | AD42: =SUM(S42:AC42) -> 0
D43: Ja | L43: =IFERROR(VLOOKUP(F43,Biomasser!$A$3:$E$88,4,FALSE),0) -> 0 | N43: =IFERROR(VLOOKUP(F43,Biomasser!$A$3:$E$88,5,FALSE),0) -> 0 | P43: 0 | S43: =IFERROR(VLOOKUP(F43,Biomasser!$A$3:$M$88,13,FALSE),) -> 0 | Y43: =IF(F43<>"",'CO2 konvertering'!$C$14,) -> 0 | AD43: 0
D44: Ja | L44: =IFERROR(VLOOKUP(F44,Biomasser!$A$3:$E$88,4,FALSE),0) -> 0 | N44: =IFERROR(VLOOKUP(F44,Biomasser!$A$3:$E$88,5,FALSE),0) -> 0 | P44: 0 | S44: =IFERROR(VLOOKUP(F44,Biomasser!$A$3:$M$88,13,FALSE),) -> 0 | Y44: =IF(F44<>"",'CO2 konvertering'!$C$14,) -> 0 | AD44: 0
D45: Ja | L45: =IFERROR(VLOOKUP(F45,Biomasser!$A$3:$E$88,4,FALSE),0) -> 0 | N45: =IFERROR(VLOOKUP(F45,Biomasser!$A$3:$E$88,5,FALSE),0) -> 0 | P45: 0 | S45: =IFERROR(VLOOKUP(F45,Biomasser!$A$3:$M$88,13,FALSE),) -> 0 | Y45: =IF(F45<>"",'CO2 konvertering'!$C$14,) -> 0 | AD45: 0
D46: Ja | L46: =IFERROR(VLOOKUP(F46,Biomasser!$A$3:$E$88,4,FALSE),0) -> 0 | N46: =IFERROR(VLOOKUP(F46,Biomasser!$A$3:$E$88,5,FALSE),0) -> 0 | P46: 0 | S46: =IFERROR(VLOOKUP(F46,Biomasser!$A$3:$M$88,13,FALSE),) -> 0 | Y46: =IF(F46<>"",'CO2 konvertering'!$C$14,) -> 0 | AD46: 0
D47: Ja | L47: =IFERROR(VLOOKUP(F47,Biomasser!$A$3:$E$88,4,FALSE),0) -> 0 | N47: =IFERROR(VLOOKUP(F47,Biomasser!$A$3:$E$88,5,FALSE),0) -> 0 | P47: 0 | S47: =IFERROR(VLOOKUP(F47,Biomasser!$A$3:$M$88,13,FALSE),) -> 0 | Y47: =IF(F47<>"",'CO2 konvertering'!$C$14,) -> 0 | AD47: 0
D48: Ja | L48: =IFERROR(VLOOKUP(F48,Biomasser!$A$3:$E$88,4,FALSE),0) -> 0 | N48: =IFERROR(VLOOKUP(F48,Biomasser!$A$3:$E$88,5,FALSE),0) -> 0 | P48: 0 | S48: =IFERROR(VLOOKUP(F48,Biomasser!$A$3:$M$88,13,FALSE),) -> 0 | Y48: =IF(F48<>"",'CO2 konvertering'!$C$14,) -> 0 | AD48: 0
D49: Ja | L49: =IFERROR(VLOOKUP(F49,Biomasser!$A$3:$E$88,4,FALSE),0) -> 0 | N49: =IFERROR(VLOOKUP(F49,Biomasser!$A$3:$E$88,5,FALSE),0) -> 0 | P49: 0 | S49: =IFERROR(VLOOKUP(F49,Biomasser!$A$3:$M$88,13,FALSE),) -> 0 | Y49: =IF(F49<>"",'CO2 konvertering'!$C$14,) -> 0 | AD49: 0
D50: Ja | L50: =IFERROR(VLOOKUP(F50,Biomasser!$A$3:$E$88,4,FALSE),0) -> 0 | N50: =IFERROR(VLOOKUP(F50,Biomasser!$A$3:$E$88,5,FALSE),0) -> 0 | P50: 0 | S50: =IFERROR(VLOOKUP(F50,Biomasser!$A$3:$M$88,13,FALSE),) -> 0 | Y50: =IF(F50<>"",'CO2 konvertering'!$C$14,) -> 0 | AD50: 0
D51: Ja | L51: =IFERROR(VLOOKUP(F51,Biomasser!$A$3:$E$88,4,FALSE),0) -> 0 | N51: =IFERROR(VLOOKUP(F51,Biomasser!$A$3:$E$88,5,FALSE),0) -> 0 | P51: 0 | S51: =IFERROR(VLOOKUP(F51,Biomasser!$A$3:$M$88,13,FALSE),) -> 0 | Y51: =IF(F51<>"",'CO2 konvertering'!$C$14,) -> 0 | AD51: 0
D52: Ja | L52: =IFERROR(VLOOKUP(F52,Biomasser!$A$3:$E$88,4,FALSE),0) -> 0 | N52: =IFERROR(VLOOKUP(F52,Biomasser!$A$3:$E$88,5,FALSE),0) -> 0 | P52: 0 | S52: =IFERROR(VLOOKUP(F52,Biomasser!$A$3:$M$88,13,FALSE),) -> 0 | Y52: =IF(F52<>"",'CO2 konvertering'!$C$14,) -> 0 | AD52: 0
D53: Ja | L53: =IFERROR(VLOOKUP(F53,Biomasser!$A$3:$E$88,4,FALSE),0) -> 0 | N53: =IFERROR(VLOOKUP(F53,Biomasser!$A$3:$E$88,5,FALSE),0) -> 0 | P53: 0 | S53: =IFERROR(VLOOKUP(F53,Biomasser!$A$3:$M$88,13,FALSE),) -> 0 | Y53: =IF(F53<>"",'CO2 konvertering'!$C$14,) -> 0 | AD53: 0
D54: Ja | L54: =IFERROR(VLOOKUP(F54,Biomasser!$A$3:$E$88,4,FALSE),0) -> 0 | N54: =IFERROR(VLOOKUP(F54,Biomasser!$A$3:$E$88,5,FALSE),0) -> 0 | P54: 0 | S54: =IFERROR(VLOOKUP(F54,Biomasser!$A$3:$M$88,13,FALSE),) -> 0 | Y54: =IF(F54<>"",'CO2 konvertering'!$C$14,) -> 0 | AD54: 0
D55: Ja | L55: =IFERROR(VLOOKUP(F55,Biomasser!$A$3:$E$88,4,FALSE),0) -> 0 | N55: =IFERROR(VLOOKUP(F55,Biomasser!$A$3:$E$88,5,FALSE),0) -> 0 | P55: 0 | S55: =IFERROR(VLOOKUP(F55,Biomasser!$A$3:$M$88,13,FALSE),) -> 0 | Y55: =IF(F55<>"",'CO2 konvertering'!$C$14,) -> 0 | AD55: 0
D56: Ja | L56: =IFERROR(VLOOKUP(F56,Biomasser!$A$3:$E$88,4,FALSE),0) -> 0 | N56: =IFERROR(VLOOKUP(F56,Biomasser!$A$3:$E$88,5,FALSE),0) -> 0 | P56: 0 | S56: =IFERROR(VLOOKUP(F56,Biomasser!$A$3:$M$88,13,FALSE),) -> 0 | Y56: =IF(F56<>"",'CO2 konvertering'!$C$14,) -> 0 | AD56: 0
D57: Ja | L57: =IFERROR(VLOOKUP(F57,Biomasser!$A$3:$E$88,4,FALSE),0) -> 0 | N57: =IFERROR(VLOOKUP(F57,Biomasser!$A$3:$E$88,5,FALSE),0) -> 0 | P57: 0 | S57: =IFERROR(VLOOKUP(F57,Biomasser!$A$3:$M$88,13,FALSE),) -> 0 | Y57: =IF(F57<>"",'CO2 konvertering'!$C$14,) -> 0 | AD57: 0
D58: Ja | L58: =IFERROR(VLOOKUP(F58,Biomasser!$A$3:$E$88,4,FALSE),0) -> 0 | N58: =IFERROR(VLOOKUP(F58,Biomasser!$A$3:$E$88,5,FALSE),0) -> 0 | P58: 0 | S58: =IFERROR(VLOOKUP(F58,Biomasser!$A$3:$M$88,13,FALSE),) -> 0 | Y58: =IF(F58<>"",'CO2 konvertering'!$C$14,) -> 0 | AD58: 0
D59: Ja | L59: =IFERROR(VLOOKUP(F59,Biomasser!$A$3:$E$88,4,FALSE),0) -> 0 | N59: =IFERROR(VLOOKUP(F59,Biomasser!$A$3:$E$88,5,FALSE),0) -> 0 | P59: 0 | S59: =IFERROR(VLOOKUP(F59,Biomasser!$A$3:$M$88,13,FALSE),) -> 0 | Y59: =IF(F59<>"",'CO2 konvertering'!$C$14,) -> 0 | AD59: 0
D60: Ja | L60: =IFERROR(VLOOKUP(F60,Biomasser!$A$3:$E$88,4,FALSE),0) -> 0 | N60: =IFERROR(VLOOKUP(F60,Biomasser!$A$3:$E$88,5,FALSE),0) -> 0 | P60: 0 | S60: =IFERROR(VLOOKUP(F60,Biomasser!$A$3:$M$88,13,FALSE),) -> 0 | Y60: =IF(F60<>"",'CO2 konvertering'!$C$14,) -> 0 | AD60: 0
D61: Ja | L61: =IFERROR(VLOOKUP(F61,Biomasser!$A$3:$E$88,4,FALSE),0) -> 0 | N61: =IFERROR(VLOOKUP(F61,Biomasser!$A$3:$E$88,5,FALSE),0) -> 0 | P61: 0 | S61: =IFERROR(VLOOKUP(F61,Biomasser!$A$3:$M$88,13,FALSE),) -> 0 | Y61: =IF(F61<>"",'CO2 konvertering'!$C$14,) -> 0 | AD61: 0
D62: Ja | L62: =IFERROR(VLOOKUP(F62,Biomasser!$A$3:$E$88,4,FALSE),0) -> 0 | N62: =IFERROR(VLOOKUP(F62,Biomasser!$A$3:$E$88,5,FALSE),0) -> 0 | P62: 0 | S62: =IFERROR(VLOOKUP(F62,Biomasser!$A$3:$M$88,13,FALSE),) -> 0 | Y62: =IF(F62<>"",'CO2 konvertering'!$C$14,) -> 0 | AD62: 0
D63: Ja | L63: =IFERROR(VLOOKUP(F63,Biomasser!$A$3:$E$88,4,FALSE),0) -> 0 | N63: =IFERROR(VLOOKUP(F63,Biomasser!$A$3:$E$88,5,FALSE),0) -> 0 | P63: 0 | S63: =IFERROR(VLOOKUP(F63,Biomasser!$A$3:$M$88,13,FALSE),) -> 0 | Y63: =IF(F63<>"",'CO2 konvertering'!$C$14,) -> 0 | AD63: 0
D64: Ja | L64: =IFERROR(VLOOKUP(F64,Biomasser!$A$3:$E$88,4,FALSE),0) -> 0 | N64: =IFERROR(VLOOKUP(F64,Biomasser!$A$3:$E$88,5,FALSE),0) -> 0 | P64: 0 | S64: =IFERROR(VLOOKUP(F64,Biomasser!$A$3:$M$88,13,FALSE),) -> 0 | Y64: =IF(F64<>"",'CO2 konvertering'!$C$14,) -> 0 | AD64: 0
D65: Ja | L65: =IFERROR(VLOOKUP(F65,Biomasser!$A$3:$E$88,4,FALSE),0) -> 0 | N65: =IFERROR(VLOOKUP(F65,Biomasser!$A$3:$E$88,5,FALSE),0) -> 0 | P65: 0 | S65: =IFERROR(VLOOKUP(F65,Biomasser!$A$3:$M$88,13,FALSE),) -> 0 | Y65: =IF(F65<>"",'CO2 konvertering'!$C$14,) -> 0 | AD65: 0
D66: Ja | L66: =IFERROR(VLOOKUP(F66,Biomasser!$A$3:$E$88,4,FALSE),0) -> 0 | N66: =IFERROR(VLOOKUP(F66,Biomasser!$A$3:$E$88,5,FALSE),0) -> 0 | P66: 0 | S66: =IFERROR(VLOOKUP(F66,Biomasser!$A$3:$M$88,13,FALSE),) -> 0 | Y66: =IF(F66<>"",'CO2 konvertering'!$C$14,) -> 0 | AD66: 0
D67: Ja | L67: =IFERROR(VLOOKUP(F67,Biomasser!$A$3:$E$88,4,FALSE),0) -> 0 | N67: =IFERROR(VLOOKUP(F67,Biomasser!$A$3:$E$88,5,FALSE),0) -> 0 | P67: 0 | S67: =IFERROR(VLOOKUP(F67,Biomasser!$A$3:$M$88,13,FALSE),) -> 0 | Y67: =IF(F67<>"",'CO2 konvertering'!$C$14,) -> 0 | AD67: 0
D68: Ja | L68: =IFERROR(VLOOKUP(F68,Biomasser!$A$3:$E$88,4,FALSE),0) -> 0 | N68: =IFERROR(VLOOKUP(F68,Biomasser!$A$3:$E$88,5,FALSE),0) -> 0 | P68: 0 | S68: =IFERROR(VLOOKUP(F68,Biomasser!$A$3:$M$88,13,FALSE),) -> 0 | Y68: =IF(F68<>"",'CO2 konvertering'!$C$14,) -> 0 | AD68: 0
D69: Ja | L69: =IFERROR(VLOOKUP(F69,Biomasser!$A$3:$E$88,4,FALSE),0) -> 0 | N69: =IFERROR(VLOOKUP(F69,Biomasser!$A$3:$E$88,5,FALSE),0) -> 0 | P69: 0 | S69: =IFERROR(VLOOKUP(F69,Biomasser!$A$3:$M$88,13,FALSE),) -> 0 | Y69: =IF(F69<>"",'CO2 konvertering'!$C$14,) -> 0 | AD69: 0
D70: Ja | L70: =IFERROR(VLOOKUP(F70,Biomasser!$A$3:$E$88,4,FALSE),0) -> 0 | N70: =IFERROR(VLOOKUP(F70,Biomasser!$A$3:$E$88,5,FALSE),0) -> 0 | P70: 0 | S70: =IFERROR(VLOOKUP(F70,Biomasser!$A$3:$M$88,13,FALSE),) -> 0 | Y70: =IF(F70<>"",'CO2 konvertering'!$C$14,) -> 0 | AD70: 0
D71: Ja | L71: =IFERROR(VLOOKUP(F71,Biomasser!$A$3:$E$88,4,FALSE),0) -> 0 | N71: =IFERROR(VLOOKUP(F71,Biomasser!$A$3:$E$88,5,FALSE),0) -> 0 | P71: 0 | S71: =IFERROR(VLOOKUP(F71,Biomasser!$A$3:$M$88,13,FALSE),) -> 0 | Y71: =IF(F71<>"",'CO2 konvertering'!$C$14,) -> 0 | AD71: 0
D72: Ja | L72: =IFERROR(VLOOKUP(F72,Biomasser!$A$3:$E$88,4,FALSE),0) -> 0 | N72: =IFERROR(VLOOKUP(F72,Biomasser!$A$3:$E$88,5,FALSE),0) -> 0 | P72: 0 | S72: =IFERROR(VLOOKUP(F72,Biomasser!$A$3:$M$88,13,FALSE),) -> 0 | Y72: =IF(F72<>"",'CO2 konvertering'!$C$14,) -> 0 | AD72: 0
D73: Ja | L73: =IFERROR(VLOOKUP(F73,Biomasser!$A$3:$E$88,4,FALSE),0) -> 0 | N73: =IFERROR(VLOOKUP(F73,Biomasser!$A$3:$E$88,5,FALSE),0) -> 0 | P73: 0 | S73: =IFERROR(VLOOKUP(F73,Biomasser!$A$3:$M$88,13,FALSE),) -> 0 | Y73: =IF(F73<>"",'CO2 konvertering'!$C$14,) -> 0 | AD73: 0
D74: Ja | L74: =IFERROR(VLOOKUP(F74,Biomasser!$A$3:$E$88,4,FALSE),0) -> 0 | N74: =IFERROR(VLOOKUP(F74,Biomasser!$A$3:$E$88,5,FALSE),0) -> 0 | P74: =J74*L74*N74*H74 -> 0 | S74: =IFERROR(VLOOKUP(F74,Biomasser!$A$3:$M$88,13,FALSE),) -> 0 | Y74: =IF(F74<>"",'CO2 konvertering'!$C$14,) -> 0 | AD74: =SUM(S74:AC74) -> 0
D75: Ja | I75: =IF(AND(F75<>"",ISBLANK(H75)),"Indtast vægt","") ->  | K75: =IF(AND(F75<>"",ISBLANK(J75)),"Indtast tørstof %","") ->  | L75: =IFERROR(VLOOKUP(F75,Biomasser!$A$3:$E$88,4,FALSE),0) -> 0 | N75: =IFERROR(VLOOKUP(F75,Biomasser!$A$3:$E$88,5,FALSE),0) -> 0 | P75: 0 | S75: =IFERROR(VLOOKUP(F75,Biomasser!$A$3:$M$88,13,FALSE),) -> 0 | Y75: =IF(F75<>"",'CO2 konvertering'!$C$14,) -> 0 | AD75: 0
D76: Ja | L76: =IFERROR(VLOOKUP(F76,Biomasser!$A$3:$E$88,4,FALSE),0) -> 0 | N76: =IFERROR(VLOOKUP(F76,Biomasser!$A$3:$E$88,5,FALSE),0) -> 0 | P76: 0 | S76: =IFERROR(VLOOKUP(F76,Biomasser!$A$3:$M$88,13,FALSE),) -> 0 | Y76: =IF(F76<>"",'CO2 konvertering'!$C$14,) -> 0 | AD76: 0
D77: Ja | L77: =IFERROR(VLOOKUP(F77,Biomasser!$A$3:$E$88,4,FALSE),0) -> 0 | N77: =IFERROR(VLOOKUP(F77,Biomasser!$A$3:$E$88,5,FALSE),0) -> 0 | P77: 0 | S77: =IFERROR(VLOOKUP(F77,Biomasser!$A$3:$M$88,13,FALSE),) -> 0 | Y77: =IF(F77<>"",'CO2 konvertering'!$C$14,) -> 0 | AD77: 0
D78: Ja | L78: =IFERROR(VLOOKUP(F78,Biomasser!$A$3:$E$88,4,FALSE),0) -> 0 | N78: =IFERROR(VLOOKUP(F78,Biomasser!$A$3:$E$88,5,FALSE),0) -> 0 | O78: =IF(AND(F78<>"",(N78=0)),"Opdater biomasseark","") ->  | P78: 0 | S78: =IFERROR(VLOOKUP(F78,Biomasser!$A$3:$M$88,13,FALSE),) -> 0 | Y78: =IF(F78<>"",'CO2 konvertering'!$C$14,) -> 0 | AD78: 0
D79: Ja | L79: =IFERROR(VLOOKUP(F79,Biomasser!$A$3:$E$88,4,FALSE),0) -> 0 | N79: =IFERROR(VLOOKUP(F79,Biomasser!$A$3:$E$88,5,FALSE),0) -> 0 | P79: 0 | S79: =IFERROR(VLOOKUP(F79,Biomasser!$A$3:$M$88,13,FALSE),) -> 0 | Y79: =IF(F79<>"",'CO2 konvertering'!$C$14,) -> 0 | AD79: 0
D80: Ja | L80: =IFERROR(VLOOKUP(F80,Biomasser!$A$3:$E$88,4,FALSE),0) -> 0 | N80: =IFERROR(VLOOKUP(F80,Biomasser!$A$3:$E$88,5,FALSE),0) -> 0 | P80: 0 | S80: =IFERROR(VLOOKUP(F80,Biomasser!$A$3:$M$88,13,FALSE),) -> 0 | Y80: =IF(F80<>"",'CO2 konvertering'!$C$14,) -> 0 | AD80: 0
D81: Ja | L81: =IFERROR(VLOOKUP(F81,Biomasser!$A$3:$E$88,4,FALSE),0) -> 0 | N81: =IFERROR(VLOOKUP(F81,Biomasser!$A$3:$E$88,5,FALSE),0) -> 0 | P81: 0 | S81: =IFERROR(VLOOKUP(F81,Biomasser!$A$3:$M$88,13,FALSE),) -> 0 | Y81: =IF(F81<>"",'CO2 konvertering'!$C$14,) -> 0 | AD81: 0
D82: Ja | L82: =IFERROR(VLOOKUP(F82,Biomasser!$A$3:$E$88,4,FALSE),0) -> 0 | N82: =IFERROR(VLOOKUP(F82,Biomasser!$A$3:$E$88,5,FALSE),0) -> 0 | P82: 0 | S82: =IFERROR(VLOOKUP(F82,Biomasser!$A$3:$M$88,13,FALSE),) -> 0 | Y82: =IF(F82<>"",'CO2 konvertering'!$C$14,) -> 0 | AD82: 0
D83: Ja | L83: =IFERROR(VLOOKUP(F83,Biomasser!$A$3:$E$88,4,FALSE),0) -> 0 | N83: =IFERROR(VLOOKUP(F83,Biomasser!$A$3:$E$88,5,FALSE),0) -> 0 | P83: 0 | S83: =IFERROR(VLOOKUP(F83,Biomasser!$A$3:$M$88,13,FALSE),) -> 0 | Y83: =IF(F83<>"",'CO2 konvertering'!$C$14,) -> 0 | AD83: 0
D84: Ja | L84: =IFERROR(VLOOKUP(F84,Biomasser!$A$3:$E$88,4,FALSE),0) -> 0 | N84: =IFERROR(VLOOKUP(F84,Biomasser!$A$3:$E$88,5,FALSE),0) -> 0 | P84: 0 | S84: =IFERROR(VLOOKUP(F84,Biomasser!$A$3:$M$88,13,FALSE),) -> 0 | Y84: =IF(F84<>"",'CO2 konvertering'!$C$14,) -> 0 | AD84: 0
D85: Ja | L85: =IFERROR(VLOOKUP(F85,Biomasser!$A$3:$E$88,4,FALSE),0) -> 0 | N85: =IFERROR(VLOOKUP(F85,Biomasser!$A$3:$E$88,5,FALSE),0) -> 0 | P85: 0 | S85: =IFERROR(VLOOKUP(F85,Biomasser!$A$3:$M$88,13,FALSE),) -> 0 | Y85: =IF(F85<>"",'CO2 konvertering'!$C$14,) -> 0 | AD85: 0
D86: Ja | L86: =IFERROR(VLOOKUP(F86,Biomasser!$A$3:$E$88,4,FALSE),0) -> 0 | N86: =IFERROR(VLOOKUP(F86,Biomasser!$A$3:$E$88,5,FALSE),0) -> 0 | P86: 0 | S86: =IFERROR(VLOOKUP(F86,Biomasser!$A$3:$M$88,13,FALSE),) -> 0 | Y86: =IF(F86<>"",'CO2 konvertering'!$C$14,) -> 0 | AD86: 0
D87: Ja | L87: =IFERROR(VLOOKUP(F87,Biomasser!$A$3:$E$88,4,FALSE),0) -> 0 | N87: =IFERROR(VLOOKUP(F87,Biomasser!$A$3:$E$88,5,FALSE),0) -> 0 | P87: 0 | S87: =IFERROR(VLOOKUP(F87,Biomasser!$A$3:$M$88,13,FALSE),) -> 0 | Y87: =IF(F87<>"",'CO2 konvertering'!$C$14,) -> 0 | AD87: 0
D88: Ja | L88: =IFERROR(VLOOKUP(F88,Biomasser!$A$3:$E$88,4,FALSE),0) -> 0 | N88: =IFERROR(VLOOKUP(F88,Biomasser!$A$3:$E$88,5,FALSE),0) -> 0 | P88: 0 | S88: =IFERROR(VLOOKUP(F88,Biomasser!$A$3:$M$88,13,FALSE),) -> 0 | Y88: =IF(F88<>"",'CO2 konvertering'!$C$14,) -> 0 | AD88: 0
D89: Ja | L89: =IFERROR(VLOOKUP(F89,Biomasser!$A$3:$E$88,4,FALSE),0) -> 0 | N89: =IFERROR(VLOOKUP(F89,Biomasser!$A$3:$E$88,5,FALSE),0) -> 0 | P89: 0 | S89: =IFERROR(VLOOKUP(F89,Biomasser!$A$3:$M$88,13,FALSE),) -> 0 | Y89: =IF(F89<>"",'CO2 konvertering'!$C$14,) -> 0 | AD89: 0
D90: Ja | L90: =IFERROR(VLOOKUP(F90,Biomasser!$A$3:$E$88,4,FALSE),0) -> 0 | N90: =IFERROR(VLOOKUP(F90,Biomasser!$A$3:$E$88,5,FALSE),0) -> 0 | P90: 0 | S90: =IFERROR(VLOOKUP(F90,Biomasser!$A$3:$M$88,13,FALSE),) -> 0 | Y90: =IF(F90<>"",'CO2 konvertering'!$C$14,) -> 0 | AD90: 0
D91: Ja | L91: =IFERROR(VLOOKUP(F91,Biomasser!$A$3:$E$88,4,FALSE),0) -> 0 | N91: =IFERROR(VLOOKUP(F91,Biomasser!$A$3:$E$88,5,FALSE),0) -> 0 | P91: 0 | S91: =IFERROR(VLOOKUP(F91,Biomasser!$A$3:$M$88,13,FALSE),) -> 0 | Y91: =IF(F91<>"",'CO2 konvertering'!$C$14,) -> 0 | AD91: 0
D92: Ja | L92: =IFERROR(VLOOKUP(F92,Biomasser!$A$3:$E$88,4,FALSE),0) -> 0 | N92: =IFERROR(VLOOKUP(F92,Biomasser!$A$3:$E$88,5,FALSE),0) -> 0 | P92: 0 | S92: =IFERROR(VLOOKUP(F92,Biomasser!$A$3:$M$88,13,FALSE),) -> 0 | Y92: =IF(F92<>"",'CO2 konvertering'!$C$14,) -> 0 | AD92: 0
D93: Ja | L93: =IFERROR(VLOOKUP(F93,Biomasser!$A$3:$E$88,4,FALSE),0) -> 0 | N93: =IFERROR(VLOOKUP(F93,Biomasser!$A$3:$E$88,5,FALSE),0) -> 0 | P93: 0 | S93: =IFERROR(VLOOKUP(F93,Biomasser!$A$3:$M$88,13,FALSE),) -> 0 | Y93: =IF(F93<>"",'CO2 konvertering'!$C$14,) -> 0 | AD93: 0
D94: Ja | L94: =IFERROR(VLOOKUP(F94,Biomasser!$A$3:$E$88,4,FALSE),0) -> 0 | N94: =IFERROR(VLOOKUP(F94,Biomasser!$A$3:$E$88,5,FALSE),0) -> 0 | P94: 0 | S94: =IFERROR(VLOOKUP(F94,Biomasser!$A$3:$M$88,13,FALSE),) -> 0 | Y94: =IF(F94<>"",'CO2 konvertering'!$C$14,) -> 0 | AD94: 0
D95: Ja | L95: =IFERROR(VLOOKUP(F95,Biomasser!$A$3:$E$88,4,FALSE),0) -> 0 | N95: =IFERROR(VLOOKUP(F95,Biomasser!$A$3:$E$88,5,FALSE),0) -> 0 | P95: 0 | S95: =IFERROR(VLOOKUP(F95,Biomasser!$A$3:$M$88,13,FALSE),) -> 0 | Y95: =IF(F95<>"",'CO2 konvertering'!$C$14,) -> 0 | AD95: 0
D96: Ja | L96: =IFERROR(VLOOKUP(F96,Biomasser!$A$3:$E$88,4,FALSE),0) -> 0 | N96: =IFERROR(VLOOKUP(F96,Biomasser!$A$3:$E$88,5,FALSE),0) -> 0 | P96: 0 | S96: =IFERROR(VLOOKUP(F96,Biomasser!$A$3:$M$88,13,FALSE),) -> 0 | Y96: =IF(F96<>"",'CO2 konvertering'!$C$14,) -> 0 | AD96: 0
D97: Ja | L97: =IFERROR(VLOOKUP(F97,Biomasser!$A$3:$E$88,4,FALSE),0) -> 0 | N97: =IFERROR(VLOOKUP(F97,Biomasser!$A$3:$E$88,5,FALSE),0) -> 0 | P97: 0 | S97: =IFERROR(VLOOKUP(F97,Biomasser!$A$3:$M$88,13,FALSE),) -> 0 | Y97: =IF(F97<>"",'CO2 konvertering'!$C$14,) -> 0 | AD97: 0
D98: Ja | L98: =IFERROR(VLOOKUP(F98,Biomasser!$A$3:$E$88,4,FALSE),0) -> 0 | N98: =IFERROR(VLOOKUP(F98,Biomasser!$A$3:$E$88,5,FALSE),0) -> 0 | P98: 0 | S98: =IFERROR(VLOOKUP(F98,Biomasser!$A$3:$M$88,13,FALSE),) -> 0 | Y98: =IF(F98<>"",'CO2 konvertering'!$C$14,) -> 0 | AD98: 0
D99: Ja | L99: =IFERROR(VLOOKUP(F99,Biomasser!$A$3:$E$88,4,FALSE),0) -> 0 | N99: =IFERROR(VLOOKUP(F99,Biomasser!$A$3:$E$88,5,FALSE),0) -> 0 | P99: 0 | S99: =IFERROR(VLOOKUP(F99,Biomasser!$A$3:$M$88,13,FALSE),) -> 0 | Y99: =IF(F99<>"",'CO2 konvertering'!$C$14,) -> 0 | AD99: 0
D100: Ja | L100: =IFERROR(VLOOKUP(F100,Biomasser!$A$3:$E$88,4,FALSE),0) -> 0 | N100: =IFERROR(VLOOKUP(F100,Biomasser!$A$3:$E$88,5,FALSE),0) -> 0 | P100: 0 | S100: =IFERROR(VLOOKUP(F100,Biomasser!$A$3:$M$88,13,FALSE),) -> 0 | Y100: =IF(F100<>"",'CO2 konvertering'!$C$14,) -> 0 | AD100: 0
D101: Ja | L101: =IFERROR(VLOOKUP(F101,Biomasser!$A$3:$E$88,4,FALSE),0) -> 0 | N101: =IFERROR(VLOOKUP(F101,Biomasser!$A$3:$E$88,5,FALSE),0) -> 0 | P101: 0 | S101: =IFERROR(VLOOKUP(F101,Biomasser!$A$3:$M$88,13,FALSE),) -> 0 | Y101: =IF(F101<>"",'CO2 konvertering'!$C$14,) -> 0 | AD101: 0
D102: Ja | L102: =IFERROR(VLOOKUP(F102,Biomasser!$A$3:$E$88,4,FALSE),0) -> 0 | N102: =IFERROR(VLOOKUP(F102,Biomasser!$A$3:$E$88,5,FALSE),0) -> 0 | P102: 0 | S102: =IFERROR(VLOOKUP(F102,Biomasser!$A$3:$M$88,13,FALSE),) -> 0 | Y102: =IF(F102<>"",'CO2 konvertering'!$C$14,) -> 0 | AD102: 0
D103: Ja | L103: =IFERROR(VLOOKUP(F103,Biomasser!$A$3:$E$88,4,FALSE),0) -> 0 | N103: =IFERROR(VLOOKUP(F103,Biomasser!$A$3:$E$88,5,FALSE),0) -> 0 | P103: 0 | S103: =IFERROR(VLOOKUP(F103,Biomasser!$A$3:$M$88,13,FALSE),) -> 0 | Y103: =IF(F103<>"",'CO2 konvertering'!$C$14,) -> 0 | AD103: 0
D104: Ja | L104: =IFERROR(VLOOKUP(F104,Biomasser!$A$3:$E$88,4,FALSE),0) -> 0 | N104: =IFERROR(VLOOKUP(F104,Biomasser!$A$3:$E$88,5,FALSE),0) -> 0 | P104: 0 | S104: =IFERROR(VLOOKUP(F104,Biomasser!$A$3:$M$88,13,FALSE),) -> 0 | Y104: =IF(F104<>"",'CO2 konvertering'!$C$14,) -> 0 | AD104: 0
D105: Ja | L105: =IFERROR(VLOOKUP(F105,Biomasser!$A$3:$E$88,4,FALSE),0) -> 0 | N105: =IFERROR(VLOOKUP(F105,Biomasser!$A$3:$E$88,5,FALSE),0) -> 0 | P105: 0 | S105: =IFERROR(VLOOKUP(F105,Biomasser!$A$3:$M$88,13,FALSE),) -> 0 | Y105: =IF(F105<>"",'CO2 konvertering'!$C$14,) -> 0 | AD105: 0
D106: Ja | L106: =IFERROR(VLOOKUP(F106,Biomasser!$A$3:$E$88,4,FALSE),0) -> 0 | N106: =IFERROR(VLOOKUP(F106,Biomasser!$A$3:$E$88,5,FALSE),0) -> 0 | P106: 0 | S106: =IFERROR(VLOOKUP(F106,Biomasser!$A$3:$M$88,13,FALSE),) -> 0 | Y106: =IF(F106<>"",'CO2 konvertering'!$C$14,) -> 0 | AD106: =SUM(S106:AC106) -> 0
D107: Ja | L107: =IFERROR(VLOOKUP(F107,Biomasser!$A$3:$E$88,4,FALSE),0) -> 0 | N107: =IFERROR(VLOOKUP(F107,Biomasser!$A$3:$E$88,5,FALSE),0) -> 0 | P107: 0 | S107: =IFERROR(VLOOKUP(F107,Biomasser!$A$3:$M$88,13,FALSE),) -> 0 | Y107: =IF(F107<>"",'CO2 konvertering'!$C$14,) -> 0 | AD107: 0
D108: Ja | L108: =IFERROR(VLOOKUP(F108,Biomasser!$A$3:$E$88,4,FALSE),0) -> 0 | N108: =IFERROR(VLOOKUP(F108,Biomasser!$A$3:$E$88,5,FALSE),0) -> 0 | P108: 0 | S108: =IFERROR(VLOOKUP(F108,Biomasser!$A$3:$M$88,13,FALSE),) -> 0 | Y108: =IF(F108<>"",'CO2 konvertering'!$C$14,) -> 0 | AD108: 0
D109: Ja | L109: =IFERROR(VLOOKUP(F109,Biomasser!$A$3:$E$88,4,FALSE),0) -> 0 | N109: =IFERROR(VLOOKUP(F109,Biomasser!$A$3:$E$88,5,FALSE),0) -> 0 | P109: 0 | S109: =IFERROR(VLOOKUP(F109,Biomasser!$A$3:$M$88,13,FALSE),) -> 0 | Y109: =IF(F109<>"",'CO2 konvertering'!$C$14,) -> 0 | AD109: 0
D110: Ja | L110: =IFERROR(VLOOKUP(F110,Biomasser!$A$3:$E$88,4,FALSE),0) -> 0 | N110: =IFERROR(VLOOKUP(F110,Biomasser!$A$3:$E$88,5,FALSE),0) -> 0 | P110: 0 | S110: =IFERROR(VLOOKUP(F110,Biomasser!$A$3:$M$88,13,FALSE),) -> 0 | Y110: =IF(F110<>"",'CO2 konvertering'!$C$14,) -> 0 | AD110: 0
B111: Dato: | F111: Mængde biomasse (Ton) | H111: Gasproduktion
A112: Gas | B112: 2. januar | C112: 2015 | F112: =SUM(H115:H215) -> 0 | I112: m3 CH4
B113: Leverandør | D113: Certificeret | F113: Råvarer input | G113: Mængder (Ton vådvægt) | J113: Tørstof % | L113: Omsættelig tørstof % | N113: Gaspotentiale m³ CH4/ton VS | P113: Teoretisk gasproduktion m³ CH4
A115: =B112&C112 -> 2. januar2015 | D115: Ja | I115: =IF(AND(F115<>"",ISBLANK(H115)),"Indtast vægt","") ->  | K115: =IF(AND(F115<>"",ISBLANK(J115)),"Indtast tørstof %","") ->  | L115: =IFERROR(VLOOKUP(F115,Biomasser!$A$3:$E$88,4,FALSE),) -> 0 | N115: =IFERROR(VLOOKUP(F115,Biomasser!$A$3:$E$88,5,FALSE),0) -> 0 | O115: =IF(AND(F115<>"",(N115=0)),"Opdater biomasseark","") ->  | P115: =J115*L115*N115*H115 -> 0 | S115: =IFERROR(VLOOKUP(F115,Biomasser!$A$3:$M$88,13,FALSE),) -> 0 | Y115: =IF(F115<>"",'CO2 konvertering'!$C$14,) -> 0 | AD115: =SUM(S115:AC115) -> 0
D116: Ja | I116: =IF(AND(F116<>"",ISBLANK(H116)),"Indtast vægt","") ->  | K116: =IF(AND(F116<>"",ISBLANK(J116)),"Indtast tørstof %","") ->  | L116: =IFERROR(VLOOKUP(F116,Biomasser!$A$3:$E$88,4,FALSE),0) -> 0 | N116: =IFERROR(VLOOKUP(F116,Biomasser!$A$3:$E$88,5,FALSE),0) -> 0 | P116: 0 | S116: =IFERROR(VLOOKUP(F116,Biomasser!$A$3:$M$88,13,FALSE),) -> 0 | Y116: =IF(F116<>"",'CO2 konvertering'!$C$14,) -> 0 | AD116: 0
D117: Ja | L117: =IFERROR(VLOOKUP(F117,Biomasser!$A$3:$E$88,4,FALSE),0) -> 0 | N117: =IFERROR(VLOOKUP(F117,Biomasser!$A$3:$E$88,5,FALSE),0) -> 0 | P117: 0 | S117: =IFERROR(VLOOKUP(F117,Biomasser!$A$3:$M$88,13,FALSE),) -> 0 | Y117: =IF(F117<>"",'CO2 konvertering'!$C$14,) -> 0 | AD117: 0
D118: Ja | L118: =IFERROR(VLOOKUP(F118,Biomasser!$A$3:$E$88,4,FALSE),0) -> 0 | N118: =IFERROR(VLOOKUP(F118,Biomasser!$A$3:$E$88,5,FALSE),0) -> 0 | O118: =IF(AND(F118<>"",(N118=0)),"Opdater biomasseark","") ->  | P118: 0 | S118: =IFERROR(VLOOKUP(F118,Biomasser!$A$3:$M$88,13,FALSE),) -> 0 | Y118: =IF(F118<>"",'CO2 konvertering'!$C$14,) -> 0 | AD118: 0
D119: Ja | L119: =IFERROR(VLOOKUP(F119,Biomasser!$A$3:$E$88,4,FALSE),0) -> 0 | N119: =IFERROR(VLOOKUP(F119,Biomasser!$A$3:$E$88,5,FALSE),0) -> 0 | O119: =IF(AND(F119<>"",(N119=0)),"Opdater biomasseark","") ->  | P119: 0 | S119: =IFERROR(VLOOKUP(F119,Biomasser!$A$3:$M$88,13,FALSE),) -> 0 | Y119: =IF(F119<>"",'CO2 konvertering'!$C$14,) -> 0 | AD119: 0
D120: Ja | L120: =IFERROR(VLOOKUP(F120,Biomasser!$A$3:$E$88,4,FALSE),0) -> 0 | N120: =IFERROR(VLOOKUP(F120,Biomasser!$A$3:$E$88,5,FALSE),0) -> 0 | P120: 0 | S120: =IFERROR(VLOOKUP(F120,Biomasser!$A$3:$M$88,13,FALSE),) -> 0 | Y120: =IF(F120<>"",'CO2 konvertering'!$C$14,) -> 0 | AD120: 0
D121: Ja | L121: =IFERROR(VLOOKUP(F121,Biomasser!$A$3:$E$88,4,FALSE),0) -> 0 | N121: =IFERROR(VLOOKUP(F121,Biomasser!$A$3:$E$88,5,FALSE),0) -> 0 | P121: 0 | S121: =IFERROR(VLOOKUP(F121,Biomasser!$A$3:$M$88,13,FALSE),) -> 0 | Y121: =IF(F121<>"",'CO2 konvertering'!$C$14,) -> 0 | AD121: 0
D122: Ja | L122: =IFERROR(VLOOKUP(F122,Biomasser!$A$3:$E$88,4,FALSE),0) -> 0 | N122: =IFERROR(VLOOKUP(F122,Biomasser!$A$3:$E$88,5,FALSE),0) -> 0 | P122: 0 | S122: =IFERROR(VLOOKUP(F122,Biomasser!$A$3:$M$88,13,FALSE),) -> 0 | Y122: =IF(F122<>"",'CO2 konvertering'!$C$14,) -> 0 | AD122: 0
D123: Ja | L123: =IFERROR(VLOOKUP(F123,Biomasser!$A$3:$E$88,4,FALSE),0) -> 0 | N123: =IFERROR(VLOOKUP(F123,Biomasser!$A$3:$E$88,5,FALSE),0) -> 0 | P123: 0 | S123: =IFERROR(VLOOKUP(F123,Biomasser!$A$3:$M$88,13,FALSE),) -> 0 | Y123: =IF(F123<>"",'CO2 konvertering'!$C$14,) -> 0 | AD123: 0
D124: Ja | L124: =IFERROR(VLOOKUP(F124,Biomasser!$A$3:$E$88,4,FALSE),0) -> 0 | N124: =IFERROR(VLOOKUP(F124,Biomasser!$A$3:$E$88,5,FALSE),0) -> 0 | P124: 0 | S124: =IFERROR(VLOOKUP(F124,Biomasser!$A$3:$M$88,13,FALSE),) -> 0 | Y124: =IF(F124<>"",'CO2 konvertering'!$C$14,) -> 0 | AD124: 0
D125: Ja | L125: =IFERROR(VLOOKUP(F125,Biomasser!$A$3:$E$88,4,FALSE),0) -> 0 | N125: =IFERROR(VLOOKUP(F125,Biomasser!$A$3:$E$88,5,FALSE),0) -> 0 | P125: 0 | S125: =IFERROR(VLOOKUP(F125,Biomasser!$A$3:$M$88,13,FALSE),) -> 0 | Y125: =IF(F125<>"",'CO2 konvertering'!$C$14,) -> 0 | AD125: 0
D126: Ja | L126: =IFERROR(VLOOKUP(F126,Biomasser!$A$3:$E$88,4,FALSE),0) -> 0 | N126: =IFERROR(VLOOKUP(F126,Biomasser!$A$3:$E$88,5,FALSE),0) -> 0 | P126: 0 | S126: =IFERROR(VLOOKUP(F126,Biomasser!$A$3:$M$88,13,FALSE),) -> 0 | Y126: =IF(F126<>"",'CO2 konvertering'!$C$14,) -> 0 | AD126: 0
D127: Ja | L127: =IFERROR(VLOOKUP(F127,Biomasser!$A$3:$E$88,4,FALSE),0) -> 0 | N127: =IFERROR(VLOOKUP(F127,Biomasser!$A$3:$E$88,5,FALSE),0) -> 0 | P127: 0 | S127: =IFERROR(VLOOKUP(F127,Biomasser!$A$3:$M$88,13,FALSE),) -> 0 | Y127: =IF(F127<>"",'CO2 konvertering'!$C$14,) -> 0 | AD127: 0
D128: Ja | L128: =IFERROR(VLOOKUP(F128,Biomasser!$A$3:$E$88,4,FALSE),0) -> 0 | N128: =IFERROR(VLOOKUP(F128,Biomasser!$A$3:$E$88,5,FALSE),0) -> 0 | P128: 0 | S128: =IFERROR(VLOOKUP(F128,Biomasser!$A$3:$M$88,13,FALSE),) -> 0 | Y128: =IF(F128<>"",'CO2 konvertering'!$C$14,) -> 0 | AD128: 0
D129: Ja | L129: =IFERROR(VLOOKUP(F129,Biomasser!$A$3:$E$88,4,FALSE),0) -> 0 | N129: =IFERROR(VLOOKUP(F129,Biomasser!$A$3:$E$88,5,FALSE),0) -> 0 | P129: 0 | S129: =IFERROR(VLOOKUP(F129,Biomasser!$A$3:$M$88,13,FALSE),) -> 0 | Y129: =IF(F129<>"",'CO2 konvertering'!$C$14,) -> 0 | AD129: 0
D130: Ja | L130: =IFERROR(VLOOKUP(F130,Biomasser!$A$3:$E$88,4,FALSE),0) -> 0 | N130: =IFERROR(VLOOKUP(F130,Biomasser!$A$3:$E$88,5,FALSE),0) -> 0 | P130: 0 | S130: =IFERROR(VLOOKUP(F130,Biomasser!$A$3:$M$88,13,FALSE),) -> 0 | Y130: =IF(F130<>"",'CO2 konvertering'!$C$14,) -> 0 | AD130: 0
D131: Ja | L131: =IFERROR(VLOOKUP(F131,Biomasser!$A$3:$E$88,4,FALSE),0) -> 0 | N131: =IFERROR(VLOOKUP(F131,Biomasser!$A$3:$E$88,5,FALSE),0) -> 0 | P131: 0 | S131: =IFERROR(VLOOKUP(F131,Biomasser!$A$3:$M$88,13,FALSE),) -> 0 | Y131: =IF(F131<>"",'CO2 konvertering'!$C$14,) -> 0 | AD131: 0
D132: Ja | L132: =IFERROR(VLOOKUP(F132,Biomasser!$A$3:$E$88,4,FALSE),0) -> 0 | N132: =IFERROR(VLOOKUP(F132,Biomasser!$A$3:$E$88,5,FALSE),0) -> 0 | P132: 0 | S132: =IFERROR(VLOOKUP(F132,Biomasser!$A$3:$M$88,13,FALSE),) -> 0 | Y132: =IF(F132<>"",'CO2 konvertering'!$C$14,) -> 0 | AD132: 0
D133: Ja | L133: =IFERROR(VLOOKUP(F133,Biomasser!$A$3:$E$88,4,FALSE),0) -> 0 | N133: =IFERROR(VLOOKUP(F133,Biomasser!$A$3:$E$88,5,FALSE),0) -> 0 | P133: 0 | S133: =IFERROR(VLOOKUP(F133,Biomasser!$A$3:$M$88,13,FALSE),) -> 0 | Y133: =IF(F133<>"",'CO2 konvertering'!$C$14,) -> 0 | AD133: 0
D134: Ja | L134: =IFERROR(VLOOKUP(F134,Biomasser!$A$3:$E$88,4,FALSE),0) -> 0 | N134: =IFERROR(VLOOKUP(F134,Biomasser!$A$3:$E$88,5,FALSE),0) -> 0 | P134: 0 | S134: =IFERROR(VLOOKUP(F134,Biomasser!$A$3:$M$88,13,FALSE),) -> 0 | Y134: =IF(F134<>"",'CO2 konvertering'!$C$14,) -> 0 | AD134: 0
D135: Ja | L135: =IFERROR(VLOOKUP(F135,Biomasser!$A$3:$E$88,4,FALSE),0) -> 0 | N135: =IFERROR(VLOOKUP(F135,Biomasser!$A$3:$E$88,5,FALSE),0) -> 0 | P135: 0 | S135: =IFERROR(VLOOKUP(F135,Biomasser!$A$3:$M$88,13,FALSE),) -> 0 | Y135: =IF(F135<>"",'CO2 konvertering'!$C$14,) -> 0 | AD135: 0
D136: Ja | L136: =IFERROR(VLOOKUP(F136,Biomasser!$A$3:$E$88,4,FALSE),0) -> 0 | N136: =IFERROR(VLOOKUP(F136,Biomasser!$A$3:$E$88,5,FALSE),0) -> 0 | P136: 0 | S136: =IFERROR(VLOOKUP(F136,Biomasser!$A$3:$M$88,13,FALSE),) -> 0 | Y136: =IF(F136<>"",'CO2 konvertering'!$C$14,) -> 0 | AD136: 0
D137: Ja | L137: =IFERROR(VLOOKUP(F137,Biomasser!$A$3:$E$88,4,FALSE),0) -> 0 | N137: =IFERROR(VLOOKUP(F137,Biomasser!$A$3:$E$88,5,FALSE),0) -> 0 | P137: 0 | S137: =IFERROR(VLOOKUP(F137,Biomasser!$A$3:$M$88,13,FALSE),) -> 0 | Y137: =IF(F137<>"",'CO2 konvertering'!$C$14,) -> 0 | AD137: 0
D138: Ja | L138: =IFERROR(VLOOKUP(F138,Biomasser!$A$3:$E$88,4,FALSE),0) -> 0 | N138: =IFERROR(VLOOKUP(F138,Biomasser!$A$3:$E$88,5,FALSE),0) -> 0 | P138: 0 | S138: =IFERROR(VLOOKUP(F138,Biomasser!$A$3:$M$88,13,FALSE),) -> 0 | Y138: =IF(F138<>"",'CO2 konvertering'!$C$14,) -> 0 | AD138: 0
D139: Ja | L139: =IFERROR(VLOOKUP(F139,Biomasser!$A$3:$E$88,4,FALSE),0) -> 0 | N139: =IFERROR(VLOOKUP(F139,Biomasser!$A$3:$E$88,5,FALSE),0) -> 0 | P139: 0 | S139: =IFERROR(VLOOKUP(F139,Biomasser!$A$3:$M$88,13,FALSE),) -> 0 | Y139: =IF(F139<>"",'CO2 konvertering'!$C$14,) -> 0 | AD139: 0
D140: Ja | L140: =IFERROR(VLOOKUP(F140,Biomasser!$A$3:$E$88,4,FALSE),0) -> 0 | N140: =IFERROR(VLOOKUP(F140,Biomasser!$A$3:$E$88,5,FALSE),0) -> 0 | P140: 0 | S140: =IFERROR(VLOOKUP(F140,Biomasser!$A$3:$M$88,13,FALSE),) -> 0 | Y140: =IF(F140<>"",'CO2 konvertering'!$C$14,) -> 0 | AD140: 0
D141: Ja | L141: =IFERROR(VLOOKUP(F141,Biomasser!$A$3:$E$88,4,FALSE),0) -> 0 | N141: =IFERROR(VLOOKUP(F141,Biomasser!$A$3:$E$88,5,FALSE),0) -> 0 | P141: 0 | S141: =IFERROR(VLOOKUP(F141,Biomasser!$A$3:$M$88,13,FALSE),) -> 0 | Y141: =IF(F141<>"",'CO2 konvertering'!$C$14,) -> 0 | AD141: 0
D142: Ja | L142: =IFERROR(VLOOKUP(F142,Biomasser!$A$3:$E$88,4,FALSE),0) -> 0 | N142: =IFERROR(VLOOKUP(F142,Biomasser!$A$3:$E$88,5,FALSE),0) -> 0 | P142: 0 | S142: =IFERROR(VLOOKUP(F142,Biomasser!$A$3:$M$88,13,FALSE),) -> 0 | Y142: =IF(F142<>"",'CO2 konvertering'!$C$14,) -> 0 | AD142: 0
D143: Ja | L143: =IFERROR(VLOOKUP(F143,Biomasser!$A$3:$E$88,4,FALSE),0) -> 0 | N143: =IFERROR(VLOOKUP(F143,Biomasser!$A$3:$E$88,5,FALSE),0) -> 0 | P143: 0 | S143: =IFERROR(VLOOKUP(F143,Biomasser!$A$3:$M$88,13,FALSE),) -> 0 | Y143: =IF(F143<>"",'CO2 konvertering'!$C$14,) -> 0 | AD143: 0
D144: Ja | L144: =IFERROR(VLOOKUP(F144,Biomasser!$A$3:$E$88,4,FALSE),0) -> 0 | N144: =IFERROR(VLOOKUP(F144,Biomasser!$A$3:$E$88,5,FALSE),0) -> 0 | P144: 0 | S144: =IFERROR(VLOOKUP(F144,Biomasser!$A$3:$M$88,13,FALSE),) -> 0 | Y144: =IF(F144<>"",'CO2 konvertering'!$C$14,) -> 0 | AD144: 0
D145: Ja | L145: =IFERROR(VLOOKUP(F145,Biomasser!$A$3:$E$88,4,FALSE),0) -> 0 | N145: =IFERROR(VLOOKUP(F145,Biomasser!$A$3:$E$88,5,FALSE),0) -> 0 | P145: 0 | S145: =IFERROR(VLOOKUP(F145,Biomasser!$A$3:$M$88,13,FALSE),) -> 0 | Y145: =IF(F145<>"",'CO2 konvertering'!$C$14,) -> 0 | AD145: 0
D146: Ja | L146: =IFERROR(VLOOKUP(F146,Biomasser!$A$3:$E$88,4,FALSE),0) -> 0 | N146: =IFERROR(VLOOKUP(F146,Biomasser!$A$3:$E$88,5,FALSE),0) -> 0 | P146: 0 | S146: =IFERROR(VLOOKUP(F146,Biomasser!$A$3:$M$88,13,FALSE),) -> 0 | Y146: =IF(F146<>"",'CO2 konvertering'!$C$14,) -> 0 | AD146: 0
D147: Ja | L147: =IFERROR(VLOOKUP(F147,Biomasser!$A$3:$E$88,4,FALSE),0) -> 0 | N147: =IFERROR(VLOOKUP(F147,Biomasser!$A$3:$E$88,5,FALSE),0) -> 0 | P147: =J147*L147*N147*H147 -> 0 | S147: =IFERROR(VLOOKUP(F147,Biomasser!$A$3:$M$88,13,FALSE),) -> 0 | Y147: =IF(F147<>"",'CO2 konvertering'!$C$14,) -> 0 | AD147: =SUM(S147:AC147) -> 0
D148: Ja | L148: =IFERROR(VLOOKUP(F148,Biomasser!$A$3:$E$88,4,FALSE),0) -> 0 | N148: =IFERROR(VLOOKUP(F148,Biomasser!$A$3:$E$88,5,FALSE),0) -> 0 | P148: 0 | S148: =IFERROR(VLOOKUP(F148,Biomasser!$A$3:$M$88,13,FALSE),) -> 0 | Y148: =IF(F148<>"",'CO2 konvertering'!$C$14,) -> 0 | AD148: 0
D149: Ja | L149: =IFERROR(VLOOKUP(F149,Biomasser!$A$3:$E$88,4,FALSE),0) -> 0 | N149: =IFERROR(VLOOKUP(F149,Biomasser!$A$3:$E$88,5,FALSE),0) -> 0 | P149: 0 | S149: =IFERROR(VLOOKUP(F149,Biomasser!$A$3:$M$88,13,FALSE),) -> 0 | Y149: =IF(F149<>"",'CO2 konvertering'!$C$14,) -> 0 | AD149: 0
D150: Ja | L150: =IFERROR(VLOOKUP(F150,Biomasser!$A$3:$E$88,4,FALSE),0) -> 0 | N150: =IFERROR(VLOOKUP(F150,Biomasser!$A$3:$E$88,5,FALSE),0) -> 0 | P150: 0 | S150: =IFERROR(VLOOKUP(F150,Biomasser!$A$3:$M$88,13,FALSE),) -> 0 | Y150: =IF(F150<>"",'CO2 konvertering'!$C$14,) -> 0 | AD150: 0
D151: Ja | L151: =IFERROR(VLOOKUP(F151,Biomasser!$A$3:$E$88,4,FALSE),0) -> 0 | N151: =IFERROR(VLOOKUP(F151,Biomasser!$A$3:$E$88,5,FALSE),0) -> 0 | P151: 0 | S151: =IFERROR(VLOOKUP(F151,Biomasser!$A$3:$M$88,13,FALSE),) -> 0 | Y151: =IF(F151<>"",'CO2 konvertering'!$C$14,) -> 0 | AD151: 0
D152: Ja | L152: =IFERROR(VLOOKUP(F152,Biomasser!$A$3:$E$88,4,FALSE),0) -> 0 | N152: =IFERROR(VLOOKUP(F152,Biomasser!$A$3:$E$88,5,FALSE),0) -> 0 | P152: 0 | S152: =IFERROR(VLOOKUP(F152,Biomasser!$A$3:$M$88,13,FALSE),) -> 0 | Y152: =IF(F152<>"",'CO2 konvertering'!$C$14,) -> 0 | AD152: 0
D153: Ja | L153: =IFERROR(VLOOKUP(F153,Biomasser!$A$3:$E$88,4,FALSE),0) -> 0 | N153: =IFERROR(VLOOKUP(F153,Biomasser!$A$3:$E$88,5,FALSE),0) -> 0 | P153: 0 | S153: =IFERROR(VLOOKUP(F153,Biomasser!$A$3:$M$88,13,FALSE),) -> 0 | Y153: =IF(F153<>"",'CO2 konvertering'!$C$14,) -> 0 | AD153: 0
D154: Ja | L154: =IFERROR(VLOOKUP(F154,Biomasser!$A$3:$E$88,4,FALSE),0) -> 0 | N154: =IFERROR(VLOOKUP(F154,Biomasser!$A$3:$E$88,5,FALSE),0) -> 0 | P154: 0 | S154: =IFERROR(VLOOKUP(F154,Biomasser!$A$3:$M$88,13,FALSE),) -> 0 | Y154: =IF(F154<>"",'CO2 konvertering'!$C$14,) -> 0 | AD154: 0
D155: Ja | L155: =IFERROR(VLOOKUP(F155,Biomasser!$A$3:$E$88,4,FALSE),0) -> 0 | N155: =IFERROR(VLOOKUP(F155,Biomasser!$A$3:$E$88,5,FALSE),0) -> 0 | P155: 0 | S155: =IFERROR(VLOOKUP(F155,Biomasser!$A$3:$M$88,13,FALSE),) -> 0 | Y155: =IF(F155<>"",'CO2 konvertering'!$C$14,) -> 0 | AD155: 0
D156: Ja | L156: =IFERROR(VLOOKUP(F156,Biomasser!$A$3:$E$88,4,FALSE),0) -> 0 | N156: =IFERROR(VLOOKUP(F156,Biomasser!$A$3:$E$88,5,FALSE),0) -> 0 | P156: 0 | S156: =IFERROR(VLOOKUP(F156,Biomasser!$A$3:$M$88,13,FALSE),) -> 0 | Y156: =IF(F156<>"",'CO2 konvertering'!$C$14,) -> 0 | AD156: 0
D157: Ja | L157: =IFERROR(VLOOKUP(F157,Biomasser!$A$3:$E$88,4,FALSE),0) -> 0 | N157: =IFERROR(VLOOKUP(F157,Biomasser!$A$3:$E$88,5,FALSE),0) -> 0 | P157: 0 | S157: =IFERROR(VLOOKUP(F157,Biomasser!$A$3:$M$88,13,FALSE),) -> 0 | Y157: =IF(F157<>"",'CO2 konvertering'!$C$14,) -> 0 | AD157: 0
D158: Ja | L158: =IFERROR(VLOOKUP(F158,Biomasser!$A$3:$E$88,4,FALSE),0) -> 0 | N158: =IFERROR(VLOOKUP(F158,Biomasser!$A$3:$E$88,5,FALSE),0) -> 0 | P158: 0 | S158: =IFERROR(VLOOKUP(F158,Biomasser!$A$3:$M$88,13,FALSE),) -> 0 | Y158: =IF(F158<>"",'CO2 konvertering'!$C$14,) -> 0 | AD158: 0
D159: Ja | L159: =IFERROR(VLOOKUP(F159,Biomasser!$A$3:$E$88,4,FALSE),0) -> 0 | N159: =IFERROR(VLOOKUP(F159,Biomasser!$A$3:$E$88,5,FALSE),0) -> 0 | P159: 0 | S159: =IFERROR(VLOOKUP(F159,Biomasser!$A$3:$M$88,13,FALSE),) -> 0 | Y159: =IF(F159<>"",'CO2 konvertering'!$C$14,) -> 0 | AD159: 0
D160: Ja | L160: =IFERROR(VLOOKUP(F160,Biomasser!$A$3:$E$88,4,FALSE),0) -> 0 | N160: =IFERROR(VLOOKUP(F160,Biomasser!$A$3:$E$88,5,FALSE),0) -> 0 | P160: 0 | S160: =IFERROR(VLOOKUP(F160,Biomasser!$A$3:$M$88,13,FALSE),) -> 0 | Y160: =IF(F160<>"",'CO2 konvertering'!$C$14,) -> 0 | AD160: 0
D161: Ja | L161: =IFERROR(VLOOKUP(F161,Biomasser!$A$3:$E$88,4,FALSE),0) -> 0 | N161: =IFERROR(VLOOKUP(F161,Biomasser!$A$3:$E$88,5,FALSE),0) -> 0 | P161: 0 | S161: =IFERROR(VLOOKUP(F161,Biomasser!$A$3:$M$88,13,FALSE),) -> 0 | Y161: =IF(F161<>"",'CO2 konvertering'!$C$14,) -> 0 | AD161: 0
D162: Ja | L162: =IFERROR(VLOOKUP(F162,Biomasser!$A$3:$E$88,4,FALSE),0) -> 0 | N162: =IFERROR(VLOOKUP(F162,Biomasser!$A$3:$E$88,5,FALSE),0) -> 0 | P162: 0 | S162: =IFERROR(VLOOKUP(F162,Biomasser!$A$3:$M$88,13,FALSE),) -> 0 | Y162: =IF(F162<>"",'CO2 konvertering'!$C$14,) -> 0 | AD162: 0
D163: Ja | L163: =IFERROR(VLOOKUP(F163,Biomasser!$A$3:$E$88,4,FALSE),0) -> 0 | N163: =IFERROR(VLOOKUP(F163,Biomasser!$A$3:$E$88,5,FALSE),0) -> 0 | P163: 0 | S163: =IFERROR(VLOOKUP(F163,Biomasser!$A$3:$M$88,13,FALSE),) -> 0 | Y163: =IF(F163<>"",'CO2 konvertering'!$C$14,) -> 0 | AD163: 0
D164: Ja | L164: =IFERROR(VLOOKUP(F164,Biomasser!$A$3:$E$88,4,FALSE),0) -> 0 | N164: =IFERROR(VLOOKUP(F164,Biomasser!$A$3:$E$88,5,FALSE),0) -> 0 | P164: 0 | S164: =IFERROR(VLOOKUP(F164,Biomasser!$A$3:$M$88,13,FALSE),) -> 0 | Y164: =IF(F164<>"",'CO2 konvertering'!$C$14,) -> 0 | AD164: 0
D165: Ja | L165: =IFERROR(VLOOKUP(F165,Biomasser!$A$3:$E$88,4,FALSE),0) -> 0 | N165: =IFERROR(VLOOKUP(F165,Biomasser!$A$3:$E$88,5,FALSE),0) -> 0 | P165: 0 | S165: =IFERROR(VLOOKUP(F165,Biomasser!$A$3:$M$88,13,FALSE),) -> 0 | Y165: =IF(F165<>"",'CO2 konvertering'!$C$14,) -> 0 | AD165: 0
D166: Ja | L166: =IFERROR(VLOOKUP(F166,Biomasser!$A$3:$E$88,4,FALSE),0) -> 0 | N166: =IFERROR(VLOOKUP(F166,Biomasser!$A$3:$E$88,5,FALSE),0) -> 0 | P166: 0 | S166: =IFERROR(VLOOKUP(F166,Biomasser!$A$3:$M$88,13,FALSE),) -> 0 | Y166: =IF(F166<>"",'CO2 konvertering'!$C$14,) -> 0 | AD166: 0
D167: Ja | L167: =IFERROR(VLOOKUP(F167,Biomasser!$A$3:$E$88,4,FALSE),0) -> 0 | N167: =IFERROR(VLOOKUP(F167,Biomasser!$A$3:$E$88,5,FALSE),0) -> 0 | P167: 0 | S167: =IFERROR(VLOOKUP(F167,Biomasser!$A$3:$M$88,13,FALSE),) -> 0 | Y167: =IF(F167<>"",'CO2 konvertering'!$C$14,) -> 0 | AD167: 0
D168: Ja | L168: =IFERROR(VLOOKUP(F168,Biomasser!$A$3:$E$88,4,FALSE),0) -> 0 | N168: =IFERROR(VLOOKUP(F168,Biomasser!$A$3:$E$88,5,FALSE),0) -> 0 | P168: 0 | S168: =IFERROR(VLOOKUP(F168,Biomasser!$A$3:$M$88,13,FALSE),) -> 0 | Y168: =IF(F168<>"",'CO2 konvertering'!$C$14,) -> 0 | AD168: 0
D169: Ja | L169: =IFERROR(VLOOKUP(F169,Biomasser!$A$3:$E$88,4,FALSE),0) -> 0 | N169: =IFERROR(VLOOKUP(F169,Biomasser!$A$3:$E$88,5,FALSE),0) -> 0 | P169: 0 | S169: =IFERROR(VLOOKUP(F169,Biomasser!$A$3:$M$88,13,FALSE),) -> 0 | Y169: =IF(F169<>"",'CO2 konvertering'!$C$14,) -> 0 | AD169: 0
D170: Ja | L170: =IFERROR(VLOOKUP(F170,Biomasser!$A$3:$E$88,4,FALSE),0) -> 0 | N170: =IFERROR(VLOOKUP(F170,Biomasser!$A$3:$E$88,5,FALSE),0) -> 0 | P170: 0 | S170: =IFERROR(VLOOKUP(F170,Biomasser!$A$3:$M$88,13,FALSE),) -> 0 | Y170: =IF(F170<>"",'CO2 konvertering'!$C$14,) -> 0 | AD170: 0
D171: Ja | L171: =IFERROR(VLOOKUP(F171,Biomasser!$A$3:$E$88,4,FALSE),0) -> 0 | N171: =IFERROR(VLOOKUP(F171,Biomasser!$A$3:$E$88,5,FALSE),0) -> 0 | P171: 0 | S171: =IFERROR(VLOOKUP(F171,Biomasser!$A$3:$M$88,13,FALSE),) -> 0 | Y171: =IF(F171<>"",'CO2 konvertering'!$C$14,) -> 0 | AD171: 0
D172: Ja | L172: =IFERROR(VLOOKUP(F172,Biomasser!$A$3:$E$88,4,FALSE),0) -> 0 | N172: =IFERROR(VLOOKUP(F172,Biomasser!$A$3:$E$88,5,FALSE),0) -> 0 | P172: 0 | S172: =IFERROR(VLOOKUP(F172,Biomasser!$A$3:$M$88,13,FALSE),) -> 0 | Y172: =IF(F172<>"",'CO2 konvertering'!$C$14,) -> 0 | AD172: 0
D173: Ja | L173: =IFERROR(VLOOKUP(F173,Biomasser!$A$3:$E$88,4,FALSE),0) -> 0 | N173: =IFERROR(VLOOKUP(F173,Biomasser!$A$3:$E$88,5,FALSE),0) -> 0 | P173: 0 | S173: =IFERROR(VLOOKUP(F173,Biomasser!$A$3:$M$88,13,FALSE),) -> 0 | Y173: =IF(F173<>"",'CO2 konvertering'!$C$14,) -> 0 | AD173: 0
D174: Ja | L174: =IFERROR(VLOOKUP(F174,Biomasser!$A$3:$E$88,4,FALSE),0) -> 0 | N174: =IFERROR(VLOOKUP(F174,Biomasser!$A$3:$E$88,5,FALSE),0) -> 0 | P174: 0 | S174: =IFERROR(VLOOKUP(F174,Biomasser!$A$3:$M$88,13,FALSE),) -> 0 | Y174: =IF(F174<>"",'CO2 konvertering'!$C$14,) -> 0 | AD174: 0
D175: Ja | L175: =IFERROR(VLOOKUP(F175,Biomasser!$A$3:$E$88,4,FALSE),0) -> 0 | N175: =IFERROR(VLOOKUP(F175,Biomasser!$A$3:$E$88,5,FALSE),0) -> 0 | P175: 0 | S175: =IFERROR(VLOOKUP(F175,Biomasser!$A$3:$M$88,13,FALSE),) -> 0 | Y175: =IF(F175<>"",'CO2 konvertering'!$C$14,) -> 0 | AD175: 0
D176: Ja | L176: =IFERROR(VLOOKUP(F176,Biomasser!$A$3:$E$88,4,FALSE),0) -> 0 | N176: =IFERROR(VLOOKUP(F176,Biomasser!$A$3:$E$88,5,FALSE),0) -> 0 | P176: 0 | S176: =IFERROR(VLOOKUP(F176,Biomasser!$A$3:$M$88,13,FALSE),) -> 0 | Y176: =IF(F176<>"",'CO2 konvertering'!$C$14,) -> 0 | AD176: 0
D177: Ja | L177: =IFERROR(VLOOKUP(F177,Biomasser!$A$3:$E$88,4,FALSE),0) -> 0 | N177: =IFERROR(VLOOKUP(F177,Biomasser!$A$3:$E$88,5,FALSE),0) -> 0 | P177: 0 | S177: =IFERROR(VLOOKUP(F177,Biomasser!$A$3:$M$88,13,FALSE),) -> 0 | Y177: =IF(F177<>"",'CO2 konvertering'!$C$14,) -> 0 | AD177: 0
D178: Ja | L178: =IFERROR(VLOOKUP(F178,Biomasser!$A$3:$E$88,4,FALSE),0) -> 0 | N178: =IFERROR(VLOOKUP(F178,Biomasser!$A$3:$E$88,5,FALSE),0) -> 0 | P178: 0 | S178: =IFERROR(VLOOKUP(F178,Biomasser!$A$3:$M$88,13,FALSE),) -> 0 | Y178: =IF(F178<>"",'CO2 konvertering'!$C$14,) -> 0 | AD178: 0
D179: Ja | L179: =IFERROR(VLOOKUP(F179,Biomasser!$A$3:$E$88,4,FALSE),0) -> 0 | N179: =IFERROR(VLOOKUP(F179,Biomasser!$A$3:$E$88,5,FALSE),0) -> 0 | P179: =J179*L179*N179*H179 -> 0 | S179: =IFERROR(VLOOKUP(F179,Biomasser!$A$3:$M$88,13,FALSE),) -> 0 | Y179: =IF(F179<>"",'CO2 konvertering'!$C$14,) -> 0 | AD179: =SUM(S179:AC179) -> 0
D180: Ja | I180: =IF(AND(F180<>"",ISBLANK(H180)),"Indtast vægt","") ->  | K180: =IF(AND(F180<>"",ISBLANK(J180)),"Indtast tørstof %","") ->  | L180: =IFERROR(VLOOKUP(F180,Biomasser!$A$3:$E$88,4,FALSE),0) -> 0 | N180: =IFERROR(VLOOKUP(F180,Biomasser!$A$3:$E$88,5,FALSE),0) -> 0 | P180: 0 | S180: =IFERROR(VLOOKUP(F180,Biomasser!$A$3:$M$88,13,FALSE),) -> 0 | Y180: =IF(F180<>"",'CO2 konvertering'!$C$14,) -> 0 | AD180: 0
D181: Ja | L181: =IFERROR(VLOOKUP(F181,Biomasser!$A$3:$E$88,4,FALSE),0) -> 0 | N181: =IFERROR(VLOOKUP(F181,Biomasser!$A$3:$E$88,5,FALSE),0) -> 0 | P181: 0 | S181: =IFERROR(VLOOKUP(F181,Biomasser!$A$3:$M$88,13,FALSE),) -> 0 | Y181: =IF(F181<>"",'CO2 konvertering'!$C$14,) -> 0 | AD181: 0
D182: Ja | L182: =IFERROR(VLOOKUP(F182,Biomasser!$A$3:$E$88,4,FALSE),0) -> 0 | N182: =IFERROR(VLOOKUP(F182,Biomasser!$A$3:$E$88,5,FALSE),0) -> 0 | P182: 0 | S182: =IFERROR(VLOOKUP(F182,Biomasser!$A$3:$M$88,13,FALSE),) -> 0 | Y182: =IF(F182<>"",'CO2 konvertering'!$C$14,) -> 0 | AD182: 0
D183: Ja | L183: =IFERROR(VLOOKUP(F183,Biomasser!$A$3:$E$88,4,FALSE),0) -> 0 | N183: =IFERROR(VLOOKUP(F183,Biomasser!$A$3:$E$88,5,FALSE),0) -> 0 | O183: =IF(AND(F183<>"",(N183=0)),"Opdater biomasseark","") ->  | P183: 0 | S183: =IFERROR(VLOOKUP(F183,Biomasser!$A$3:$M$88,13,FALSE),) -> 0 | Y183: =IF(F183<>"",'CO2 konvertering'!$C$14,) -> 0 | AD183: 0
D184: Ja | L184: =IFERROR(VLOOKUP(F184,Biomasser!$A$3:$E$88,4,FALSE),0) -> 0 | N184: =IFERROR(VLOOKUP(F184,Biomasser!$A$3:$E$88,5,FALSE),0) -> 0 | P184: 0 | S184: =IFERROR(VLOOKUP(F184,Biomasser!$A$3:$M$88,13,FALSE),) -> 0 | Y184: =IF(F184<>"",'CO2 konvertering'!$C$14,) -> 0 | AD184: 0
D185: Ja | L185: =IFERROR(VLOOKUP(F185,Biomasser!$A$3:$E$88,4,FALSE),0) -> 0 | N185: =IFERROR(VLOOKUP(F185,Biomasser!$A$3:$E$88,5,FALSE),0) -> 0 | P185: 0 | S185: =IFERROR(VLOOKUP(F185,Biomasser!$A$3:$M$88,13,FALSE),) -> 0 | Y185: =IF(F185<>"",'CO2 konvertering'!$C$14,) -> 0 | AD185: 0
D186: Ja | L186: =IFERROR(VLOOKUP(F186,Biomasser!$A$3:$E$88,4,FALSE),0) -> 0 | N186: =IFERROR(VLOOKUP(F186,Biomasser!$A$3:$E$88,5,FALSE),0) -> 0 | P186: 0 | S186: =IFERROR(VLOOKUP(F186,Biomasser!$A$3:$M$88,13,FALSE),) -> 0 | Y186: =IF(F186<>"",'CO2 konvertering'!$C$14,) -> 0 | AD186: 0
D187: Ja | L187: =IFERROR(VLOOKUP(F187,Biomasser!$A$3:$E$88,4,FALSE),0) -> 0 | N187: =IFERROR(VLOOKUP(F187,Biomasser!$A$3:$E$88,5,FALSE),0) -> 0 | P187: 0 | S187: =IFERROR(VLOOKUP(F187,Biomasser!$A$3:$M$88,13,FALSE),) -> 0 | Y187: =IF(F187<>"",'CO2 konvertering'!$C$14,) -> 0 | AD187: 0
D188: Ja | L188: =IFERROR(VLOOKUP(F188,Biomasser!$A$3:$E$88,4,FALSE),0) -> 0 | N188: =IFERROR(VLOOKUP(F188,Biomasser!$A$3:$E$88,5,FALSE),0) -> 0 | P188: 0 | S188: =IFERROR(VLOOKUP(F188,Biomasser!$A$3:$M$88,13,FALSE),) -> 0 | Y188: =IF(F188<>"",'CO2 konvertering'!$C$14,) -> 0 | AD188: 0
D189: Ja | L189: =IFERROR(VLOOKUP(F189,Biomasser!$A$3:$E$88,4,FALSE),0) -> 0 | N189: =IFERROR(VLOOKUP(F189,Biomasser!$A$3:$E$88,5,FALSE),0) -> 0 | P189: 0 | S189: =IFERROR(VLOOKUP(F189,Biomasser!$A$3:$M$88,13,FALSE),) -> 0 | Y189: =IF(F189<>"",'CO2 konvertering'!$C$14,) -> 0 | AD189: 0
D190: Ja | L190: =IFERROR(VLOOKUP(F190,Biomasser!$A$3:$E$88,4,FALSE),0) -> 0 | N190: =IFERROR(VLOOKUP(F190,Biomasser!$A$3:$E$88,5,FALSE),0) -> 0 | P190: 0 | S190: =IFERROR(VLOOKUP(F190,Biomasser!$A$3:$M$88,13,FALSE),) -> 0 | Y190: =IF(F190<>"",'CO2 konvertering'!$C$14,) -> 0 | AD190: 0
D191: Ja | L191: =IFERROR(VLOOKUP(F191,Biomasser!$A$3:$E$88,4,FALSE),0) -> 0 | N191: =IFERROR(VLOOKUP(F191,Biomasser!$A$3:$E$88,5,FALSE),0) -> 0 | P191: 0 | S191: =IFERROR(VLOOKUP(F191,Biomasser!$A$3:$M$88,13,FALSE),) -> 0 | Y191: =IF(F191<>"",'CO2 konvertering'!$C$14,) -> 0 | AD191: 0
D192: Ja | L192: =IFERROR(VLOOKUP(F192,Biomasser!$A$3:$E$88,4,FALSE),0) -> 0 | N192: =IFERROR(VLOOKUP(F192,Biomasser!$A$3:$E$88,5,FALSE),0) -> 0 | P192: 0 | S192: =IFERROR(VLOOKUP(F192,Biomasser!$A$3:$M$88,13,FALSE),) -> 0 | Y192: =IF(F192<>"",'CO2 konvertering'!$C$14,) -> 0 | AD192: 0
D193: Ja | L193: =IFERROR(VLOOKUP(F193,Biomasser!$A$3:$E$88,4,FALSE),0) -> 0 | N193: =IFERROR(VLOOKUP(F193,Biomasser!$A$3:$E$88,5,FALSE),0) -> 0 | P193: 0 | S193: =IFERROR(VLOOKUP(F193,Biomasser!$A$3:$M$88,13,FALSE),) -> 0 | Y193: =IF(F193<>"",'CO2 konvertering'!$C$14,) -> 0 | AD193: 0
D194: Ja | L194: =IFERROR(VLOOKUP(F194,Biomasser!$A$3:$E$88,4,FALSE),0) -> 0 | N194: =IFERROR(VLOOKUP(F194,Biomasser!$A$3:$E$88,5,FALSE),0) -> 0 | P194: 0 | S194: =IFERROR(VLOOKUP(F194,Biomasser!$A$3:$M$88,13,FALSE),) -> 0 | Y194: =IF(F194<>"",'CO2 konvertering'!$C$14,) -> 0 | AD194: 0
D195: Ja | L195: =IFERROR(VLOOKUP(F195,Biomasser!$A$3:$E$88,4,FALSE),0) -> 0 | N195: =IFERROR(VLOOKUP(F195,Biomasser!$A$3:$E$88,5,FALSE),0) -> 0 | P195: 0 | S195: =IFERROR(VLOOKUP(F195,Biomasser!$A$3:$M$88,13,FALSE),) -> 0 | Y195: =IF(F195<>"",'CO2 konvertering'!$C$14,) -> 0 | AD195: 0
D196: Ja | L196: =IFERROR(VLOOKUP(F196,Biomasser!$A$3:$E$88,4,FALSE),0) -> 0 | N196: =IFERROR(VLOOKUP(F196,Biomasser!$A$3:$E$88,5,FALSE),0) -> 0 | P196: 0 | S196: =IFERROR(VLOOKUP(F196,Biomasser!$A$3:$M$88,13,FALSE),) -> 0 | Y196: =IF(F196<>"",'CO2 konvertering'!$C$14,) -> 0 | AD196: 0
D197: Ja | L197: =IFERROR(VLOOKUP(F197,Biomasser!$A$3:$E$88,4,FALSE),0) -> 0 | N197: =IFERROR(VLOOKUP(F197,Biomasser!$A$3:$E$88,5,FALSE),0) -> 0 | P197: 0 | S197: =IFERROR(VLOOKUP(F197,Biomasser!$A$3:$M$88,13,FALSE),) -> 0 | Y197: =IF(F197<>"",'CO2 konvertering'!$C$14,) -> 0 | AD197: 0
D198: Ja | L198: =IFERROR(VLOOKUP(F198,Biomasser!$A$3:$E$88,4,FALSE),0) -> 0 | N198: =IFERROR(VLOOKUP(F198,Biomasser!$A$3:$E$88,5,FALSE),0) -> 0 | P198: 0 | S198: =IFERROR(VLOOKUP(F198,Biomasser!$A$3:$M$88,13,FALSE),) -> 0 | Y198: =IF(F198<>"",'CO2 konvertering'!$C$14,) -> 0 | AD198: 0
D199: Ja | L199: =IFERROR(VLOOKUP(F199,Biomasser!$A$3:$E$88,4,FALSE),0) -> 0 | N199: =IFERROR(VLOOKUP(F199,Biomasser!$A$3:$E$88,5,FALSE),0) -> 0 | P199: 0 | S199: =IFERROR(VLOOKUP(F199,Biomasser!$A$3:$M$88,13,FALSE),) -> 0 | Y199: =IF(F199<>"",'CO2 konvertering'!$C$14,) -> 0 | AD199: 0
D200: Ja | L200: =IFERROR(VLOOKUP(F200,Biomasser!$A$3:$E$88,4,FALSE),0) -> 0 | N200: =IFERROR(VLOOKUP(F200,Biomasser!$A$3:$E$88,5,FALSE),0) -> 0 | P200: 0 | S200: =IFERROR(VLOOKUP(F200,Biomasser!$A$3:$M$88,13,FALSE),) -> 0 | Y200: =IF(F200<>"",'CO2 konvertering'!$C$14,) -> 0 | AD200: 0
D201: Ja | L201: =IFERROR(VLOOKUP(F201,Biomasser!$A$3:$E$88,4,FALSE),0) -> 0 | N201: =IFERROR(VLOOKUP(F201,Biomasser!$A$3:$E$88,5,FALSE),0) -> 0 | P201: 0 | S201: =IFERROR(VLOOKUP(F201,Biomasser!$A$3:$M$88,13,FALSE),) -> 0 | Y201: =IF(F201<>"",'CO2 konvertering'!$C$14,) -> 0 | AD201: 0
D202: Ja | L202: =IFERROR(VLOOKUP(F202,Biomasser!$A$3:$E$88,4,FALSE),0) -> 0 | N202: =IFERROR(VLOOKUP(F202,Biomasser!$A$3:$E$88,5,FALSE),0) -> 0 | P202: 0 | S202: =IFERROR(VLOOKUP(F202,Biomasser!$A$3:$M$88,13,FALSE),) -> 0 | Y202: =IF(F202<>"",'CO2 konvertering'!$C$14,) -> 0 | AD202: 0
D203: Ja | L203: =IFERROR(VLOOKUP(F203,Biomasser!$A$3:$E$88,4,FALSE),0) -> 0 | N203: =IFERROR(VLOOKUP(F203,Biomasser!$A$3:$E$88,5,FALSE),0) -> 0 | P203: 0 | S203: =IFERROR(VLOOKUP(F203,Biomasser!$A$3:$M$88,13,FALSE),) -> 0 | Y203: =IF(F203<>"",'CO2 konvertering'!$C$14,) -> 0 | AD203: 0
D204: Ja | L204: =IFERROR(VLOOKUP(F204,Biomasser!$A$3:$E$88,4,FALSE),0) -> 0 | N204: =IFERROR(VLOOKUP(F204,Biomasser!$A$3:$E$88,5,FALSE),0) -> 0 | P204: 0 | S204: =IFERROR(VLOOKUP(F204,Biomasser!$A$3:$M$88,13,FALSE),) -> 0 | Y204: =IF(F204<>"",'CO2 konvertering'!$C$14,) -> 0 | AD204: 0
D205: Ja | L205: =IFERROR(VLOOKUP(F205,Biomasser!$A$3:$E$88,4,FALSE),0) -> 0 | N205: =IFERROR(VLOOKUP(F205,Biomasser!$A$3:$E$88,5,FALSE),0) -> 0 | P205: 0 | S205: =IFERROR(VLOOKUP(F205,Biomasser!$A$3:$M$88,13,FALSE),) -> 0 | Y205: =IF(F205<>"",'CO2 konvertering'!$C$14,) -> 0 | AD205: 0
... 2027 more rows

Sheet Leverandører
A4: ID | B4: Navn | C4: Vejnavn | D4: Nr | E4: Post nr | F4: By | G4: Telefon | H4: CVR nummer | I4: Certifikations nummer

Sheet Procentandel - mellemregning

Sheet Dagsbasis-mellemregning
B1: Teo prod. | F1: CO2e | J1: % Andel | M1: Faktisk produktion | Q1: Biomasse (ton)
A2: Dato | B2: Ikke cert | C2: Cert | D2: Dobbelt | E2: Total | F2: ikke cert | G2: cert | H2: Dobbelt | I2: Total | J2: ikke cert | K2: cert | L2: Dobbelt | M2: Total | N2: ikke cert | O2: cert | P2: dobbelt
A3: 1. januar2015
A4: 2. januar2015
A5: 3. januar2015
A6: 4. januar2015
A7: 5. januar2015
A8: 6. januar2015
A9: 7. januar2015
A10: 8. januar2015
A11: 9. januar2015
A12: 10. januar2015
A13: 11. januar2015
A14: 12. januar2015
A15: 13. januar2015
A16: 14. januar2015
A17: 15. januar2015
A18: 16. januar2015
A19: 17. januar2015
A20: 18. januar2015
A21: 19. januar2015
A22: 20. januar2015
A23: 21. januar2015
A24: 22. januar2015
A25: 23. januar2015
A26: 24. januar2015
A27: 25. januar2015
A28: 26. januar2015
A29: 27. januar2015
A30: 28. januar2015
A31: 29. januar2015
A32: 30. januar2015
A33: 31. januar2015
A34: 1. februar2015
A35: 2. februar2015
A36: 3. februar2015
A37: 4. februar2015
A38: 5. februar2015
A39: 6. februar2015
A40: 7. februar2015
A41: 8. februar2015
A42: 9. februar2015
A43: 10. februar2015
A44: 11. februar2015
A45: 12. februar2015
A46: 13. februar2015
A47: 14. februar2015
A48: 15. februar2015
A49: 16. februar2015
A50: 17. februar2015
A51: 18. februar2015
A52: 19. februar2015
A53: 20. februar2015
A54: 21. februar2015
A55: 22. februar2015
A56: 23. februar2015
A57: 24. februar2015
A58: 25. februar2015
A59: 26. februar2015
A60: 27. februar2015
A61: 28. februar2015
A62: 1. marts2015
A63: 2. marts2015
A64: 3. marts2015
A65: 4. marts2015
A66: 5. marts2015
A67: 6. marts2015
A68: 7. marts2015
A69: 8. marts2015
A70: 9. marts2015
A71: 10. marts2015
A72: 11. marts2015
A73: 12. marts2015
A74: 13. marts2015
A75: 14. marts2015
A76: 15. marts2015
A77: 16. marts2015
A78: 17. marts2015
A79: 18. marts2015
A80: 19. marts2015
A81: 20. marts2015
A82: 21. marts2015
A83: 22. marts2015
A84: 23. marts2015
A85: 24. marts2015
A86: 25. marts2015
A87: 26. marts2015
A88: 27. marts2015
A89: 28. marts2015
A90: 29. marts2015
A91: 30. marts2015
A92: 31. marts2015
A93: 1. april2015
A94: 2. april2015
A95: 3. april2015
A96: 4. april2015
A97: 5. april2015
A98: 6. april2015
A99: 7. april2015
A100: 8. april2015
A101: 9. april2015
A102: 10. april2015
A103: 11. april2015
A104: 12. april2015
A105: 13. april2015
A106: 14. april2015
A107: 15. april2015
A108: 16. april2015
A109: 17. april2015
A110: 18. april2015
A111: 19. april2015
A112: 20. april2015
A113: 21. april2015
A114: 22. april2015
A115: 23. april2015
A116: 24. april2015
A117: 25. april2015
A118: 26. april2015
A119: 27. april2015
A120: 28. april2015
A121: 29. april2015
A122: 30. april2015
A123: 1. maj2015
A124: 2. maj2015
A125: 3. maj2015
A126: 4. maj2015
A127: 5. maj2015
A128: 6. maj2015
A129: 7. maj2015
A130: 8. maj2015
A131: 9. maj2015
A132: 10. maj2015
A133: 11. maj2015
A134: 12. maj2015
A135: 13. maj2015
A136: 14. maj2015
A137: 15. maj2015
A138: 16. maj2015
A139: 17. maj2015
A140: 18. maj2015
A141: 19. maj2015
A142: 20. maj2015
A143: 21. maj2015
A144: 22. maj2015
A145: 23. maj2015
A146: 24. maj2015
A147: 25. maj2015
A148: 26. maj2015
A149: 27. maj2015
A150: 28. maj2015
A151: 29. maj2015
A152: 30. maj2015
A153: 31. maj2015
A154: 1. juni2015
A155: 2. juni2015
A156: 3. juni2015
A157: 4. juni2015
A158: 5. juni2015
A159: 6. juni2015
A160: 7. juni2015
A161: 8. juni2015
A162: 9. juni2015
A163: 10. juni2015
A164: 11. juni2015
A165: 12. juni2015
A166: 13. juni2015
A167: 14. juni2015
A168: 15. juni2015
A169: 16. juni2015
A170: 17. juni2015
A171: 18. juni2015
A172: 19. juni2015
A173: 20. juni2015
A174: 21. juni2015
A175: 22. juni2015
A176: 23. juni2015
A177: 24. juni2015
A178: 25. juni2015
A179: 26. juni2015
A180: 27. juni2015
A181: 28. juni2015
A182: 29. juni2015
A183: 30. juni2015
A184: 1. juli2015
A185: 2. juli2015
A186: 3. juli2015
A187: 4. juli2015
A188: 5. juli2015
A189: 6. juli2015
A190: 7. juli2015
A191: 8. juli2015
A192: 9. juli2015
A193: 10. juli2015
A194: 11. juli2015
A195: 12. juli2015
A196: 13. juli2015
A197: 14. juli2015
A198: 15. juli2015
A199: 16. juli2015
A200: 17. juli2015
... 533 more rows

Sheet Biomasser
A1: Biomasse | B1: Tørstof (TS) % | D1: Omsættelig tørstof (VS) VS/TS % | E1: Gaspotentiale m³ CH4/ton VS | F1: Gasproduktion m³ CH4/tons | H1: Anvendt kategori | J1: Beskrivelse | K1: Dobbelttælling | L1: Energinet.dk | M1: Default gCO2/ton biomasse | N1: Gaspotentiale m³ Biogas/ton VS
B2: Lav | C2: Høj | F2: HBK | G2: NIRAS | H2: HBK | I2: NIRAS
A3: Afgrøder (Overskrift, kan ikke vælges)
A4: - Majs | B4: 30 | C4: 45 | D4: 0.95 | E4: 305 | F4: 172 | G4: 60-100 | H4: Majs | I4: Majsensilage | J4: Kolber/helsæd | L4: x | N4: 469.2307692
A5: - Roer | B5: 20 | C5: 30 | D5: 0.95 | E5: 357 | F5: 150 | G5: 78 | H5: Sockerbeta | I5: Sukkerroe - rod | J5: Rod | L5: x | N5: 549.2307692
A6: - Korn | B6: 84 | C6: 88 | D6: 0.98 | E6: 370 | F6: 550 | G6: 315 | H6: Korn | I6: Korn, findelt | J6: Kerner/helsæd | L6: x | N6: 569.2307692
A7: - Græs | B7: 15 | C7: 25 | D7: 0.91 | E7: 324 | G7: 53 | I7: Græs, frisk ubehandlet | J7: Helsæd fra konventionelle arealer i omdrift | L7: x | N7: 498.4615385
A8: - Kløvergræs | B8: 25 | C8: 45 | D8: 0.88 | E8: 302 | F8: 159 | G8: 67 | H8: Vallgröda | I8: Kløvergræs, ensilage | J8: Helsæd fra konventionelle arealer i omdrift - kløvergræs fra økologiske arealer er undtaget | L8: x | N8: 464.6153846
A9: - Jordskokker | B9: 0 | C9: 100 | J9: Rod/helsæd | L9: x
A10: - Andre afgrøder | B10: 0 | C10: 100 | J10: Andre afgrøder, der er dyrket med henblik på biogasproduktion, som ikke er omfattet af begrænsningen for energiafgrøder. | L10: x
A11: - Hvedehelsæd | B11: 30 | C11: 45 | D11: 0.94 | E11: 270 | F11: 174 | G11: 100 | H11: Helsäd-Vete | I11: Helsædsensilage | J11: kerner og halm lagret som ensilage | N11: 415.3846154
A12: - Top af foderroe | B12: 10 | C12: 15 | D12: 0.85 | E12: 329 | G12: 34 | I12: Foderroe - top | N12: 506.1538462
A13: - Foderroe - rod og top frisk | B13: 15 | C13: 25 | D13: 0.93 | E13: 345 | G13: 53 | I13: Foderroe - rod og top frisk | N13: 530.7692308
A14: - Økologisk kløvergræs | B14: 30 | C14: 45 | D14: 0.9 | E14: 319 | F14: 159 | G14: 86 | H14: Vallgröda | I14: Kløvergræs, ensilage | J14: Kløvergræs (helsæd) fra økologisk bedrifter er ikke omfattet af begrænsningen for energiafgrøder til biogas.
A15: Husdyrgødning (Overskrift, kan ikke vælges)
A16: - Kvæggylle | B16: 5 | C16: 10 | D16: 0.85 | E16: 198 | F16: 24 | G16: 12 | H16: Flytgödsel | I16: Gylle malkekvæg | K16: x | L16: x | N16: 304.6153846
A17: - Svinegylle | B17: 5 | C17: 10 | D17: 0.85 | E17: 294 | F17: 24 | G17: 11 | H17: Flytgödsel | I17: Gylle slagtersvin | K17: x | L17: x | N17: 452.3076923
A18: - Gylle fra so | B18: 0 | C18: 10 | D18: 0.8 | E18: 248 | G18: 5 | I18: Gylle fra so | K18: x
A19: - Minkgylle | B19: 5 | C19: 10 | D19: 0.8 | E19: 356 | F19: 24 | G19: 18 | H19: Flytgödsel | I19: Gødningsrende, ugentlig tømning | K19: x | L19: x | N19: 547.6923077
A20: - Fjerkrægylle | B20: 5 | C20: 15 | D20: 0.8 | E20: 290 | F20: 24 | G20: 28 | H20: Flytgödsel | I20: Gylle Høns og Høniker | K20: x | L20: x | N20: 446.1538462
A21: - Blandet gylle | B21: 5 | C21: 10 | D21: 0.85 | E21: 285 | F21: 24 | H21: Flytgödsel | K21: x | L21: x | N21: 438.4615385
A22: - Dybstrøelse - Kvæg | B22: 15 | C22: 30 | D22: 0.8 | E22: 248 | F22: 54 | G22: 59 | H22: Fast stallgödsel | I22: Konventionel malkekvæg | K22: x | L22: x | N22: 381.5384615
A23: - Dybstrøelse - Fjerkræ | B23: 60 | C23: 75 | D23: 0.8 | E23: 252 | F23: 54 | G23: 127 | H23: Fast stallgödsel | I23: Høns og høniker | K23: x | L23: x | N23: 387.6923077
A24: - Dybstrøelse - Hest | B24: 25 | C24: 35 | D24: 0.8 | E24: 180 | G24: 37 | I24: Dybstrøelse - hest | J24: Alle heste | K24: x
A25: - Dybstrøelse - Andre typer | B25: 15 | C25: 25 | F25: 54 | H25: Fast stallgödsel | K25: x | L25: x
A26: - Fast gødning | B26: 15 | C26: 25 | D26: 0.55 | E26: 250 | F26: 54 | H26: Fast stallgödsel | K26: x | L26: x | N26: 384.6153846
A27: - Ajle | B27: 5 | C27: 10 | K27: x | L27: x
A28: - Fiberfraktion | B28: 0 | C28: 100 | J28: Fiberfraktion fra separeret husdyrgødning | K28: x | L28: x
A29: - Flydende fraktion fra separationsanlæg | B29: 0 | C29: 100 | J29: Væskefraktion fra separeret husdyrgødning. | K29: x | L29: x
A30: - Flydende fraktion | B30: 0 | C30: 100 | J30: Væskefraktion fra separeret husdyrgødning, hvor fiberfraktionen afbrændes | K30: x | L30: x
A31: - Anden husdyrgødning | B31: 0 | C31: 100 | K31: x | L31: x
A32: - Forsuret svinegylle | B32: 0 | C32: 10 | D32: 0.8 | E32: 329 | G32: 12 | I32: Forsuret svinegylle | K32: x | N32: 506.1538462
A33: - Dybstrøelse - Svin | B33: 30 | C33: 35 | D33: 0.8 | E33: 230 | G33: 61 | I33: Dybstrøelse - slagtesvin og so | J33: Slagtesvin og so | K33: x | N33: 353.8461538
A34: - Gylle fibre - kemisk separation - Svin | B34: 25 | C34: 35 | D34: 0.8 | E34: 170 | G34: 41 | I34: Gylle fibre kemisk separation - slagtesvin | J34: Slagtesvin | K34: x | N34: 261.5384615
A35: - Gylle fibre - dekanter separation - Svin | B35: 25 | C35: 35 | D35: 0.8 | E35: 150 | G35: 36 | I35: Gyllefibre dekanter separation - slagtesvin | J35: Slagtesvin | K35: x | N35: 230.7692308
A36: - Staldgødning - Kvæg | B36: 15 | C36: 25 | D36: 0.8 | E36: 200 | G36: 32 | I36: Staldgødning - kvæg | K36: x | N36: 307.6923077
A37: - Kvæggylle - Årsopdræt 6 mdr. | B37: 10 | C37: 15 | D37: 0.8 | E37: 203 | G37: 20 | I37: Kvæggylle - årsopdræt 6 mdr. | K37: x | N37: 312.3076923
A38: - Staldgødning - Fjerkræ | B38: 35 | C38: 45 | D38: 0.8 | E38: 146 | G38: 47 | I38: Staldgødning - høns og høniker | J38: Høns og høniker | K38: x | N38: 224.6153846
A39: Slam og spildevand (Overskrift, kan ikke vælges)
A40: - Slam og spildevand samt uforurenede produktrester | B40: 5 | C40: 15 | F40: 66 | H40: Flytande avfall från livsmedelsindustri och handel | J40: Slam og spildevand samt uforurenede produktrester fra forarbejdning af vegetabilske råvarer samt slam og spildevand fra mejerier. | L40: x
A41: - Slam fra dambrug | B41: 0 | C41: 100 | J41: - Slam fra ferskvandsdambrug samt slam og spildevand fra recirkulerede anlæg til opdræt af fisk. - Slam fra indpumpningsdambrug. | L41: x
A42: - Slam fra forarbejdning af animalske råvarer | B42: 5 | C42: 15 | D42: 0.8 | E42: 540 | G42: 43 | I42: Flotationsslam | J42: - Slam og flotationsfedt fra renseanlæg på slagterier, opskæringsvirksomheder og andre levnedmiddelvirksomheder. - Slam og flotationsfedt fra rensningsanlæg på fiskeindustrier. | L42: x | N42: 830.7692308
A43: - Spildevandsslam | B43: 0 | C43: 10 | D43: 0.8 | E43: 330 | F43: 12 | G43: 10 | H43: Slam från kommunalt avloppsreningsverk och enskilda avlopp | I43: Primær spildevandsslam, uafvandet | J43: - Slam fra offentlige spildevandsanlæg - Slam fra private rensningsanlæg til behandling af husspildevand | L43: x | N43: 507.6923077
A44: - Proteolyseret processpildevand | J44: Proteolyseret processpildevand baseret på biologisk materiale, der har undergået en behnadling svarende til mindst kontrolleret hygiejnisering. | L44: x
A45: - Sekundær spildevandsslam | B45: 0 | C45: 10 | D45: 0.75 | E45: 251 | G45: 9 | I45: Sekundær spildevandsslam | J45: Slam efter beluftning af spildevand | N45: 386.1538462
A46: - Sekundær spildevandsslam afvandet | B46: 15 | C46: 25 | D46: 0.75 | E46: 200 | G46: 28 | I46: Sekundær spildevandsslam afvandet | N46: 307.6923077
A47: Organisk affald fra husholdninger og erhverv (Overskrift, kan ikke vælges) | N47: 615.3846154
A48: - Kildesorteret organisk dagrenovation | B48: 30 | C48: 30 | D48: 0.85 | E48: 400 | F48: 148 | G48: 102 | H48: Källsorterat matavfall från hushåll och verksamheter (fast form) | I48: Organisk husholdningsaffald - forbehandling ikke kendt | J48: Kildesorteret organisk dagrenovation og dagrenovationslignende affald herunder madaffald fra storkøkkener indsamlet med organisk dagrenovation og madaffald fra institutioner. | L48: x | N48: 615.3846154
A49: - Organisk husholdningsaffald - Renescience | B49: 20 | C49: 30 | D49: 0.88 | E49: 400 | G49: 88 | I49: Organisk husholdningsaffald - Renescience | N49: 615.3846154
A50: - Organisk husholdningsaffald - Pulper | B50: 5 | C50: 10 | D50: 0.88 | E50: 400 | G50: 25 | I50: Organisk husholdningsaffald - Pulper | J50: Cellwood, Sverige | N50: 615.3846154
A51: - Organisk husholdningsaffald - Rullesigte | B51: 25 | C51: 35 | D51: 0.88 | E51: 400 | G51: 99 | I51: Organisk husholdningsaffald - Rullesigte | N51: 615.3846154
A52: - Organisk husholdningsaffald - Skruepresse | B52: 20 | C52: 30 | D52: 0.88 | E52: 400 | G52: 88 | I52: Organisk husholdningsaffald - Skruepresse | N52: 615.3846154
A53: - Organisk husholdningsaffald - Neddeling | B53: 20 | C53: 30 | D53: 0.92 | E53: 552 | G53: 132 | I53: Organisk husholdningsaffald - Neddeling | J53: Storkøkkenaffald - organisk fraktion separeret | N53: 849.2307692
A54: - Organisk affald fra erhverv | B54: 25 | C54: 35 | D54: 0.9 | E54: 400 | F54: 148 | H54: Källsorterat matavfall från hushåll och verksamheter (fast form) | J54: Organisk affald fra erhverv som ikke er animalske biprodukter. | L54: x | N54: 615.3846154
A55: Rester og biprodukter fra planter og afgrøder (Overskrift, kan ikke vælges)
A56: - Cellulose | B56: 95 | C56: 100 | D56: 1 | E56: 125 | G56: 125 | I56: Cellulose | N56: 192.3076923
A57: - Naturpleje biomasse | B57: 45 | C57: 55 | D57: 0.85 | E57: 150 | G57: 64 | I57: Græs - landskabspleje | J57: Græsslet og anden biomasse fra naturarealer, der fremkommer ved naturpleje. | L57: x | N57: 230.7692308
A58: - Halm | B58: 75 | C58: 85 | D58: 0.95 | E58: 230 | F58: 207 | G58: 174 | H58: Halm (torkad) | I58: Hvedehalm | J58: Halm fra korn, raps eller andre afgrøder. | L58: x | N58: 353.8461538
A59: - Have-park affald | B59: 45 | C59: 55 | D59: 0.85 | E59: 150 | G59: 64 | I59: Græs - landskabspleje | J59: Have- og parkaffald omfatter græsafklip og andre plantedele fra kommunale arealer og private via genbrugsstationer. | L59: x | N59: 230.7692308
A60: - Andre restprodukter fra produktion af primærafgrøder | B60: 20 | C60: 25 | F60: 70 | H60: Blast från sockerbeta och potatis | J60: Ikke halm, men andre dele af afgrøder, som bliver frasorteret f.eks. roetoppe, kartoffeltoppe el. lign. | L60: x
A61: - Kasserede afgrøder | B61: 0 | C61: 100 | J61: Kasserede afgrøder i form af rodfrugter, majs eller korn, der er beskadiget og derfor uegnet til føde eller foder. | L61: x
A62: Rester og biprodukter fra levnesmiddel- og dyrefoderindustrien (Overskrift, kan ikke vælges) | N62: 615.3846154
A63: - Animalske biprodukter | B63: 5 | C63: 15 | D63: 0.85 | E63: 400 | F63: 88 | H63: Avfall från slakteri | J63: Hele kroppe eller dele af dyr, animalske produkter eller andre produkter fra dyr, som ikke er bestemt til konsum, f.eks. Blod, fedt, mælk og valle. | L63: x | N63: 615.3846154
A64: - Mave/tarm kvæg | B64: 10 | C64: 15 | D64: 0.8 | E64: 400 | G64: 38 | I64: Mave/tarm kvæg | N64: 615.3846154
A65: - Mave/tarm svin | B65: 10 | C65: 20 | D65: 0.8 | E65: 460 | G65: 55 | I65: Mave/tarm svin | N65: 707.6923077
A66: - Valle | B66: 0 | C66: 10 | D66: 0.9 | E66: 330 | G66: 15 | I66: Valle | N66: 507.6923077
A67: - Valle koncentrat | B67: 5 | C67: 15 | D67: 0.9 | E67: 350 | G67: 32 | I67: Valle koncentrat | N67: 538.4615385
A68: - Protein | B68: 95 | C68: 100 | D68: 1 | E68: 302 | G68: 302 | I68: Protein | N68: 464.6153846
A69: - Fedt | B69: 95 | C69: 100 | D69: 1 | E69: 811 | G69: 811 | I69: Fedt | N69: 1247.692308
A70: - Vinasse (2,2 pct. kvælstof) | B70: 0 | C70: 100 | L70: x
A71: - Vinasse (3,5 pct. kvælstof) | B71: 0 | C71: 100 | L71: x
A72: - Kartoffelfrugtsaft | B72: 0 | C72: 100 | L72: x
A73: - Glukose | B73: 95 | C73: 100 | D73: 1 | E73: 354 | G73: 354 | I73: Glukose | N73: 544.6153846
A74: - Alkohol | B74: 35 | C74: 45 | D74: 0.95 | E74: 400 | G74: 152 | I74: Alkohol | N74: 615.3846154
A75: - Pressesaft fra grøntpilleproduktion | B75: 0 | C75: 100 | L75: x
A76: - Inaktiveret og kalkstabiliseret biomasse | B76: 0 | C76: 100 | J76: Inaktiveret og kalkstabiliseret biomasse med tørstof højere end pct. stammende fra en gæringsproduktion, der har undergået en behandling svarende til mindst kontrolleret hygiejnisering. | L76: x
A77: Anden biomasse (Overskrift)
A78: - Råglycerin | B78: 95 | C78: 100 | D78: 0.99 | E78: 425 | F78: 585 | G78: 420 | H78: Glycerol, oraffinerad | J78: F.eks. Fra biodieselproduktion | K78: x | N78: 653.8461538

Sheet Summering
C4: Biomasse (ton) | D4: Gasproduktion (CH4 m3)
B5: 2015 | C5: =SUM(C6:C127) -> 0 | D5: =SUMIFS(Input!$H$10:$H$76760,Input!$A$10:$A$76760,"Gas",Input!$C$10:$C$76760,Summering!$B$5) -> 0
B6: =IF(Biomasser!A3="","", Biomasser!A3) -> Afgrøder (Overskrift, kan ikke vælges) | C6: =SUMIFS(Input!$H$10:$H$38330, Input!$F$10:$F$38330,Summering!B6) -> 0
B7: =IF(Biomasser!A4="","", Biomasser!A4) -> - Majs | C7: =SUMIFS(Input!$H$10:$H$38330, Input!$F$10:$F$38330,Summering!B7) -> 0
B8: =IF(Biomasser!A5="","", Biomasser!A5) -> - Roer | C8: =SUMIFS(Input!$H$10:$H$38330, Input!$F$10:$F$38330,Summering!B8) -> 0
B9: =IF(Biomasser!A6="","", Biomasser!A6) -> - Korn | C9: =SUMIFS(Input!$H$10:$H$38330, Input!$F$10:$F$38330,Summering!B9) -> 0
B10: =IF(Biomasser!A7="","", Biomasser!A7) -> - Græs | C10: =SUMIFS(Input!$H$10:$H$38330, Input!$F$10:$F$38330,Summering!B10) -> 0
B11: =IF(Biomasser!A8="","", Biomasser!A8) -> - Kløvergræs | C11: =SUMIFS(Input!$H$10:$H$38330, Input!$F$10:$F$38330,Summering!B11) -> 0
B12: =IF(Biomasser!A9="","", Biomasser!A9) -> - Jordskokker | C12: =SUMIFS(Input!$H$10:$H$38330, Input!$F$10:$F$38330,Summering!B12) -> 0
B13: =IF(Biomasser!A10="","", Biomasser!A10) -> - Andre afgrøder | C13: =SUMIFS(Input!$H$10:$H$38330, Input!$F$10:$F$38330,Summering!B13) -> 0
B14: =IF(Biomasser!A11="","", Biomasser!A11) -> - Hvedehelsæd | C14: =SUMIFS(Input!$H$10:$H$38330, Input!$F$10:$F$38330,Summering!B14) -> 0
B15: =IF(Biomasser!A12="","", Biomasser!A12) -> - Top af foderroe | C15: =SUMIFS(Input!$H$10:$H$38330, Input!$F$10:$F$38330,Summering!B15) -> 0
B16: =IF(Biomasser!A13="","", Biomasser!A13) -> - Foderroe - rod og top frisk | C16: =SUMIFS(Input!$H$10:$H$38330, Input!$F$10:$F$38330,Summering!B16) -> 0
B17: =IF(Biomasser!A14="","", Biomasser!A14) -> - Økologisk kløvergræs | C17: =SUMIFS(Input!$H$10:$H$38330, Input!$F$10:$F$38330,Summering!B17) -> 0
B18: =IF(Biomasser!A15="","", Biomasser!A15) -> Husdyrgødning (Overskrift, kan ikke vælges) | C18: =SUMIFS(Input!$H$10:$H$38330, Input!$F$10:$F$38330,Summering!B18) -> 0
B19: =IF(Biomasser!A16="","", Biomasser!A16) -> - Kvæggylle | C19: =SUMIFS(Input!$H$10:$H$38330, Input!$F$10:$F$38330,Summering!B19) -> 0
B20: =IF(Biomasser!A17="","", Biomasser!A17) -> - Svinegylle | C20: =SUMIFS(Input!$H$10:$H$38330,Input!$F$10:$F$38330,Summering!B20) -> 0
B21: =IF(Biomasser!A18="","", Biomasser!A18) -> - Gylle fra so | C21: =SUMIFS(Input!$H$10:$H$38330, Input!$F$10:$F$38330,Summering!B21) -> 0
B22: =IF(Biomasser!A19="","", Biomasser!A19) -> - Minkgylle | C22: =SUMIFS(Input!$H$10:$H$38330, Input!$F$10:$F$38330,Summering!B22) -> 0
B23: =IF(Biomasser!A20="","", Biomasser!A20) -> - Fjerkrægylle | C23: =SUMIFS(Input!$H$10:$H$38330, Input!$F$10:$F$38330,Summering!B23) -> 0
B24: =IF(Biomasser!A21="","", Biomasser!A21) -> - Blandet gylle | C24: =SUMIFS(Input!$H$10:$H$38330, Input!$F$10:$F$38330,Summering!B24) -> 0
B25: =IF(Biomasser!A22="","", Biomasser!A22) -> - Dybstrøelse - Kvæg | C25: =SUMIFS(Input!$H$10:$H$38330, Input!$F$10:$F$38330,Summering!B25) -> 0
B26: =IF(Biomasser!A23="","", Biomasser!A23) -> - Dybstrøelse - Fjerkræ | C26: =SUMIFS(Input!$H$10:$H$38330, Input!$F$10:$F$38330,Summering!B26) -> 0
B27: =IF(Biomasser!A24="","", Biomasser!A24) -> - Dybstrøelse - Hest | C27: =SUMIFS(Input!$H$10:$H$38330, Input!$F$10:$F$38330,Summering!B27) -> 0
B28: =IF(Biomasser!A25="","", Biomasser!A25) -> - Dybstrøelse - Andre typer | C28: =SUMIFS(Input!$H$10:$H$38330, Input!$F$10:$F$38330,Summering!B28) -> 0
B29: =IF(Biomasser!A26="","", Biomasser!A26) -> - Fast gødning | C29: =SUMIFS(Input!$H$10:$H$38330, Input!$F$10:$F$38330,Summering!B29) -> 0
B30: =IF(Biomasser!A27="","", Biomasser!A27) -> - Ajle | C30: =SUMIFS(Input!$H$10:$H$38330, Input!$F$10:$F$38330,Summering!B30) -> 0
B31: =IF(Biomasser!A28="","", Biomasser!A28) -> - Fiberfraktion | C31: =SUMIFS(Input!$H$10:$H$38330, Input!$F$10:$F$38330,Summering!B31) -> 0
B32: =IF(Biomasser!A29="","", Biomasser!A29) -> - Flydende fraktion fra separationsanlæg | C32: =SUMIFS(Input!$H$10:$H$38330, Input!$F$10:$F$38330,Summering!B32) -> 0
B33: =IF(Biomasser!A30="","", Biomasser!A30) -> - Flydende fraktion | C33: =SUMIFS(Input!$H$10:$H$38330, Input!$F$10:$F$38330,Summering!B33) -> 0
B34: =IF(Biomasser!A31="","", Biomasser!A31) -> - Anden husdyrgødning | C34: =SUMIFS(Input!$H$10:$H$38330, Input!$F$10:$F$38330,Summering!B34) -> 0
B35: =IF(Biomasser!A32="","", Biomasser!A32) -> - Forsuret svinegylle | C35: =SUMIFS(Input!$H$10:$H$38330, Input!$F$10:$F$38330,Summering!B35) -> 0
B36: =IF(Biomasser!A33="","", Biomasser!A33) -> - Dybstrøelse - Svin | C36: =SUMIFS(Input!$H$10:$H$38330, Input!$F$10:$F$38330,Summering!B36) -> 0
B37: =IF(Biomasser!A34="","", Biomasser!A34) -> - Gylle fibre - kemisk separation - Svin | C37: =SUMIFS(Input!$H$10:$H$38330, Input!$F$10:$F$38330,Summering!B37) -> 0
B38: =IF(Biomasser!A35="","", Biomasser!A35) -> - Gylle fibre - dekanter separation - Svin | C38: =SUMIFS(Input!$H$10:$H$38330, Input!$F$10:$F$38330,Summering!B38) -> 0
B39: =IF(Biomasser!A36="","", Biomasser!A36) -> - Staldgødning - Kvæg | C39: =SUMIFS(Input!$H$10:$H$38330, Input!$F$10:$F$38330,Summering!B39) -> 0
B40: =IF(Biomasser!A37="","", Biomasser!A37) -> - Kvæggylle - Årsopdræt 6 mdr. | C40: =SUMIFS(Input!$H$10:$H$38330, Input!$F$10:$F$38330,Summering!B40) -> 0
B41: =IF(Biomasser!A38="","", Biomasser!A38) -> - Staldgødning - Fjerkræ | C41: =SUMIFS(Input!$H$10:$H$38330, Input!$F$10:$F$38330,Summering!B41) -> 0
B42: =IF(Biomasser!A39="","", Biomasser!A39) -> Slam og spildevand (Overskrift, kan ikke vælges) | C42: =SUMIFS(Input!$H$10:$H$38330, Input!$F$10:$F$38330,Summering!B42) -> 0
B43: =IF(Biomasser!A40="","", Biomasser!A40) -> - Slam og spildevand samt uforurenede produktrester | C43: =SUMIFS(Input!$H$10:$H$38330, Input!$F$10:$F$38330,Summering!B43) -> 0
B44: =IF(Biomasser!A41="","", Biomasser!A41) -> - Slam fra dambrug | C44: =SUMIFS(Input!$H$10:$H$38330, Input!$F$10:$F$38330,Summering!B44) -> 0
B45: =IF(Biomasser!A42="","", Biomasser!A42) -> - Slam fra forarbejdning af animalske råvarer | C45: =SUMIFS(Input!$H$10:$H$38330, Input!$F$10:$F$38330,Summering!B45) -> 0
B46: =IF(Biomasser!A43="","", Biomasser!A43) -> - Spildevandsslam | C46: =SUMIFS(Input!$H$10:$H$38330, Input!$F$10:$F$38330,Summering!B46) -> 0
B47: =IF(Biomasser!A44="","", Biomasser!A44) -> - Proteolyseret processpildevand | C47: =SUMIFS(Input!$H$10:$H$38330, Input!$F$10:$F$38330,Summering!B47) -> 0
B48: =IF(Biomasser!A45="","", Biomasser!A45) -> - Sekundær spildevandsslam | C48: =SUMIFS(Input!$H$10:$H$38330, Input!$F$10:$F$38330,Summering!B48) -> 0
B49: =IF(Biomasser!A46="","", Biomasser!A46) -> - Sekundær spildevandsslam afvandet | C49: =SUMIFS(Input!$H$10:$H$38330, Input!$F$10:$F$38330,Summering!B49) -> 0
B50: =IF(Biomasser!A47="","", Biomasser!A47) -> Organisk affald fra husholdninger og erhverv (Overskrift, kan ikke vælges) | C50: =SUMIFS(Input!$H$10:$H$38330, Input!$F$10:$F$38330,Summering!B50) -> 0
B51: =IF(Biomasser!A48="","", Biomasser!A48) -> - Kildesorteret organisk dagrenovation | C51: =SUMIFS(Input!$H$10:$H$38330, Input!$F$10:$F$38330,Summering!B51) -> 0
B52: =IF(Biomasser!A49="","", Biomasser!A49) -> - Organisk husholdningsaffald - Renescience | C52: =SUMIFS(Input!$H$10:$H$38330, Input!$F$10:$F$38330,Summering!B52) -> 0
B53: =IF(Biomasser!A50="","", Biomasser!A50) -> - Organisk husholdningsaffald - Pulper | C53: =SUMIFS(Input!$H$10:$H$38330, Input!$F$10:$F$38330,Summering!B53) -> 0
B54: =IF(Biomasser!A51="","", Biomasser!A51) -> - Organisk husholdningsaffald - Rullesigte | C54: =SUMIFS(Input!$H$10:$H$38330, Input!$F$10:$F$38330,Summering!B54) -> 0
B55: =IF(Biomasser!A52="","", Biomasser!A52) -> - Organisk husholdningsaffald - Skruepresse | C55: =SUMIFS(Input!$H$10:$H$38330, Input!$F$10:$F$38330,Summering!B55) -> 0
B56: =IF(Biomasser!A53="","", Biomasser!A53) -> - Organisk husholdningsaffald - Neddeling | C56: =SUMIFS(Input!$H$10:$H$38330, Input!$F$10:$F$38330,Summering!B56) -> 0
B57: =IF(Biomasser!A54="","", Biomasser!A54) -> - Organisk affald fra erhverv | C57: =SUMIFS(Input!$H$10:$H$38330, Input!$F$10:$F$38330,Summering!B57) -> 0
B58: =IF(Biomasser!A55="","", Biomasser!A55) -> Rester og biprodukter fra planter og afgrøder (Overskrift, kan ikke vælges) | C58: =SUMIFS(Input!$H$10:$H$38330, Input!$F$10:$F$38330,Summering!B58) -> 0
B59: =IF(Biomasser!A56="","", Biomasser!A56) -> - Cellulose | C59: =SUMIFS(Input!$H$10:$H$38330, Input!$F$10:$F$38330,Summering!B59) -> 0
B60: =IF(Biomasser!A57="","", Biomasser!A57) -> - Naturpleje biomasse | C60: =SUMIFS(Input!$H$10:$H$38330, Input!$F$10:$F$38330,Summering!B60) -> 0
B61: =IF(Biomasser!A58="","", Biomasser!A58) -> - Halm | C61: =SUMIFS(Input!$H$10:$H$38330, Input!$F$10:$F$38330,Summering!B61) -> 0
B62: =IF(Biomasser!A59="","", Biomasser!A59) -> - Have-park affald | C62: =SUMIFS(Input!$H$10:$H$38330, Input!$F$10:$F$38330,Summering!B62) -> 0
B63: =IF(Biomasser!A60="","", Biomasser!A60) -> - Andre restprodukter fra produktion af primærafgrøder | C63: =SUMIFS(Input!$H$10:$H$38330, Input!$F$10:$F$38330,Summering!B63) -> 0
B64: =IF(Biomasser!A61="","", Biomasser!A61) -> - Kasserede afgrøder | C64: =SUMIFS(Input!$H$10:$H$38330, Input!$F$10:$F$38330,Summering!B64) -> 0
B65: =IF(Biomasser!A62="","", Biomasser!A62) -> Rester og biprodukter fra levnesmiddel- og dyrefoderindustrien (Overskrift, kan ikke vælges) | C65: =SUMIFS(Input!$H$10:$H$38330, Input!$F$10:$F$38330,Summering!B65) -> 0
B66: =IF(Biomasser!A63="","", Biomasser!A63) -> - Animalske biprodukter | C66: =SUMIFS(Input!$H$10:$H$38330, Input!$F$10:$F$38330,Summering!B66) -> 0
B67: =IF(Biomasser!A64="","", Biomasser!A64) -> - Mave/tarm kvæg | C67: =SUMIFS(Input!$H$10:$H$38330, Input!$F$10:$F$38330,Summering!B67) -> 0
B68: =IF(Biomasser!A65="","", Biomasser!A65) -> - Mave/tarm svin | C68: =SUMIFS(Input!$H$10:$H$38330, Input!$F$10:$F$38330,Summering!B68) -> 0
B69: =IF(Biomasser!A66="","", Biomasser!A66) -> - Valle | C69: =SUMIFS(Input!$H$10:$H$38330, Input!$F$10:$F$38330,Summering!B69) -> 0
B70: =IF(Biomasser!A67="","", Biomasser!A67) -> - Valle koncentrat | C70: =SUMIFS(Input!$H$10:$H$38330, Input!$F$10:$F$38330,Summering!B70) -> 0
B71: =IF(Biomasser!A68="","", Biomasser!A68) -> - Protein | C71: =SUMIFS(Input!$H$10:$H$38330, Input!$F$10:$F$38330,Summering!B71) -> 0
B72: =IF(Biomasser!A69="","", Biomasser!A69) -> - Fedt | C72: =SUMIFS(Input!$H$10:$H$38330, Input!$F$10:$F$38330,Summering!B72) -> 0
B73: =IF(Biomasser!A70="","", Biomasser!A70) -> - Vinasse (2,2 pct. kvælstof) | C73: =SUMIFS(Input!$H$10:$H$38330, Input!$F$10:$F$38330,Summering!B73) -> 0
B74: =IF(Biomasser!A71="","", Biomasser!A71) -> - Vinasse (3,5 pct. kvælstof) | C74: =SUMIFS(Input!$H$10:$H$38330, Input!$F$10:$F$38330,Summering!B74) -> 0
B75: =IF(Biomasser!A72="","", Biomasser!A72) -> - Kartoffelfrugtsaft | C75: =SUMIFS(Input!$H$10:$H$38330, Input!$F$10:$F$38330,Summering!B75) -> 0
B76: =IF(Biomasser!A73="","", Biomasser!A73) -> - Glukose | C76: =SUMIFS(Input!$H$10:$H$38330, Input!$F$10:$F$38330,Summering!B76) -> 0
B77: =IF(Biomasser!A74="","", Biomasser!A74) -> - Alkohol | C77: =SUMIFS(Input!$H$10:$H$38330, Input!$F$10:$F$38330,Summering!B77) -> 0
B78: =IF(Biomasser!A75="","", Biomasser!A75) -> - Pressesaft fra grøntpilleproduktion | C78: =SUMIFS(Input!$H$10:$H$38330, Input!$F$10:$F$38330,Summering!B78) -> 0
B79: =IF(Biomasser!A76="","", Biomasser!A76) -> - Inaktiveret og kalkstabiliseret biomasse | C79: =SUMIFS(Input!$H$10:$H$38330, Input!$F$10:$F$38330,Summering!B79) -> 0
B80: =IF(Biomasser!A77="","", Biomasser!A77) -> Anden biomasse (Overskrift) | C80: =SUMIFS(Input!$H$10:$H$38330, Input!$F$10:$F$38330,Summering!B80) -> 0
B81: =IF(Biomasser!A78="","", Biomasser!A78) -> - Råglycerin | C81: =SUMIFS(Input!$H$10:$H$38330, Input!$F$10:$F$38330,Summering!B81) -> 0
B82: =IF(Biomasser!A79="","", Biomasser!A79) ->  | C82: =SUMIFS(Input!$H$10:$H$38330, Input!$F$10:$F$38330,Summering!B82) -> 0
B83: =IF(Biomasser!A80="","", Biomasser!A80) ->  | C83: =SUMIFS(Input!$H$10:$H$38330, Input!$F$10:$F$38330,Summering!B83) -> 0
B84: =IF(Biomasser!A81="","", Biomasser!A81) ->  | C84: =SUMIFS(Input!$H$10:$H$38330, Input!$F$10:$F$38330,Summering!B84) -> 0
B85: =IF(Biomasser!A82="","", Biomasser!A82) ->  | C85: =SUMIFS(Input!$H$10:$H$38330, Input!$F$10:$F$38330,Summering!B85) -> 0
B86: =IF(Biomasser!A83="","", Biomasser!A83) ->  | C86: =SUMIFS(Input!$H$10:$H$38330, Input!$F$10:$F$38330,Summering!B86) -> 0
B87: =IF(Biomasser!A84="","", Biomasser!A84) ->  | C87: =SUMIFS(Input!$H$10:$H$38330, Input!$F$10:$F$38330,Summering!B87) -> 0
B88: =IF(Biomasser!A85="","", Biomasser!A85) ->  | C88: =SUMIFS(Input!$H$10:$H$38330, Input!$F$10:$F$38330,Summering!B88) -> 0
B89: =IF(Biomasser!A86="","", Biomasser!A86) ->  | C89: =SUMIFS(Input!$H$10:$H$38330, Input!$F$10:$F$38330,Summering!B89) -> 0
B90: =IF(Biomasser!A87="","", Biomasser!A87) ->  | C90: =SUMIFS(Input!$H$10:$H$38330, Input!$F$10:$F$38330,Summering!B90) -> 0
B91: =IF(Biomasser!A88="","", Biomasser!A88) ->  | C91: =SUMIFS(Input!$H$10:$H$38330, Input!$F$10:$F$38330,Summering!B91) -> 0
B92: =IF(Biomasser!A89="","", Biomasser!A89) ->  | C92: =SUMIFS(Input!$H$10:$H$38330, Input!$F$10:$F$38330,Summering!B92) -> 0
B93: =IF(Biomasser!A90="","", Biomasser!A90) ->  | C93: =SUMIFS(Input!$H$10:$H$38330, Input!$F$10:$F$38330,Summering!B93) -> 0
B94: =IF(Biomasser!A91="","", Biomasser!A91) ->  | C94: =SUMIFS(Input!$H$10:$H$38330, Input!$F$10:$F$38330,Summering!B94) -> 0
B95: =IF(Biomasser!A92="","", Biomasser!A92) ->  | C95: =SUMIFS(Input!$H$10:$H$38330, Input!$F$10:$F$38330,Summering!B95) -> 0
B96: =IF(Biomasser!A93="","", Biomasser!A93) ->  | C96: =SUMIFS(Input!$H$10:$H$38330, Input!$F$10:$F$38330,Summering!B96) -> 0
B97: =IF(Biomasser!A94="","", Biomasser!A94) ->  | C97: =SUMIFS(Input!$H$10:$H$38330, Input!$F$10:$F$38330,Summering!B97) -> 0
B98: =IF(Biomasser!A95="","", Biomasser!A95) ->  | C98: =SUMIFS(Input!$H$10:$H$38330, Input!$F$10:$F$38330,Summering!B98) -> 0
B99: =IF(Biomasser!A96="","", Biomasser!A96) ->  | C99: =SUMIFS(Input!$H$10:$H$38330, Input!$F$10:$F$38330,Summering!B99) -> 0
B100: =IF(Biomasser!A97="","", Biomasser!A97) ->  | C100: =SUMIFS(Input!$H$10:$H$38330, Input!$F$10:$F$38330,Summering!B100) -> 0
B101: =IF(Biomasser!A98="","", Biomasser!A98) ->  | C101: =SUMIFS(Input!$H$10:$H$38330, Input!$F$10:$F$38330,Summering!B101) -> 0
B102: =IF(Biomasser!A99="","", Biomasser!A99) ->  | C102: =SUMIFS(Input!$H$10:$H$38330, Input!$F$10:$F$38330,Summering!B102) -> 0
B103: =IF(Biomasser!A100="","", Biomasser!A100) ->  | C103: =SUMIFS(Input!$H$10:$H$38330, Input!$F$10:$F$38330,Summering!B103) -> 0
B104: =IF(Biomasser!A101="","", Biomasser!A101) ->  | C104: =SUMIFS(Input!$H$10:$H$38330, Input!$F$10:$F$38330,Summering!B104) -> 0
B105: =IF(Biomasser!A102="","", Biomasser!A102) ->  | C105: =SUMIFS(Input!$H$10:$H$38330, Input!$F$10:$F$38330,Summering!B105) -> 0
B106: =IF(Biomasser!A103="","", Biomasser!A103) ->  | C106: =SUMIFS(Input!$H$10:$H$38330, Input!$F$10:$F$38330,Summering!B106) -> 0
B107: =IF(Biomasser!A104="","", Biomasser!A104) ->  | C107: =SUMIFS(Input!$H$10:$H$38330, Input!$F$10:$F$38330,Summering!B107) -> 0
B108: =IF(Biomasser!A105="","", Biomasser!A105) ->  | C108: =SUMIFS(Input!$H$10:$H$38330, Input!$F$10:$F$38330,Summering!B108) -> 0
B109: =IF(Biomasser!A106="","", Biomasser!A106) ->  | C109: =SUMIFS(Input!$H$10:$H$38330, Input!$F$10:$F$38330,Summering!B109) -> 0
B110: =IF(Biomasser!A107="","", Biomasser!A107) ->  | C110: =SUMIFS(Input!$H$10:$H$38330, Input!$F$10:$F$38330,Summering!B110) -> 0
B111: =IF(Biomasser!A108="","", Biomasser!A108) ->  | C111: =SUMIFS(Input!$H$10:$H$38330, Input!$F$10:$F$38330,Summering!B111) -> 0
B112: =IF(Biomasser!A109="","", Biomasser!A109) ->  | C112: =SUMIFS(Input!$H$10:$H$38330, Input!$F$10:$F$38330,Summering!B112) -> 0
B113: =IF(Biomasser!A110="","", Biomasser!A110) ->  | C113: =SUMIFS(Input!$H$10:$H$38330, Input!$F$10:$F$38330,Summering!B113) -> 0
B114: =IF(Biomasser!A111="","", Biomasser!A111) ->  | C114: =SUMIFS(Input!$H$10:$H$38330, Input!$F$10:$F$38330,Summering!B114) -> 0
B115: =IF(Biomasser!A112="","", Biomasser!A112) ->  | C115: =SUMIFS(Input!$H$10:$H$38330, Input!$F$10:$F$38330,Summering!B115) -> 0
B116: =IF(Biomasser!A113="","", Biomasser!A113) ->  | C116: =SUMIFS(Input!$H$10:$H$38330, Input!$F$10:$F$38330,Summering!B116) -> 0
B117: =IF(Biomasser!A114="","", Biomasser!A114) ->  | C117: =SUMIFS(Input!$H$10:$H$38330, Input!$F$10:$F$38330,Summering!B117) -> 0
B118: =IF(Biomasser!A115="","", Biomasser!A115) ->  | C118: =IF(B118="",0,SUMIFS(Input!$H$10:$H$38330, Input!$F$10:$F$38330,Summering!B118)) -> 0
B119: =IF(Biomasser!A116="","", Biomasser!A116) ->  | C119: =IF(B119="",0,SUMIFS(Input!$H$10:$H$38330, Input!$F$10:$F$38330,Summering!B119)) -> 0
B120: =IF(Biomasser!A117="","", Biomasser!A117) ->  | C120: =IF(B120="",0,SUMIFS(Input!$H$10:$H$38330, Input!$F$10:$F$38330,Summering!B120)) -> 0
B121: =IF(Biomasser!A118="","", Biomasser!A118) ->  | C121: =IF(B121="",0,SUMIFS(Input!$H$10:$H$38330, Input!$F$10:$F$38330,Summering!B121)) -> 0
B122: =IF(Biomasser!A119="","", Biomasser!A119) ->  | C122: =IF(B122="",0,SUMIFS(Input!$H$10:$H$38330, Input!$F$10:$F$38330,Summering!B122)) -> 0
B123: =IF(Biomasser!A120="","", Biomasser!A120) ->  | C123: =IF(B123="",0,SUMIFS(Input!$H$10:$H$38330, Input!$F$10:$F$38330,Summering!B123)) -> 0
B124: =IF(Biomasser!A121="","", Biomasser!A121) ->  | C124: =IF(B124="",0,SUMIFS(Input!$H$10:$H$38330, Input!$F$10:$F$38330,Summering!B124)) -> 0
B125: =IF(Biomasser!A122="","", Biomasser!A122) ->  | C125: =IF(B125="",0,SUMIFS(Input!$H$10:$H$38330, Input!$F$10:$F$38330,Summering!B125)) -> 0
B126: =IF(Biomasser!A123="","", Biomasser!A123) ->  | C126: =IF(B126="",0,SUMIFS(Input!$H$10:$H$38330, Input!$F$10:$F$38330,Summering!B126)) -> 0
B127: =IF(Biomasser!A124="","", Biomasser!A124) ->  | C127: =IF(B127="",0,SUMIFS(Input!$H$10:$H$38330, Input!$F$10:$F$38330,Summering!B127)) -> 0
B128: Januar | C128: =SUM(C129:C250) -> 0 | D128: =SUMIFS(Input!$H$10:$H$76760,Input!$A$10:$A$76760,"Gas",Input!$C$10:$C$76760,Summering!$B$5,Input!$B$10:$B$76760,"*"&B128&"*") -> 0
B129: =IF(Biomasser!A3="","", Biomasser!A3) -> Afgrøder (Overskrift, kan ikke vælges) | C129: =IF(B129="",0,SUMIFS(Input!$H$10:$H$3260, Input!$F$10:$F$3260,Summering!B129)) -> 0
B130: =IF(Biomasser!A4="","", Biomasser!A4) -> - Majs | C130: =IF(B130="",0,SUMIFS(Input!$H$10:$H$3260, Input!$F$10:$F$3260,Summering!B130)) -> 0
B131: =IF(Biomasser!A5="","", Biomasser!A5) -> - Roer | C131: =IF(B131="",0,SUMIFS(Input!$H$10:$H$3260, Input!$F$10:$F$3260,Summering!B131)) -> 0
B132: =IF(Biomasser!A6="","", Biomasser!A6) -> - Korn | C132: =IF(B132="",0,SUMIFS(Input!$H$10:$H$3260, Input!$F$10:$F$3260,Summering!B132)) -> 0
B133: =IF(Biomasser!A7="","", Biomasser!A7) -> - Græs | C133: =IF(B133="",0,SUMIFS(Input!$H$10:$H$3260, Input!$F$10:$F$3260,Summering!B133)) -> 0
B134: =IF(Biomasser!A8="","", Biomasser!A8) -> - Kløvergræs | C134: =IF(B134="",0,SUMIFS(Input!$H$10:$H$3260, Input!$F$10:$F$3260,Summering!B134)) -> 0
B135: =IF(Biomasser!A9="","", Biomasser!A9) -> - Jordskokker | C135: =IF(B135="",0,SUMIFS(Input!$H$10:$H$3260, Input!$F$10:$F$3260,Summering!B135)) -> 0
B136: =IF(Biomasser!A10="","", Biomasser!A10) -> - Andre afgrøder | C136: =IF(B136="",0,SUMIFS(Input!$H$10:$H$3260, Input!$F$10:$F$3260,Summering!B136)) -> 0
B137: =IF(Biomasser!A11="","", Biomasser!A11) -> - Hvedehelsæd | C137: =IF(B137="",0,SUMIFS(Input!$H$10:$H$3260, Input!$F$10:$F$3260,Summering!B137)) -> 0
B138: =IF(Biomasser!A12="","", Biomasser!A12) -> - Top af foderroe | C138: =IF(B138="",0,SUMIFS(Input!$H$10:$H$3260, Input!$F$10:$F$3260,Summering!B138)) -> 0
B139: =IF(Biomasser!A13="","", Biomasser!A13) -> - Foderroe - rod og top frisk | C139: =IF(B139="",0,SUMIFS(Input!$H$10:$H$3260, Input!$F$10:$F$3260,Summering!B139)) -> 0
B140: =IF(Biomasser!A14="","", Biomasser!A14) -> - Økologisk kløvergræs | C140: =IF(B140="",0,SUMIFS(Input!$H$10:$H$3260, Input!$F$10:$F$3260,Summering!B140)) -> 0
B141: =IF(Biomasser!A15="","", Biomasser!A15) -> Husdyrgødning (Overskrift, kan ikke vælges) | C141: =IF(B141="",0,SUMIFS(Input!$H$10:$H$3260, Input!$F$10:$F$3260,Summering!B141)) -> 0
B142: =IF(Biomasser!A16="","", Biomasser!A16) -> - Kvæggylle | C142: =IF(B142="",0,SUMIFS(Input!$H$10:$H$3260, Input!$F$10:$F$3260,Summering!B142)) -> 0
B143: =IF(Biomasser!A17="","", Biomasser!A17) -> - Svinegylle | C143: =IF(B143="",0,SUMIFS(Input!$H$10:$H$3260, Input!$F$10:$F$3260,Summering!B143)) -> 0
B144: =IF(Biomasser!A18="","", Biomasser!A18) -> - Gylle fra so | C144: =IF(B144="",0,SUMIFS(Input!$H$10:$H$3260, Input!$F$10:$F$3260,Summering!B144)) -> 0
B145: =IF(Biomasser!A19="","", Biomasser!A19) -> - Minkgylle | C145: =IF(B145="",0,SUMIFS(Input!$H$10:$H$3260, Input!$F$10:$F$3260,Summering!B145)) -> 0
B146: =IF(Biomasser!A20="","", Biomasser!A20) -> - Fjerkrægylle | C146: =IF(B146="",0,SUMIFS(Input!$H$10:$H$3260, Input!$F$10:$F$3260,Summering!B146)) -> 0
B147: =IF(Biomasser!A21="","", Biomasser!A21) -> - Blandet gylle | C147: =IF(B147="",0,SUMIFS(Input!$H$10:$H$3260, Input!$F$10:$F$3260,Summering!B147)) -> 0
B148: =IF(Biomasser!A22="","", Biomasser!A22) -> - Dybstrøelse - Kvæg | C148: =IF(B148="",0,SUMIFS(Input!$H$10:$H$3260, Input!$F$10:$F$3260,Summering!B148)) -> 0
B149: =IF(Biomasser!A23="","", Biomasser!A23) -> - Dybstrøelse - Fjerkræ | C149: =IF(B149="",0,SUMIFS(Input!$H$10:$H$3260, Input!$F$10:$F$3260,Summering!B149)) -> 0
B150: =IF(Biomasser!A24="","", Biomasser!A24) -> - Dybstrøelse - Hest | C150: =IF(B150="",0,SUMIFS(Input!$H$10:$H$3260, Input!$F$10:$F$3260,Summering!B150)) -> 0
B151: =IF(Biomasser!A25="","", Biomasser!A25) -> - Dybstrøelse - Andre typer | C151: =IF(B151="",0,SUMIFS(Input!$H$10:$H$3260, Input!$F$10:$F$3260,Summering!B151)) -> 0
B152: =IF(Biomasser!A26="","", Biomasser!A26) -> - Fast gødning | C152: =IF(B152="",0,SUMIFS(Input!$H$10:$H$3260, Input!$F$10:$F$3260,Summering!B152)) -> 0
B153: =IF(Biomasser!A27="","", Biomasser!A27) -> - Ajle | C153: =IF(B153="",0,SUMIFS(Input!$H$10:$H$3260, Input!$F$10:$F$3260,Summering!B153)) -> 0
B154: =IF(Biomasser!A28="","", Biomasser!A28) -> - Fiberfraktion | C154: =IF(B154="",0,SUMIFS(Input!$H$10:$H$3260, Input!$F$10:$F$3260,Summering!B154)) -> 0
B155: =IF(Biomasser!A29="","", Biomasser!A29) -> - Flydende fraktion fra separationsanlæg | C155: =IF(B155="",0,SUMIFS(Input!$H$10:$H$3260, Input!$F$10:$F$3260,Summering!B155)) -> 0
B156: =IF(Biomasser!A30="","", Biomasser!A30) -> - Flydende fraktion | C156: =IF(B156="",0,SUMIFS(Input!$H$10:$H$3260, Input!$F$10:$F$3260,Summering!B156)) -> 0
B157: =IF(Biomasser!A31="","", Biomasser!A31) -> - Anden husdyrgødning | C157: =IF(B157="",0,SUMIFS(Input!$H$10:$H$3260, Input!$F$10:$F$3260,Summering!B157)) -> 0
B158: =IF(Biomasser!A32="","", Biomasser!A32) -> - Forsuret svinegylle | C158: =IF(B158="",0,SUMIFS(Input!$H$10:$H$3260, Input!$F$10:$F$3260,Summering!B158)) -> 0
B159: =IF(Biomasser!A33="","", Biomasser!A33) -> - Dybstrøelse - Svin | C159: =IF(B159="",0,SUMIFS(Input!$H$10:$H$3260, Input!$F$10:$F$3260,Summering!B159)) -> 0
B160: =IF(Biomasser!A34="","", Biomasser!A34) -> - Gylle fibre - kemisk separation - Svin | C160: =IF(B160="",0,SUMIFS(Input!$H$10:$H$3260, Input!$F$10:$F$3260,Summering!B160)) -> 0
B161: =IF(Biomasser!A35="","", Biomasser!A35) -> - Gylle fibre - dekanter separation - Svin | C161: =IF(B161="",0,SUMIFS(Input!$H$10:$H$3260, Input!$F$10:$F$3260,Summering!B161)) -> 0
B162: =IF(Biomasser!A36="","", Biomasser!A36) -> - Staldgødning - Kvæg | C162: =IF(B162="",0,SUMIFS(Input!$H$10:$H$3260, Input!$F$10:$F$3260,Summering!B162)) -> 0
B163: =IF(Biomasser!A37="","", Biomasser!A37) -> - Kvæggylle - Årsopdræt 6 mdr. | C163: =IF(B163="",0,SUMIFS(Input!$H$10:$H$3260, Input!$F$10:$F$3260,Summering!B163)) -> 0
B164: =IF(Biomasser!A38="","", Biomasser!A38) -> - Staldgødning - Fjerkræ | C164: =IF(B164="",0,SUMIFS(Input!$H$10:$H$3260, Input!$F$10:$F$3260,Summering!B164)) -> 0
B165: =IF(Biomasser!A39="","", Biomasser!A39) -> Slam og spildevand (Overskrift, kan ikke vælges) | C165: =IF(B165="",0,SUMIFS(Input!$H$10:$H$3260, Input!$F$10:$F$3260,Summering!B165)) -> 0
B166: =IF(Biomasser!A40="","", Biomasser!A40) -> - Slam og spildevand samt uforurenede produktrester | C166: =IF(B166="",0,SUMIFS(Input!$H$10:$H$3260, Input!$F$10:$F$3260,Summering!B166)) -> 0
B167: =IF(Biomasser!A41="","", Biomasser!A41) -> - Slam fra dambrug | C167: =IF(B167="",0,SUMIFS(Input!$H$10:$H$3260, Input!$F$10:$F$3260,Summering!B167)) -> 0
B168: =IF(Biomasser!A42="","", Biomasser!A42) -> - Slam fra forarbejdning af animalske råvarer | C168: =IF(B168="",0,SUMIFS(Input!$H$10:$H$3260, Input!$F$10:$F$3260,Summering!B168)) -> 0
B169: =IF(Biomasser!A43="","", Biomasser!A43) -> - Spildevandsslam | C169: =IF(B169="",0,SUMIFS(Input!$H$10:$H$3260, Input!$F$10:$F$3260,Summering!B169)) -> 0
B170: =IF(Biomasser!A44="","", Biomasser!A44) -> - Proteolyseret processpildevand | C170: =IF(B170="",0,SUMIFS(Input!$H$10:$H$3260, Input!$F$10:$F$3260,Summering!B170)) -> 0
B171: =IF(Biomasser!A45="","", Biomasser!A45) -> - Sekundær spildevandsslam | C171: =IF(B171="",0,SUMIFS(Input!$H$10:$H$3260, Input!$F$10:$F$3260,Summering!B171)) -> 0
B172: =IF(Biomasser!A46="","", Biomasser!A46) -> - Sekundær spildevandsslam afvandet | C172: =IF(B172="",0,SUMIFS(Input!$H$10:$H$3260, Input!$F$10:$F$3260,Summering!B172)) -> 0
B173: =IF(Biomasser!A47="","", Biomasser!A47) -> Organisk affald fra husholdninger og erhverv (Overskrift, kan ikke vælges) | C173: =IF(B173="",0,SUMIFS(Input!$H$10:$H$3260, Input!$F$10:$F$3260,Summering!B173)) -> 0
B174: =IF(Biomasser!A48="","", Biomasser!A48) -> - Kildesorteret organisk dagrenovation | C174: =IF(B174="",0,SUMIFS(Input!$H$10:$H$3260, Input!$F$10:$F$3260,Summering!B174)) -> 0
B175: =IF(Biomasser!A49="","", Biomasser!A49) -> - Organisk husholdningsaffald - Renescience | C175: =IF(B175="",0,SUMIFS(Input!$H$10:$H$3260, Input!$F$10:$F$3260,Summering!B175)) -> 0
B176: =IF(Biomasser!A50="","", Biomasser!A50) -> - Organisk husholdningsaffald - Pulper | C176: =IF(B176="",0,SUMIFS(Input!$H$10:$H$3260, Input!$F$10:$F$3260,Summering!B176)) -> 0
B177: =IF(Biomasser!A51="","", Biomasser!A51) -> - Organisk husholdningsaffald - Rullesigte | C177: =IF(B177="",0,SUMIFS(Input!$H$10:$H$3260, Input!$F$10:$F$3260,Summering!B177)) -> 0
B178: =IF(Biomasser!A52="","", Biomasser!A52) -> - Organisk husholdningsaffald - Skruepresse | C178: =IF(B178="",0,SUMIFS(Input!$H$10:$H$3260, Input!$F$10:$F$3260,Summering!B178)) -> 0
B179: =IF(Biomasser!A53="","", Biomasser!A53) -> - Organisk husholdningsaffald - Neddeling | C179: =IF(B179="",0,SUMIFS(Input!$H$10:$H$3260, Input!$F$10:$F$3260,Summering!B179)) -> 0
B180: =IF(Biomasser!A54="","", Biomasser!A54) -> - Organisk affald fra erhverv | C180: =IF(B180="",0,SUMIFS(Input!$H$10:$H$3260, Input!$F$10:$F$3260,Summering!B180)) -> 0
B181: =IF(Biomasser!A55="","", Biomasser!A55) -> Rester og biprodukter fra planter og afgrøder (Overskrift, kan ikke vælges) | C181: =IF(B181="",0,SUMIFS(Input!$H$10:$H$3260, Input!$F$10:$F$3260,Summering!B181)) -> 0
B182: =IF(Biomasser!A56="","", Biomasser!A56) -> - Cellulose | C182: =IF(B182="",0,SUMIFS(Input!$H$10:$H$3260, Input!$F$10:$F$3260,Summering!B182)) -> 0
B183: =IF(Biomasser!A57="","", Biomasser!A57) -> - Naturpleje biomasse | C183: =IF(B183="",0,SUMIFS(Input!$H$10:$H$3260, Input!$F$10:$F$3260,Summering!B183)) -> 0
B184: =IF(Biomasser!A58="","", Biomasser!A58) -> - Halm | C184: =IF(B184="",0,SUMIFS(Input!$H$10:$H$3260, Input!$F$10:$F$3260,Summering!B184)) -> 0
B185: =IF(Biomasser!A59="","", Biomasser!A59) -> - Have-park affald | C185: =IF(B185="",0,SUMIFS(Input!$H$10:$H$3260, Input!$F$10:$F$3260,Summering!B185)) -> 0
B186: =IF(Biomasser!A60="","", Biomasser!A60) -> - Andre restprodukter fra produktion af primærafgrøder | C186: =IF(B186="",0,SUMIFS(Input!$H$10:$H$3260, Input!$F$10:$F$3260,Summering!B186)) -> 0
B187: =IF(Biomasser!A61="","", Biomasser!A61) -> - Kasserede afgrøder | C187: =IF(B187="",0,SUMIFS(Input!$H$10:$H$3260, Input!$F$10:$F$3260,Summering!B187)) -> 0
B188: =IF(Biomasser!A62="","", Biomasser!A62) -> Rester og biprodukter fra levnesmiddel- og dyrefoderindustrien (Overskrift, kan ikke vælges) | C188: =IF(B188="",0,SUMIFS(Input!$H$10:$H$3260, Input!$F$10:$F$3260,Summering!B188)) -> 0
B189: =IF(Biomasser!A63="","", Biomasser!A63) -> - Animalske biprodukter | C189: =IF(B189="",0,SUMIFS(Input!$H$10:$H$3260, Input!$F$10:$F$3260,Summering!B189)) -> 0
B190: =IF(Biomasser!A64="","", Biomasser!A64) -> - Mave/tarm kvæg | C190: =IF(B190="",0,SUMIFS(Input!$H$10:$H$3260, Input!$F$10:$F$3260,Summering!B190)) -> 0
B191: =IF(Biomasser!A65="","", Biomasser!A65) -> - Mave/tarm svin | C191: =IF(B191="",0,SUMIFS(Input!$H$10:$H$3260, Input!$F$10:$F$3260,Summering!B191)) -> 0
B192: =IF(Biomasser!A66="","", Biomasser!A66) -> - Valle | C192: =IF(B192="",0,SUMIFS(Input!$H$10:$H$3260, Input!$F$10:$F$3260,Summering!B192)) -> 0
B193: =IF(Biomasser!A67="","", Biomasser!A67) -> - Valle koncentrat | C193: =IF(B193="",0,SUMIFS(Input!$H$10:$H$3260, Input!$F$10:$F$3260,Summering!B193)) -> 0
B194: =IF(Biomasser!A68="","", Biomasser!A68) -> - Protein | C194: =IF(B194="",0,SUMIFS(Input!$H$10:$H$3260, Input!$F$10:$F$3260,Summering!B194)) -> 0
B195: =IF(Biomasser!A69="","", Biomasser!A69) -> - Fedt | C195: =IF(B195="",0,SUMIFS(Input!$H$10:$H$3260, Input!$F$10:$F$3260,Summering!B195)) -> 0
B196: =IF(Biomasser!A70="","", Biomasser!A70) -> - Vinasse (2,2 pct. kvælstof) | C196: =IF(B196="",0,SUMIFS(Input!$H$10:$H$3260, Input!$F$10:$F$3260,Summering!B196)) -> 0
B197: =IF(Biomasser!A71="","", Biomasser!A71) -> - Vinasse (3,5 pct. kvælstof) | C197: =IF(B197="",0,SUMIFS(Input!$H$10:$H$3260, Input!$F$10:$F$3260,Summering!B197)) -> 0
B198: =IF(Biomasser!A72="","", Biomasser!A72) -> - Kartoffelfrugtsaft | C198: =IF(B198="",0,SUMIFS(Input!$H$10:$H$3260, Input!$F$10:$F$3260,Summering!B198)) -> 0
B199: =IF(Biomasser!A73="","", Biomasser!A73) -> - Glukose | C199: =IF(B199="",0,SUMIFS(Input!$H$10:$H$3260, Input!$F$10:$F$3260,Summering!B199)) -> 0
B200: =IF(Biomasser!A74="","", Biomasser!A74) -> - Alkohol | C200: =IF(B200="",0,SUMIFS(Input!$H$10:$H$3260, Input!$F$10:$F$3260,Summering!B200)) -> 0
B201: =IF(Biomasser!A75="","", Biomasser!A75) -> - Pressesaft fra grøntpilleproduktion | C201: =IF(B201="",0,SUMIFS(Input!$H$10:$H$3260, Input!$F$10:$F$3260,Summering!B201)) -> 0
B202: =IF(Biomasser!A76="","", Biomasser!A76) -> - Inaktiveret og kalkstabiliseret biomasse | C202: =IF(B202="",0,SUMIFS(Input!$H$10:$H$3260, Input!$F$10:$F$3260,Summering!B202)) -> 0
B203: =IF(Biomasser!A77="","", Biomasser!A77) -> Anden biomasse (Overskrift) | C203: =IF(B203="",0,SUMIFS(Input!$H$10:$H$3260, Input!$F$10:$F$3260,Summering!B203)) -> 0
... 2999 more rows

Sheet Faktor ark
D13: Enher | E13: Kilde | F13: Kommentar
B14: Fossil reference | C14: 56.79 | D14: gCO2/MJ
B15: MJ/m3 CH4 | C15: 35.9 | D15: MJ
B16: Opholdstid (dage) | C16: =Forside!C11 -> 1
B17: MJ/m3 biogas | C17: =C15*0.65 -> 23.335 | F17: 1 m3 biogas indeholder 65 % methan
B18: gCO2/MJ CH4 | C18: 56.79
B19: gCO2/m3 CH4 | C19: =C15*C18 -> 2038.761
B20: Metanudslip | C20: =Forside!C12 -> 0.05
B21: kg CH4/ m3 | C21: 0.75
B22: GWP CH4 | C22: 25 | E22: Energistyrelsens anbefaling

Sheet Resultatark
H1: Det er brugerens eget ansvar at sikre at der er indtastet CO2e data for alle certificerede biomasser | J1: Fossil reference (gCO2/MJ) | K1: Her antages det at der er indtastet CO2e data for alle ikke-certificerede biomasser. Dette er dog ikke nødvendigt ift. certificering. | M1: Fossil reference (gCO2/MJ)
J2: ='Faktor ark'!C14 -> 56.79 | M2: ='Faktor ark'!C14 -> 56.79
D3: Gasproduktion (CH4 m3) | H3: CO2e fra certificeret gas | K3: CO2e fra total gasproduktion
C4: Biomasse (ton) | D4: Total | E4: Certificeret | F4: Ikke-certificeret | G4: Certificeret Dobbelttællende | H4: Udledning (g) | I4: gCO2e/MJ gas | J4: Fortrængning | K4: Udledning (g) | L4: gCO2e/MJ gas | M4: Fortrængning
B5: 2015
B6: Januar
B7: Februar
B8: Marts
B9: April
B10: Maj
B11: Juni
B12: Juli
B13: August
B14: September
B15: Oktober
B16: November
B17: December
B18: 2016
B19: Januar
B20: Februar
B21: Marts
B22: April
B23: Maj
B24: Juni
B25: Juli
B26: August
B27: September
B28: Oktober
B29: November
B30: December

Sheet Energinetdk rapport
C1: INDBERETNINGSBLANKET TIL ANVENDT BIOMASSE | H1: 2015 | I1: 2016 | J1: 2016 | K1: Start | L1: Slut
C2: ="Navn på biogasanlæg: "& Forside!C7 -> Navn på biogasanlæg: | I2: 2015 | J2: 2015/2016 | K2: 22267 | L2: 60695
H3: 2015/2016 | I3: 2015/2016 | J3: 2016/2017
C4: ="Anvendte biomasser fra 1. august" & " " & I2 & " " & "til 31. juli" & " " & J1 -> Anvendte biomasser fra 1. august 2015 til 31. juli 2016 | D4: Nærmere angivelse af biomasse | E4: Evt. gennemsnit tørstof procent | F4: Anvendt mængde i ton | G4: Procent af samlet mængde | J4: 2017/2018
D5: Afgrøder | J5: 2018/2019
B6: - Majs | C6: Majs | D6: Kolber/helsæd. Omfattet af begrænsningen for energiafgrøder til biogas. | E6: =IFERROR(AVERAGEIF(INDIRECT("'Input'!F"&INDEX('Energinetdk rapport'!$K$1:$K$5,MATCH('Energinetdk rapport'!$I$3,'Energinetdk rapport'!$J$1:$J$5,0))):INDIRECT("'Input'!F"&INDEX('Energinetdk rapport'!$L$1:$L$5,MATCH('Energinetdk rapport'!$I$3,'Energinetdk rapport'!$J$1:$J$5,0))),B6,INDIRECT("'Input'!J"&INDEX('Energinetdk rapport'!$K$1:$K$5,MATCH('Energinetdk rapport'!$I$3,'Energinetdk rapport'!$J$1:$J$5,0))):INDIRECT("'Input'!J"&INDEX('Energinetdk rapport'!$L$1:$L$5,MATCH('Energinetdk rapport'!$I$3,'Energinetdk rapport'!$J$1:$J$5,0)))),0) -> 0 | F6: =SUMIFS(INDIRECT("'Input'!H"&INDEX('Energinetdk rapport'!$K$1:$K$5,MATCH('Energinetdk rapport'!$I$3,'Energinetdk rapport'!$J$1:$J$5,0))):INDIRECT("'Input'!H"&INDEX('Energinetdk rapport'!$L$1:$L$5,MATCH('Energinetdk rapport'!$I$3,'Energinetdk rapport'!$J$1:$J$5,0))), INDIRECT("'Input'!F"&INDEX('Energinetdk rapport'!$K$1:$K$5,MATCH('Energinetdk rapport'!$I$3,'Energinetdk rapport'!$J$1:$J$5,0))):INDIRECT("'Input'!F"&INDEX('Energinetdk rapport'!$L$1:$L$5,MATCH('Energinetdk rapport'!$I$3,'Energinetdk rapport'!$J$1:$J$5,0))), B6) -> 0 | G6: =IFERROR(F6/SUM($F$6:$F$128),0) -> 0
B7: - Roer | C7: Roer | D7: Rod. Omfattet af begrænsningen for energiafgrøder. | E7: =IFERROR(AVERAGEIF(INDIRECT("'Input'!F"&INDEX('Energinetdk rapport'!$K$1:$K$5,MATCH('Energinetdk rapport'!$I$3,'Energinetdk rapport'!$J$1:$J$5,0))):INDIRECT("'Input'!F"&INDEX('Energinetdk rapport'!$L$1:$L$5,MATCH('Energinetdk rapport'!$I$3,'Energinetdk rapport'!$J$1:$J$5,0))),B7,INDIRECT("'Input'!J"&INDEX('Energinetdk rapport'!$K$1:$K$5,MATCH('Energinetdk rapport'!$I$3,'Energinetdk rapport'!$J$1:$J$5,0))):INDIRECT("'Input'!J"&INDEX('Energinetdk rapport'!$L$1:$L$5,MATCH('Energinetdk rapport'!$I$3,'Energinetdk rapport'!$J$1:$J$5,0)))),0) -> 0 | F7: =SUMIFS(INDIRECT("'Input'!H"&INDEX('Energinetdk rapport'!$K$1:$K$5,MATCH('Energinetdk rapport'!$I$3,'Energinetdk rapport'!$J$1:$J$5,0))):INDIRECT("'Input'!H"&INDEX('Energinetdk rapport'!$L$1:$L$5,MATCH('Energinetdk rapport'!$I$3,'Energinetdk rapport'!$J$1:$J$5,0))), INDIRECT("'Input'!F"&INDEX('Energinetdk rapport'!$K$1:$K$5,MATCH('Energinetdk rapport'!$I$3,'Energinetdk rapport'!$J$1:$J$5,0))):INDIRECT("'Input'!F"&INDEX('Energinetdk rapport'!$L$1:$L$5,MATCH('Energinetdk rapport'!$I$3,'Energinetdk rapport'!$J$1:$J$5,0))), B7) -> 0 | G7: 0
B8: - Korn | C8: Korn | D8: Kerner/helsæd. Omfattet af begrænsningen for energiafgrøder. | E8: =IFERROR(AVERAGEIF(INDIRECT("'Input'!F"&INDEX('Energinetdk rapport'!$K$1:$K$5,MATCH('Energinetdk rapport'!$I$3,'Energinetdk rapport'!$J$1:$J$5,0))):INDIRECT("'Input'!F"&INDEX('Energinetdk rapport'!$L$1:$L$5,MATCH('Energinetdk rapport'!$I$3,'Energinetdk rapport'!$J$1:$J$5,0))),B8,INDIRECT("'Input'!J"&INDEX('Energinetdk rapport'!$K$1:$K$5,MATCH('Energinetdk rapport'!$I$3,'Energinetdk rapport'!$J$1:$J$5,0))):INDIRECT("'Input'!J"&INDEX('Energinetdk rapport'!$L$1:$L$5,MATCH('Energinetdk rapport'!$I$3,'Energinetdk rapport'!$J$1:$J$5,0)))),0) -> 0 | F8: =SUMIFS(INDIRECT("'Input'!H"&INDEX('Energinetdk rapport'!$K$1:$K$5,MATCH('Energinetdk rapport'!$I$3,'Energinetdk rapport'!$J$1:$J$5,0))):INDIRECT("'Input'!H"&INDEX('Energinetdk rapport'!$L$1:$L$5,MATCH('Energinetdk rapport'!$I$3,'Energinetdk rapport'!$J$1:$J$5,0))), INDIRECT("'Input'!F"&INDEX('Energinetdk rapport'!$K$1:$K$5,MATCH('Energinetdk rapport'!$I$3,'Energinetdk rapport'!$J$1:$J$5,0))):INDIRECT("'Input'!F"&INDEX('Energinetdk rapport'!$L$1:$L$5,MATCH('Energinetdk rapport'!$I$3,'Energinetdk rapport'!$J$1:$J$5,0))), B8) -> 0 | G8: 0
B9: - Græs | C9: Græs | D9: Helsæd fra konventionelle arealer i omdrift. Omfattet af begrænsningen for energiafgrøder, hvis afgrøden er etableret for mindre end 5 år siden. | E9: =IFERROR(AVERAGEIF(INDIRECT("'Input'!F"&INDEX('Energinetdk rapport'!$K$1:$K$5,MATCH('Energinetdk rapport'!$I$3,'Energinetdk rapport'!$J$1:$J$5,0))):INDIRECT("'Input'!F"&INDEX('Energinetdk rapport'!$L$1:$L$5,MATCH('Energinetdk rapport'!$I$3,'Energinetdk rapport'!$J$1:$J$5,0))),B9,INDIRECT("'Input'!J"&INDEX('Energinetdk rapport'!$K$1:$K$5,MATCH('Energinetdk rapport'!$I$3,'Energinetdk rapport'!$J$1:$J$5,0))):INDIRECT("'Input'!J"&INDEX('Energinetdk rapport'!$L$1:$L$5,MATCH('Energinetdk rapport'!$I$3,'Energinetdk rapport'!$J$1:$J$5,0)))),0) -> 0 | F9: =SUMIFS(INDIRECT("'Input'!H"&INDEX('Energinetdk rapport'!$K$1:$K$5,MATCH('Energinetdk rapport'!$I$3,'Energinetdk rapport'!$J$1:$J$5,0))):INDIRECT("'Input'!H"&INDEX('Energinetdk rapport'!$L$1:$L$5,MATCH('Energinetdk rapport'!$I$3,'Energinetdk rapport'!$J$1:$J$5,0))), INDIRECT("'Input'!F"&INDEX('Energinetdk rapport'!$K$1:$K$5,MATCH('Energinetdk rapport'!$I$3,'Energinetdk rapport'!$J$1:$J$5,0))):INDIRECT("'Input'!F"&INDEX('Energinetdk rapport'!$L$1:$L$5,MATCH('Energinetdk rapport'!$I$3,'Energinetdk rapport'!$J$1:$J$5,0))), B9) -> 0 | G9: 0
B10: - Kløvergræs | C10: Kløvergræs | D10: Helsæd fra konventionelle arealer i omdrift. Omfattet af begrænsningen for energiafgrøder, hvis afgrøden er etableret for mindre end 5 år siden. | E10: =IFERROR(AVERAGEIF(INDIRECT("'Input'!F"&INDEX('Energinetdk rapport'!$K$1:$K$5,MATCH('Energinetdk rapport'!$I$3,'Energinetdk rapport'!$J$1:$J$5,0))):INDIRECT("'Input'!F"&INDEX('Energinetdk rapport'!$L$1:$L$5,MATCH('Energinetdk rapport'!$I$3,'Energinetdk rapport'!$J$1:$J$5,0))),B10,INDIRECT("'Input'!J"&INDEX('Energinetdk rapport'!$K$1:$K$5,MATCH('Energinetdk rapport'!$I$3,'Energinetdk rapport'!$J$1:$J$5,0))):INDIRECT("'Input'!J"&INDEX('Energinetdk rapport'!$L$1:$L$5,MATCH('Energinetdk rapport'!$I$3,'Energinetdk rapport'!$J$1:$J$5,0)))),0) -> 0 | F10: =SUMIFS(INDIRECT("'Input'!H"&INDEX('Energinetdk rapport'!$K$1:$K$5,MATCH('Energinetdk rapport'!$I$3,'Energinetdk rapport'!$J$1:$J$5,0))):INDIRECT("'Input'!H"&INDEX('Energinetdk rapport'!$L$1:$L$5,MATCH('Energinetdk rapport'!$I$3,'Energinetdk rapport'!$J$1:$J$5,0))), INDIRECT("'Input'!F"&INDEX('Energinetdk rapport'!$K$1:$K$5,MATCH('Energinetdk rapport'!$I$3,'Energinetdk rapport'!$J$1:$J$5,0))):INDIRECT("'Input'!F"&INDEX('Energinetdk rapport'!$L$1:$L$5,MATCH('Energinetdk rapport'!$I$3,'Energinetdk rapport'!$J$1:$J$5,0))), B10) -> 0 | G10: 0
B11: - Jordskokker | C11: Jordskokker | D11: Rod. Omfattet af begrænsningen for energiafgrøder. | E11: =IFERROR(AVERAGEIF(INDIRECT("'Input'!F"&INDEX('Energinetdk rapport'!$K$1:$K$5,MATCH('Energinetdk rapport'!$I$3,'Energinetdk rapport'!$J$1:$J$5,0))):INDIRECT("'Input'!F"&INDEX('Energinetdk rapport'!$L$1:$L$5,MATCH('Energinetdk rapport'!$I$3,'Energinetdk rapport'!$J$1:$J$5,0))),B11,INDIRECT("'Input'!J"&INDEX('Energinetdk rapport'!$K$1:$K$5,MATCH('Energinetdk rapport'!$I$3,'Energinetdk rapport'!$J$1:$J$5,0))):INDIRECT("'Input'!J"&INDEX('Energinetdk rapport'!$L$1:$L$5,MATCH('Energinetdk rapport'!$I$3,'Energinetdk rapport'!$J$1:$J$5,0)))),0) -> 0 | F11: =SUMIFS(INDIRECT("'Input'!H"&INDEX('Energinetdk rapport'!$K$1:$K$5,MATCH('Energinetdk rapport'!$I$3,'Energinetdk rapport'!$J$1:$J$5,0))):INDIRECT("'Input'!H"&INDEX('Energinetdk rapport'!$L$1:$L$5,MATCH('Energinetdk rapport'!$I$3,'Energinetdk rapport'!$J$1:$J$5,0))), INDIRECT("'Input'!F"&INDEX('Energinetdk rapport'!$K$1:$K$5,MATCH('Energinetdk rapport'!$I$3,'Energinetdk rapport'!$J$1:$J$5,0))):INDIRECT("'Input'!F"&INDEX('Energinetdk rapport'!$L$1:$L$5,MATCH('Energinetdk rapport'!$I$3,'Energinetdk rapport'!$J$1:$J$5,0))), B11) -> 0 | G11: 0
D12: Husdyrgødning
B13: - Kvæggylle | C13: Kvæggylle | E13: =IFERROR(AVERAGEIF(INDIRECT("'Input'!F"&INDEX('Energinetdk rapport'!$K$1:$K$5,MATCH('Energinetdk rapport'!$I$3,'Energinetdk rapport'!$J$1:$J$5,0))):INDIRECT("'Input'!F"&INDEX('Energinetdk rapport'!$L$1:$L$5,MATCH('Energinetdk rapport'!$I$3,'Energinetdk rapport'!$J$1:$J$5,0))),B13,INDIRECT("'Input'!J"&INDEX('Energinetdk rapport'!$K$1:$K$5,MATCH('Energinetdk rapport'!$I$3,'Energinetdk rapport'!$J$1:$J$5,0))):INDIRECT("'Input'!J"&INDEX('Energinetdk rapport'!$L$1:$L$5,MATCH('Energinetdk rapport'!$I$3,'Energinetdk rapport'!$J$1:$J$5,0)))),0) -> 0 | F13: =SUMIFS(INDIRECT("'Input'!H"&INDEX('Energinetdk rapport'!$K$1:$K$5,MATCH('Energinetdk rapport'!$I$3,'Energinetdk rapport'!$J$1:$J$5,0))):INDIRECT("'Input'!H"&INDEX('Energinetdk rapport'!$L$1:$L$5,MATCH('Energinetdk rapport'!$I$3,'Energinetdk rapport'!$J$1:$J$5,0))), INDIRECT("'Input'!F"&INDEX('Energinetdk rapport'!$K$1:$K$5,MATCH('Energinetdk rapport'!$I$3,'Energinetdk rapport'!$J$1:$J$5,0))):INDIRECT("'Input'!F"&INDEX('Energinetdk rapport'!$L$1:$L$5,MATCH('Energinetdk rapport'!$I$3,'Energinetdk rapport'!$J$1:$J$5,0))), B13) -> 0 | G13: =IFERROR(F13/SUM($F$6:$F$128),0) -> 0
B14: - Svinegylle | C14: Svinegylle | E14: =IFERROR(AVERAGEIF(INDIRECT("'Input'!F"&INDEX('Energinetdk rapport'!$K$1:$K$5,MATCH('Energinetdk rapport'!$I$3,'Energinetdk rapport'!$J$1:$J$5,0))):INDIRECT("'Input'!F"&INDEX('Energinetdk rapport'!$L$1:$L$5,MATCH('Energinetdk rapport'!$I$3,'Energinetdk rapport'!$J$1:$J$5,0))),B14,INDIRECT("'Input'!J"&INDEX('Energinetdk rapport'!$K$1:$K$5,MATCH('Energinetdk rapport'!$I$3,'Energinetdk rapport'!$J$1:$J$5,0))):INDIRECT("'Input'!J"&INDEX('Energinetdk rapport'!$L$1:$L$5,MATCH('Energinetdk rapport'!$I$3,'Energinetdk rapport'!$J$1:$J$5,0)))),0) -> 0 | F14: =SUMIFS(INDIRECT("'Input'!H"&INDEX('Energinetdk rapport'!$K$1:$K$5,MATCH('Energinetdk rapport'!$I$3,'Energinetdk rapport'!$J$1:$J$5,0))):INDIRECT("'Input'!H"&INDEX('Energinetdk rapport'!$L$1:$L$5,MATCH('Energinetdk rapport'!$I$3,'Energinetdk rapport'!$J$1:$J$5,0))), INDIRECT("'Input'!F"&INDEX('Energinetdk rapport'!$K$1:$K$5,MATCH('Energinetdk rapport'!$I$3,'Energinetdk rapport'!$J$1:$J$5,0))):INDIRECT("'Input'!F"&INDEX('Energinetdk rapport'!$L$1:$L$5,MATCH('Energinetdk rapport'!$I$3,'Energinetdk rapport'!$J$1:$J$5,0))), B14) -> 0 | G14: 0
B15: - Minkgylle | C15: Minkgylle | E15: =IFERROR(AVERAGEIF(INDIRECT("'Input'!F"&INDEX('Energinetdk rapport'!$K$1:$K$5,MATCH('Energinetdk rapport'!$I$3,'Energinetdk rapport'!$J$1:$J$5,0))):INDIRECT("'Input'!F"&INDEX('Energinetdk rapport'!$L$1:$L$5,MATCH('Energinetdk rapport'!$I$3,'Energinetdk rapport'!$J$1:$J$5,0))),B15,INDIRECT("'Input'!J"&INDEX('Energinetdk rapport'!$K$1:$K$5,MATCH('Energinetdk rapport'!$I$3,'Energinetdk rapport'!$J$1:$J$5,0))):INDIRECT("'Input'!J"&INDEX('Energinetdk rapport'!$L$1:$L$5,MATCH('Energinetdk rapport'!$I$3,'Energinetdk rapport'!$J$1:$J$5,0)))),0) -> 0 | F15: =SUMIFS(INDIRECT("'Input'!H"&INDEX('Energinetdk rapport'!$K$1:$K$5,MATCH('Energinetdk rapport'!$I$3,'Energinetdk rapport'!$J$1:$J$5,0))):INDIRECT("'Input'!H"&INDEX('Energinetdk rapport'!$L$1:$L$5,MATCH('Energinetdk rapport'!$I$3,'Energinetdk rapport'!$J$1:$J$5,0))), INDIRECT("'Input'!F"&INDEX('Energinetdk rapport'!$K$1:$K$5,MATCH('Energinetdk rapport'!$I$3,'Energinetdk rapport'!$J$1:$J$5,0))):INDIRECT("'Input'!F"&INDEX('Energinetdk rapport'!$L$1:$L$5,MATCH('Energinetdk rapport'!$I$3,'Energinetdk rapport'!$J$1:$J$5,0))), B15) -> 0 | G15: 0
B16: - Fjerkrægylle | C16: Fjerkrægylle | E16: =IFERROR(AVERAGEIF(INDIRECT("'Input'!F"&INDEX('Energinetdk rapport'!$K$1:$K$5,MATCH('Energinetdk rapport'!$I$3,'Energinetdk rapport'!$J$1:$J$5,0))):INDIRECT("'Input'!F"&INDEX('Energinetdk rapport'!$L$1:$L$5,MATCH('Energinetdk rapport'!$I$3,'Energinetdk rapport'!$J$1:$J$5,0))),B16,INDIRECT("'Input'!J"&INDEX('Energinetdk rapport'!$K$1:$K$5,MATCH('Energinetdk rapport'!$I$3,'Energinetdk rapport'!$J$1:$J$5,0))):INDIRECT("'Input'!J"&INDEX('Energinetdk rapport'!$L$1:$L$5,MATCH('Energinetdk rapport'!$I$3,'Energinetdk rapport'!$J$1:$J$5,0)))),0) -> 0 | F16: =SUMIFS(INDIRECT("'Input'!H"&INDEX('Energinetdk rapport'!$K$1:$K$5,MATCH('Energinetdk rapport'!$I$3,'Energinetdk rapport'!$J$1:$J$5,0))):INDIRECT("'Input'!H"&INDEX('Energinetdk rapport'!$L$1:$L$5,MATCH('Energinetdk rapport'!$I$3,'Energinetdk rapport'!$J$1:$J$5,0))), INDIRECT("'Input'!F"&INDEX('Energinetdk rapport'!$K$1:$K$5,MATCH('Energinetdk rapport'!$I$3,'Energinetdk rapport'!$J$1:$J$5,0))):INDIRECT("'Input'!F"&INDEX('Energinetdk rapport'!$L$1:$L$5,MATCH('Energinetdk rapport'!$I$3,'Energinetdk rapport'!$J$1:$J$5,0))), B16) -> 0 | G16: 0
B17: - Blandet gylle | C17: Blandet gylle | E17: =IFERROR(AVERAGEIF(INDIRECT("'Input'!F"&INDEX('Energinetdk rapport'!$K$1:$K$5,MATCH('Energinetdk rapport'!$I$3,'Energinetdk rapport'!$J$1:$J$5,0))):INDIRECT("'Input'!F"&INDEX('Energinetdk rapport'!$L$1:$L$5,MATCH('Energinetdk rapport'!$I$3,'Energinetdk rapport'!$J$1:$J$5,0))),B17,INDIRECT("'Input'!J"&INDEX('Energinetdk rapport'!$K$1:$K$5,MATCH('Energinetdk rapport'!$I$3,'Energinetdk rapport'!$J$1:$J$5,0))):INDIRECT("'Input'!J"&INDEX('Energinetdk rapport'!$L$1:$L$5,MATCH('Energinetdk rapport'!$I$3,'Energinetdk rapport'!$J$1:$J$5,0)))),0) -> 0 | F17: =SUMIFS(INDIRECT("'Input'!H"&INDEX('Energinetdk rapport'!$K$1:$K$5,MATCH('Energinetdk rapport'!$I$3,'Energinetdk rapport'!$J$1:$J$5,0))):INDIRECT("'Input'!H"&INDEX('Energinetdk rapport'!$L$1:$L$5,MATCH('Energinetdk rapport'!$I$3,'Energinetdk rapport'!$J$1:$J$5,0))), INDIRECT("'Input'!F"&INDEX('Energinetdk rapport'!$K$1:$K$5,MATCH('Energinetdk rapport'!$I$3,'Energinetdk rapport'!$J$1:$J$5,0))):INDIRECT("'Input'!F"&INDEX('Energinetdk rapport'!$L$1:$L$5,MATCH('Energinetdk rapport'!$I$3,'Energinetdk rapport'!$J$1:$J$5,0))), B17) -> 0 | G17: 0
B18: - Dybstrøelse - Kvæg | C18: Dybstrøelse - Kvæg | E18: =IFERROR(AVERAGEIF(INDIRECT("'Input'!F"&INDEX('Energinetdk rapport'!$K$1:$K$5,MATCH('Energinetdk rapport'!$I$3,'Energinetdk rapport'!$J$1:$J$5,0))):INDIRECT("'Input'!F"&INDEX('Energinetdk rapport'!$L$1:$L$5,MATCH('Energinetdk rapport'!$I$3,'Energinetdk rapport'!$J$1:$J$5,0))),B18,INDIRECT("'Input'!J"&INDEX('Energinetdk rapport'!$K$1:$K$5,MATCH('Energinetdk rapport'!$I$3,'Energinetdk rapport'!$J$1:$J$5,0))):INDIRECT("'Input'!J"&INDEX('Energinetdk rapport'!$L$1:$L$5,MATCH('Energinetdk rapport'!$I$3,'Energinetdk rapport'!$J$1:$J$5,0)))),0) -> 0 | F18: =SUMIFS(INDIRECT("'Input'!H"&INDEX('Energinetdk rapport'!$K$1:$K$5,MATCH('Energinetdk rapport'!$I$3,'Energinetdk rapport'!$J$1:$J$5,0))):INDIRECT("'Input'!H"&INDEX('Energinetdk rapport'!$L$1:$L$5,MATCH('Energinetdk rapport'!$I$3,'Energinetdk rapport'!$J$1:$J$5,0))), INDIRECT("'Input'!F"&INDEX('Energinetdk rapport'!$K$1:$K$5,MATCH('Energinetdk rapport'!$I$3,'Energinetdk rapport'!$J$1:$J$5,0))):INDIRECT("'Input'!F"&INDEX('Energinetdk rapport'!$L$1:$L$5,MATCH('Energinetdk rapport'!$I$3,'Energinetdk rapport'!$J$1:$J$5,0))), B18) -> 0 | G18: 0
B19: - Dybstrøelse - Fjerkræ | C19: Dybstrøelse - Fjerkræ | E19: =IFERROR(AVERAGEIF(INDIRECT("'Input'!F"&INDEX('Energinetdk rapport'!$K$1:$K$5,MATCH('Energinetdk rapport'!$I$3,'Energinetdk rapport'!$J$1:$J$5,0))):INDIRECT("'Input'!F"&INDEX('Energinetdk rapport'!$L$1:$L$5,MATCH('Energinetdk rapport'!$I$3,'Energinetdk rapport'!$J$1:$J$5,0))),B19,INDIRECT("'Input'!J"&INDEX('Energinetdk rapport'!$K$1:$K$5,MATCH('Energinetdk rapport'!$I$3,'Energinetdk rapport'!$J$1:$J$5,0))):INDIRECT("'Input'!J"&INDEX('Energinetdk rapport'!$L$1:$L$5,MATCH('Energinetdk rapport'!$I$3,'Energinetdk rapport'!$J$1:$J$5,0)))),0) -> 0 | F19: =SUMIFS(INDIRECT("'Input'!H"&INDEX('Energinetdk rapport'!$K$1:$K$5,MATCH('Energinetdk rapport'!$I$3,'Energinetdk rapport'!$J$1:$J$5,0))):INDIRECT("'Input'!H"&INDEX('Energinetdk rapport'!$L$1:$L$5,MATCH('Energinetdk rapport'!$I$3,'Energinetdk rapport'!$J$1:$J$5,0))), INDIRECT("'Input'!F"&INDEX('Energinetdk rapport'!$K$1:$K$5,MATCH('Energinetdk rapport'!$I$3,'Energinetdk rapport'!$J$1:$J$5,0))):INDIRECT("'Input'!F"&INDEX('Energinetdk rapport'!$L$1:$L$5,MATCH('Energinetdk rapport'!$I$3,'Energinetdk rapport'!$J$1:$J$5,0))), B19) -> 0 | G19: 0
B20: - Dybstrøelse - Andre typer | C20: Dybstrøelse - Andre typer | E20: =IFERROR(AVERAGEIF(INDIRECT("'Input'!F"&INDEX('Energinetdk rapport'!$K$1:$K$5,MATCH('Energinetdk rapport'!$I$3,'Energinetdk rapport'!$J$1:$J$5,0))):INDIRECT("'Input'!F"&INDEX('Energinetdk rapport'!$L$1:$L$5,MATCH('Energinetdk rapport'!$I$3,'Energinetdk rapport'!$J$1:$J$5,0))),B20,INDIRECT("'Input'!J"&INDEX('Energinetdk rapport'!$K$1:$K$5,MATCH('Energinetdk rapport'!$I$3,'Energinetdk rapport'!$J$1:$J$5,0))):INDIRECT("'Input'!J"&INDEX('Energinetdk rapport'!$L$1:$L$5,MATCH('Energinetdk rapport'!$I$3,'Energinetdk rapport'!$J$1:$J$5,0)))),0) -> 0 | F20: =SUMIFS(INDIRECT("'Input'!H"&INDEX('Energinetdk rapport'!$K$1:$K$5,MATCH('Energinetdk rapport'!$I$3,'Energinetdk rapport'!$J$1:$J$5,0))):INDIRECT("'Input'!H"&INDEX('Energinetdk rapport'!$L$1:$L$5,MATCH('Energinetdk rapport'!$I$3,'Energinetdk rapport'!$J$1:$J$5,0))), INDIRECT("'Input'!F"&INDEX('Energinetdk rapport'!$K$1:$K$5,MATCH('Energinetdk rapport'!$I$3,'Energinetdk rapport'!$J$1:$J$5,0))):INDIRECT("'Input'!F"&INDEX('Energinetdk rapport'!$L$1:$L$5,MATCH('Energinetdk rapport'!$I$3,'Energinetdk rapport'!$J$1:$J$5,0))), B20) -> 0 | G20: 0
B21: - Fast gødning | C21: Fast gødning | E21: =IFERROR(AVERAGEIF(INDIRECT("'Input'!F"&INDEX('Energinetdk rapport'!$K$1:$K$5,MATCH('Energinetdk rapport'!$I$3,'Energinetdk rapport'!$J$1:$J$5,0))):INDIRECT("'Input'!F"&INDEX('Energinetdk rapport'!$L$1:$L$5,MATCH('Energinetdk rapport'!$I$3,'Energinetdk rapport'!$J$1:$J$5,0))),B21,INDIRECT("'Input'!J"&INDEX('Energinetdk rapport'!$K$1:$K$5,MATCH('Energinetdk rapport'!$I$3,'Energinetdk rapport'!$J$1:$J$5,0))):INDIRECT("'Input'!J"&INDEX('Energinetdk rapport'!$L$1:$L$5,MATCH('Energinetdk rapport'!$I$3,'Energinetdk rapport'!$J$1:$J$5,0)))),0) -> 0 | F21: =SUMIFS(INDIRECT("'Input'!H"&INDEX('Energinetdk rapport'!$K$1:$K$5,MATCH('Energinetdk rapport'!$I$3,'Energinetdk rapport'!$J$1:$J$5,0))):INDIRECT("'Input'!H"&INDEX('Energinetdk rapport'!$L$1:$L$5,MATCH('Energinetdk rapport'!$I$3,'Energinetdk rapport'!$J$1:$J$5,0))), INDIRECT("'Input'!F"&INDEX('Energinetdk rapport'!$K$1:$K$5,MATCH('Energinetdk rapport'!$I$3,'Energinetdk rapport'!$J$1:$J$5,0))):INDIRECT("'Input'!F"&INDEX('Energinetdk rapport'!$L$1:$L$5,MATCH('Energinetdk rapport'!$I$3,'Energinetdk rapport'!$J$1:$J$5,0))), B21) -> 0 | G21: 0
B22: - Ajle | C22: Ajle | E22: =IFERROR(AVERAGEIF(INDIRECT("'Input'!F"&INDEX('Energinetdk rapport'!$K$1:$K$5,MATCH('Energinetdk rapport'!$I$3,'Energinetdk rapport'!$J$1:$J$5,0))):INDIRECT("'Input'!F"&INDEX('Energinetdk rapport'!$L$1:$L$5,MATCH('Energinetdk rapport'!$I$3,'Energinetdk rapport'!$J$1:$J$5,0))),B22,INDIRECT("'Input'!J"&INDEX('Energinetdk rapport'!$K$1:$K$5,MATCH('Energinetdk rapport'!$I$3,'Energinetdk rapport'!$J$1:$J$5,0))):INDIRECT("'Input'!J"&INDEX('Energinetdk rapport'!$L$1:$L$5,MATCH('Energinetdk rapport'!$I$3,'Energinetdk rapport'!$J$1:$J$5,0)))),0) -> 0 | F22: =SUMIFS(INDIRECT("'Input'!H"&INDEX('Energinetdk rapport'!$K$1:$K$5,MATCH('Energinetdk rapport'!$I$3,'Energinetdk rapport'!$J$1:$J$5,0))):INDIRECT("'Input'!H"&INDEX('Energinetdk rapport'!$L$1:$L$5,MATCH('Energinetdk rapport'!$I$3,'Energinetdk rapport'!$J$1:$J$5,0))), INDIRECT("'Input'!F"&INDEX('Energinetdk rapport'!$K$1:$K$5,MATCH('Energinetdk rapport'!$I$3,'Energinetdk rapport'!$J$1:$J$5,0))):INDIRECT("'Input'!F"&INDEX('Energinetdk rapport'!$L$1:$L$5,MATCH('Energinetdk rapport'!$I$3,'Energinetdk rapport'!$J$1:$J$5,0))), B22) -> 0 | G22: 0
B23: - Fiberfraktion | C23: Fiberfraktion | D23: Fiberfraktion fra separeret husdyrgødning | E23: =IFERROR(AVERAGEIF(INDIRECT("'Input'!F"&INDEX('Energinetdk rapport'!$K$1:$K$5,MATCH('Energinetdk rapport'!$I$3,'Energinetdk rapport'!$J$1:$J$5,0))):INDIRECT("'Input'!F"&INDEX('Energinetdk rapport'!$L$1:$L$5,MATCH('Energinetdk rapport'!$I$3,'Energinetdk rapport'!$J$1:$J$5,0))),B23,INDIRECT("'Input'!J"&INDEX('Energinetdk rapport'!$K$1:$K$5,MATCH('Energinetdk rapport'!$I$3,'Energinetdk rapport'!$J$1:$J$5,0))):INDIRECT("'Input'!J"&INDEX('Energinetdk rapport'!$L$1:$L$5,MATCH('Energinetdk rapport'!$I$3,'Energinetdk rapport'!$J$1:$J$5,0)))),0) -> 0 | F23: =SUMIFS(INDIRECT("'Input'!H"&INDEX('Energinetdk rapport'!$K$1:$K$5,MATCH('Energinetdk rapport'!$I$3,'Energinetdk rapport'!$J$1:$J$5,0))):INDIRECT("'Input'!H"&INDEX('Energinetdk rapport'!$L$1:$L$5,MATCH('Energinetdk rapport'!$I$3,'Energinetdk rapport'!$J$1:$J$5,0))), INDIRECT("'Input'!F"&INDEX('Energinetdk rapport'!$K$1:$K$5,MATCH('Energinetdk rapport'!$I$3,'Energinetdk rapport'!$J$1:$J$5,0))):INDIRECT("'Input'!F"&INDEX('Energinetdk rapport'!$L$1:$L$5,MATCH('Energinetdk rapport'!$I$3,'Energinetdk rapport'!$J$1:$J$5,0))), B23) -> 0 | G23: 0
B24: - Flydende fraktion fra separationsanlæg eller biogasanlæg | C24: Flydende fraktion fra separationsanlæg eller biogasanlæg | D24: Væskefraktion fra separeret husdyrgødning. | E24: =IFERROR(AVERAGEIF(INDIRECT("'Input'!F"&INDEX('Energinetdk rapport'!$K$1:$K$5,MATCH('Energinetdk rapport'!$I$3,'Energinetdk rapport'!$J$1:$J$5,0))):INDIRECT("'Input'!F"&INDEX('Energinetdk rapport'!$L$1:$L$5,MATCH('Energinetdk rapport'!$I$3,'Energinetdk rapport'!$J$1:$J$5,0))),B24,INDIRECT("'Input'!J"&INDEX('Energinetdk rapport'!$K$1:$K$5,MATCH('Energinetdk rapport'!$I$3,'Energinetdk rapport'!$J$1:$J$5,0))):INDIRECT("'Input'!J"&INDEX('Energinetdk rapport'!$L$1:$L$5,MATCH('Energinetdk rapport'!$I$3,'Energinetdk rapport'!$J$1:$J$5,0)))),0) -> 0 | F24: =SUMIFS(INDIRECT("'Input'!H"&INDEX('Energinetdk rapport'!$K$1:$K$5,MATCH('Energinetdk rapport'!$I$3,'Energinetdk rapport'!$J$1:$J$5,0))):INDIRECT("'Input'!H"&INDEX('Energinetdk rapport'!$L$1:$L$5,MATCH('Energinetdk rapport'!$I$3,'Energinetdk rapport'!$J$1:$J$5,0))), INDIRECT("'Input'!F"&INDEX('Energinetdk rapport'!$K$1:$K$5,MATCH('Energinetdk rapport'!$I$3,'Energinetdk rapport'!$J$1:$J$5,0))):INDIRECT("'Input'!F"&INDEX('Energinetdk rapport'!$L$1:$L$5,MATCH('Energinetdk rapport'!$I$3,'Energinetdk rapport'!$J$1:$J$5,0))), B24) -> 0 | G24: 0
B25: - Flydende fraktion | C25: Flydende fraktion | D25: Væskefraktion fra separeret husdyrgødning, hvor fiberfraktionen afbrændes | E25: =IFERROR(AVERAGEIF(INDIRECT("'Input'!F"&INDEX('Energinetdk rapport'!$K$1:$K$5,MATCH('Energinetdk rapport'!$I$3,'Energinetdk rapport'!$J$1:$J$5,0))):INDIRECT("'Input'!F"&INDEX('Energinetdk rapport'!$L$1:$L$5,MATCH('Energinetdk rapport'!$I$3,'Energinetdk rapport'!$J$1:$J$5,0))),B25,INDIRECT("'Input'!J"&INDEX('Energinetdk rapport'!$K$1:$K$5,MATCH('Energinetdk rapport'!$I$3,'Energinetdk rapport'!$J$1:$J$5,0))):INDIRECT("'Input'!J"&INDEX('Energinetdk rapport'!$L$1:$L$5,MATCH('Energinetdk rapport'!$I$3,'Energinetdk rapport'!$J$1:$J$5,0)))),0) -> 0 | F25: =SUMIFS(INDIRECT("'Input'!H"&INDEX('Energinetdk rapport'!$K$1:$K$5,MATCH('Energinetdk rapport'!$I$3,'Energinetdk rapport'!$J$1:$J$5,0))):INDIRECT("'Input'!H"&INDEX('Energinetdk rapport'!$L$1:$L$5,MATCH('Energinetdk rapport'!$I$3,'Energinetdk rapport'!$J$1:$J$5,0))), INDIRECT("'Input'!F"&INDEX('Energinetdk rapport'!$K$1:$K$5,MATCH('Energinetdk rapport'!$I$3,'Energinetdk rapport'!$J$1:$J$5,0))):INDIRECT("'Input'!F"&INDEX('Energinetdk rapport'!$L$1:$L$5,MATCH('Energinetdk rapport'!$I$3,'Energinetdk rapport'!$J$1:$J$5,0))), B25) -> 0 | G25: 0
C26: Husdyrsgødning til forbrændinganlæg | E26: =IFERROR(AVERAGEIF(INDIRECT("'Input'!F"&INDEX('Energinetdk rapport'!$K$1:$K$5,MATCH('Energinetdk rapport'!$I$3,'Energinetdk rapport'!$J$1:$J$5,0))):INDIRECT("'Input'!F"&INDEX('Energinetdk rapport'!$L$1:$L$5,MATCH('Energinetdk rapport'!$I$3,'Energinetdk rapport'!$J$1:$J$5,0))),B26,INDIRECT("'Input'!J"&INDEX('Energinetdk rapport'!$K$1:$K$5,MATCH('Energinetdk rapport'!$I$3,'Energinetdk rapport'!$J$1:$J$5,0))):INDIRECT("'Input'!J"&INDEX('Energinetdk rapport'!$L$1:$L$5,MATCH('Energinetdk rapport'!$I$3,'Energinetdk rapport'!$J$1:$J$5,0)))),0) -> 0 | F26: =SUMIFS(INDIRECT("'Input'!H"&INDEX('Energinetdk rapport'!$K$1:$K$5,MATCH('Energinetdk rapport'!$I$3,'Energinetdk rapport'!$J$1:$J$5,0))):INDIRECT("'Input'!H"&INDEX('Energinetdk rapport'!$L$1:$L$5,MATCH('Energinetdk rapport'!$I$3,'Energinetdk rapport'!$J$1:$J$5,0))), INDIRECT("'Input'!F"&INDEX('Energinetdk rapport'!$K$1:$K$5,MATCH('Energinetdk rapport'!$I$3,'Energinetdk rapport'!$J$1:$J$5,0))):INDIRECT("'Input'!F"&INDEX('Energinetdk rapport'!$L$1:$L$5,MATCH('Energinetdk rapport'!$I$3,'Energinetdk rapport'!$J$1:$J$5,0))), B26) -> 0 | G26: 0
D27: Andre biomasser
B28: - Slam og spildevand samt uforurenede produktrester | C28: Slam og spildevand samt uforurenede produktrester | D28: Slam og spildevand samt uforurenede produktrester fra forarbejdning af vegetabilske råvarer samt slam og spildevand fra mejerier. | E28: =IFERROR(AVERAGEIF(INDIRECT("'Input'!F"&INDEX('Energinetdk rapport'!$K$1:$K$5,MATCH('Energinetdk rapport'!$I$3,'Energinetdk rapport'!$J$1:$J$5,0))):INDIRECT("'Input'!F"&INDEX('Energinetdk rapport'!$L$1:$L$5,MATCH('Energinetdk rapport'!$I$3,'Energinetdk rapport'!$J$1:$J$5,0))),B28,INDIRECT("'Input'!J"&INDEX('Energinetdk rapport'!$K$1:$K$5,MATCH('Energinetdk rapport'!$I$3,'Energinetdk rapport'!$J$1:$J$5,0))):INDIRECT("'Input'!J"&INDEX('Energinetdk rapport'!$L$1:$L$5,MATCH('Energinetdk rapport'!$I$3,'Energinetdk rapport'!$J$1:$J$5,0)))),0) -> 0 | F28: =SUMIFS(INDIRECT("'Input'!H"&INDEX('Energinetdk rapport'!$K$1:$K$5,MATCH('Energinetdk rapport'!$I$3,'Energinetdk rapport'!$J$1:$J$5,0))):INDIRECT("'Input'!H"&INDEX('Energinetdk rapport'!$L$1:$L$5,MATCH('Energinetdk rapport'!$I$3,'Energinetdk rapport'!$J$1:$J$5,0))), INDIRECT("'Input'!F"&INDEX('Energinetdk rapport'!$K$1:$K$5,MATCH('Energinetdk rapport'!$I$3,'Energinetdk rapport'!$J$1:$J$5,0))):INDIRECT("'Input'!F"&INDEX('Energinetdk rapport'!$L$1:$L$5,MATCH('Energinetdk rapport'!$I$3,'Energinetdk rapport'!$J$1:$J$5,0))), B28) -> 0 | G28: =IFERROR(F28/SUM($F$6:$F$128),0) -> 0
B29: - Slam fra dambrug | C29: Slam fra dambrug | D29: - Slam fra ferskvandsdambrug samt slam og spildevand fra recirkulerede anlæg til opdræt af fisk. - Slam fra indpumpningsdambrug. | E29: =IFERROR(AVERAGEIF(INDIRECT("'Input'!F"&INDEX('Energinetdk rapport'!$K$1:$K$5,MATCH('Energinetdk rapport'!$I$3,'Energinetdk rapport'!$J$1:$J$5,0))):INDIRECT("'Input'!F"&INDEX('Energinetdk rapport'!$L$1:$L$5,MATCH('Energinetdk rapport'!$I$3,'Energinetdk rapport'!$J$1:$J$5,0))),B29,INDIRECT("'Input'!J"&INDEX('Energinetdk rapport'!$K$1:$K$5,MATCH('Energinetdk rapport'!$I$3,'Energinetdk rapport'!$J$1:$J$5,0))):INDIRECT("'Input'!J"&INDEX('Energinetdk rapport'!$L$1:$L$5,MATCH('Energinetdk rapport'!$I$3,'Energinetdk rapport'!$J$1:$J$5,0)))),0) -> 0 | F29: =SUMIFS(INDIRECT("'Input'!H"&INDEX('Energinetdk rapport'!$K$1:$K$5,MATCH('Energinetdk rapport'!$I$3,'Energinetdk rapport'!$J$1:$J$5,0))):INDIRECT("'Input'!H"&INDEX('Energinetdk rapport'!$L$1:$L$5,MATCH('Energinetdk rapport'!$I$3,'Energinetdk rapport'!$J$1:$J$5,0))), INDIRECT("'Input'!F"&INDEX('Energinetdk rapport'!$K$1:$K$5,MATCH('Energinetdk rapport'!$I$3,'Energinetdk rapport'!$J$1:$J$5,0))):INDIRECT("'Input'!F"&INDEX('Energinetdk rapport'!$L$1:$L$5,MATCH('Energinetdk rapport'!$I$3,'Energinetdk rapport'!$J$1:$J$5,0))), B29) -> 0 | G29: =IFERROR(F29/SUM($F$6:$F$128),0) -> 0
B32: - Slam fra forarbejdning af animalske råvarer | C32: Slam fra forarbejdning af animalske råvarer | D32: - Slam og flotationsfedt fra renseanlæg på slagterier, opskæringsvirksomheder og andre levnedmiddelvirksomheder. - Slam og flotationsfedt fra rensningsanlæg på fiskeindustrier. | E32: =IFERROR(AVERAGEIF(INDIRECT("'Input'!F"&INDEX('Energinetdk rapport'!$K$1:$K$5,MATCH('Energinetdk rapport'!$I$3,'Energinetdk rapport'!$J$1:$J$5,0))):INDIRECT("'Input'!F"&INDEX('Energinetdk rapport'!$L$1:$L$5,MATCH('Energinetdk rapport'!$I$3,'Energinetdk rapport'!$J$1:$J$5,0))),B32,INDIRECT("'Input'!J"&INDEX('Energinetdk rapport'!$K$1:$K$5,MATCH('Energinetdk rapport'!$I$3,'Energinetdk rapport'!$J$1:$J$5,0))):INDIRECT("'Input'!J"&INDEX('Energinetdk rapport'!$L$1:$L$5,MATCH('Energinetdk rapport'!$I$3,'Energinetdk rapport'!$J$1:$J$5,0)))),0) -> 0 | F32: =SUMIFS(INDIRECT("'Input'!H"&INDEX('Energinetdk rapport'!$K$1:$K$5,MATCH('Energinetdk rapport'!$I$3,'Energinetdk rapport'!$J$1:$J$5,0))):INDIRECT("'Input'!H"&INDEX('Energinetdk rapport'!$L$1:$L$5,MATCH('Energinetdk rapport'!$I$3,'Energinetdk rapport'!$J$1:$J$5,0))), INDIRECT("'Input'!F"&INDEX('Energinetdk rapport'!$K$1:$K$5,MATCH('Energinetdk rapport'!$I$3,'Energinetdk rapport'!$J$1:$J$5,0))):INDIRECT("'Input'!F"&INDEX('Energinetdk rapport'!$L$1:$L$5,MATCH('Energinetdk rapport'!$I$3,'Energinetdk rapport'!$J$1:$J$5,0))), B32) -> 0 | G32: =IFERROR(F32/SUM($F$6:$F$128),0) -> 0
B33: - Spildevandsslam | C33: Spildevandsslam | D33: - Slam fra offentlige spildevandsanlæg - Slam fra private rensningsanlæg til behandling af husspildevand | E33: =IFERROR(AVERAGEIF(INDIRECT("'Input'!F"&INDEX('Energinetdk rapport'!$K$1:$K$5,MATCH('Energinetdk rapport'!$I$3,'Energinetdk rapport'!$J$1:$J$5,0))):INDIRECT("'Input'!F"&INDEX('Energinetdk rapport'!$L$1:$L$5,MATCH('Energinetdk rapport'!$I$3,'Energinetdk rapport'!$J$1:$J$5,0))),B33,INDIRECT("'Input'!J"&INDEX('Energinetdk rapport'!$K$1:$K$5,MATCH('Energinetdk rapport'!$I$3,'Energinetdk rapport'!$J$1:$J$5,0))):INDIRECT("'Input'!J"&INDEX('Energinetdk rapport'!$L$1:$L$5,MATCH('Energinetdk rapport'!$I$3,'Energinetdk rapport'!$J$1:$J$5,0)))),0) -> 0 | F33: =SUMIFS(INDIRECT("'Input'!H"&INDEX('Energinetdk rapport'!$K$1:$K$5,MATCH('Energinetdk rapport'!$I$3,'Energinetdk rapport'!$J$1:$J$5,0))):INDIRECT("'Input'!H"&INDEX('Energinetdk rapport'!$L$1:$L$5,MATCH('Energinetdk rapport'!$I$3,'Energinetdk rapport'!$J$1:$J$5,0))), INDIRECT("'Input'!F"&INDEX('Energinetdk rapport'!$K$1:$K$5,MATCH('Energinetdk rapport'!$I$3,'Energinetdk rapport'!$J$1:$J$5,0))):INDIRECT("'Input'!F"&INDEX('Energinetdk rapport'!$L$1:$L$5,MATCH('Energinetdk rapport'!$I$3,'Energinetdk rapport'!$J$1:$J$5,0))), B33) -> 0 | G33: 0
B34: - Kildesorteret organisk dagrenovation og renovationslignende affald | C34: Kildesorteret organisk dagrenovation og renovationslignende affald. | D34: Kildesorteret organisk dagrenovation og dagrenovationslignende affald herunder madaffald fra storkøkkener indsamlet med organisk dagrenovation og madaffald fra institutioner. | E34: =IFERROR(AVERAGEIF(INDIRECT("'Input'!F"&INDEX('Energinetdk rapport'!$K$1:$K$5,MATCH('Energinetdk rapport'!$I$3,'Energinetdk rapport'!$J$1:$J$5,0))):INDIRECT("'Input'!F"&INDEX('Energinetdk rapport'!$L$1:$L$5,MATCH('Energinetdk rapport'!$I$3,'Energinetdk rapport'!$J$1:$J$5,0))),B34,INDIRECT("'Input'!J"&INDEX('Energinetdk rapport'!$K$1:$K$5,MATCH('Energinetdk rapport'!$I$3,'Energinetdk rapport'!$J$1:$J$5,0))):INDIRECT("'Input'!J"&INDEX('Energinetdk rapport'!$L$1:$L$5,MATCH('Energinetdk rapport'!$I$3,'Energinetdk rapport'!$J$1:$J$5,0)))),0) -> 0 | F34: =SUMIFS(INDIRECT("'Input'!H"&INDEX('Energinetdk rapport'!$K$1:$K$5,MATCH('Energinetdk rapport'!$I$3,'Energinetdk rapport'!$J$1:$J$5,0))):INDIRECT("'Input'!H"&INDEX('Energinetdk rapport'!$L$1:$L$5,MATCH('Energinetdk rapport'!$I$3,'Energinetdk rapport'!$J$1:$J$5,0))), INDIRECT("'Input'!F"&INDEX('Energinetdk rapport'!$K$1:$K$5,MATCH('Energinetdk rapport'!$I$3,'Energinetdk rapport'!$J$1:$J$5,0))):INDIRECT("'Input'!F"&INDEX('Energinetdk rapport'!$L$1:$L$5,MATCH('Energinetdk rapport'!$I$3,'Energinetdk rapport'!$J$1:$J$5,0))), B34) -> 0 | G34: 0
B35: - Vinasse (2,2 pct. kvælstof) | C35: Vinasse (2,2 pct. kvælstof) | E35: =IFERROR(AVERAGEIF(INDIRECT("'Input'!F"&INDEX('Energinetdk rapport'!$K$1:$K$5,MATCH('Energinetdk rapport'!$I$3,'Energinetdk rapport'!$J$1:$J$5,0))):INDIRECT("'Input'!F"&INDEX('Energinetdk rapport'!$L$1:$L$5,MATCH('Energinetdk rapport'!$I$3,'Energinetdk rapport'!$J$1:$J$5,0))),B35,INDIRECT("'Input'!J"&INDEX('Energinetdk rapport'!$K$1:$K$5,MATCH('Energinetdk rapport'!$I$3,'Energinetdk rapport'!$J$1:$J$5,0))):INDIRECT("'Input'!J"&INDEX('Energinetdk rapport'!$L$1:$L$5,MATCH('Energinetdk rapport'!$I$3,'Energinetdk rapport'!$J$1:$J$5,0)))),0) -> 0 | F35: =SUMIFS(INDIRECT("'Input'!H"&INDEX('Energinetdk rapport'!$K$1:$K$5,MATCH('Energinetdk rapport'!$I$3,'Energinetdk rapport'!$J$1:$J$5,0))):INDIRECT("'Input'!H"&INDEX('Energinetdk rapport'!$L$1:$L$5,MATCH('Energinetdk rapport'!$I$3,'Energinetdk rapport'!$J$1:$J$5,0))), INDIRECT("'Input'!F"&INDEX('Energinetdk rapport'!$K$1:$K$5,MATCH('Energinetdk rapport'!$I$3,'Energinetdk rapport'!$J$1:$J$5,0))):INDIRECT("'Input'!F"&INDEX('Energinetdk rapport'!$L$1:$L$5,MATCH('Energinetdk rapport'!$I$3,'Energinetdk rapport'!$J$1:$J$5,0))), B35) -> 0 | G35: 0
B36: - Vinasse (3,5 pct. kvælstof) | C36: Vinasse (3,5 pct. kvælstof) | E36: =IFERROR(AVERAGEIF(INDIRECT("'Input'!F"&INDEX('Energinetdk rapport'!$K$1:$K$5,MATCH('Energinetdk rapport'!$I$3,'Energinetdk rapport'!$J$1:$J$5,0))):INDIRECT("'Input'!F"&INDEX('Energinetdk rapport'!$L$1:$L$5,MATCH('Energinetdk rapport'!$I$3,'Energinetdk rapport'!$J$1:$J$5,0))),B36,INDIRECT("'Input'!J"&INDEX('Energinetdk rapport'!$K$1:$K$5,MATCH('Energinetdk rapport'!$I$3,'Energinetdk rapport'!$J$1:$J$5,0))):INDIRECT("'Input'!J"&INDEX('Energinetdk rapport'!$L$1:$L$5,MATCH('Energinetdk rapport'!$I$3,'Energinetdk rapport'!$J$1:$J$5,0)))),0) -> 0 | F36: =SUMIFS(INDIRECT("'Input'!H"&INDEX('Energinetdk rapport'!$K$1:$K$5,MATCH('Energinetdk rapport'!$I$3,'Energinetdk rapport'!$J$1:$J$5,0))):INDIRECT("'Input'!H"&INDEX('Energinetdk rapport'!$L$1:$L$5,MATCH('Energinetdk rapport'!$I$3,'Energinetdk rapport'!$J$1:$J$5,0))), INDIRECT("'Input'!F"&INDEX('Energinetdk rapport'!$K$1:$K$5,MATCH('Energinetdk rapport'!$I$3,'Energinetdk rapport'!$J$1:$J$5,0))):INDIRECT("'Input'!F"&INDEX('Energinetdk rapport'!$L$1:$L$5,MATCH('Energinetdk rapport'!$I$3,'Energinetdk rapport'!$J$1:$J$5,0))), B36) -> 0 | G36: 0
B37: - Kartoffelfrugtsaft | C37: Kartoffelfrugtsaft | D37: Græsslet og anden biomasse fra naturarealer, der fremkommer ved naturpleje. | E37: =IFERROR(AVERAGEIF(INDIRECT("'Input'!F"&INDEX('Energinetdk rapport'!$K$1:$K$5,MATCH('Energinetdk rapport'!$I$3,'Energinetdk rapport'!$J$1:$J$5,0))):INDIRECT("'Input'!F"&INDEX('Energinetdk rapport'!$L$1:$L$5,MATCH('Energinetdk rapport'!$I$3,'Energinetdk rapport'!$J$1:$J$5,0))),B37,INDIRECT("'Input'!J"&INDEX('Energinetdk rapport'!$K$1:$K$5,MATCH('Energinetdk rapport'!$I$3,'Energinetdk rapport'!$J$1:$J$5,0))):INDIRECT("'Input'!J"&INDEX('Energinetdk rapport'!$L$1:$L$5,MATCH('Energinetdk rapport'!$I$3,'Energinetdk rapport'!$J$1:$J$5,0)))),0) -> 0 | F37: =SUMIFS(INDIRECT("'Input'!H"&INDEX('Energinetdk rapport'!$K$1:$K$5,MATCH('Energinetdk rapport'!$I$3,'Energinetdk rapport'!$J$1:$J$5,0))):INDIRECT("'Input'!H"&INDEX('Energinetdk rapport'!$L$1:$L$5,MATCH('Energinetdk rapport'!$I$3,'Energinetdk rapport'!$J$1:$J$5,0))), INDIRECT("'Input'!F"&INDEX('Energinetdk rapport'!$K$1:$K$5,MATCH('Energinetdk rapport'!$I$3,'Energinetdk rapport'!$J$1:$J$5,0))):INDIRECT("'Input'!F"&INDEX('Energinetdk rapport'!$L$1:$L$5,MATCH('Energinetdk rapport'!$I$3,'Energinetdk rapport'!$J$1:$J$5,0))), B37) -> 0 | G37: 0
B38: - Pressesaft fra grøntpilleproduktion | C38: Pressesaft fra grøntpilleproduktion | E38: =IFERROR(AVERAGEIF(INDIRECT("'Input'!F"&INDEX('Energinetdk rapport'!$K$1:$K$5,MATCH('Energinetdk rapport'!$I$3,'Energinetdk rapport'!$J$1:$J$5,0))):INDIRECT("'Input'!F"&INDEX('Energinetdk rapport'!$L$1:$L$5,MATCH('Energinetdk rapport'!$I$3,'Energinetdk rapport'!$J$1:$J$5,0))),B38,INDIRECT("'Input'!J"&INDEX('Energinetdk rapport'!$K$1:$K$5,MATCH('Energinetdk rapport'!$I$3,'Energinetdk rapport'!$J$1:$J$5,0))):INDIRECT("'Input'!J"&INDEX('Energinetdk rapport'!$L$1:$L$5,MATCH('Energinetdk rapport'!$I$3,'Energinetdk rapport'!$J$1:$J$5,0)))),0) -> 0 | F38: =SUMIFS(INDIRECT("'Input'!H"&INDEX('Energinetdk rapport'!$K$1:$K$5,MATCH('Energinetdk rapport'!$I$3,'Energinetdk rapport'!$J$1:$J$5,0))):INDIRECT("'Input'!H"&INDEX('Energinetdk rapport'!$L$1:$L$5,MATCH('Energinetdk rapport'!$I$3,'Energinetdk rapport'!$J$1:$J$5,0))), INDIRECT("'Input'!F"&INDEX('Energinetdk rapport'!$K$1:$K$5,MATCH('Energinetdk rapport'!$I$3,'Energinetdk rapport'!$J$1:$J$5,0))):INDIRECT("'Input'!F"&INDEX('Energinetdk rapport'!$L$1:$L$5,MATCH('Energinetdk rapport'!$I$3,'Energinetdk rapport'!$J$1:$J$5,0))), B38) -> 0 | G38: 0
B39: - Økologisk kløvergræs | C39: Økologisk kløvergræs | D39: Kløvergræs (helsæd) fra økologisk bedrifter er ikke omfattet af begrænsningen for energiafgrøder til biogas. | E39: =IFERROR(AVERAGEIF(INDIRECT("'Input'!F"&INDEX('Energinetdk rapport'!$K$1:$K$5,MATCH('Energinetdk rapport'!$I$3,'Energinetdk rapport'!$J$1:$J$5,0))):INDIRECT("'Input'!F"&INDEX('Energinetdk rapport'!$L$1:$L$5,MATCH('Energinetdk rapport'!$I$3,'Energinetdk rapport'!$J$1:$J$5,0))),B39,INDIRECT("'Input'!J"&INDEX('Energinetdk rapport'!$K$1:$K$5,MATCH('Energinetdk rapport'!$I$3,'Energinetdk rapport'!$J$1:$J$5,0))):INDIRECT("'Input'!J"&INDEX('Energinetdk rapport'!$L$1:$L$5,MATCH('Energinetdk rapport'!$I$3,'Energinetdk rapport'!$J$1:$J$5,0)))),0) -> 0 | F39: =SUMIFS(INDIRECT("'Input'!H"&INDEX('Energinetdk rapport'!$K$1:$K$5,MATCH('Energinetdk rapport'!$I$3,'Energinetdk rapport'!$J$1:$J$5,0))):INDIRECT("'Input'!H"&INDEX('Energinetdk rapport'!$L$1:$L$5,MATCH('Energinetdk rapport'!$I$3,'Energinetdk rapport'!$J$1:$J$5,0))), INDIRECT("'Input'!F"&INDEX('Energinetdk rapport'!$K$1:$K$5,MATCH('Energinetdk rapport'!$I$3,'Energinetdk rapport'!$J$1:$J$5,0))):INDIRECT("'Input'!F"&INDEX('Energinetdk rapport'!$L$1:$L$5,MATCH('Energinetdk rapport'!$I$3,'Energinetdk rapport'!$J$1:$J$5,0))), B39) -> 0 | G39: 0
B40: - Naturpleje biomasse | C40: Naturpleje biomasse | E40: =IFERROR(AVERAGEIF(INDIRECT("'Input'!F"&INDEX('Energinetdk rapport'!$K$1:$K$5,MATCH('Energinetdk rapport'!$I$3,'Energinetdk rapport'!$J$1:$J$5,0))):INDIRECT("'Input'!F"&INDEX('Energinetdk rapport'!$L$1:$L$5,MATCH('Energinetdk rapport'!$I$3,'Energinetdk rapport'!$J$1:$J$5,0))),B40,INDIRECT("'Input'!J"&INDEX('Energinetdk rapport'!$K$1:$K$5,MATCH('Energinetdk rapport'!$I$3,'Energinetdk rapport'!$J$1:$J$5,0))):INDIRECT("'Input'!J"&INDEX('Energinetdk rapport'!$L$1:$L$5,MATCH('Energinetdk rapport'!$I$3,'Energinetdk rapport'!$J$1:$J$5,0)))),0) -> 0 | F40: =SUMIFS(INDIRECT("'Input'!H"&INDEX('Energinetdk rapport'!$K$1:$K$5,MATCH('Energinetdk rapport'!$I$3,'Energinetdk rapport'!$J$1:$J$5,0))):INDIRECT("'Input'!H"&INDEX('Energinetdk rapport'!$L$1:$L$5,MATCH('Energinetdk rapport'!$I$3,'Energinetdk rapport'!$J$1:$J$5,0))), INDIRECT("'Input'!F"&INDEX('Energinetdk rapport'!$K$1:$K$5,MATCH('Energinetdk rapport'!$I$3,'Energinetdk rapport'!$J$1:$J$5,0))):INDIRECT("'Input'!F"&INDEX('Energinetdk rapport'!$L$1:$L$5,MATCH('Energinetdk rapport'!$I$3,'Energinetdk rapport'!$J$1:$J$5,0))), B40) -> 0 | G40: =IFERROR(F40/SUM($F$6:$F$128),0) -> 0
B41: - Halm | C41: Halm | D41: Halm fra korn, raps eller andre afgrøder. | E41: =IFERROR(AVERAGEIF(INDIRECT("'Input'!F"&INDEX('Energinetdk rapport'!$K$1:$K$5,MATCH('Energinetdk rapport'!$I$3,'Energinetdk rapport'!$J$1:$J$5,0))):INDIRECT("'Input'!F"&INDEX('Energinetdk rapport'!$L$1:$L$5,MATCH('Energinetdk rapport'!$I$3,'Energinetdk rapport'!$J$1:$J$5,0))),B41,INDIRECT("'Input'!J"&INDEX('Energinetdk rapport'!$K$1:$K$5,MATCH('Energinetdk rapport'!$I$3,'Energinetdk rapport'!$J$1:$J$5,0))):INDIRECT("'Input'!J"&INDEX('Energinetdk rapport'!$L$1:$L$5,MATCH('Energinetdk rapport'!$I$3,'Energinetdk rapport'!$J$1:$J$5,0)))),0) -> 0 | F41: =SUMIFS(INDIRECT("'Input'!H"&INDEX('Energinetdk rapport'!$K$1:$K$5,MATCH('Energinetdk rapport'!$I$3,'Energinetdk rapport'!$J$1:$J$5,0))):INDIRECT("'Input'!H"&INDEX('Energinetdk rapport'!$L$1:$L$5,MATCH('Energinetdk rapport'!$I$3,'Energinetdk rapport'!$J$1:$J$5,0))), INDIRECT("'Input'!F"&INDEX('Energinetdk rapport'!$K$1:$K$5,MATCH('Energinetdk rapport'!$I$3,'Energinetdk rapport'!$J$1:$J$5,0))):INDIRECT("'Input'!F"&INDEX('Energinetdk rapport'!$L$1:$L$5,MATCH('Energinetdk rapport'!$I$3,'Energinetdk rapport'!$J$1:$J$5,0))), B41) -> 0 | G41: 0
B42: - Have-park affald | C42: Have-park affald | D42: Have- og parkaffald omfatter græsafklip og andre plantedele fra kommunale arealer og private via genbrugsstationer. | E42: =IFERROR(AVERAGEIF(INDIRECT("'Input'!F"&INDEX('Energinetdk rapport'!$K$1:$K$5,MATCH('Energinetdk rapport'!$I$3,'Energinetdk rapport'!$J$1:$J$5,0))):INDIRECT("'Input'!F"&INDEX('Energinetdk rapport'!$L$1:$L$5,MATCH('Energinetdk rapport'!$I$3,'Energinetdk rapport'!$J$1:$J$5,0))),B42,INDIRECT("'Input'!J"&INDEX('Energinetdk rapport'!$K$1:$K$5,MATCH('Energinetdk rapport'!$I$3,'Energinetdk rapport'!$J$1:$J$5,0))):INDIRECT("'Input'!J"&INDEX('Energinetdk rapport'!$L$1:$L$5,MATCH('Energinetdk rapport'!$I$3,'Energinetdk rapport'!$J$1:$J$5,0)))),0) -> 0 | F42: =SUMIFS(INDIRECT("'Input'!H"&INDEX('Energinetdk rapport'!$K$1:$K$5,MATCH('Energinetdk rapport'!$I$3,'Energinetdk rapport'!$J$1:$J$5,0))):INDIRECT("'Input'!H"&INDEX('Energinetdk rapport'!$L$1:$L$5,MATCH('Energinetdk rapport'!$I$3,'Energinetdk rapport'!$J$1:$J$5,0))), INDIRECT("'Input'!F"&INDEX('Energinetdk rapport'!$K$1:$K$5,MATCH('Energinetdk rapport'!$I$3,'Energinetdk rapport'!$J$1:$J$5,0))):INDIRECT("'Input'!F"&INDEX('Energinetdk rapport'!$L$1:$L$5,MATCH('Energinetdk rapport'!$I$3,'Energinetdk rapport'!$J$1:$J$5,0))), B42) -> 0 | G42: 0
B43: - Andre restprodukter fra produktion af primærafgrøder | C43: Andre restprodukter fra produktion af primærafgrøder | D43: Ikke halm, men andre dele af afgrøder, som bliver frasorteret f.eks. roetoppe, kartoffeltoppe el. lign. | E43: =IFERROR(AVERAGEIF(INDIRECT("'Input'!F"&INDEX('Energinetdk rapport'!$K$1:$K$5,MATCH('Energinetdk rapport'!$I$3,'Energinetdk rapport'!$J$1:$J$5,0))):INDIRECT("'Input'!F"&INDEX('Energinetdk rapport'!$L$1:$L$5,MATCH('Energinetdk rapport'!$I$3,'Energinetdk rapport'!$J$1:$J$5,0))),B43,INDIRECT("'Input'!J"&INDEX('Energinetdk rapport'!$K$1:$K$5,MATCH('Energinetdk rapport'!$I$3,'Energinetdk rapport'!$J$1:$J$5,0))):INDIRECT("'Input'!J"&INDEX('Energinetdk rapport'!$L$1:$L$5,MATCH('Energinetdk rapport'!$I$3,'Energinetdk rapport'!$J$1:$J$5,0)))),0) -> 0 | F43: =SUMIFS(INDIRECT("'Input'!H"&INDEX('Energinetdk rapport'!$K$1:$K$5,MATCH('Energinetdk rapport'!$I$3,'Energinetdk rapport'!$J$1:$J$5,0))):INDIRECT("'Input'!H"&INDEX('Energinetdk rapport'!$L$1:$L$5,MATCH('Energinetdk rapport'!$I$3,'Energinetdk rapport'!$J$1:$J$5,0))), INDIRECT("'Input'!F"&INDEX('Energinetdk rapport'!$K$1:$K$5,MATCH('Energinetdk rapport'!$I$3,'Energinetdk rapport'!$J$1:$J$5,0))):INDIRECT("'Input'!F"&INDEX('Energinetdk rapport'!$L$1:$L$5,MATCH('Energinetdk rapport'!$I$3,'Energinetdk rapport'!$J$1:$J$5,0))), B43) -> 0 | G43: 0
B44: - Kasserede afgrøder | C44: Kasserede afgrøder | D44: Kasserede afgrøder i form af rodfrugter, majs eller korn, der er beskadiget og derfor uegnet til føde eller foder. | E44: =IFERROR(AVERAGEIF(INDIRECT("'Input'!F"&INDEX('Energinetdk rapport'!$K$1:$K$5,MATCH('Energinetdk rapport'!$I$3,'Energinetdk rapport'!$J$1:$J$5,0))):INDIRECT("'Input'!F"&INDEX('Energinetdk rapport'!$L$1:$L$5,MATCH('Energinetdk rapport'!$I$3,'Energinetdk rapport'!$J$1:$J$5,0))),B44,INDIRECT("'Input'!J"&INDEX('Energinetdk rapport'!$K$1:$K$5,MATCH('Energinetdk rapport'!$I$3,'Energinetdk rapport'!$J$1:$J$5,0))):INDIRECT("'Input'!J"&INDEX('Energinetdk rapport'!$L$1:$L$5,MATCH('Energinetdk rapport'!$I$3,'Energinetdk rapport'!$J$1:$J$5,0)))),0) -> 0 | F44: =SUMIFS(INDIRECT("'Input'!H"&INDEX('Energinetdk rapport'!$K$1:$K$5,MATCH('Energinetdk rapport'!$I$3,'Energinetdk rapport'!$J$1:$J$5,0))):INDIRECT("'Input'!H"&INDEX('Energinetdk rapport'!$L$1:$L$5,MATCH('Energinetdk rapport'!$I$3,'Energinetdk rapport'!$J$1:$J$5,0))), INDIRECT("'Input'!F"&INDEX('Energinetdk rapport'!$K$1:$K$5,MATCH('Energinetdk rapport'!$I$3,'Energinetdk rapport'!$J$1:$J$5,0))):INDIRECT("'Input'!F"&INDEX('Energinetdk rapport'!$L$1:$L$5,MATCH('Energinetdk rapport'!$I$3,'Energinetdk rapport'!$J$1:$J$5,0))), B44) -> 0 | G44: 0
B45: - Animalske biprodukter | C45: Animalske biprodukter | D45: Hele kroppe eller dele af dyr, animalske produkter eller andre produkter fra dyr, som ikke er bestemt til konsum, f.eks. Blod, fedt, mælk og valle. | E45: =IFERROR(AVERAGEIF(INDIRECT("'Input'!F"&INDEX('Energinetdk rapport'!$K$1:$K$5,MATCH('Energinetdk rapport'!$I$3,'Energinetdk rapport'!$J$1:$J$5,0))):INDIRECT("'Input'!F"&INDEX('Energinetdk rapport'!$L$1:$L$5,MATCH('Energinetdk rapport'!$I$3,'Energinetdk rapport'!$J$1:$J$5,0))),B45,INDIRECT("'Input'!J"&INDEX('Energinetdk rapport'!$K$1:$K$5,MATCH('Energinetdk rapport'!$I$3,'Energinetdk rapport'!$J$1:$J$5,0))):INDIRECT("'Input'!J"&INDEX('Energinetdk rapport'!$L$1:$L$5,MATCH('Energinetdk rapport'!$I$3,'Energinetdk rapport'!$J$1:$J$5,0)))),0) -> 0 | F45: =SUMIFS(INDIRECT("'Input'!H"&INDEX('Energinetdk rapport'!$K$1:$K$5,MATCH('Energinetdk rapport'!$I$3,'Energinetdk rapport'!$J$1:$J$5,0))):INDIRECT("'Input'!H"&INDEX('Energinetdk rapport'!$L$1:$L$5,MATCH('Energinetdk rapport'!$I$3,'Energinetdk rapport'!$J$1:$J$5,0))), INDIRECT("'Input'!F"&INDEX('Energinetdk rapport'!$K$1:$K$5,MATCH('Energinetdk rapport'!$I$3,'Energinetdk rapport'!$J$1:$J$5,0))):INDIRECT("'Input'!F"&INDEX('Energinetdk rapport'!$L$1:$L$5,MATCH('Energinetdk rapport'!$I$3,'Energinetdk rapport'!$J$1:$J$5,0))), B45) -> 0 | G45: 0
B46: - Inaktiveret og kalkstabiliseret biomasse | C46: Inaktiveret og kalkstabiliseret biomasse | D46: Inaktiveret og kalkstabiliseret biomasse med tørstof højere end pct. stammende fra en gæringsproduktion, der har undergået en behandling svarende til mindst kontrolleret hygiejnisering. | E46: =IFERROR(AVERAGEIF(INDIRECT("'Input'!F"&INDEX('Energinetdk rapport'!$K$1:$K$5,MATCH('Energinetdk rapport'!$I$3,'Energinetdk rapport'!$J$1:$J$5,0))):INDIRECT("'Input'!F"&INDEX('Energinetdk rapport'!$L$1:$L$5,MATCH('Energinetdk rapport'!$I$3,'Energinetdk rapport'!$J$1:$J$5,0))),B46,INDIRECT("'Input'!J"&INDEX('Energinetdk rapport'!$K$1:$K$5,MATCH('Energinetdk rapport'!$I$3,'Energinetdk rapport'!$J$1:$J$5,0))):INDIRECT("'Input'!J"&INDEX('Energinetdk rapport'!$L$1:$L$5,MATCH('Energinetdk rapport'!$I$3,'Energinetdk rapport'!$J$1:$J$5,0)))),0) -> 0 | F46: =SUMIFS(INDIRECT("'Input'!H"&INDEX('Energinetdk rapport'!$K$1:$K$5,MATCH('Energinetdk rapport'!$I$3,'Energinetdk rapport'!$J$1:$J$5,0))):INDIRECT("'Input'!H"&INDEX('Energinetdk rapport'!$L$1:$L$5,MATCH('Energinetdk rapport'!$I$3,'Energinetdk rapport'!$J$1:$J$5,0))), INDIRECT("'Input'!F"&INDEX('Energinetdk rapport'!$K$1:$K$5,MATCH('Energinetdk rapport'!$I$3,'Energinetdk rapport'!$J$1:$J$5,0))):INDIRECT("'Input'!F"&INDEX('Energinetdk rapport'!$L$1:$L$5,MATCH('Energinetdk rapport'!$I$3,'Energinetdk rapport'!$J$1:$J$5,0))), B46) -> 0 | G46: 0
B47: - Proteolyseret processpildevand | C47: Proteolyseret processpildevand | D47: Proteolyseret processpildevand baseret på biologisk materiale, der har undergået en behnadling svarende til mindst kontrolleret hygiejnisering. | E47: =IFERROR(AVERAGEIF(INDIRECT("'Input'!F"&INDEX('Energinetdk rapport'!$K$1:$K$5,MATCH('Energinetdk rapport'!$I$3,'Energinetdk rapport'!$J$1:$J$5,0))):INDIRECT("'Input'!F"&INDEX('Energinetdk rapport'!$L$1:$L$5,MATCH('Energinetdk rapport'!$I$3,'Energinetdk rapport'!$J$1:$J$5,0))),B47,INDIRECT("'Input'!J"&INDEX('Energinetdk rapport'!$K$1:$K$5,MATCH('Energinetdk rapport'!$I$3,'Energinetdk rapport'!$J$1:$J$5,0))):INDIRECT("'Input'!J"&INDEX('Energinetdk rapport'!$L$1:$L$5,MATCH('Energinetdk rapport'!$I$3,'Energinetdk rapport'!$J$1:$J$5,0)))),0) -> 0 | F47: =SUMIFS(INDIRECT("'Input'!H"&INDEX('Energinetdk rapport'!$K$1:$K$5,MATCH('Energinetdk rapport'!$I$3,'Energinetdk rapport'!$J$1:$J$5,0))):INDIRECT("'Input'!H"&INDEX('Energinetdk rapport'!$L$1:$L$5,MATCH('Energinetdk rapport'!$I$3,'Energinetdk rapport'!$J$1:$J$5,0))), INDIRECT("'Input'!F"&INDEX('Energinetdk rapport'!$K$1:$K$5,MATCH('Energinetdk rapport'!$I$3,'Energinetdk rapport'!$J$1:$J$5,0))):INDIRECT("'Input'!F"&INDEX('Energinetdk rapport'!$L$1:$L$5,MATCH('Energinetdk rapport'!$I$3,'Energinetdk rapport'!$J$1:$J$5,0))), B47) -> 0 | G47: 0
B48: - Organisk affald fra erhverv | C48: Organisk affald fra erhverv | D48: Organisk affald fra erhverv som ikke er animalske biprodukter. | E48: =IFERROR(AVERAGEIF(INDIRECT("'Input'!F"&INDEX('Energinetdk rapport'!$K$1:$K$5,MATCH('Energinetdk rapport'!$I$3,'Energinetdk rapport'!$J$1:$J$5,0))):INDIRECT("'Input'!F"&INDEX('Energinetdk rapport'!$L$1:$L$5,MATCH('Energinetdk rapport'!$I$3,'Energinetdk rapport'!$J$1:$J$5,0))),B48,INDIRECT("'Input'!J"&INDEX('Energinetdk rapport'!$K$1:$K$5,MATCH('Energinetdk rapport'!$I$3,'Energinetdk rapport'!$J$1:$J$5,0))):INDIRECT("'Input'!J"&INDEX('Energinetdk rapport'!$L$1:$L$5,MATCH('Energinetdk rapport'!$I$3,'Energinetdk rapport'!$J$1:$J$5,0)))),0) -> 0 | F48: =SUMIFS(INDIRECT("'Input'!H"&INDEX('Energinetdk rapport'!$K$1:$K$5,MATCH('Energinetdk rapport'!$I$3,'Energinetdk rapport'!$J$1:$J$5,0))):INDIRECT("'Input'!H"&INDEX('Energinetdk rapport'!$L$1:$L$5,MATCH('Energinetdk rapport'!$I$3,'Energinetdk rapport'!$J$1:$J$5,0))), INDIRECT("'Input'!F"&INDEX('Energinetdk rapport'!$K$1:$K$5,MATCH('Energinetdk rapport'!$I$3,'Energinetdk rapport'!$J$1:$J$5,0))):INDIRECT("'Input'!F"&INDEX('Energinetdk rapport'!$L$1:$L$5,MATCH('Energinetdk rapport'!$I$3,'Energinetdk rapport'!$J$1:$J$5,0))), B48) -> 0 | G48: 0
B49: - Hvedehelsæd | C49: Hvedehelsæd | D49: Kerner og halm lagret som ensilage | E49: =IFERROR(AVERAGEIF(INDIRECT("'Input'!F"&INDEX('Energinetdk rapport'!$K$1:$K$5,MATCH('Energinetdk rapport'!$I$3,'Energinetdk rapport'!$J$1:$J$5,0))):INDIRECT("'Input'!F"&INDEX('Energinetdk rapport'!$L$1:$L$5,MATCH('Energinetdk rapport'!$I$3,'Energinetdk rapport'!$J$1:$J$5,0))),B49,INDIRECT("'Input'!J"&INDEX('Energinetdk rapport'!$K$1:$K$5,MATCH('Energinetdk rapport'!$I$3,'Energinetdk rapport'!$J$1:$J$5,0))):INDIRECT("'Input'!J"&INDEX('Energinetdk rapport'!$L$1:$L$5,MATCH('Energinetdk rapport'!$I$3,'Energinetdk rapport'!$J$1:$J$5,0)))),0) -> 0 | F49: =SUMIFS(INDIRECT("'Input'!H"&INDEX('Energinetdk rapport'!$K$1:$K$5,MATCH('Energinetdk rapport'!$I$3,'Energinetdk rapport'!$J$1:$J$5,0))):INDIRECT("'Input'!H"&INDEX('Energinetdk rapport'!$L$1:$L$5,MATCH('Energinetdk rapport'!$I$3,'Energinetdk rapport'!$J$1:$J$5,0))), INDIRECT("'Input'!F"&INDEX('Energinetdk rapport'!$K$1:$K$5,MATCH('Energinetdk rapport'!$I$3,'Energinetdk rapport'!$J$1:$J$5,0))):INDIRECT("'Input'!F"&INDEX('Energinetdk rapport'!$L$1:$L$5,MATCH('Energinetdk rapport'!$I$3,'Energinetdk rapport'!$J$1:$J$5,0))), B49) -> 0 | G49: 0
C50: Top af sukkerroe og kartoffel | D50: Enten frisk eller som ensilage | E50: =IFERROR(AVERAGEIF(INDIRECT("'Input'!F"&INDEX('Energinetdk rapport'!$K$1:$K$5,MATCH('Energinetdk rapport'!$I$3,'Energinetdk rapport'!$J$1:$J$5,0))):INDIRECT("'Input'!F"&INDEX('Energinetdk rapport'!$L$1:$L$5,MATCH('Energinetdk rapport'!$I$3,'Energinetdk rapport'!$J$1:$J$5,0))),B50,INDIRECT("'Input'!J"&INDEX('Energinetdk rapport'!$K$1:$K$5,MATCH('Energinetdk rapport'!$I$3,'Energinetdk rapport'!$J$1:$J$5,0))):INDIRECT("'Input'!J"&INDEX('Energinetdk rapport'!$L$1:$L$5,MATCH('Energinetdk rapport'!$I$3,'Energinetdk rapport'!$J$1:$J$5,0)))),0) -> 0 | F50: =SUMIFS(INDIRECT("'Input'!H"&INDEX('Energinetdk rapport'!$K$1:$K$5,MATCH('Energinetdk rapport'!$I$3,'Energinetdk rapport'!$J$1:$J$5,0))):INDIRECT("'Input'!H"&INDEX('Energinetdk rapport'!$L$1:$L$5,MATCH('Energinetdk rapport'!$I$3,'Energinetdk rapport'!$J$1:$J$5,0))), INDIRECT("'Input'!F"&INDEX('Energinetdk rapport'!$K$1:$K$5,MATCH('Energinetdk rapport'!$I$3,'Energinetdk rapport'!$J$1:$J$5,0))):INDIRECT("'Input'!F"&INDEX('Energinetdk rapport'!$L$1:$L$5,MATCH('Energinetdk rapport'!$I$3,'Energinetdk rapport'!$J$1:$J$5,0))), B50) -> 0 | G50: 0
C51: Rod af foderroe | E51: =IFERROR(AVERAGEIF(INDIRECT("'Input'!F"&INDEX('Energinetdk rapport'!$K$1:$K$5,MATCH('Energinetdk rapport'!$I$3,'Energinetdk rapport'!$J$1:$J$5,0))):INDIRECT("'Input'!F"&INDEX('Energinetdk rapport'!$L$1:$L$5,MATCH('Energinetdk rapport'!$I$3,'Energinetdk rapport'!$J$1:$J$5,0))),B51,INDIRECT("'Input'!J"&INDEX('Energinetdk rapport'!$K$1:$K$5,MATCH('Energinetdk rapport'!$I$3,'Energinetdk rapport'!$J$1:$J$5,0))):INDIRECT("'Input'!J"&INDEX('Energinetdk rapport'!$L$1:$L$5,MATCH('Energinetdk rapport'!$I$3,'Energinetdk rapport'!$J$1:$J$5,0)))),0) -> 0 | F51: =SUMIFS(INDIRECT("'Input'!H"&INDEX('Energinetdk rapport'!$K$1:$K$5,MATCH('Energinetdk rapport'!$I$3,'Energinetdk rapport'!$J$1:$J$5,0))):INDIRECT("'Input'!H"&INDEX('Energinetdk rapport'!$L$1:$L$5,MATCH('Energinetdk rapport'!$I$3,'Energinetdk rapport'!$J$1:$J$5,0))), INDIRECT("'Input'!F"&INDEX('Energinetdk rapport'!$K$1:$K$5,MATCH('Energinetdk rapport'!$I$3,'Energinetdk rapport'!$J$1:$J$5,0))):INDIRECT("'Input'!F"&INDEX('Energinetdk rapport'!$L$1:$L$5,MATCH('Energinetdk rapport'!$I$3,'Energinetdk rapport'!$J$1:$J$5,0))), B51) -> 0 | G51: 0
B52: - Top af foderroe | C52: Top af foderroe | E52: =IFERROR(AVERAGEIF(INDIRECT("'Input'!F"&INDEX('Energinetdk rapport'!$K$1:$K$5,MATCH('Energinetdk rapport'!$I$3,'Energinetdk rapport'!$J$1:$J$5,0))):INDIRECT("'Input'!F"&INDEX('Energinetdk rapport'!$L$1:$L$5,MATCH('Energinetdk rapport'!$I$3,'Energinetdk rapport'!$J$1:$J$5,0))),B52,INDIRECT("'Input'!J"&INDEX('Energinetdk rapport'!$K$1:$K$5,MATCH('Energinetdk rapport'!$I$3,'Energinetdk rapport'!$J$1:$J$5,0))):INDIRECT("'Input'!J"&INDEX('Energinetdk rapport'!$L$1:$L$5,MATCH('Energinetdk rapport'!$I$3,'Energinetdk rapport'!$J$1:$J$5,0)))),0) -> 0 | F52: =SUMIFS(INDIRECT("'Input'!H"&INDEX('Energinetdk rapport'!$K$1:$K$5,MATCH('Energinetdk rapport'!$I$3,'Energinetdk rapport'!$J$1:$J$5,0))):INDIRECT("'Input'!H"&INDEX('Energinetdk rapport'!$L$1:$L$5,MATCH('Energinetdk rapport'!$I$3,'Energinetdk rapport'!$J$1:$J$5,0))), INDIRECT("'Input'!F"&INDEX('Energinetdk rapport'!$K$1:$K$5,MATCH('Energinetdk rapport'!$I$3,'Energinetdk rapport'!$J$1:$J$5,0))):INDIRECT("'Input'!F"&INDEX('Energinetdk rapport'!$L$1:$L$5,MATCH('Energinetdk rapport'!$I$3,'Energinetdk rapport'!$J$1:$J$5,0))), B52) -> 0 | G52: 0
B53: - Foderroe - rod og top frisk | C53: Foderroe - rod og top frisk | E53: =IFERROR(AVERAGEIF(INDIRECT("'Input'!F"&INDEX('Energinetdk rapport'!$K$1:$K$5,MATCH('Energinetdk rapport'!$I$3,'Energinetdk rapport'!$J$1:$J$5,0))):INDIRECT("'Input'!F"&INDEX('Energinetdk rapport'!$L$1:$L$5,MATCH('Energinetdk rapport'!$I$3,'Energinetdk rapport'!$J$1:$J$5,0))),B53,INDIRECT("'Input'!J"&INDEX('Energinetdk rapport'!$K$1:$K$5,MATCH('Energinetdk rapport'!$I$3,'Energinetdk rapport'!$J$1:$J$5,0))):INDIRECT("'Input'!J"&INDEX('Energinetdk rapport'!$L$1:$L$5,MATCH('Energinetdk rapport'!$I$3,'Energinetdk rapport'!$J$1:$J$5,0)))),0) -> 0 | F53: =SUMIFS(INDIRECT("'Input'!H"&INDEX('Energinetdk rapport'!$K$1:$K$5,MATCH('Energinetdk rapport'!$I$3,'Energinetdk rapport'!$J$1:$J$5,0))):INDIRECT("'Input'!H"&INDEX('Energinetdk rapport'!$L$1:$L$5,MATCH('Energinetdk rapport'!$I$3,'Energinetdk rapport'!$J$1:$J$5,0))), INDIRECT("'Input'!F"&INDEX('Energinetdk rapport'!$K$1:$K$5,MATCH('Energinetdk rapport'!$I$3,'Energinetdk rapport'!$J$1:$J$5,0))):INDIRECT("'Input'!F"&INDEX('Energinetdk rapport'!$L$1:$L$5,MATCH('Energinetdk rapport'!$I$3,'Energinetdk rapport'!$J$1:$J$5,0))), B53) -> 0 | G53: 0
B54: - Forsuret svinegylle | C54: Forsuret svinegylle | E54: =IFERROR(AVERAGEIF(INDIRECT("'Input'!F"&INDEX('Energinetdk rapport'!$K$1:$K$5,MATCH('Energinetdk rapport'!$I$3,'Energinetdk rapport'!$J$1:$J$5,0))):INDIRECT("'Input'!F"&INDEX('Energinetdk rapport'!$L$1:$L$5,MATCH('Energinetdk rapport'!$I$3,'Energinetdk rapport'!$J$1:$J$5,0))),B54,INDIRECT("'Input'!J"&INDEX('Energinetdk rapport'!$K$1:$K$5,MATCH('Energinetdk rapport'!$I$3,'Energinetdk rapport'!$J$1:$J$5,0))):INDIRECT("'Input'!J"&INDEX('Energinetdk rapport'!$L$1:$L$5,MATCH('Energinetdk rapport'!$I$3,'Energinetdk rapport'!$J$1:$J$5,0)))),0) -> 0 | F54: =SUMIFS(INDIRECT("'Input'!H"&INDEX('Energinetdk rapport'!$K$1:$K$5,MATCH('Energinetdk rapport'!$I$3,'Energinetdk rapport'!$J$1:$J$5,0))):INDIRECT("'Input'!H"&INDEX('Energinetdk rapport'!$L$1:$L$5,MATCH('Energinetdk rapport'!$I$3,'Energinetdk rapport'!$J$1:$J$5,0))), INDIRECT("'Input'!F"&INDEX('Energinetdk rapport'!$K$1:$K$5,MATCH('Energinetdk rapport'!$I$3,'Energinetdk rapport'!$J$1:$J$5,0))):INDIRECT("'Input'!F"&INDEX('Energinetdk rapport'!$L$1:$L$5,MATCH('Energinetdk rapport'!$I$3,'Energinetdk rapport'!$J$1:$J$5,0))), B54) -> 0 | G54: 0
B55: - Gylle fra so | C55: Gylle fra so | E55: =IFERROR(AVERAGEIF(INDIRECT("'Input'!F"&INDEX('Energinetdk rapport'!$K$1:$K$5,MATCH('Energinetdk rapport'!$I$3,'Energinetdk rapport'!$J$1:$J$5,0))):INDIRECT("'Input'!F"&INDEX('Energinetdk rapport'!$L$1:$L$5,MATCH('Energinetdk rapport'!$I$3,'Energinetdk rapport'!$J$1:$J$5,0))),B55,INDIRECT("'Input'!J"&INDEX('Energinetdk rapport'!$K$1:$K$5,MATCH('Energinetdk rapport'!$I$3,'Energinetdk rapport'!$J$1:$J$5,0))):INDIRECT("'Input'!J"&INDEX('Energinetdk rapport'!$L$1:$L$5,MATCH('Energinetdk rapport'!$I$3,'Energinetdk rapport'!$J$1:$J$5,0)))),0) -> 0 | F55: =SUMIFS(INDIRECT("'Input'!H"&INDEX('Energinetdk rapport'!$K$1:$K$5,MATCH('Energinetdk rapport'!$I$3,'Energinetdk rapport'!$J$1:$J$5,0))):INDIRECT("'Input'!H"&INDEX('Energinetdk rapport'!$L$1:$L$5,MATCH('Energinetdk rapport'!$I$3,'Energinetdk rapport'!$J$1:$J$5,0))), INDIRECT("'Input'!F"&INDEX('Energinetdk rapport'!$K$1:$K$5,MATCH('Energinetdk rapport'!$I$3,'Energinetdk rapport'!$J$1:$J$5,0))):INDIRECT("'Input'!F"&INDEX('Energinetdk rapport'!$L$1:$L$5,MATCH('Energinetdk rapport'!$I$3,'Energinetdk rapport'!$J$1:$J$5,0))), B55) -> 0 | G55: 0
B56: - Dybstrøelse - Svin | C56: Dybstrøelse - Svin | D56: Slagtesvin og so | E56: =IFERROR(AVERAGEIF(INDIRECT("'Input'!F"&INDEX('Energinetdk rapport'!$K$1:$K$5,MATCH('Energinetdk rapport'!$I$3,'Energinetdk rapport'!$J$1:$J$5,0))):INDIRECT("'Input'!F"&INDEX('Energinetdk rapport'!$L$1:$L$5,MATCH('Energinetdk rapport'!$I$3,'Energinetdk rapport'!$J$1:$J$5,0))),B56,INDIRECT("'Input'!J"&INDEX('Energinetdk rapport'!$K$1:$K$5,MATCH('Energinetdk rapport'!$I$3,'Energinetdk rapport'!$J$1:$J$5,0))):INDIRECT("'Input'!J"&INDEX('Energinetdk rapport'!$L$1:$L$5,MATCH('Energinetdk rapport'!$I$3,'Energinetdk rapport'!$J$1:$J$5,0)))),0) -> 0 | F56: =SUMIFS(INDIRECT("'Input'!H"&INDEX('Energinetdk rapport'!$K$1:$K$5,MATCH('Energinetdk rapport'!$I$3,'Energinetdk rapport'!$J$1:$J$5,0))):INDIRECT("'Input'!H"&INDEX('Energinetdk rapport'!$L$1:$L$5,MATCH('Energinetdk rapport'!$I$3,'Energinetdk rapport'!$J$1:$J$5,0))), INDIRECT("'Input'!F"&INDEX('Energinetdk rapport'!$K$1:$K$5,MATCH('Energinetdk rapport'!$I$3,'Energinetdk rapport'!$J$1:$J$5,0))):INDIRECT("'Input'!F"&INDEX('Energinetdk rapport'!$L$1:$L$5,MATCH('Energinetdk rapport'!$I$3,'Energinetdk rapport'!$J$1:$J$5,0))), B56) -> 0 | G56: 0
B57: - Gylle fibre - kemisk separation - Svin | C57: Gylle fibre - kemisk separation - Svin | D57: Slagtesvin | E57: =IFERROR(AVERAGEIF(INDIRECT("'Input'!F"&INDEX('Energinetdk rapport'!$K$1:$K$5,MATCH('Energinetdk rapport'!$I$3,'Energinetdk rapport'!$J$1:$J$5,0))):INDIRECT("'Input'!F"&INDEX('Energinetdk rapport'!$L$1:$L$5,MATCH('Energinetdk rapport'!$I$3,'Energinetdk rapport'!$J$1:$J$5,0))),B57,INDIRECT("'Input'!J"&INDEX('Energinetdk rapport'!$K$1:$K$5,MATCH('Energinetdk rapport'!$I$3,'Energinetdk rapport'!$J$1:$J$5,0))):INDIRECT("'Input'!J"&INDEX('Energinetdk rapport'!$L$1:$L$5,MATCH('Energinetdk rapport'!$I$3,'Energinetdk rapport'!$J$1:$J$5,0)))),0) -> 0 | F57: =SUMIFS(INDIRECT("'Input'!H"&INDEX('Energinetdk rapport'!$K$1:$K$5,MATCH('Energinetdk rapport'!$I$3,'Energinetdk rapport'!$J$1:$J$5,0))):INDIRECT("'Input'!H"&INDEX('Energinetdk rapport'!$L$1:$L$5,MATCH('Energinetdk rapport'!$I$3,'Energinetdk rapport'!$J$1:$J$5,0))), INDIRECT("'Input'!F"&INDEX('Energinetdk rapport'!$K$1:$K$5,MATCH('Energinetdk rapport'!$I$3,'Energinetdk rapport'!$J$1:$J$5,0))):INDIRECT("'Input'!F"&INDEX('Energinetdk rapport'!$L$1:$L$5,MATCH('Energinetdk rapport'!$I$3,'Energinetdk rapport'!$J$1:$J$5,0))), B57) -> 0 | G57: 0
B58: - Gylle fibre - dekanter separation - Svin | C58: Gylle fibre - dekanter separation - Svin | D58: Slagtesvin | E58: =IFERROR(AVERAGEIF(INDIRECT("'Input'!F"&INDEX('Energinetdk rapport'!$K$1:$K$5,MATCH('Energinetdk rapport'!$I$3,'Energinetdk rapport'!$J$1:$J$5,0))):INDIRECT("'Input'!F"&INDEX('Energinetdk rapport'!$L$1:$L$5,MATCH('Energinetdk rapport'!$I$3,'Energinetdk rapport'!$J$1:$J$5,0))),B58,INDIRECT("'Input'!J"&INDEX('Energinetdk rapport'!$K$1:$K$5,MATCH('Energinetdk rapport'!$I$3,'Energinetdk rapport'!$J$1:$J$5,0))):INDIRECT("'Input'!J"&INDEX('Energinetdk rapport'!$L$1:$L$5,MATCH('Energinetdk rapport'!$I$3,'Energinetdk rapport'!$J$1:$J$5,0)))),0) -> 0 | F58: =SUMIFS(INDIRECT("'Input'!H"&INDEX('Energinetdk rapport'!$K$1:$K$5,MATCH('Energinetdk rapport'!$I$3,'Energinetdk rapport'!$J$1:$J$5,0))):INDIRECT("'Input'!H"&INDEX('Energinetdk rapport'!$L$1:$L$5,MATCH('Energinetdk rapport'!$I$3,'Energinetdk rapport'!$J$1:$J$5,0))), INDIRECT("'Input'!F"&INDEX('Energinetdk rapport'!$K$1:$K$5,MATCH('Energinetdk rapport'!$I$3,'Energinetdk rapport'!$J$1:$J$5,0))):INDIRECT("'Input'!F"&INDEX('Energinetdk rapport'!$L$1:$L$5,MATCH('Energinetdk rapport'!$I$3,'Energinetdk rapport'!$J$1:$J$5,0))), B58) -> 0 | G58: 0
B59: - Staldgødning - Kvæg | C59: Staldgødning - Kvæg | E59: =IFERROR(AVERAGEIF(INDIRECT("'Input'!F"&INDEX('Energinetdk rapport'!$K$1:$K$5,MATCH('Energinetdk rapport'!$I$3,'Energinetdk rapport'!$J$1:$J$5,0))):INDIRECT("'Input'!F"&INDEX('Energinetdk rapport'!$L$1:$L$5,MATCH('Energinetdk rapport'!$I$3,'Energinetdk rapport'!$J$1:$J$5,0))),B59,INDIRECT("'Input'!J"&INDEX('Energinetdk rapport'!$K$1:$K$5,MATCH('Energinetdk rapport'!$I$3,'Energinetdk rapport'!$J$1:$J$5,0))):INDIRECT("'Input'!J"&INDEX('Energinetdk rapport'!$L$1:$L$5,MATCH('Energinetdk rapport'!$I$3,'Energinetdk rapport'!$J$1:$J$5,0)))),0) -> 0 | F59: =SUMIFS(INDIRECT("'Input'!H"&INDEX('Energinetdk rapport'!$K$1:$K$5,MATCH('Energinetdk rapport'!$I$3,'Energinetdk rapport'!$J$1:$J$5,0))):INDIRECT("'Input'!H"&INDEX('Energinetdk rapport'!$L$1:$L$5,MATCH('Energinetdk rapport'!$I$3,'Energinetdk rapport'!$J$1:$J$5,0))), INDIRECT("'Input'!F"&INDEX('Energinetdk rapport'!$K$1:$K$5,MATCH('Energinetdk rapport'!$I$3,'Energinetdk rapport'!$J$1:$J$5,0))):INDIRECT("'Input'!F"&INDEX('Energinetdk rapport'!$L$1:$L$5,MATCH('Energinetdk rapport'!$I$3,'Energinetdk rapport'!$J$1:$J$5,0))), B59) -> 0 | G59: 0
B60: - Kvæggylle - Årsopdræt 6 mdr. | C60: Kvæggylle - Årsopdræt 6 mdr. | E60: =IFERROR(AVERAGEIF(INDIRECT("'Input'!F"&INDEX('Energinetdk rapport'!$K$1:$K$5,MATCH('Energinetdk rapport'!$I$3,'Energinetdk rapport'!$J$1:$J$5,0))):INDIRECT("'Input'!F"&INDEX('Energinetdk rapport'!$L$1:$L$5,MATCH('Energinetdk rapport'!$I$3,'Energinetdk rapport'!$J$1:$J$5,0))),B60,INDIRECT("'Input'!J"&INDEX('Energinetdk rapport'!$K$1:$K$5,MATCH('Energinetdk rapport'!$I$3,'Energinetdk rapport'!$J$1:$J$5,0))):INDIRECT("'Input'!J"&INDEX('Energinetdk rapport'!$L$1:$L$5,MATCH('Energinetdk rapport'!$I$3,'Energinetdk rapport'!$J$1:$J$5,0)))),0) -> 0 | F60: =SUMIFS(INDIRECT("'Input'!H"&INDEX('Energinetdk rapport'!$K$1:$K$5,MATCH('Energinetdk rapport'!$I$3,'Energinetdk rapport'!$J$1:$J$5,0))):INDIRECT("'Input'!H"&INDEX('Energinetdk rapport'!$L$1:$L$5,MATCH('Energinetdk rapport'!$I$3,'Energinetdk rapport'!$J$1:$J$5,0))), INDIRECT("'Input'!F"&INDEX('Energinetdk rapport'!$K$1:$K$5,MATCH('Energinetdk rapport'!$I$3,'Energinetdk rapport'!$J$1:$J$5,0))):INDIRECT("'Input'!F"&INDEX('Energinetdk rapport'!$L$1:$L$5,MATCH('Energinetdk rapport'!$I$3,'Energinetdk rapport'!$J$1:$J$5,0))), B60) -> 0 | G60: 0
B61: - Staldgødning - Fjerkræ | C61: Staldgødning - Fjerkræ | D61: Høns og høniker | E61: =IFERROR(AVERAGEIF(INDIRECT("'Input'!F"&INDEX('Energinetdk rapport'!$K$1:$K$5,MATCH('Energinetdk rapport'!$I$3,'Energinetdk rapport'!$J$1:$J$5,0))):INDIRECT("'Input'!F"&INDEX('Energinetdk rapport'!$L$1:$L$5,MATCH('Energinetdk rapport'!$I$3,'Energinetdk rapport'!$J$1:$J$5,0))),B61,INDIRECT("'Input'!J"&INDEX('Energinetdk rapport'!$K$1:$K$5,MATCH('Energinetdk rapport'!$I$3,'Energinetdk rapport'!$J$1:$J$5,0))):INDIRECT("'Input'!J"&INDEX('Energinetdk rapport'!$L$1:$L$5,MATCH('Energinetdk rapport'!$I$3,'Energinetdk rapport'!$J$1:$J$5,0)))),0) -> 0 | F61: =SUMIFS(INDIRECT("'Input'!H"&INDEX('Energinetdk rapport'!$K$1:$K$5,MATCH('Energinetdk rapport'!$I$3,'Energinetdk rapport'!$J$1:$J$5,0))):INDIRECT("'Input'!H"&INDEX('Energinetdk rapport'!$L$1:$L$5,MATCH('Energinetdk rapport'!$I$3,'Energinetdk rapport'!$J$1:$J$5,0))), INDIRECT("'Input'!F"&INDEX('Energinetdk rapport'!$K$1:$K$5,MATCH('Energinetdk rapport'!$I$3,'Energinetdk rapport'!$J$1:$J$5,0))):INDIRECT("'Input'!F"&INDEX('Energinetdk rapport'!$L$1:$L$5,MATCH('Energinetdk rapport'!$I$3,'Energinetdk rapport'!$J$1:$J$5,0))), B61) -> 0 | G61: 0
B62: - Dybstrøelse - Hest | C62: Dybstrøelse - Hest | D62: Alle heste | E62: =IFERROR(AVERAGEIF(INDIRECT("'Input'!F"&INDEX('Energinetdk rapport'!$K$1:$K$5,MATCH('Energinetdk rapport'!$I$3,'Energinetdk rapport'!$J$1:$J$5,0))):INDIRECT("'Input'!F"&INDEX('Energinetdk rapport'!$L$1:$L$5,MATCH('Energinetdk rapport'!$I$3,'Energinetdk rapport'!$J$1:$J$5,0))),B62,INDIRECT("'Input'!J"&INDEX('Energinetdk rapport'!$K$1:$K$5,MATCH('Energinetdk rapport'!$I$3,'Energinetdk rapport'!$J$1:$J$5,0))):INDIRECT("'Input'!J"&INDEX('Energinetdk rapport'!$L$1:$L$5,MATCH('Energinetdk rapport'!$I$3,'Energinetdk rapport'!$J$1:$J$5,0)))),0) -> 0 | F62: =SUMIFS(INDIRECT("'Input'!H"&INDEX('Energinetdk rapport'!$K$1:$K$5,MATCH('Energinetdk rapport'!$I$3,'Energinetdk rapport'!$J$1:$J$5,0))):INDIRECT("'Input'!H"&INDEX('Energinetdk rapport'!$L$1:$L$5,MATCH('Energinetdk rapport'!$I$3,'Energinetdk rapport'!$J$1:$J$5,0))), INDIRECT("'Input'!F"&INDEX('Energinetdk rapport'!$K$1:$K$5,MATCH('Energinetdk rapport'!$I$3,'Energinetdk rapport'!$J$1:$J$5,0))):INDIRECT("'Input'!F"&INDEX('Energinetdk rapport'!$L$1:$L$5,MATCH('Energinetdk rapport'!$I$3,'Energinetdk rapport'!$J$1:$J$5,0))), B62) -> 0 | G62: =IFERROR(F62/SUM($F$6:$F$128),0) -> 0
B63: - Sekundær spildevandsslam | C63: Sekundær spildevandsslam | D63: Slam efter beluftning af spildevand | E63: =IFERROR(AVERAGEIF(INDIRECT("'Input'!F"&INDEX('Energinetdk rapport'!$K$1:$K$5,MATCH('Energinetdk rapport'!$I$3,'Energinetdk rapport'!$J$1:$J$5,0))):INDIRECT("'Input'!F"&INDEX('Energinetdk rapport'!$L$1:$L$5,MATCH('Energinetdk rapport'!$I$3,'Energinetdk rapport'!$J$1:$J$5,0))),B63,INDIRECT("'Input'!J"&INDEX('Energinetdk rapport'!$K$1:$K$5,MATCH('Energinetdk rapport'!$I$3,'Energinetdk rapport'!$J$1:$J$5,0))):INDIRECT("'Input'!J"&INDEX('Energinetdk rapport'!$L$1:$L$5,MATCH('Energinetdk rapport'!$I$3,'Energinetdk rapport'!$J$1:$J$5,0)))),0) -> 0 | F63: =SUMIFS(INDIRECT("'Input'!H"&INDEX('Energinetdk rapport'!$K$1:$K$5,MATCH('Energinetdk rapport'!$I$3,'Energinetdk rapport'!$J$1:$J$5,0))):INDIRECT("'Input'!H"&INDEX('Energinetdk rapport'!$L$1:$L$5,MATCH('Energinetdk rapport'!$I$3,'Energinetdk rapport'!$J$1:$J$5,0))), INDIRECT("'Input'!F"&INDEX('Energinetdk rapport'!$K$1:$K$5,MATCH('Energinetdk rapport'!$I$3,'Energinetdk rapport'!$J$1:$J$5,0))):INDIRECT("'Input'!F"&INDEX('Energinetdk rapport'!$L$1:$L$5,MATCH('Energinetdk rapport'!$I$3,'Energinetdk rapport'!$J$1:$J$5,0))), B63) -> 0 | G63: 0
B64: - Sekundær spildevandsslam afvandet | C64: Sekundær spildevandsslam afvandet | E64: =IFERROR(AVERAGEIF(INDIRECT("'Input'!F"&INDEX('Energinetdk rapport'!$K$1:$K$5,MATCH('Energinetdk rapport'!$I$3,'Energinetdk rapport'!$J$1:$J$5,0))):INDIRECT("'Input'!F"&INDEX('Energinetdk rapport'!$L$1:$L$5,MATCH('Energinetdk rapport'!$I$3,'Energinetdk rapport'!$J$1:$J$5,0))),B64,INDIRECT("'Input'!J"&INDEX('Energinetdk rapport'!$K$1:$K$5,MATCH('Energinetdk rapport'!$I$3,'Energinetdk rapport'!$J$1:$J$5,0))):INDIRECT("'Input'!J"&INDEX('Energinetdk rapport'!$L$1:$L$5,MATCH('Energinetdk rapport'!$I$3,'Energinetdk rapport'!$J$1:$J$5,0)))),0) -> 0 | F64: =SUMIFS(INDIRECT("'Input'!H"&INDEX('Energinetdk rapport'!$K$1:$K$5,MATCH('Energinetdk rapport'!$I$3,'Energinetdk rapport'!$J$1:$J$5,0))):INDIRECT("'Input'!H"&INDEX('Energinetdk rapport'!$L$1:$L$5,MATCH('Energinetdk rapport'!$I$3,'Energinetdk rapport'!$J$1:$J$5,0))), INDIRECT("'Input'!F"&INDEX('Energinetdk rapport'!$K$1:$K$5,MATCH('Energinetdk rapport'!$I$3,'Energinetdk rapport'!$J$1:$J$5,0))):INDIRECT("'Input'!F"&INDEX('Energinetdk rapport'!$L$1:$L$5,MATCH('Energinetdk rapport'!$I$3,'Energinetdk rapport'!$J$1:$J$5,0))), B64) -> 0 | G64: 0
B65: - Organisk husholdningsaffald - Renescience | C65: Organisk husholdningsaffald - Renescience | E65: =IFERROR(AVERAGEIF(INDIRECT("'Input'!F"&INDEX('Energinetdk rapport'!$K$1:$K$5,MATCH('Energinetdk rapport'!$I$3,'Energinetdk rapport'!$J$1:$J$5,0))):INDIRECT("'Input'!F"&INDEX('Energinetdk rapport'!$L$1:$L$5,MATCH('Energinetdk rapport'!$I$3,'Energinetdk rapport'!$J$1:$J$5,0))),B65,INDIRECT("'Input'!J"&INDEX('Energinetdk rapport'!$K$1:$K$5,MATCH('Energinetdk rapport'!$I$3,'Energinetdk rapport'!$J$1:$J$5,0))):INDIRECT("'Input'!J"&INDEX('Energinetdk rapport'!$L$1:$L$5,MATCH('Energinetdk rapport'!$I$3,'Energinetdk rapport'!$J$1:$J$5,0)))),0) -> 0 | F65: =SUMIFS(INDIRECT("'Input'!H"&INDEX('Energinetdk rapport'!$K$1:$K$5,MATCH('Energinetdk rapport'!$I$3,'Energinetdk rapport'!$J$1:$J$5,0))):INDIRECT("'Input'!H"&INDEX('Energinetdk rapport'!$L$1:$L$5,MATCH('Energinetdk rapport'!$I$3,'Energinetdk rapport'!$J$1:$J$5,0))), INDIRECT("'Input'!F"&INDEX('Energinetdk rapport'!$K$1:$K$5,MATCH('Energinetdk rapport'!$I$3,'Energinetdk rapport'!$J$1:$J$5,0))):INDIRECT("'Input'!F"&INDEX('Energinetdk rapport'!$L$1:$L$5,MATCH('Energinetdk rapport'!$I$3,'Energinetdk rapport'!$J$1:$J$5,0))), B65) -> 0 | G65: 0
B66: - Organisk husholdningsaffald - Pulper | C66: Organisk husholdningsaffald - Pulper | D66: Cellwood, Sverige | E66: =IFERROR(AVERAGEIF(INDIRECT("'Input'!F"&INDEX('Energinetdk rapport'!$K$1:$K$5,MATCH('Energinetdk rapport'!$I$3,'Energinetdk rapport'!$J$1:$J$5,0))):INDIRECT("'Input'!F"&INDEX('Energinetdk rapport'!$L$1:$L$5,MATCH('Energinetdk rapport'!$I$3,'Energinetdk rapport'!$J$1:$J$5,0))),B66,INDIRECT("'Input'!J"&INDEX('Energinetdk rapport'!$K$1:$K$5,MATCH('Energinetdk rapport'!$I$3,'Energinetdk rapport'!$J$1:$J$5,0))):INDIRECT("'Input'!J"&INDEX('Energinetdk rapport'!$L$1:$L$5,MATCH('Energinetdk rapport'!$I$3,'Energinetdk rapport'!$J$1:$J$5,0)))),0) -> 0 | F66: =SUMIFS(INDIRECT("'Input'!H"&INDEX('Energinetdk rapport'!$K$1:$K$5,MATCH('Energinetdk rapport'!$I$3,'Energinetdk rapport'!$J$1:$J$5,0))):INDIRECT("'Input'!H"&INDEX('Energinetdk rapport'!$L$1:$L$5,MATCH('Energinetdk rapport'!$I$3,'Energinetdk rapport'!$J$1:$J$5,0))), INDIRECT("'Input'!F"&INDEX('Energinetdk rapport'!$K$1:$K$5,MATCH('Energinetdk rapport'!$I$3,'Energinetdk rapport'!$J$1:$J$5,0))):INDIRECT("'Input'!F"&INDEX('Energinetdk rapport'!$L$1:$L$5,MATCH('Energinetdk rapport'!$I$3,'Energinetdk rapport'!$J$1:$J$5,0))), B66) -> 0 | G66: 0
B67: - Organisk husholdningsaffald - Rullesigte | C67: Organisk husholdningsaffald - Rullesigte | E67: =IFERROR(AVERAGEIF(INDIRECT("'Input'!F"&INDEX('Energinetdk rapport'!$K$1:$K$5,MATCH('Energinetdk rapport'!$I$3,'Energinetdk rapport'!$J$1:$J$5,0))):INDIRECT("'Input'!F"&INDEX('Energinetdk rapport'!$L$1:$L$5,MATCH('Energinetdk rapport'!$I$3,'Energinetdk rapport'!$J$1:$J$5,0))),B67,INDIRECT("'Input'!J"&INDEX('Energinetdk rapport'!$K$1:$K$5,MATCH('Energinetdk rapport'!$I$3,'Energinetdk rapport'!$J$1:$J$5,0))):INDIRECT("'Input'!J"&INDEX('Energinetdk rapport'!$L$1:$L$5,MATCH('Energinetdk rapport'!$I$3,'Energinetdk rapport'!$J$1:$J$5,0)))),0) -> 0 | F67: =SUMIFS(INDIRECT("'Input'!H"&INDEX('Energinetdk rapport'!$K$1:$K$5,MATCH('Energinetdk rapport'!$I$3,'Energinetdk rapport'!$J$1:$J$5,0))):INDIRECT("'Input'!H"&INDEX('Energinetdk rapport'!$L$1:$L$5,MATCH('Energinetdk rapport'!$I$3,'Energinetdk rapport'!$J$1:$J$5,0))), INDIRECT("'Input'!F"&INDEX('Energinetdk rapport'!$K$1:$K$5,MATCH('Energinetdk rapport'!$I$3,'Energinetdk rapport'!$J$1:$J$5,0))):INDIRECT("'Input'!F"&INDEX('Energinetdk rapport'!$L$1:$L$5,MATCH('Energinetdk rapport'!$I$3,'Energinetdk rapport'!$J$1:$J$5,0))), B67) -> 0 | G67: 0
B68: - Organisk husholdningsaffald - Skruepresse | C68: Organisk husholdningsaffald - Skruepresse | E68: =IFERROR(AVERAGEIF(INDIRECT("'Input'!F"&INDEX('Energinetdk rapport'!$K$1:$K$5,MATCH('Energinetdk rapport'!$I$3,'Energinetdk rapport'!$J$1:$J$5,0))):INDIRECT("'Input'!F"&INDEX('Energinetdk rapport'!$L$1:$L$5,MATCH('Energinetdk rapport'!$I$3,'Energinetdk rapport'!$J$1:$J$5,0))),B68,INDIRECT("'Input'!J"&INDEX('Energinetdk rapport'!$K$1:$K$5,MATCH('Energinetdk rapport'!$I$3,'Energinetdk rapport'!$J$1:$J$5,0))):INDIRECT("'Input'!J"&INDEX('Energinetdk rapport'!$L$1:$L$5,MATCH('Energinetdk rapport'!$I$3,'Energinetdk rapport'!$J$1:$J$5,0)))),0) -> 0 | F68: =SUMIFS(INDIRECT("'Input'!H"&INDEX('Energinetdk rapport'!$K$1:$K$5,MATCH('Energinetdk rapport'!$I$3,'Energinetdk rapport'!$J$1:$J$5,0))):INDIRECT("'Input'!H"&INDEX('Energinetdk rapport'!$L$1:$L$5,MATCH('Energinetdk rapport'!$I$3,'Energinetdk rapport'!$J$1:$J$5,0))), INDIRECT("'Input'!F"&INDEX('Energinetdk rapport'!$K$1:$K$5,MATCH('Energinetdk rapport'!$I$3,'Energinetdk rapport'!$J$1:$J$5,0))):INDIRECT("'Input'!F"&INDEX('Energinetdk rapport'!$L$1:$L$5,MATCH('Energinetdk rapport'!$I$3,'Energinetdk rapport'!$J$1:$J$5,0))), B68) -> 0 | G68: 0
B69: - Organisk husholdningsaffald - Neddeling | C69: Organisk husholdningsaffald - Neddeling | D69: Storkøkkenaffald - organisk fraktion separeret | E69: =IFERROR(AVERAGEIF(INDIRECT("'Input'!F"&INDEX('Energinetdk rapport'!$K$1:$K$5,MATCH('Energinetdk rapport'!$I$3,'Energinetdk rapport'!$J$1:$J$5,0))):INDIRECT("'Input'!F"&INDEX('Energinetdk rapport'!$L$1:$L$5,MATCH('Energinetdk rapport'!$I$3,'Energinetdk rapport'!$J$1:$J$5,0))),B69,INDIRECT("'Input'!J"&INDEX('Energinetdk rapport'!$K$1:$K$5,MATCH('Energinetdk rapport'!$I$3,'Energinetdk rapport'!$J$1:$J$5,0))):INDIRECT("'Input'!J"&INDEX('Energinetdk rapport'!$L$1:$L$5,MATCH('Energinetdk rapport'!$I$3,'Energinetdk rapport'!$J$1:$J$5,0)))),0) -> 0 | F69: =SUMIFS(INDIRECT("'Input'!H"&INDEX('Energinetdk rapport'!$K$1:$K$5,MATCH('Energinetdk rapport'!$I$3,'Energinetdk rapport'!$J$1:$J$5,0))):INDIRECT("'Input'!H"&INDEX('Energinetdk rapport'!$L$1:$L$5,MATCH('Energinetdk rapport'!$I$3,'Energinetdk rapport'!$J$1:$J$5,0))), INDIRECT("'Input'!F"&INDEX('Energinetdk rapport'!$K$1:$K$5,MATCH('Energinetdk rapport'!$I$3,'Energinetdk rapport'!$J$1:$J$5,0))):INDIRECT("'Input'!F"&INDEX('Energinetdk rapport'!$L$1:$L$5,MATCH('Energinetdk rapport'!$I$3,'Energinetdk rapport'!$J$1:$J$5,0))), B69) -> 0 | G69: 0
B70: - Mave/tarm kvæg | C70: Mave/tarm kvæg | E70: =IFERROR(AVERAGEIF(INDIRECT("'Input'!F"&INDEX('Energinetdk rapport'!$K$1:$K$5,MATCH('Energinetdk rapport'!$I$3,'Energinetdk rapport'!$J$1:$J$5,0))):INDIRECT("'Input'!F"&INDEX('Energinetdk rapport'!$L$1:$L$5,MATCH('Energinetdk rapport'!$I$3,'Energinetdk rapport'!$J$1:$J$5,0))),B70,INDIRECT("'Input'!J"&INDEX('Energinetdk rapport'!$K$1:$K$5,MATCH('Energinetdk rapport'!$I$3,'Energinetdk rapport'!$J$1:$J$5,0))):INDIRECT("'Input'!J"&INDEX('Energinetdk rapport'!$L$1:$L$5,MATCH('Energinetdk rapport'!$I$3,'Energinetdk rapport'!$J$1:$J$5,0)))),0) -> 0 | F70: =SUMIFS(INDIRECT("'Input'!H"&INDEX('Energinetdk rapport'!$K$1:$K$5,MATCH('Energinetdk rapport'!$I$3,'Energinetdk rapport'!$J$1:$J$5,0))):INDIRECT("'Input'!H"&INDEX('Energinetdk rapport'!$L$1:$L$5,MATCH('Energinetdk rapport'!$I$3,'Energinetdk rapport'!$J$1:$J$5,0))), INDIRECT("'Input'!F"&INDEX('Energinetdk rapport'!$K$1:$K$5,MATCH('Energinetdk rapport'!$I$3,'Energinetdk rapport'!$J$1:$J$5,0))):INDIRECT("'Input'!F"&INDEX('Energinetdk rapport'!$L$1:$L$5,MATCH('Energinetdk rapport'!$I$3,'Energinetdk rapport'!$J$1:$J$5,0))), B70) -> 0 | G70: 0
B71: - Mave/tarm svin | C71: Mave/tarm svin | E71: =IFERROR(AVERAGEIF(INDIRECT("'Input'!F"&INDEX('Energinetdk rapport'!$K$1:$K$5,MATCH('Energinetdk rapport'!$I$3,'Energinetdk rapport'!$J$1:$J$5,0))):INDIRECT("'Input'!F"&INDEX('Energinetdk rapport'!$L$1:$L$5,MATCH('Energinetdk rapport'!$I$3,'Energinetdk rapport'!$J$1:$J$5,0))),B71,INDIRECT("'Input'!J"&INDEX('Energinetdk rapport'!$K$1:$K$5,MATCH('Energinetdk rapport'!$I$3,'Energinetdk rapport'!$J$1:$J$5,0))):INDIRECT("'Input'!J"&INDEX('Energinetdk rapport'!$L$1:$L$5,MATCH('Energinetdk rapport'!$I$3,'Energinetdk rapport'!$J$1:$J$5,0)))),0) -> 0 | F71: =SUMIFS(INDIRECT("'Input'!H"&INDEX('Energinetdk rapport'!$K$1:$K$5,MATCH('Energinetdk rapport'!$I$3,'Energinetdk rapport'!$J$1:$J$5,0))):INDIRECT("'Input'!H"&INDEX('Energinetdk rapport'!$L$1:$L$5,MATCH('Energinetdk rapport'!$I$3,'Energinetdk rapport'!$J$1:$J$5,0))), INDIRECT("'Input'!F"&INDEX('Energinetdk rapport'!$K$1:$K$5,MATCH('Energinetdk rapport'!$I$3,'Energinetdk rapport'!$J$1:$J$5,0))):INDIRECT("'Input'!F"&INDEX('Energinetdk rapport'!$L$1:$L$5,MATCH('Energinetdk rapport'!$I$3,'Energinetdk rapport'!$J$1:$J$5,0))), B71) -> 0 | G71: 0
B72: - Valle | C72: Valle | E72: =IFERROR(AVERAGEIF(INDIRECT("'Input'!F"&INDEX('Energinetdk rapport'!$K$1:$K$5,MATCH('Energinetdk rapport'!$I$3,'Energinetdk rapport'!$J$1:$J$5,0))):INDIRECT("'Input'!F"&INDEX('Energinetdk rapport'!$L$1:$L$5,MATCH('Energinetdk rapport'!$I$3,'Energinetdk rapport'!$J$1:$J$5,0))),B72,INDIRECT("'Input'!J"&INDEX('Energinetdk rapport'!$K$1:$K$5,MATCH('Energinetdk rapport'!$I$3,'Energinetdk rapport'!$J$1:$J$5,0))):INDIRECT("'Input'!J"&INDEX('Energinetdk rapport'!$L$1:$L$5,MATCH('Energinetdk rapport'!$I$3,'Energinetdk rapport'!$J$1:$J$5,0)))),0) -> 0 | F72: =SUMIFS(INDIRECT("'Input'!H"&INDEX('Energinetdk rapport'!$K$1:$K$5,MATCH('Energinetdk rapport'!$I$3,'Energinetdk rapport'!$J$1:$J$5,0))):INDIRECT("'Input'!H"&INDEX('Energinetdk rapport'!$L$1:$L$5,MATCH('Energinetdk rapport'!$I$3,'Energinetdk rapport'!$J$1:$J$5,0))), INDIRECT("'Input'!F"&INDEX('Energinetdk rapport'!$K$1:$K$5,MATCH('Energinetdk rapport'!$I$3,'Energinetdk rapport'!$J$1:$J$5,0))):INDIRECT("'Input'!F"&INDEX('Energinetdk rapport'!$L$1:$L$5,MATCH('Energinetdk rapport'!$I$3,'Energinetdk rapport'!$J$1:$J$5,0))), B72) -> 0 | G72: 0
B73: - Valle koncentrat | C73: Valle koncentrat | E73: =IFERROR(AVERAGEIF(INDIRECT("'Input'!F"&INDEX('Energinetdk rapport'!$K$1:$K$5,MATCH('Energinetdk rapport'!$I$3,'Energinetdk rapport'!$J$1:$J$5,0))):INDIRECT("'Input'!F"&INDEX('Energinetdk rapport'!$L$1:$L$5,MATCH('Energinetdk rapport'!$I$3,'Energinetdk rapport'!$J$1:$J$5,0))),B73,INDIRECT("'Input'!J"&INDEX('Energinetdk rapport'!$K$1:$K$5,MATCH('Energinetdk rapport'!$I$3,'Energinetdk rapport'!$J$1:$J$5,0))):INDIRECT("'Input'!J"&INDEX('Energinetdk rapport'!$L$1:$L$5,MATCH('Energinetdk rapport'!$I$3,'Energinetdk rapport'!$J$1:$J$5,0)))),0) -> 0 | F73: =SUMIFS(INDIRECT("'Input'!H"&INDEX('Energinetdk rapport'!$K$1:$K$5,MATCH('Energinetdk rapport'!$I$3,'Energinetdk rapport'!$J$1:$J$5,0))):INDIRECT("'Input'!H"&INDEX('Energinetdk rapport'!$L$1:$L$5,MATCH('Energinetdk rapport'!$I$3,'Energinetdk rapport'!$J$1:$J$5,0))), INDIRECT("'Input'!F"&INDEX('Energinetdk rapport'!$K$1:$K$5,MATCH('Energinetdk rapport'!$I$3,'Energinetdk rapport'!$J$1:$J$5,0))):INDIRECT("'Input'!F"&INDEX('Energinetdk rapport'!$L$1:$L$5,MATCH('Energinetdk rapport'!$I$3,'Energinetdk rapport'!$J$1:$J$5,0))), B73) -> 0 | G73: 0
B74: - Protein | C74: Protein | E74: =IFERROR(AVERAGEIF(INDIRECT("'Input'!F"&INDEX('Energinetdk rapport'!$K$1:$K$5,MATCH('Energinetdk rapport'!$I$3,'Energinetdk rapport'!$J$1:$J$5,0))):INDIRECT("'Input'!F"&INDEX('Energinetdk rapport'!$L$1:$L$5,MATCH('Energinetdk rapport'!$I$3,'Energinetdk rapport'!$J$1:$J$5,0))),B74,INDIRECT("'Input'!J"&INDEX('Energinetdk rapport'!$K$1:$K$5,MATCH('Energinetdk rapport'!$I$3,'Energinetdk rapport'!$J$1:$J$5,0))):INDIRECT("'Input'!J"&INDEX('Energinetdk rapport'!$L$1:$L$5,MATCH('Energinetdk rapport'!$I$3,'Energinetdk rapport'!$J$1:$J$5,0)))),0) -> 0 | F74: =SUMIFS(INDIRECT("'Input'!H"&INDEX('Energinetdk rapport'!$K$1:$K$5,MATCH('Energinetdk rapport'!$I$3,'Energinetdk rapport'!$J$1:$J$5,0))):INDIRECT("'Input'!H"&INDEX('Energinetdk rapport'!$L$1:$L$5,MATCH('Energinetdk rapport'!$I$3,'Energinetdk rapport'!$J$1:$J$5,0))), INDIRECT("'Input'!F"&INDEX('Energinetdk rapport'!$K$1:$K$5,MATCH('Energinetdk rapport'!$I$3,'Energinetdk rapport'!$J$1:$J$5,0))):INDIRECT("'Input'!F"&INDEX('Energinetdk rapport'!$L$1:$L$5,MATCH('Energinetdk rapport'!$I$3,'Energinetdk rapport'!$J$1:$J$5,0))), B74) -> 0 | G74: 0
B75: - Fedt | C75: Fedt | E75: =IFERROR(AVERAGEIF(INDIRECT("'Input'!F"&INDEX('Energinetdk rapport'!$K$1:$K$5,MATCH('Energinetdk rapport'!$I$3,'Energinetdk rapport'!$J$1:$J$5,0))):INDIRECT("'Input'!F"&INDEX('Energinetdk rapport'!$L$1:$L$5,MATCH('Energinetdk rapport'!$I$3,'Energinetdk rapport'!$J$1:$J$5,0))),B75,INDIRECT("'Input'!J"&INDEX('Energinetdk rapport'!$K$1:$K$5,MATCH('Energinetdk rapport'!$I$3,'Energinetdk rapport'!$J$1:$J$5,0))):INDIRECT("'Input'!J"&INDEX('Energinetdk rapport'!$L$1:$L$5,MATCH('Energinetdk rapport'!$I$3,'Energinetdk rapport'!$J$1:$J$5,0)))),0) -> 0 | F75: =SUMIFS(INDIRECT("'Input'!H"&INDEX('Energinetdk rapport'!$K$1:$K$5,MATCH('Energinetdk rapport'!$I$3,'Energinetdk rapport'!$J$1:$J$5,0))):INDIRECT("'Input'!H"&INDEX('Energinetdk rapport'!$L$1:$L$5,MATCH('Energinetdk rapport'!$I$3,'Energinetdk rapport'!$J$1:$J$5,0))), INDIRECT("'Input'!F"&INDEX('Energinetdk rapport'!$K$1:$K$5,MATCH('Energinetdk rapport'!$I$3,'Energinetdk rapport'!$J$1:$J$5,0))):INDIRECT("'Input'!F"&INDEX('Energinetdk rapport'!$L$1:$L$5,MATCH('Energinetdk rapport'!$I$3,'Energinetdk rapport'!$J$1:$J$5,0))), B75) -> 0 | G75: 0
B76: - Glukose | C76: Glukose | E76: =IFERROR(AVERAGEIF(INDIRECT("'Input'!F"&INDEX('Energinetdk rapport'!$K$1:$K$5,MATCH('Energinetdk rapport'!$I$3,'Energinetdk rapport'!$J$1:$J$5,0))):INDIRECT("'Input'!F"&INDEX('Energinetdk rapport'!$L$1:$L$5,MATCH('Energinetdk rapport'!$I$3,'Energinetdk rapport'!$J$1:$J$5,0))),B76,INDIRECT("'Input'!J"&INDEX('Energinetdk rapport'!$K$1:$K$5,MATCH('Energinetdk rapport'!$I$3,'Energinetdk rapport'!$J$1:$J$5,0))):INDIRECT("'Input'!J"&INDEX('Energinetdk rapport'!$L$1:$L$5,MATCH('Energinetdk rapport'!$I$3,'Energinetdk rapport'!$J$1:$J$5,0)))),0) -> 0 | F76: =SUMIFS(INDIRECT("'Input'!H"&INDEX('Energinetdk rapport'!$K$1:$K$5,MATCH('Energinetdk rapport'!$I$3,'Energinetdk rapport'!$J$1:$J$5,0))):INDIRECT("'Input'!H"&INDEX('Energinetdk rapport'!$L$1:$L$5,MATCH('Energinetdk rapport'!$I$3,'Energinetdk rapport'!$J$1:$J$5,0))), INDIRECT("'Input'!F"&INDEX('Energinetdk rapport'!$K$1:$K$5,MATCH('Energinetdk rapport'!$I$3,'Energinetdk rapport'!$J$1:$J$5,0))):INDIRECT("'Input'!F"&INDEX('Energinetdk rapport'!$L$1:$L$5,MATCH('Energinetdk rapport'!$I$3,'Energinetdk rapport'!$J$1:$J$5,0))), B76) -> 0 | G76: 0
B77: - Alkohol | C77: Alkohol | E77: =IFERROR(AVERAGEIF(INDIRECT("'Input'!F"&INDEX('Energinetdk rapport'!$K$1:$K$5,MATCH('Energinetdk rapport'!$I$3,'Energinetdk rapport'!$J$1:$J$5,0))):INDIRECT("'Input'!F"&INDEX('Energinetdk rapport'!$L$1:$L$5,MATCH('Energinetdk rapport'!$I$3,'Energinetdk rapport'!$J$1:$J$5,0))),B77,INDIRECT("'Input'!J"&INDEX('Energinetdk rapport'!$K$1:$K$5,MATCH('Energinetdk rapport'!$I$3,'Energinetdk rapport'!$J$1:$J$5,0))):INDIRECT("'Input'!J"&INDEX('Energinetdk rapport'!$L$1:$L$5,MATCH('Energinetdk rapport'!$I$3,'Energinetdk rapport'!$J$1:$J$5,0)))),0) -> 0 | F77: =SUMIFS(INDIRECT("'Input'!H"&INDEX('Energinetdk rapport'!$K$1:$K$5,MATCH('Energinetdk rapport'!$I$3,'Energinetdk rapport'!$J$1:$J$5,0))):INDIRECT("'Input'!H"&INDEX('Energinetdk rapport'!$L$1:$L$5,MATCH('Energinetdk rapport'!$I$3,'Energinetdk rapport'!$J$1:$J$5,0))), INDIRECT("'Input'!F"&INDEX('Energinetdk rapport'!$K$1:$K$5,MATCH('Energinetdk rapport'!$I$3,'Energinetdk rapport'!$J$1:$J$5,0))):INDIRECT("'Input'!F"&INDEX('Energinetdk rapport'!$L$1:$L$5,MATCH('Energinetdk rapport'!$I$3,'Energinetdk rapport'!$J$1:$J$5,0))), B77) -> 0 | G77: 0
B78: - Råglycerin | C78: Råglycerin | D78: F.eks. Fra biodieselproduktion | E78: =IFERROR(AVERAGEIF(INDIRECT("'Input'!F"&INDEX('Energinetdk rapport'!$K$1:$K$5,MATCH('Energinetdk rapport'!$I$3,'Energinetdk rapport'!$J$1:$J$5,0))):INDIRECT("'Input'!F"&INDEX('Energinetdk rapport'!$L$1:$L$5,MATCH('Energinetdk rapport'!$I$3,'Energinetdk rapport'!$J$1:$J$5,0))),B78,INDIRECT("'Input'!J"&INDEX('Energinetdk rapport'!$K$1:$K$5,MATCH('Energinetdk rapport'!$I$3,'Energinetdk rapport'!$J$1:$J$5,0))):INDIRECT("'Input'!J"&INDEX('Energinetdk rapport'!$L$1:$L$5,MATCH('Energinetdk rapport'!$I$3,'Energinetdk rapport'!$J$1:$J$5,0)))),0) -> 0 | F78: =SUMIFS(INDIRECT("'Input'!H"&INDEX('Energinetdk rapport'!$K$1:$K$5,MATCH('Energinetdk rapport'!$I$3,'Energinetdk rapport'!$J$1:$J$5,0))):INDIRECT("'Input'!H"&INDEX('Energinetdk rapport'!$L$1:$L$5,MATCH('Energinetdk rapport'!$I$3,'Energinetdk rapport'!$J$1:$J$5,0))), INDIRECT("'Input'!F"&INDEX('Energinetdk rapport'!$K$1:$K$5,MATCH('Energinetdk rapport'!$I$3,'Energinetdk rapport'!$J$1:$J$5,0))):INDIRECT("'Input'!F"&INDEX('Energinetdk rapport'!$L$1:$L$5,MATCH('Energinetdk rapport'!$I$3,'Energinetdk rapport'!$J$1:$J$5,0))), B78) -> 0 | G78: 0
B79: - Cellulose | C79: Cellulose | E79: =IFERROR(AVERAGEIF(INDIRECT("'Input'!F"&INDEX('Energinetdk rapport'!$K$1:$K$5,MATCH('Energinetdk rapport'!$I$3,'Energinetdk rapport'!$J$1:$J$5,0))):INDIRECT("'Input'!F"&INDEX('Energinetdk rapport'!$L$1:$L$5,MATCH('Energinetdk rapport'!$I$3,'Energinetdk rapport'!$J$1:$J$5,0))),B79,INDIRECT("'Input'!J"&INDEX('Energinetdk rapport'!$K$1:$K$5,MATCH('Energinetdk rapport'!$I$3,'Energinetdk rapport'!$J$1:$J$5,0))):INDIRECT("'Input'!J"&INDEX('Energinetdk rapport'!$L$1:$L$5,MATCH('Energinetdk rapport'!$I$3,'Energinetdk rapport'!$J$1:$J$5,0)))),0) -> 0 | F79: =SUMIFS(INDIRECT("'Input'!H"&INDEX('Energinetdk rapport'!$K$1:$K$5,MATCH('Energinetdk rapport'!$I$3,'Energinetdk rapport'!$J$1:$J$5,0))):INDIRECT("'Input'!H"&INDEX('Energinetdk rapport'!$L$1:$L$5,MATCH('Energinetdk rapport'!$I$3,'Energinetdk rapport'!$J$1:$J$5,0))), INDIRECT("'Input'!F"&INDEX('Energinetdk rapport'!$K$1:$K$5,MATCH('Energinetdk rapport'!$I$3,'Energinetdk rapport'!$J$1:$J$5,0))):INDIRECT("'Input'!F"&INDEX('Energinetdk rapport'!$L$1:$L$5,MATCH('Energinetdk rapport'!$I$3,'Energinetdk rapport'!$J$1:$J$5,0))), B79) -> 0 | G79: 0
B80: - Andre afgrøder | C80: Andre energiafgrøder | E80: =IFERROR(AVERAGEIF(INDIRECT("'Input'!F"&INDEX('Energinetdk rapport'!$K$1:$K$5,MATCH('Energinetdk rapport'!$I$3,'Energinetdk rapport'!$J$1:$J$5,0))):INDIRECT("'Input'!F"&INDEX('Energinetdk rapport'!$L$1:$L$5,MATCH('Energinetdk rapport'!$I$3,'Energinetdk rapport'!$J$1:$J$5,0))),B80,INDIRECT("'Input'!J"&INDEX('Energinetdk rapport'!$K$1:$K$5,MATCH('Energinetdk rapport'!$I$3,'Energinetdk rapport'!$J$1:$J$5,0))):INDIRECT("'Input'!J"&INDEX('Energinetdk rapport'!$L$1:$L$5,MATCH('Energinetdk rapport'!$I$3,'Energinetdk rapport'!$J$1:$J$5,0)))),0) -> 0 | F80: =SUMIFS(INDIRECT("'Input'!H"&INDEX('Energinetdk rapport'!$K$1:$K$5,MATCH('Energinetdk rapport'!$I$3,'Energinetdk rapport'!$J$1:$J$5,0))):INDIRECT("'Input'!H"&INDEX('Energinetdk rapport'!$L$1:$L$5,MATCH('Energinetdk rapport'!$I$3,'Energinetdk rapport'!$J$1:$J$5,0))), INDIRECT("'Input'!F"&INDEX('Energinetdk rapport'!$K$1:$K$5,MATCH('Energinetdk rapport'!$I$3,'Energinetdk rapport'!$J$1:$J$5,0))):INDIRECT("'Input'!F"&INDEX('Energinetdk rapport'!$L$1:$L$5,MATCH('Energinetdk rapport'!$I$3,'Energinetdk rapport'!$J$1:$J$5,0))), B80) -> 0 | G80: 0
B81: - Anden husdyrgødning | C81: Anden husdyrgødning | E81: =IFERROR(AVERAGEIF(INDIRECT("'Input'!F"&INDEX('Energinetdk rapport'!$K$1:$K$5,MATCH('Energinetdk rapport'!$I$3,'Energinetdk rapport'!$J$1:$J$5,0))):INDIRECT("'Input'!F"&INDEX('Energinetdk rapport'!$L$1:$L$5,MATCH('Energinetdk rapport'!$I$3,'Energinetdk rapport'!$J$1:$J$5,0))),B81,INDIRECT("'Input'!J"&INDEX('Energinetdk rapport'!$K$1:$K$5,MATCH('Energinetdk rapport'!$I$3,'Energinetdk rapport'!$J$1:$J$5,0))):INDIRECT("'Input'!J"&INDEX('Energinetdk rapport'!$L$1:$L$5,MATCH('Energinetdk rapport'!$I$3,'Energinetdk rapport'!$J$1:$J$5,0)))),0) -> 0 | F81: =SUMIFS(INDIRECT("'Input'!H"&INDEX('Energinetdk rapport'!$K$1:$K$5,MATCH('Energinetdk rapport'!$I$3,'Energinetdk rapport'!$J$1:$J$5,0))):INDIRECT("'Input'!H"&INDEX('Energinetdk rapport'!$L$1:$L$5,MATCH('Energinetdk rapport'!$I$3,'Energinetdk rapport'!$J$1:$J$5,0))), INDIRECT("'Input'!F"&INDEX('Energinetdk rapport'!$K$1:$K$5,MATCH('Energinetdk rapport'!$I$3,'Energinetdk rapport'!$J$1:$J$5,0))):INDIRECT("'Input'!F"&INDEX('Energinetdk rapport'!$L$1:$L$5,MATCH('Energinetdk rapport'!$I$3,'Energinetdk rapport'!$J$1:$J$5,0))), B81) -> 0 | G81: 0
C82: Anden biomasse | E82: =IFERROR(AVERAGEIF(INDIRECT("'Input'!F"&INDEX('Energinetdk rapport'!$K$1:$K$5,MATCH('Energinetdk rapport'!$I$3,'Energinetdk rapport'!$J$1:$J$5,0))):INDIRECT("'Input'!F"&INDEX('Energinetdk rapport'!$L$1:$L$5,MATCH('Energinetdk rapport'!$I$3,'Energinetdk rapport'!$J$1:$J$5,0))),C82,INDIRECT("'Input'!J"&INDEX('Energinetdk rapport'!$K$1:$K$5,MATCH('Energinetdk rapport'!$I$3,'Energinetdk rapport'!$J$1:$J$5,0))):INDIRECT("'Input'!J"&INDEX('Energinetdk rapport'!$L$1:$L$5,MATCH('Energinetdk rapport'!$I$3,'Energinetdk rapport'!$J$1:$J$5,0)))),0) -> 0 | F82: =SUMIFS(INDIRECT("'Input'!H"&INDEX('Energinetdk rapport'!$K$1:$K$5,MATCH('Energinetdk rapport'!$I$3,'Energinetdk rapport'!$J$1:$J$5,0))):INDIRECT("'Input'!H"&INDEX('Energinetdk rapport'!$L$1:$L$5,MATCH('Energinetdk rapport'!$I$3,'Energinetdk rapport'!$J$1:$J$5,0))), INDIRECT("'Input'!F"&INDEX('Energinetdk rapport'!$K$1:$K$5,MATCH('Energinetdk rapport'!$I$3,'Energinetdk rapport'!$J$1:$J$5,0))):INDIRECT("'Input'!F"&INDEX('Energinetdk rapport'!$L$1:$L$5,MATCH('Energinetdk rapport'!$I$3,'Energinetdk rapport'!$J$1:$J$5,0))), C82) -> 0 | G82: =IFERROR(F82/SUM($F$6:$F$128),0) -> 0
C83: =IF(Biomasser!A79="","", Biomasser!A79) ->  | D83: =IF(Biomasser!J79="","", Biomasser!J79) ->  | E83: =IFERROR(AVERAGEIF(INDIRECT("'Input'!F"&INDEX('Energinetdk rapport'!$K$1:$K$5,MATCH('Energinetdk rapport'!$I$3,'Energinetdk rapport'!$J$1:$J$5,0))):INDIRECT("'Input'!F"&INDEX('Energinetdk rapport'!$L$1:$L$5,MATCH('Energinetdk rapport'!$I$3,'Energinetdk rapport'!$J$1:$J$5,0))),C83,INDIRECT("'Input'!J"&INDEX('Energinetdk rapport'!$K$1:$K$5,MATCH('Energinetdk rapport'!$I$3,'Energinetdk rapport'!$J$1:$J$5,0))):INDIRECT("'Input'!J"&INDEX('Energinetdk rapport'!$L$1:$L$5,MATCH('Energinetdk rapport'!$I$3,'Energinetdk rapport'!$J$1:$J$5,0)))),0) -> 0 | F83: =SUMIFS(INDIRECT("'Input'!H"&INDEX('Energinetdk rapport'!$K$1:$K$5,MATCH('Energinetdk rapport'!$I$3,'Energinetdk rapport'!$J$1:$J$5,0))):INDIRECT("'Input'!H"&INDEX('Energinetdk rapport'!$L$1:$L$5,MATCH('Energinetdk rapport'!$I$3,'Energinetdk rapport'!$J$1:$J$5,0))), INDIRECT("'Input'!F"&INDEX('Energinetdk rapport'!$K$1:$K$5,MATCH('Energinetdk rapport'!$I$3,'Energinetdk rapport'!$J$1:$J$5,0))):INDIRECT("'Input'!F"&INDEX('Energinetdk rapport'!$L$1:$L$5,MATCH('Energinetdk rapport'!$I$3,'Energinetdk rapport'!$J$1:$J$5,0))), C83) -> 0 | G83: 0
C84: =IF(Biomasser!A80="","", Biomasser!A80) ->  | D84: =IF(Biomasser!J80="","", Biomasser!J80) ->  | E84: =IFERROR(AVERAGEIF(INDIRECT("'Input'!F"&INDEX('Energinetdk rapport'!$K$1:$K$5,MATCH('Energinetdk rapport'!$I$3,'Energinetdk rapport'!$J$1:$J$5,0))):INDIRECT("'Input'!F"&INDEX('Energinetdk rapport'!$L$1:$L$5,MATCH('Energinetdk rapport'!$I$3,'Energinetdk rapport'!$J$1:$J$5,0))),C84,INDIRECT("'Input'!J"&INDEX('Energinetdk rapport'!$K$1:$K$5,MATCH('Energinetdk rapport'!$I$3,'Energinetdk rapport'!$J$1:$J$5,0))):INDIRECT("'Input'!J"&INDEX('Energinetdk rapport'!$L$1:$L$5,MATCH('Energinetdk rapport'!$I$3,'Energinetdk rapport'!$J$1:$J$5,0)))),0) -> 0 | F84: =SUMIFS(INDIRECT("'Input'!H"&INDEX('Energinetdk rapport'!$K$1:$K$5,MATCH('Energinetdk rapport'!$I$3,'Energinetdk rapport'!$J$1:$J$5,0))):INDIRECT("'Input'!H"&INDEX('Energinetdk rapport'!$L$1:$L$5,MATCH('Energinetdk rapport'!$I$3,'Energinetdk rapport'!$J$1:$J$5,0))), INDIRECT("'Input'!F"&INDEX('Energinetdk rapport'!$K$1:$K$5,MATCH('Energinetdk rapport'!$I$3,'Energinetdk rapport'!$J$1:$J$5,0))):INDIRECT("'Input'!F"&INDEX('Energinetdk rapport'!$L$1:$L$5,MATCH('Energinetdk rapport'!$I$3,'Energinetdk rapport'!$J$1:$J$5,0))), C84) -> 0 | G84: 0
C85: =IF(Biomasser!A81="","", Biomasser!A81) ->  | D85: =IF(Biomasser!J81="","", Biomasser!J81) ->  | E85: =IFERROR(AVERAGEIF(INDIRECT("'Input'!F"&INDEX('Energinetdk rapport'!$K$1:$K$5,MATCH('Energinetdk rapport'!$I$3,'Energinetdk rapport'!$J$1:$J$5,0))):INDIRECT("'Input'!F"&INDEX('Energinetdk rapport'!$L$1:$L$5,MATCH('Energinetdk rapport'!$I$3,'Energinetdk rapport'!$J$1:$J$5,0))),C85,INDIRECT("'Input'!J"&INDEX('Energinetdk rapport'!$K$1:$K$5,MATCH('Energinetdk rapport'!$I$3,'Energinetdk rapport'!$J$1:$J$5,0))):INDIRECT("'Input'!J"&INDEX('Energinetdk rapport'!$L$1:$L$5,MATCH('Energinetdk rapport'!$I$3,'Energinetdk rapport'!$J$1:$J$5,0)))),0) -> 0 | F85: =SUMIFS(INDIRECT("'Input'!H"&INDEX('Energinetdk rapport'!$K$1:$K$5,MATCH('Energinetdk rapport'!$I$3,'Energinetdk rapport'!$J$1:$J$5,0))):INDIRECT("'Input'!H"&INDEX('Energinetdk rapport'!$L$1:$L$5,MATCH('Energinetdk rapport'!$I$3,'Energinetdk rapport'!$J$1:$J$5,0))), INDIRECT("'Input'!F"&INDEX('Energinetdk rapport'!$K$1:$K$5,MATCH('Energinetdk rapport'!$I$3,'Energinetdk rapport'!$J$1:$J$5,0))):INDIRECT("'Input'!F"&INDEX('Energinetdk rapport'!$L$1:$L$5,MATCH('Energinetdk rapport'!$I$3,'Energinetdk rapport'!$J$1:$J$5,0))), C85) -> 0 | G85: 0
C86: =IF(Biomasser!A82="","", Biomasser!A82) ->  | D86: =IF(Biomasser!J82="","", Biomasser!J82) ->  | E86: =IFERROR(AVERAGEIF(INDIRECT("'Input'!F"&INDEX('Energinetdk rapport'!$K$1:$K$5,MATCH('Energinetdk rapport'!$I$3,'Energinetdk rapport'!$J$1:$J$5,0))):INDIRECT("'Input'!F"&INDEX('Energinetdk rapport'!$L$1:$L$5,MATCH('Energinetdk rapport'!$I$3,'Energinetdk rapport'!$J$1:$J$5,0))),C83,INDIRECT("'Input'!J"&INDEX('Energinetdk rapport'!$K$1:$K$5,MATCH('Energinetdk rapport'!$I$3,'Energinetdk rapport'!$J$1:$J$5,0))):INDIRECT("'Input'!J"&INDEX('Energinetdk rapport'!$L$1:$L$5,MATCH('Energinetdk rapport'!$I$3,'Energinetdk rapport'!$J$1:$J$5,0)))),0) -> 0 | F86: =SUMIFS(INDIRECT("'Input'!H"&INDEX('Energinetdk rapport'!$K$1:$K$5,MATCH('Energinetdk rapport'!$I$3,'Energinetdk rapport'!$J$1:$J$5,0))):INDIRECT("'Input'!H"&INDEX('Energinetdk rapport'!$L$1:$L$5,MATCH('Energinetdk rapport'!$I$3,'Energinetdk rapport'!$J$1:$J$5,0))), INDIRECT("'Input'!F"&INDEX('Energinetdk rapport'!$K$1:$K$5,MATCH('Energinetdk rapport'!$I$3,'Energinetdk rapport'!$J$1:$J$5,0))):INDIRECT("'Input'!F"&INDEX('Energinetdk rapport'!$L$1:$L$5,MATCH('Energinetdk rapport'!$I$3,'Energinetdk rapport'!$J$1:$J$5,0))), C86) -> 0 | G86: 0
C87: =IF(Biomasser!A83="","", Biomasser!A83) ->  | D87: =IF(Biomasser!J83="","", Biomasser!J83) ->  | E87: =IFERROR(AVERAGEIF(INDIRECT("'Input'!F"&INDEX('Energinetdk rapport'!$K$1:$K$5,MATCH('Energinetdk rapport'!$I$3,'Energinetdk rapport'!$J$1:$J$5,0))):INDIRECT("'Input'!F"&INDEX('Energinetdk rapport'!$L$1:$L$5,MATCH('Energinetdk rapport'!$I$3,'Energinetdk rapport'!$J$1:$J$5,0))),C87,INDIRECT("'Input'!J"&INDEX('Energinetdk rapport'!$K$1:$K$5,MATCH('Energinetdk rapport'!$I$3,'Energinetdk rapport'!$J$1:$J$5,0))):INDIRECT("'Input'!J"&INDEX('Energinetdk rapport'!$L$1:$L$5,MATCH('Energinetdk rapport'!$I$3,'Energinetdk rapport'!$J$1:$J$5,0)))),0) -> 0 | F87: =SUMIFS(INDIRECT("'Input'!H"&INDEX('Energinetdk rapport'!$K$1:$K$5,MATCH('Energinetdk rapport'!$I$3,'Energinetdk rapport'!$J$1:$J$5,0))):INDIRECT("'Input'!H"&INDEX('Energinetdk rapport'!$L$1:$L$5,MATCH('Energinetdk rapport'!$I$3,'Energinetdk rapport'!$J$1:$J$5,0))), INDIRECT("'Input'!F"&INDEX('Energinetdk rapport'!$K$1:$K$5,MATCH('Energinetdk rapport'!$I$3,'Energinetdk rapport'!$J$1:$J$5,0))):INDIRECT("'Input'!F"&INDEX('Energinetdk rapport'!$L$1:$L$5,MATCH('Energinetdk rapport'!$I$3,'Energinetdk rapport'!$J$1:$J$5,0))), C87) -> 0 | G87: 0
C88: =IF(Biomasser!A84="","", Biomasser!A84) ->  | D88: =IF(Biomasser!J84="","", Biomasser!J84) ->  | E88: =IFERROR(AVERAGEIF(INDIRECT("'Input'!F"&INDEX('Energinetdk rapport'!$K$1:$K$5,MATCH('Energinetdk rapport'!$I$3,'Energinetdk rapport'!$J$1:$J$5,0))):INDIRECT("'Input'!F"&INDEX('Energinetdk rapport'!$L$1:$L$5,MATCH('Energinetdk rapport'!$I$3,'Energinetdk rapport'!$J$1:$J$5,0))),C88,INDIRECT("'Input'!J"&INDEX('Energinetdk rapport'!$K$1:$K$5,MATCH('Energinetdk rapport'!$I$3,'Energinetdk rapport'!$J$1:$J$5,0))):INDIRECT("'Input'!J"&INDEX('Energinetdk rapport'!$L$1:$L$5,MATCH('Energinetdk rapport'!$I$3,'Energinetdk rapport'!$J$1:$J$5,0)))),0) -> 0 | F88: =SUMIFS(INDIRECT("'Input'!H"&INDEX('Energinetdk rapport'!$K$1:$K$5,MATCH('Energinetdk rapport'!$I$3,'Energinetdk rapport'!$J$1:$J$5,0))):INDIRECT("'Input'!H"&INDEX('Energinetdk rapport'!$L$1:$L$5,MATCH('Energinetdk rapport'!$I$3,'Energinetdk rapport'!$J$1:$J$5,0))), INDIRECT("'Input'!F"&INDEX('Energinetdk rapport'!$K$1:$K$5,MATCH('Energinetdk rapport'!$I$3,'Energinetdk rapport'!$J$1:$J$5,0))):INDIRECT("'Input'!F"&INDEX('Energinetdk rapport'!$L$1:$L$5,MATCH('Energinetdk rapport'!$I$3,'Energinetdk rapport'!$J$1:$J$5,0))), C88) -> 0 | G88: 0
C89: =IF(Biomasser!A85="","", Biomasser!A85) ->  | D89: =IF(Biomasser!J85="","", Biomasser!J85) ->  | E89: =IFERROR(AVERAGEIF(INDIRECT("'Input'!F"&INDEX('Energinetdk rapport'!$K$1:$K$5,MATCH('Energinetdk rapport'!$I$3,'Energinetdk rapport'!$J$1:$J$5,0))):INDIRECT("'Input'!F"&INDEX('Energinetdk rapport'!$L$1:$L$5,MATCH('Energinetdk rapport'!$I$3,'Energinetdk rapport'!$J$1:$J$5,0))),C89,INDIRECT("'Input'!J"&INDEX('Energinetdk rapport'!$K$1:$K$5,MATCH('Energinetdk rapport'!$I$3,'Energinetdk rapport'!$J$1:$J$5,0))):INDIRECT("'Input'!J"&INDEX('Energinetdk rapport'!$L$1:$L$5,MATCH('Energinetdk rapport'!$I$3,'Energinetdk rapport'!$J$1:$J$5,0)))),0) -> 0 | F89: =SUMIFS(INDIRECT("'Input'!H"&INDEX('Energinetdk rapport'!$K$1:$K$5,MATCH('Energinetdk rapport'!$I$3,'Energinetdk rapport'!$J$1:$J$5,0))):INDIRECT("'Input'!H"&INDEX('Energinetdk rapport'!$L$1:$L$5,MATCH('Energinetdk rapport'!$I$3,'Energinetdk rapport'!$J$1:$J$5,0))), INDIRECT("'Input'!F"&INDEX('Energinetdk rapport'!$K$1:$K$5,MATCH('Energinetdk rapport'!$I$3,'Energinetdk rapport'!$J$1:$J$5,0))):INDIRECT("'Input'!F"&INDEX('Energinetdk rapport'!$L$1:$L$5,MATCH('Energinetdk rapport'!$I$3,'Energinetdk rapport'!$J$1:$J$5,0))), C89) -> 0 | G89: 0
C90: =IF(Biomasser!A86="","", Biomasser!A86) ->  | D90: =IF(Biomasser!J86="","", Biomasser!J86) ->  | E90: =IFERROR(AVERAGEIF(INDIRECT("'Input'!F"&INDEX('Energinetdk rapport'!$K$1:$K$5,MATCH('Energinetdk rapport'!$I$3,'Energinetdk rapport'!$J$1:$J$5,0))):INDIRECT("'Input'!F"&INDEX('Energinetdk rapport'!$L$1:$L$5,MATCH('Energinetdk rapport'!$I$3,'Energinetdk rapport'!$J$1:$J$5,0))),C90,INDIRECT("'Input'!J"&INDEX('Energinetdk rapport'!$K$1:$K$5,MATCH('Energinetdk rapport'!$I$3,'Energinetdk rapport'!$J$1:$J$5,0))):INDIRECT("'Input'!J"&INDEX('Energinetdk rapport'!$L$1:$L$5,MATCH('Energinetdk rapport'!$I$3,'Energinetdk rapport'!$J$1:$J$5,0)))),0) -> 0 | F90: =SUMIFS(INDIRECT("'Input'!H"&INDEX('Energinetdk rapport'!$K$1:$K$5,MATCH('Energinetdk rapport'!$I$3,'Energinetdk rapport'!$J$1:$J$5,0))):INDIRECT("'Input'!H"&INDEX('Energinetdk rapport'!$L$1:$L$5,MATCH('Energinetdk rapport'!$I$3,'Energinetdk rapport'!$J$1:$J$5,0))), INDIRECT("'Input'!F"&INDEX('Energinetdk rapport'!$K$1:$K$5,MATCH('Energinetdk rapport'!$I$3,'Energinetdk rapport'!$J$1:$J$5,0))):INDIRECT("'Input'!F"&INDEX('Energinetdk rapport'!$L$1:$L$5,MATCH('Energinetdk rapport'!$I$3,'Energinetdk rapport'!$J$1:$J$5,0))), C90) -> 0 | G90: 0
C91: =IF(Biomasser!A87="","", Biomasser!A87) ->  | D91: =IF(Biomasser!J87="","", Biomasser!J87) ->  | E91: =IFERROR(AVERAGEIF(INDIRECT("'Input'!F"&INDEX('Energinetdk rapport'!$K$1:$K$5,MATCH('Energinetdk rapport'!$I$3,'Energinetdk rapport'!$J$1:$J$5,0))):INDIRECT("'Input'!F"&INDEX('Energinetdk rapport'!$L$1:$L$5,MATCH('Energinetdk rapport'!$I$3,'Energinetdk rapport'!$J$1:$J$5,0))),C91,INDIRECT("'Input'!J"&INDEX('Energinetdk rapport'!$K$1:$K$5,MATCH('Energinetdk rapport'!$I$3,'Energinetdk rapport'!$J$1:$J$5,0))):INDIRECT("'Input'!J"&INDEX('Energinetdk rapport'!$L$1:$L$5,MATCH('Energinetdk rapport'!$I$3,'Energinetdk rapport'!$J$1:$J$5,0)))),0) -> 0 | F91: =SUMIFS(INDIRECT("'Input'!H"&INDEX('Energinetdk rapport'!$K$1:$K$5,MATCH('Energinetdk rapport'!$I$3,'Energinetdk rapport'!$J$1:$J$5,0))):INDIRECT("'Input'!H"&INDEX('Energinetdk rapport'!$L$1:$L$5,MATCH('Energinetdk rapport'!$I$3,'Energinetdk rapport'!$J$1:$J$5,0))), INDIRECT("'Input'!F"&INDEX('Energinetdk rapport'!$K$1:$K$5,MATCH('Energinetdk rapport'!$I$3,'Energinetdk rapport'!$J$1:$J$5,0))):INDIRECT("'Input'!F"&INDEX('Energinetdk rapport'!$L$1:$L$5,MATCH('Energinetdk rapport'!$I$3,'Energinetdk rapport'!$J$1:$J$5,0))), C91) -> 0 | G91: 0
C92: =IF(Biomasser!A88="","", Biomasser!A88) ->  | D92: =IF(Biomasser!J88="","", Biomasser!J88) ->  | E92: =IFERROR(AVERAGEIF(INDIRECT("'Input'!F"&INDEX('Energinetdk rapport'!$K$1:$K$5,MATCH('Energinetdk rapport'!$I$3,'Energinetdk rapport'!$J$1:$J$5,0))):INDIRECT("'Input'!F"&INDEX('Energinetdk rapport'!$L$1:$L$5,MATCH('Energinetdk rapport'!$I$3,'Energinetdk rapport'!$J$1:$J$5,0))),C92,INDIRECT("'Input'!J"&INDEX('Energinetdk rapport'!$K$1:$K$5,MATCH('Energinetdk rapport'!$I$3,'Energinetdk rapport'!$J$1:$J$5,0))):INDIRECT("'Input'!J"&INDEX('Energinetdk rapport'!$L$1:$L$5,MATCH('Energinetdk rapport'!$I$3,'Energinetdk rapport'!$J$1:$J$5,0)))),0) -> 0 | F92: =SUMIFS(INDIRECT("'Input'!H"&INDEX('Energinetdk rapport'!$K$1:$K$5,MATCH('Energinetdk rapport'!$I$3,'Energinetdk rapport'!$J$1:$J$5,0))):INDIRECT("'Input'!H"&INDEX('Energinetdk rapport'!$L$1:$L$5,MATCH('Energinetdk rapport'!$I$3,'Energinetdk rapport'!$J$1:$J$5,0))), INDIRECT("'Input'!F"&INDEX('Energinetdk rapport'!$K$1:$K$5,MATCH('Energinetdk rapport'!$I$3,'Energinetdk rapport'!$J$1:$J$5,0))):INDIRECT("'Input'!F"&INDEX('Energinetdk rapport'!$L$1:$L$5,MATCH('Energinetdk rapport'!$I$3,'Energinetdk rapport'!$J$1:$J$5,0))), C92) -> 0 | G92: 0
C93: =IF(Biomasser!A89="","", Biomasser!A89) ->  | D93: =IF(Biomasser!J89="","", Biomasser!J89) ->  | E93: =IFERROR(AVERAGEIF(INDIRECT("'Input'!F"&INDEX('Energinetdk rapport'!$K$1:$K$5,MATCH('Energinetdk rapport'!$I$3,'Energinetdk rapport'!$J$1:$J$5,0))):INDIRECT("'Input'!F"&INDEX('Energinetdk rapport'!$L$1:$L$5,MATCH('Energinetdk rapport'!$I$3,'Energinetdk rapport'!$J$1:$J$5,0))),C93,INDIRECT("'Input'!J"&INDEX('Energinetdk rapport'!$K$1:$K$5,MATCH('Energinetdk rapport'!$I$3,'Energinetdk rapport'!$J$1:$J$5,0))):INDIRECT("'Input'!J"&INDEX('Energinetdk rapport'!$L$1:$L$5,MATCH('Energinetdk rapport'!$I$3,'Energinetdk rapport'!$J$1:$J$5,0)))),0) -> 0 | F93: =SUMIFS(INDIRECT("'Input'!H"&INDEX('Energinetdk rapport'!$K$1:$K$5,MATCH('Energinetdk rapport'!$I$3,'Energinetdk rapport'!$J$1:$J$5,0))):INDIRECT("'Input'!H"&INDEX('Energinetdk rapport'!$L$1:$L$5,MATCH('Energinetdk rapport'!$I$3,'Energinetdk rapport'!$J$1:$J$5,0))), INDIRECT("'Input'!F"&INDEX('Energinetdk rapport'!$K$1:$K$5,MATCH('Energinetdk rapport'!$I$3,'Energinetdk rapport'!$J$1:$J$5,0))):INDIRECT("'Input'!F"&INDEX('Energinetdk rapport'!$L$1:$L$5,MATCH('Energinetdk rapport'!$I$3,'Energinetdk rapport'!$J$1:$J$5,0))), C93) -> 0 | G93: 0
C94: =IF(Biomasser!A90="","", Biomasser!A90) ->  | D94: =IF(Biomasser!J90="","", Biomasser!J90) ->  | E94: =IFERROR(AVERAGEIF(INDIRECT("'Input'!F"&INDEX('Energinetdk rapport'!$K$1:$K$5,MATCH('Energinetdk rapport'!$I$3,'Energinetdk rapport'!$J$1:$J$5,0))):INDIRECT("'Input'!F"&INDEX('Energinetdk rapport'!$L$1:$L$5,MATCH('Energinetdk rapport'!$I$3,'Energinetdk rapport'!$J$1:$J$5,0))),C94,INDIRECT("'Input'!J"&INDEX('Energinetdk rapport'!$K$1:$K$5,MATCH('Energinetdk rapport'!$I$3,'Energinetdk rapport'!$J$1:$J$5,0))):INDIRECT("'Input'!J"&INDEX('Energinetdk rapport'!$L$1:$L$5,MATCH('Energinetdk rapport'!$I$3,'Energinetdk rapport'!$J$1:$J$5,0)))),0) -> 0 | F94: =SUMIFS(INDIRECT("'Input'!H"&INDEX('Energinetdk rapport'!$K$1:$K$5,MATCH('Energinetdk rapport'!$I$3,'Energinetdk rapport'!$J$1:$J$5,0))):INDIRECT("'Input'!H"&INDEX('Energinetdk rapport'!$L$1:$L$5,MATCH('Energinetdk rapport'!$I$3,'Energinetdk rapport'!$J$1:$J$5,0))), INDIRECT("'Input'!F"&INDEX('Energinetdk rapport'!$K$1:$K$5,MATCH('Energinetdk rapport'!$I$3,'Energinetdk rapport'!$J$1:$J$5,0))):INDIRECT("'Input'!F"&INDEX('Energinetdk rapport'!$L$1:$L$5,MATCH('Energinetdk rapport'!$I$3,'Energinetdk rapport'!$J$1:$J$5,0))), C94) -> 0 | G94: 0
C95: =IF(Biomasser!A91="","", Biomasser!A91) ->  | D95: =IF(Biomasser!J91="","", Biomasser!J91) ->  | E95: =IFERROR(AVERAGEIF(INDIRECT("'Input'!F"&INDEX('Energinetdk rapport'!$K$1:$K$5,MATCH('Energinetdk rapport'!$I$3,'Energinetdk rapport'!$J$1:$J$5,0))):INDIRECT("'Input'!F"&INDEX('Energinetdk rapport'!$L$1:$L$5,MATCH('Energinetdk rapport'!$I$3,'Energinetdk rapport'!$J$1:$J$5,0))),C95,INDIRECT("'Input'!J"&INDEX('Energinetdk rapport'!$K$1:$K$5,MATCH('Energinetdk rapport'!$I$3,'Energinetdk rapport'!$J$1:$J$5,0))):INDIRECT("'Input'!J"&INDEX('Energinetdk rapport'!$L$1:$L$5,MATCH('Energinetdk rapport'!$I$3,'Energinetdk rapport'!$J$1:$J$5,0)))),0) -> 0 | F95: =SUMIFS(INDIRECT("'Input'!H"&INDEX('Energinetdk rapport'!$K$1:$K$5,MATCH('Energinetdk rapport'!$I$3,'Energinetdk rapport'!$J$1:$J$5,0))):INDIRECT("'Input'!H"&INDEX('Energinetdk rapport'!$L$1:$L$5,MATCH('Energinetdk rapport'!$I$3,'Energinetdk rapport'!$J$1:$J$5,0))), INDIRECT("'Input'!F"&INDEX('Energinetdk rapport'!$K$1:$K$5,MATCH('Energinetdk rapport'!$I$3,'Energinetdk rapport'!$J$1:$J$5,0))):INDIRECT("'Input'!F"&INDEX('Energinetdk rapport'!$L$1:$L$5,MATCH('Energinetdk rapport'!$I$3,'Energinetdk rapport'!$J$1:$J$5,0))), C95) -> 0 | G95: 0
C96: =IF(Biomasser!A92="","", Biomasser!A92) ->  | D96: =IF(Biomasser!J92="","", Biomasser!J92) ->  | E96: =IFERROR(AVERAGEIF(INDIRECT("'Input'!F"&INDEX('Energinetdk rapport'!$K$1:$K$5,MATCH('Energinetdk rapport'!$I$3,'Energinetdk rapport'!$J$1:$J$5,0))):INDIRECT("'Input'!F"&INDEX('Energinetdk rapport'!$L$1:$L$5,MATCH('Energinetdk rapport'!$I$3,'Energinetdk rapport'!$J$1:$J$5,0))),C96,INDIRECT("'Input'!J"&INDEX('Energinetdk rapport'!$K$1:$K$5,MATCH('Energinetdk rapport'!$I$3,'Energinetdk rapport'!$J$1:$J$5,0))):INDIRECT("'Input'!J"&INDEX('Energinetdk rapport'!$L$1:$L$5,MATCH('Energinetdk rapport'!$I$3,'Energinetdk rapport'!$J$1:$J$5,0)))),0) -> 0 | F96: =SUMIFS(INDIRECT("'Input'!H"&INDEX('Energinetdk rapport'!$K$1:$K$5,MATCH('Energinetdk rapport'!$I$3,'Energinetdk rapport'!$J$1:$J$5,0))):INDIRECT("'Input'!H"&INDEX('Energinetdk rapport'!$L$1:$L$5,MATCH('Energinetdk rapport'!$I$3,'Energinetdk rapport'!$J$1:$J$5,0))), INDIRECT("'Input'!F"&INDEX('Energinetdk rapport'!$K$1:$K$5,MATCH('Energinetdk rapport'!$I$3,'Energinetdk rapport'!$J$1:$J$5,0))):INDIRECT("'Input'!F"&INDEX('Energinetdk rapport'!$L$1:$L$5,MATCH('Energinetdk rapport'!$I$3,'Energinetdk rapport'!$J$1:$J$5,0))), C96) -> 0 | G96: 0
C97: =IF(Biomasser!A93="","", Biomasser!A93) ->  | D97: =IF(Biomasser!J93="","", Biomasser!J93) ->  | E97: =IFERROR(AVERAGEIF(INDIRECT("'Input'!F"&INDEX('Energinetdk rapport'!$K$1:$K$5,MATCH('Energinetdk rapport'!$I$3,'Energinetdk rapport'!$J$1:$J$5,0))):INDIRECT("'Input'!F"&INDEX('Energinetdk rapport'!$L$1:$L$5,MATCH('Energinetdk rapport'!$I$3,'Energinetdk rapport'!$J$1:$J$5,0))),C97,INDIRECT("'Input'!J"&INDEX('Energinetdk rapport'!$K$1:$K$5,MATCH('Energinetdk rapport'!$I$3,'Energinetdk rapport'!$J$1:$J$5,0))):INDIRECT("'Input'!J"&INDEX('Energinetdk rapport'!$L$1:$L$5,MATCH('Energinetdk rapport'!$I$3,'Energinetdk rapport'!$J$1:$J$5,0)))),0) -> 0 | F97: =SUMIFS(INDIRECT("'Input'!H"&INDEX('Energinetdk rapport'!$K$1:$K$5,MATCH('Energinetdk rapport'!$I$3,'Energinetdk rapport'!$J$1:$J$5,0))):INDIRECT("'Input'!H"&INDEX('Energinetdk rapport'!$L$1:$L$5,MATCH('Energinetdk rapport'!$I$3,'Energinetdk rapport'!$J$1:$J$5,0))), INDIRECT("'Input'!F"&INDEX('Energinetdk rapport'!$K$1:$K$5,MATCH('Energinetdk rapport'!$I$3,'Energinetdk rapport'!$J$1:$J$5,0))):INDIRECT("'Input'!F"&INDEX('Energinetdk rapport'!$L$1:$L$5,MATCH('Energinetdk rapport'!$I$3,'Energinetdk rapport'!$J$1:$J$5,0))), C97) -> 0 | G97: 0
C98: =IF(Biomasser!A94="","", Biomasser!A94) ->  | D98: =IF(Biomasser!J94="","", Biomasser!J94) ->  | E98: =IFERROR(AVERAGEIF(INDIRECT("'Input'!F"&INDEX('Energinetdk rapport'!$K$1:$K$5,MATCH('Energinetdk rapport'!$I$3,'Energinetdk rapport'!$J$1:$J$5,0))):INDIRECT("'Input'!F"&INDEX('Energinetdk rapport'!$L$1:$L$5,MATCH('Energinetdk rapport'!$I$3,'Energinetdk rapport'!$J$1:$J$5,0))),C98,INDIRECT("'Input'!J"&INDEX('Energinetdk rapport'!$K$1:$K$5,MATCH('Energinetdk rapport'!$I$3,'Energinetdk rapport'!$J$1:$J$5,0))):INDIRECT("'Input'!J"&INDEX('Energinetdk rapport'!$L$1:$L$5,MATCH('Energinetdk rapport'!$I$3,'Energinetdk rapport'!$J$1:$J$5,0)))),0) -> 0 | F98: =SUMIFS(INDIRECT("'Input'!H"&INDEX('Energinetdk rapport'!$K$1:$K$5,MATCH('Energinetdk rapport'!$I$3,'Energinetdk rapport'!$J$1:$J$5,0))):INDIRECT("'Input'!H"&INDEX('Energinetdk rapport'!$L$1:$L$5,MATCH('Energinetdk rapport'!$I$3,'Energinetdk rapport'!$J$1:$J$5,0))), INDIRECT("'Input'!F"&INDEX('Energinetdk rapport'!$K$1:$K$5,MATCH('Energinetdk rapport'!$I$3,'Energinetdk rapport'!$J$1:$J$5,0))):INDIRECT("'Input'!F"&INDEX('Energinetdk rapport'!$L$1:$L$5,MATCH('Energinetdk rapport'!$I$3,'Energinetdk rapport'!$J$1:$J$5,0))), C98) -> 0 | G98: 0
C99: =IF(Biomasser!A95="","", Biomasser!A95) ->  | D99: =IF(Biomasser!J95="","", Biomasser!J95) ->  | E99: =IFERROR(AVERAGEIF(INDIRECT("'Input'!F"&INDEX('Energinetdk rapport'!$K$1:$K$5,MATCH('Energinetdk rapport'!$I$3,'Energinetdk rapport'!$J$1:$J$5,0))):INDIRECT("'Input'!F"&INDEX('Energinetdk rapport'!$L$1:$L$5,MATCH('Energinetdk rapport'!$I$3,'Energinetdk rapport'!$J$1:$J$5,0))),C99,INDIRECT("'Input'!J"&INDEX('Energinetdk rapport'!$K$1:$K$5,MATCH('Energinetdk rapport'!$I$3,'Energinetdk rapport'!$J$1:$J$5,0))):INDIRECT("'Input'!J"&INDEX('Energinetdk rapport'!$L$1:$L$5,MATCH('Energinetdk rapport'!$I$3,'Energinetdk rapport'!$J$1:$J$5,0)))),0) -> 0 | F99: =SUMIFS(INDIRECT("'Input'!H"&INDEX('Energinetdk rapport'!$K$1:$K$5,MATCH('Energinetdk rapport'!$I$3,'Energinetdk rapport'!$J$1:$J$5,0))):INDIRECT("'Input'!H"&INDEX('Energinetdk rapport'!$L$1:$L$5,MATCH('Energinetdk rapport'!$I$3,'Energinetdk rapport'!$J$1:$J$5,0))), INDIRECT("'Input'!F"&INDEX('Energinetdk rapport'!$K$1:$K$5,MATCH('Energinetdk rapport'!$I$3,'Energinetdk rapport'!$J$1:$J$5,0))):INDIRECT("'Input'!F"&INDEX('Energinetdk rapport'!$L$1:$L$5,MATCH('Energinetdk rapport'!$I$3,'Energinetdk rapport'!$J$1:$J$5,0))), C99) -> 0 | G99: 0
C100: =IF(Biomasser!A96="","", Biomasser!A96) ->  | D100: =IF(Biomasser!J96="","", Biomasser!J96) ->  | E100: =IFERROR(AVERAGEIF(INDIRECT("'Input'!F"&INDEX('Energinetdk rapport'!$K$1:$K$5,MATCH('Energinetdk rapport'!$I$3,'Energinetdk rapport'!$J$1:$J$5,0))):INDIRECT("'Input'!F"&INDEX('Energinetdk rapport'!$L$1:$L$5,MATCH('Energinetdk rapport'!$I$3,'Energinetdk rapport'!$J$1:$J$5,0))),C100,INDIRECT("'Input'!J"&INDEX('Energinetdk rapport'!$K$1:$K$5,MATCH('Energinetdk rapport'!$I$3,'Energinetdk rapport'!$J$1:$J$5,0))):INDIRECT("'Input'!J"&INDEX('Energinetdk rapport'!$L$1:$L$5,MATCH('Energinetdk rapport'!$I$3,'Energinetdk rapport'!$J$1:$J$5,0)))),0) -> 0 | F100: =SUMIFS(INDIRECT("'Input'!H"&INDEX('Energinetdk rapport'!$K$1:$K$5,MATCH('Energinetdk rapport'!$I$3,'Energinetdk rapport'!$J$1:$J$5,0))):INDIRECT("'Input'!H"&INDEX('Energinetdk rapport'!$L$1:$L$5,MATCH('Energinetdk rapport'!$I$3,'Energinetdk rapport'!$J$1:$J$5,0))), INDIRECT("'Input'!F"&INDEX('Energinetdk rapport'!$K$1:$K$5,MATCH('Energinetdk rapport'!$I$3,'Energinetdk rapport'!$J$1:$J$5,0))):INDIRECT("'Input'!F"&INDEX('Energinetdk rapport'!$L$1:$L$5,MATCH('Energinetdk rapport'!$I$3,'Energinetdk rapport'!$J$1:$J$5,0))), C100) -> 0 | G100: 0
C101: =IF(Biomasser!A97="","", Biomasser!A97) ->  | D101: =IF(Biomasser!J97="","", Biomasser!J97) ->  | E101: =IFERROR(AVERAGEIF(INDIRECT("'Input'!F"&INDEX('Energinetdk rapport'!$K$1:$K$5,MATCH('Energinetdk rapport'!$I$3,'Energinetdk rapport'!$J$1:$J$5,0))):INDIRECT("'Input'!F"&INDEX('Energinetdk rapport'!$L$1:$L$5,MATCH('Energinetdk rapport'!$I$3,'Energinetdk rapport'!$J$1:$J$5,0))),C101,INDIRECT("'Input'!J"&INDEX('Energinetdk rapport'!$K$1:$K$5,MATCH('Energinetdk rapport'!$I$3,'Energinetdk rapport'!$J$1:$J$5,0))):INDIRECT("'Input'!J"&INDEX('Energinetdk rapport'!$L$1:$L$5,MATCH('Energinetdk rapport'!$I$3,'Energinetdk rapport'!$J$1:$J$5,0)))),0) -> 0 | F101: =SUMIFS(INDIRECT("'Input'!H"&INDEX('Energinetdk rapport'!$K$1:$K$5,MATCH('Energinetdk rapport'!$I$3,'Energinetdk rapport'!$J$1:$J$5,0))):INDIRECT("'Input'!H"&INDEX('Energinetdk rapport'!$L$1:$L$5,MATCH('Energinetdk rapport'!$I$3,'Energinetdk rapport'!$J$1:$J$5,0))), INDIRECT("'Input'!F"&INDEX('Energinetdk rapport'!$K$1:$K$5,MATCH('Energinetdk rapport'!$I$3,'Energinetdk rapport'!$J$1:$J$5,0))):INDIRECT("'Input'!F"&INDEX('Energinetdk rapport'!$L$1:$L$5,MATCH('Energinetdk rapport'!$I$3,'Energinetdk rapport'!$J$1:$J$5,0))), C101) -> 0 | G101: 0
C102: =IF(Biomasser!A98="","", Biomasser!A98) ->  | D102: =IF(Biomasser!J98="","", Biomasser!J98) ->  | E102: =IFERROR(AVERAGEIF(INDIRECT("'Input'!F"&INDEX('Energinetdk rapport'!$K$1:$K$5,MATCH('Energinetdk rapport'!$I$3,'Energinetdk rapport'!$J$1:$J$5,0))):INDIRECT("'Input'!F"&INDEX('Energinetdk rapport'!$L$1:$L$5,MATCH('Energinetdk rapport'!$I$3,'Energinetdk rapport'!$J$1:$J$5,0))),C102,INDIRECT("'Input'!J"&INDEX('Energinetdk rapport'!$K$1:$K$5,MATCH('Energinetdk rapport'!$I$3,'Energinetdk rapport'!$J$1:$J$5,0))):INDIRECT("'Input'!J"&INDEX('Energinetdk rapport'!$L$1:$L$5,MATCH('Energinetdk rapport'!$I$3,'Energinetdk rapport'!$J$1:$J$5,0)))),0) -> 0 | F102: =SUMIFS(INDIRECT("'Input'!H"&INDEX('Energinetdk rapport'!$K$1:$K$5,MATCH('Energinetdk rapport'!$I$3,'Energinetdk rapport'!$J$1:$J$5,0))):INDIRECT("'Input'!H"&INDEX('Energinetdk rapport'!$L$1:$L$5,MATCH('Energinetdk rapport'!$I$3,'Energinetdk rapport'!$J$1:$J$5,0))), INDIRECT("'Input'!F"&INDEX('Energinetdk rapport'!$K$1:$K$5,MATCH('Energinetdk rapport'!$I$3,'Energinetdk rapport'!$J$1:$J$5,0))):INDIRECT("'Input'!F"&INDEX('Energinetdk rapport'!$L$1:$L$5,MATCH('Energinetdk rapport'!$I$3,'Energinetdk rapport'!$J$1:$J$5,0))), C102) -> 0 | G102: 0
C103: =IF(Biomasser!A99="","", Biomasser!A99) ->  | D103: =IF(Biomasser!J99="","", Biomasser!J99) ->  | E103: =IFERROR(AVERAGEIF(INDIRECT("'Input'!F"&INDEX('Energinetdk rapport'!$K$1:$K$5,MATCH('Energinetdk rapport'!$I$3,'Energinetdk rapport'!$J$1:$J$5,0))):INDIRECT("'Input'!F"&INDEX('Energinetdk rapport'!$L$1:$L$5,MATCH('Energinetdk rapport'!$I$3,'Energinetdk rapport'!$J$1:$J$5,0))),C103,INDIRECT("'Input'!J"&INDEX('Energinetdk rapport'!$K$1:$K$5,MATCH('Energinetdk rapport'!$I$3,'Energinetdk rapport'!$J$1:$J$5,0))):INDIRECT("'Input'!J"&INDEX('Energinetdk rapport'!$L$1:$L$5,MATCH('Energinetdk rapport'!$I$3,'Energinetdk rapport'!$J$1:$J$5,0)))),0) -> 0 | F103: =SUMIFS(INDIRECT("'Input'!H"&INDEX('Energinetdk rapport'!$K$1:$K$5,MATCH('Energinetdk rapport'!$I$3,'Energinetdk rapport'!$J$1:$J$5,0))):INDIRECT("'Input'!H"&INDEX('Energinetdk rapport'!$L$1:$L$5,MATCH('Energinetdk rapport'!$I$3,'Energinetdk rapport'!$J$1:$J$5,0))), INDIRECT("'Input'!F"&INDEX('Energinetdk rapport'!$K$1:$K$5,MATCH('Energinetdk rapport'!$I$3,'Energinetdk rapport'!$J$1:$J$5,0))):INDIRECT("'Input'!F"&INDEX('Energinetdk rapport'!$L$1:$L$5,MATCH('Energinetdk rapport'!$I$3,'Energinetdk rapport'!$J$1:$J$5,0))), C103) -> 0 | G103: 0
C104: =IF(Biomasser!A100="","", Biomasser!A100) ->  | D104: =IF(Biomasser!J100="","", Biomasser!J100) ->  | E104: =IFERROR(AVERAGEIF(INDIRECT("'Input'!F"&INDEX('Energinetdk rapport'!$K$1:$K$5,MATCH('Energinetdk rapport'!$I$3,'Energinetdk rapport'!$J$1:$J$5,0))):INDIRECT("'Input'!F"&INDEX('Energinetdk rapport'!$L$1:$L$5,MATCH('Energinetdk rapport'!$I$3,'Energinetdk rapport'!$J$1:$J$5,0))),C104,INDIRECT("'Input'!J"&INDEX('Energinetdk rapport'!$K$1:$K$5,MATCH('Energinetdk rapport'!$I$3,'Energinetdk rapport'!$J$1:$J$5,0))):INDIRECT("'Input'!J"&INDEX('Energinetdk rapport'!$L$1:$L$5,MATCH('Energinetdk rapport'!$I$3,'Energinetdk rapport'!$J$1:$J$5,0)))),0) -> 0 | F104: =SUMIFS(INDIRECT("'Input'!H"&INDEX('Energinetdk rapport'!$K$1:$K$5,MATCH('Energinetdk rapport'!$I$3,'Energinetdk rapport'!$J$1:$J$5,0))):INDIRECT("'Input'!H"&INDEX('Energinetdk rapport'!$L$1:$L$5,MATCH('Energinetdk rapport'!$I$3,'Energinetdk rapport'!$J$1:$J$5,0))), INDIRECT("'Input'!F"&INDEX('Energinetdk rapport'!$K$1:$K$5,MATCH('Energinetdk rapport'!$I$3,'Energinetdk rapport'!$J$1:$J$5,0))):INDIRECT("'Input'!F"&INDEX('Energinetdk rapport'!$L$1:$L$5,MATCH('Energinetdk rapport'!$I$3,'Energinetdk rapport'!$J$1:$J$5,0))), C104) -> 0 | G104: 0
C105: =IF(Biomasser!A101="","", Biomasser!A101) ->  | D105: =IF(Biomasser!J101="","", Biomasser!J101) ->  | E105: =IFERROR(AVERAGEIF(INDIRECT("'Input'!F"&INDEX('Energinetdk rapport'!$K$1:$K$5,MATCH('Energinetdk rapport'!$I$3,'Energinetdk rapport'!$J$1:$J$5,0))):INDIRECT("'Input'!F"&INDEX('Energinetdk rapport'!$L$1:$L$5,MATCH('Energinetdk rapport'!$I$3,'Energinetdk rapport'!$J$1:$J$5,0))),C105,INDIRECT("'Input'!J"&INDEX('Energinetdk rapport'!$K$1:$K$5,MATCH('Energinetdk rapport'!$I$3,'Energinetdk rapport'!$J$1:$J$5,0))):INDIRECT("'Input'!J"&INDEX('Energinetdk rapport'!$L$1:$L$5,MATCH('Energinetdk rapport'!$I$3,'Energinetdk rapport'!$J$1:$J$5,0)))),0) -> 0 | F105: =SUMIFS(INDIRECT("'Input'!H"&INDEX('Energinetdk rapport'!$K$1:$K$5,MATCH('Energinetdk rapport'!$I$3,'Energinetdk rapport'!$J$1:$J$5,0))):INDIRECT("'Input'!H"&INDEX('Energinetdk rapport'!$L$1:$L$5,MATCH('Energinetdk rapport'!$I$3,'Energinetdk rapport'!$J$1:$J$5,0))), INDIRECT("'Input'!F"&INDEX('Energinetdk rapport'!$K$1:$K$5,MATCH('Energinetdk rapport'!$I$3,'Energinetdk rapport'!$J$1:$J$5,0))):INDIRECT("'Input'!F"&INDEX('Energinetdk rapport'!$L$1:$L$5,MATCH('Energinetdk rapport'!$I$3,'Energinetdk rapport'!$J$1:$J$5,0))), C105) -> 0 | G105: 0
C106: =IF(Biomasser!A102="","", Biomasser!A102) ->  | D106: =IF(Biomasser!J102="","", Biomasser!J102) ->  | E106: =IFERROR(AVERAGEIF(INDIRECT("'Input'!F"&INDEX('Energinetdk rapport'!$K$1:$K$5,MATCH('Energinetdk rapport'!$I$3,'Energinetdk rapport'!$J$1:$J$5,0))):INDIRECT("'Input'!F"&INDEX('Energinetdk rapport'!$L$1:$L$5,MATCH('Energinetdk rapport'!$I$3,'Energinetdk rapport'!$J$1:$J$5,0))),C106,INDIRECT("'Input'!J"&INDEX('Energinetdk rapport'!$K$1:$K$5,MATCH('Energinetdk rapport'!$I$3,'Energinetdk rapport'!$J$1:$J$5,0))):INDIRECT("'Input'!J"&INDEX('Energinetdk rapport'!$L$1:$L$5,MATCH('Energinetdk rapport'!$I$3,'Energinetdk rapport'!$J$1:$J$5,0)))),0) -> 0 | F106: =SUMIFS(INDIRECT("'Input'!H"&INDEX('Energinetdk rapport'!$K$1:$K$5,MATCH('Energinetdk rapport'!$I$3,'Energinetdk rapport'!$J$1:$J$5,0))):INDIRECT("'Input'!H"&INDEX('Energinetdk rapport'!$L$1:$L$5,MATCH('Energinetdk rapport'!$I$3,'Energinetdk rapport'!$J$1:$J$5,0))), INDIRECT("'Input'!F"&INDEX('Energinetdk rapport'!$K$1:$K$5,MATCH('Energinetdk rapport'!$I$3,'Energinetdk rapport'!$J$1:$J$5,0))):INDIRECT("'Input'!F"&INDEX('Energinetdk rapport'!$L$1:$L$5,MATCH('Energinetdk rapport'!$I$3,'Energinetdk rapport'!$J$1:$J$5,0))), C106) -> 0 | G106: 0
C107: =IF(Biomasser!A103="","", Biomasser!A103) ->  | D107: =IF(Biomasser!J103="","", Biomasser!J103) ->  | E107: =IFERROR(AVERAGEIF(INDIRECT("'Input'!F"&INDEX('Energinetdk rapport'!$K$1:$K$5,MATCH('Energinetdk rapport'!$I$3,'Energinetdk rapport'!$J$1:$J$5,0))):INDIRECT("'Input'!F"&INDEX('Energinetdk rapport'!$L$1:$L$5,MATCH('Energinetdk rapport'!$I$3,'Energinetdk rapport'!$J$1:$J$5,0))),C107,INDIRECT("'Input'!J"&INDEX('Energinetdk rapport'!$K$1:$K$5,MATCH('Energinetdk rapport'!$I$3,'Energinetdk rapport'!$J$1:$J$5,0))):INDIRECT("'Input'!J"&INDEX('Energinetdk rapport'!$L$1:$L$5,MATCH('Energinetdk rapport'!$I$3,'Energinetdk rapport'!$J$1:$J$5,0)))),0) -> 0 | F107: =SUMIFS(INDIRECT("'Input'!H"&INDEX('Energinetdk rapport'!$K$1:$K$5,MATCH('Energinetdk rapport'!$I$3,'Energinetdk rapport'!$J$1:$J$5,0))):INDIRECT("'Input'!H"&INDEX('Energinetdk rapport'!$L$1:$L$5,MATCH('Energinetdk rapport'!$I$3,'Energinetdk rapport'!$J$1:$J$5,0))), INDIRECT("'Input'!F"&INDEX('Energinetdk rapport'!$K$1:$K$5,MATCH('Energinetdk rapport'!$I$3,'Energinetdk rapport'!$J$1:$J$5,0))):INDIRECT("'Input'!F"&INDEX('Energinetdk rapport'!$L$1:$L$5,MATCH('Energinetdk rapport'!$I$3,'Energinetdk rapport'!$J$1:$J$5,0))), C107) -> 0 | G107: 0
C108: =IF(Biomasser!A104="","", Biomasser!A104) ->  | D108: =IF(Biomasser!J104="","", Biomasser!J104) ->  | E108: =IFERROR(AVERAGEIF(INDIRECT("'Input'!F"&INDEX('Energinetdk rapport'!$K$1:$K$5,MATCH('Energinetdk rapport'!$I$3,'Energinetdk rapport'!$J$1:$J$5,0))):INDIRECT("'Input'!F"&INDEX('Energinetdk rapport'!$L$1:$L$5,MATCH('Energinetdk rapport'!$I$3,'Energinetdk rapport'!$J$1:$J$5,0))),C108,INDIRECT("'Input'!J"&INDEX('Energinetdk rapport'!$K$1:$K$5,MATCH('Energinetdk rapport'!$I$3,'Energinetdk rapport'!$J$1:$J$5,0))):INDIRECT("'Input'!J"&INDEX('Energinetdk rapport'!$L$1:$L$5,MATCH('Energinetdk rapport'!$I$3,'Energinetdk rapport'!$J$1:$J$5,0)))),0) -> 0 | F108: =SUMIFS(INDIRECT("'Input'!H"&INDEX('Energinetdk rapport'!$K$1:$K$5,MATCH('Energinetdk rapport'!$I$3,'Energinetdk rapport'!$J$1:$J$5,0))):INDIRECT("'Input'!H"&INDEX('Energinetdk rapport'!$L$1:$L$5,MATCH('Energinetdk rapport'!$I$3,'Energinetdk rapport'!$J$1:$J$5,0))), INDIRECT("'Input'!F"&INDEX('Energinetdk rapport'!$K$1:$K$5,MATCH('Energinetdk rapport'!$I$3,'Energinetdk rapport'!$J$1:$J$5,0))):INDIRECT("'Input'!F"&INDEX('Energinetdk rapport'!$L$1:$L$5,MATCH('Energinetdk rapport'!$I$3,'Energinetdk rapport'!$J$1:$J$5,0))), C108) -> 0 | G108: 0
C109: =IF(Biomasser!A105="","", Biomasser!A105) ->  | D109: =IF(Biomasser!J105="","", Biomasser!J105) ->  | E109: =IFERROR(AVERAGEIF(INDIRECT("'Input'!F"&INDEX('Energinetdk rapport'!$K$1:$K$5,MATCH('Energinetdk rapport'!$I$3,'Energinetdk rapport'!$J$1:$J$5,0))):INDIRECT("'Input'!F"&INDEX('Energinetdk rapport'!$L$1:$L$5,MATCH('Energinetdk rapport'!$I$3,'Energinetdk rapport'!$J$1:$J$5,0))),C109,INDIRECT("'Input'!J"&INDEX('Energinetdk rapport'!$K$1:$K$5,MATCH('Energinetdk rapport'!$I$3,'Energinetdk rapport'!$J$1:$J$5,0))):INDIRECT("'Input'!J"&INDEX('Energinetdk rapport'!$L$1:$L$5,MATCH('Energinetdk rapport'!$I$3,'Energinetdk rapport'!$J$1:$J$5,0)))),0) -> 0 | F109: =SUMIFS(INDIRECT("'Input'!H"&INDEX('Energinetdk rapport'!$K$1:$K$5,MATCH('Energinetdk rapport'!$I$3,'Energinetdk rapport'!$J$1:$J$5,0))):INDIRECT("'Input'!H"&INDEX('Energinetdk rapport'!$L$1:$L$5,MATCH('Energinetdk rapport'!$I$3,'Energinetdk rapport'!$J$1:$J$5,0))), INDIRECT("'Input'!F"&INDEX('Energinetdk rapport'!$K$1:$K$5,MATCH('Energinetdk rapport'!$I$3,'Energinetdk rapport'!$J$1:$J$5,0))):INDIRECT("'Input'!F"&INDEX('Energinetdk rapport'!$L$1:$L$5,MATCH('Energinetdk rapport'!$I$3,'Energinetdk rapport'!$J$1:$J$5,0))), C109) -> 0 | G109: 0
C110: =IF(Biomasser!A106="","", Biomasser!A106) ->  | D110: =IF(Biomasser!J106="","", Biomasser!J106) ->  | E110: =IFERROR(AVERAGEIF(INDIRECT("'Input'!F"&INDEX('Energinetdk rapport'!$K$1:$K$5,MATCH('Energinetdk rapport'!$I$3,'Energinetdk rapport'!$J$1:$J$5,0))):INDIRECT("'Input'!F"&INDEX('Energinetdk rapport'!$L$1:$L$5,MATCH('Energinetdk rapport'!$I$3,'Energinetdk rapport'!$J$1:$J$5,0))),C110,INDIRECT("'Input'!J"&INDEX('Energinetdk rapport'!$K$1:$K$5,MATCH('Energinetdk rapport'!$I$3,'Energinetdk rapport'!$J$1:$J$5,0))):INDIRECT("'Input'!J"&INDEX('Energinetdk rapport'!$L$1:$L$5,MATCH('Energinetdk rapport'!$I$3,'Energinetdk rapport'!$J$1:$J$5,0)))),0) -> 0 | F110: =SUMIFS(INDIRECT("'Input'!H"&INDEX('Energinetdk rapport'!$K$1:$K$5,MATCH('Energinetdk rapport'!$I$3,'Energinetdk rapport'!$J$1:$J$5,0))):INDIRECT("'Input'!H"&INDEX('Energinetdk rapport'!$L$1:$L$5,MATCH('Energinetdk rapport'!$I$3,'Energinetdk rapport'!$J$1:$J$5,0))), INDIRECT("'Input'!F"&INDEX('Energinetdk rapport'!$K$1:$K$5,MATCH('Energinetdk rapport'!$I$3,'Energinetdk rapport'!$J$1:$J$5,0))):INDIRECT("'Input'!F"&INDEX('Energinetdk rapport'!$L$1:$L$5,MATCH('Energinetdk rapport'!$I$3,'Energinetdk rapport'!$J$1:$J$5,0))), C110) -> 0 | G110: 0
C111: =IF(Biomasser!A107="","", Biomasser!A107) ->  | D111: =IF(Biomasser!J107="","", Biomasser!J107) ->  | E111: =IFERROR(AVERAGEIF(INDIRECT("'Input'!F"&INDEX('Energinetdk rapport'!$K$1:$K$5,MATCH('Energinetdk rapport'!$I$3,'Energinetdk rapport'!$J$1:$J$5,0))):INDIRECT("'Input'!F"&INDEX('Energinetdk rapport'!$L$1:$L$5,MATCH('Energinetdk rapport'!$I$3,'Energinetdk rapport'!$J$1:$J$5,0))),C111,INDIRECT("'Input'!J"&INDEX('Energinetdk rapport'!$K$1:$K$5,MATCH('Energinetdk rapport'!$I$3,'Energinetdk rapport'!$J$1:$J$5,0))):INDIRECT("'Input'!J"&INDEX('Energinetdk rapport'!$L$1:$L$5,MATCH('Energinetdk rapport'!$I$3,'Energinetdk rapport'!$J$1:$J$5,0)))),0) -> 0 | F111: =SUMIFS(INDIRECT("'Input'!H"&INDEX('Energinetdk rapport'!$K$1:$K$5,MATCH('Energinetdk rapport'!$I$3,'Energinetdk rapport'!$J$1:$J$5,0))):INDIRECT("'Input'!H"&INDEX('Energinetdk rapport'!$L$1:$L$5,MATCH('Energinetdk rapport'!$I$3,'Energinetdk rapport'!$J$1:$J$5,0))), INDIRECT("'Input'!F"&INDEX('Energinetdk rapport'!$K$1:$K$5,MATCH('Energinetdk rapport'!$I$3,'Energinetdk rapport'!$J$1:$J$5,0))):INDIRECT("'Input'!F"&INDEX('Energinetdk rapport'!$L$1:$L$5,MATCH('Energinetdk rapport'!$I$3,'Energinetdk rapport'!$J$1:$J$5,0))), C111) -> 0 | G111: 0
C112: =IF(Biomasser!A108="","", Biomasser!A108) ->  | D112: =IF(Biomasser!J108="","", Biomasser!J108) ->  | E112: =IFERROR(AVERAGEIF(INDIRECT("'Input'!F"&INDEX('Energinetdk rapport'!$K$1:$K$5,MATCH('Energinetdk rapport'!$I$3,'Energinetdk rapport'!$J$1:$J$5,0))):INDIRECT("'Input'!F"&INDEX('Energinetdk rapport'!$L$1:$L$5,MATCH('Energinetdk rapport'!$I$3,'Energinetdk rapport'!$J$1:$J$5,0))),C112,INDIRECT("'Input'!J"&INDEX('Energinetdk rapport'!$K$1:$K$5,MATCH('Energinetdk rapport'!$I$3,'Energinetdk rapport'!$J$1:$J$5,0))):INDIRECT("'Input'!J"&INDEX('Energinetdk rapport'!$L$1:$L$5,MATCH('Energinetdk rapport'!$I$3,'Energinetdk rapport'!$J$1:$J$5,0)))),0) -> 0 | F112: =SUMIFS(INDIRECT("'Input'!H"&INDEX('Energinetdk rapport'!$K$1:$K$5,MATCH('Energinetdk rapport'!$I$3,'Energinetdk rapport'!$J$1:$J$5,0))):INDIRECT("'Input'!H"&INDEX('Energinetdk rapport'!$L$1:$L$5,MATCH('Energinetdk rapport'!$I$3,'Energinetdk rapport'!$J$1:$J$5,0))), INDIRECT("'Input'!F"&INDEX('Energinetdk rapport'!$K$1:$K$5,MATCH('Energinetdk rapport'!$I$3,'Energinetdk rapport'!$J$1:$J$5,0))):INDIRECT("'Input'!F"&INDEX('Energinetdk rapport'!$L$1:$L$5,MATCH('Energinetdk rapport'!$I$3,'Energinetdk rapport'!$J$1:$J$5,0))), C112) -> 0 | G112: 0
C113: =IF(Biomasser!A109="","", Biomasser!A109) ->  | D113: =IF(Biomasser!J109="","", Biomasser!J109) ->  | E113: =IFERROR(AVERAGEIF(INDIRECT("'Input'!F"&INDEX('Energinetdk rapport'!$K$1:$K$5,MATCH('Energinetdk rapport'!$I$3,'Energinetdk rapport'!$J$1:$J$5,0))):INDIRECT("'Input'!F"&INDEX('Energinetdk rapport'!$L$1:$L$5,MATCH('Energinetdk rapport'!$I$3,'Energinetdk rapport'!$J$1:$J$5,0))),C113,INDIRECT("'Input'!J"&INDEX('Energinetdk rapport'!$K$1:$K$5,MATCH('Energinetdk rapport'!$I$3,'Energinetdk rapport'!$J$1:$J$5,0))):INDIRECT("'Input'!J"&INDEX('Energinetdk rapport'!$L$1:$L$5,MATCH('Energinetdk rapport'!$I$3,'Energinetdk rapport'!$J$1:$J$5,0)))),0) -> 0 | F113: =SUMIFS(INDIRECT("'Input'!H"&INDEX('Energinetdk rapport'!$K$1:$K$5,MATCH('Energinetdk rapport'!$I$3,'Energinetdk rapport'!$J$1:$J$5,0))):INDIRECT("'Input'!H"&INDEX('Energinetdk rapport'!$L$1:$L$5,MATCH('Energinetdk rapport'!$I$3,'Energinetdk rapport'!$J$1:$J$5,0))), INDIRECT("'Input'!F"&INDEX('Energinetdk rapport'!$K$1:$K$5,MATCH('Energinetdk rapport'!$I$3,'Energinetdk rapport'!$J$1:$J$5,0))):INDIRECT("'Input'!F"&INDEX('Energinetdk rapport'!$L$1:$L$5,MATCH('Energinetdk rapport'!$I$3,'Energinetdk rapport'!$J$1:$J$5,0))), C113) -> 0 | G113: 0
C114: =IF(Biomasser!A110="","", Biomasser!A110) ->  | D114: =IF(Biomasser!J110="","", Biomasser!J110) ->  | E114: =IFERROR(AVERAGEIF(INDIRECT("'Input'!F"&INDEX('Energinetdk rapport'!$K$1:$K$5,MATCH('Energinetdk rapport'!$I$3,'Energinetdk rapport'!$J$1:$J$5,0))):INDIRECT("'Input'!F"&INDEX('Energinetdk rapport'!$L$1:$L$5,MATCH('Energinetdk rapport'!$I$3,'Energinetdk rapport'!$J$1:$J$5,0))),C114,INDIRECT("'Input'!J"&INDEX('Energinetdk rapport'!$K$1:$K$5,MATCH('Energinetdk rapport'!$I$3,'Energinetdk rapport'!$J$1:$J$5,0))):INDIRECT("'Input'!J"&INDEX('Energinetdk rapport'!$L$1:$L$5,MATCH('Energinetdk rapport'!$I$3,'Energinetdk rapport'!$J$1:$J$5,0)))),0) -> 0 | F114: =SUMIFS(INDIRECT("'Input'!H"&INDEX('Energinetdk rapport'!$K$1:$K$5,MATCH('Energinetdk rapport'!$I$3,'Energinetdk rapport'!$J$1:$J$5,0))):INDIRECT("'Input'!H"&INDEX('Energinetdk rapport'!$L$1:$L$5,MATCH('Energinetdk rapport'!$I$3,'Energinetdk rapport'!$J$1:$J$5,0))), INDIRECT("'Input'!F"&INDEX('Energinetdk rapport'!$K$1:$K$5,MATCH('Energinetdk rapport'!$I$3,'Energinetdk rapport'!$J$1:$J$5,0))):INDIRECT("'Input'!F"&INDEX('Energinetdk rapport'!$L$1:$L$5,MATCH('Energinetdk rapport'!$I$3,'Energinetdk rapport'!$J$1:$J$5,0))), C114) -> 0 | G114: 0
C115: =IF(Biomasser!A111="","", Biomasser!A111) ->  | D115: =IF(Biomasser!J111="","", Biomasser!J111) ->  | E115: =IFERROR(AVERAGEIF(INDIRECT("'Input'!F"&INDEX('Energinetdk rapport'!$K$1:$K$5,MATCH('Energinetdk rapport'!$I$3,'Energinetdk rapport'!$J$1:$J$5,0))):INDIRECT("'Input'!F"&INDEX('Energinetdk rapport'!$L$1:$L$5,MATCH('Energinetdk rapport'!$I$3,'Energinetdk rapport'!$J$1:$J$5,0))),C115,INDIRECT("'Input'!J"&INDEX('Energinetdk rapport'!$K$1:$K$5,MATCH('Energinetdk rapport'!$I$3,'Energinetdk rapport'!$J$1:$J$5,0))):INDIRECT("'Input'!J"&INDEX('Energinetdk rapport'!$L$1:$L$5,MATCH('Energinetdk rapport'!$I$3,'Energinetdk rapport'!$J$1:$J$5,0)))),0) -> 0 | F115: =SUMIFS(INDIRECT("'Input'!H"&INDEX('Energinetdk rapport'!$K$1:$K$5,MATCH('Energinetdk rapport'!$I$3,'Energinetdk rapport'!$J$1:$J$5,0))):INDIRECT("'Input'!H"&INDEX('Energinetdk rapport'!$L$1:$L$5,MATCH('Energinetdk rapport'!$I$3,'Energinetdk rapport'!$J$1:$J$5,0))), INDIRECT("'Input'!F"&INDEX('Energinetdk rapport'!$K$1:$K$5,MATCH('Energinetdk rapport'!$I$3,'Energinetdk rapport'!$J$1:$J$5,0))):INDIRECT("'Input'!F"&INDEX('Energinetdk rapport'!$L$1:$L$5,MATCH('Energinetdk rapport'!$I$3,'Energinetdk rapport'!$J$1:$J$5,0))), C115) -> 0 | G115: 0
C116: =IF(Biomasser!A112="","", Biomasser!A112) ->  | D116: =IF(Biomasser!J112="","", Biomasser!J112) ->  | E116: =IFERROR(AVERAGEIF(INDIRECT("'Input'!F"&INDEX('Energinetdk rapport'!$K$1:$K$5,MATCH('Energinetdk rapport'!$I$3,'Energinetdk rapport'!$J$1:$J$5,0))):INDIRECT("'Input'!F"&INDEX('Energinetdk rapport'!$L$1:$L$5,MATCH('Energinetdk rapport'!$I$3,'Energinetdk rapport'!$J$1:$J$5,0))),C116,INDIRECT("'Input'!J"&INDEX('Energinetdk rapport'!$K$1:$K$5,MATCH('Energinetdk rapport'!$I$3,'Energinetdk rapport'!$J$1:$J$5,0))):INDIRECT("'Input'!J"&INDEX('Energinetdk rapport'!$L$1:$L$5,MATCH('Energinetdk rapport'!$I$3,'Energinetdk rapport'!$J$1:$J$5,0)))),0) -> 0 | F116: =SUMIFS(INDIRECT("'Input'!H"&INDEX('Energinetdk rapport'!$K$1:$K$5,MATCH('Energinetdk rapport'!$I$3,'Energinetdk rapport'!$J$1:$J$5,0))):INDIRECT("'Input'!H"&INDEX('Energinetdk rapport'!$L$1:$L$5,MATCH('Energinetdk rapport'!$I$3,'Energinetdk rapport'!$J$1:$J$5,0))), INDIRECT("'Input'!F"&INDEX('Energinetdk rapport'!$K$1:$K$5,MATCH('Energinetdk rapport'!$I$3,'Energinetdk rapport'!$J$1:$J$5,0))):INDIRECT("'Input'!F"&INDEX('Energinetdk rapport'!$L$1:$L$5,MATCH('Energinetdk rapport'!$I$3,'Energinetdk rapport'!$J$1:$J$5,0))), C116) -> 0 | G116: 0
C117: =IF(Biomasser!A113="","", Biomasser!A113) ->  | D117: =IF(Biomasser!J113="","", Biomasser!J113) ->  | E117: =IFERROR(AVERAGEIF(INDIRECT("'Input'!F"&INDEX('Energinetdk rapport'!$K$1:$K$5,MATCH('Energinetdk rapport'!$I$3,'Energinetdk rapport'!$J$1:$J$5,0))):INDIRECT("'Input'!F"&INDEX('Energinetdk rapport'!$L$1:$L$5,MATCH('Energinetdk rapport'!$I$3,'Energinetdk rapport'!$J$1:$J$5,0))),C117,INDIRECT("'Input'!J"&INDEX('Energinetdk rapport'!$K$1:$K$5,MATCH('Energinetdk rapport'!$I$3,'Energinetdk rapport'!$J$1:$J$5,0))):INDIRECT("'Input'!J"&INDEX('Energinetdk rapport'!$L$1:$L$5,MATCH('Energinetdk rapport'!$I$3,'Energinetdk rapport'!$J$1:$J$5,0)))),0) -> 0 | F117: =SUMIFS(INDIRECT("'Input'!H"&INDEX('Energinetdk rapport'!$K$1:$K$5,MATCH('Energinetdk rapport'!$I$3,'Energinetdk rapport'!$J$1:$J$5,0))):INDIRECT("'Input'!H"&INDEX('Energinetdk rapport'!$L$1:$L$5,MATCH('Energinetdk rapport'!$I$3,'Energinetdk rapport'!$J$1:$J$5,0))), INDIRECT("'Input'!F"&INDEX('Energinetdk rapport'!$K$1:$K$5,MATCH('Energinetdk rapport'!$I$3,'Energinetdk rapport'!$J$1:$J$5,0))):INDIRECT("'Input'!F"&INDEX('Energinetdk rapport'!$L$1:$L$5,MATCH('Energinetdk rapport'!$I$3,'Energinetdk rapport'!$J$1:$J$5,0))), C117) -> 0 | G117: 0
C118: =IF(Biomasser!A114="","", Biomasser!A114) ->  | D118: =IF(Biomasser!J114="","", Biomasser!J114) ->  | E118: =IFERROR(AVERAGEIF(INDIRECT("'Input'!F"&INDEX('Energinetdk rapport'!$K$1:$K$5,MATCH('Energinetdk rapport'!$I$3,'Energinetdk rapport'!$J$1:$J$5,0))):INDIRECT("'Input'!F"&INDEX('Energinetdk rapport'!$L$1:$L$5,MATCH('Energinetdk rapport'!$I$3,'Energinetdk rapport'!$J$1:$J$5,0))),C118,INDIRECT("'Input'!J"&INDEX('Energinetdk rapport'!$K$1:$K$5,MATCH('Energinetdk rapport'!$I$3,'Energinetdk rapport'!$J$1:$J$5,0))):INDIRECT("'Input'!J"&INDEX('Energinetdk rapport'!$L$1:$L$5,MATCH('Energinetdk rapport'!$I$3,'Energinetdk rapport'!$J$1:$J$5,0)))),0) -> 0 | F118: =SUMIFS(INDIRECT("'Input'!H"&INDEX('Energinetdk rapport'!$K$1:$K$5,MATCH('Energinetdk rapport'!$I$3,'Energinetdk rapport'!$J$1:$J$5,0))):INDIRECT("'Input'!H"&INDEX('Energinetdk rapport'!$L$1:$L$5,MATCH('Energinetdk rapport'!$I$3,'Energinetdk rapport'!$J$1:$J$5,0))), INDIRECT("'Input'!F"&INDEX('Energinetdk rapport'!$K$1:$K$5,MATCH('Energinetdk rapport'!$I$3,'Energinetdk rapport'!$J$1:$J$5,0))):INDIRECT("'Input'!F"&INDEX('Energinetdk rapport'!$L$1:$L$5,MATCH('Energinetdk rapport'!$I$3,'Energinetdk rapport'!$J$1:$J$5,0))), C118) -> 0 | G118: =IFERROR(F118/SUM($F$6:$F$128),0) -> 0
C119: =IF(Biomasser!A115="","", Biomasser!A115) ->  | D119: =IF(Biomasser!J115="","", Biomasser!J115) ->  | E119: =IFERROR(AVERAGEIF(INDIRECT("'Input'!F"&INDEX('Energinetdk rapport'!$K$1:$K$5,MATCH('Energinetdk rapport'!$I$3,'Energinetdk rapport'!$J$1:$J$5,0))):INDIRECT("'Input'!F"&INDEX('Energinetdk rapport'!$L$1:$L$5,MATCH('Energinetdk rapport'!$I$3,'Energinetdk rapport'!$J$1:$J$5,0))),C119,INDIRECT("'Input'!J"&INDEX('Energinetdk rapport'!$K$1:$K$5,MATCH('Energinetdk rapport'!$I$3,'Energinetdk rapport'!$J$1:$J$5,0))):INDIRECT("'Input'!J"&INDEX('Energinetdk rapport'!$L$1:$L$5,MATCH('Energinetdk rapport'!$I$3,'Energinetdk rapport'!$J$1:$J$5,0)))),0) -> 0 | F119: =SUMIFS(INDIRECT("'Input'!H"&INDEX('Energinetdk rapport'!$K$1:$K$5,MATCH('Energinetdk rapport'!$I$3,'Energinetdk rapport'!$J$1:$J$5,0))):INDIRECT("'Input'!H"&INDEX('Energinetdk rapport'!$L$1:$L$5,MATCH('Energinetdk rapport'!$I$3,'Energinetdk rapport'!$J$1:$J$5,0))), INDIRECT("'Input'!F"&INDEX('Energinetdk rapport'!$K$1:$K$5,MATCH('Energinetdk rapport'!$I$3,'Energinetdk rapport'!$J$1:$J$5,0))):INDIRECT("'Input'!F"&INDEX('Energinetdk rapport'!$L$1:$L$5,MATCH('Energinetdk rapport'!$I$3,'Energinetdk rapport'!$J$1:$J$5,0))), C119) -> 0 | G119: 0
C120: =IF(Biomasser!A116="","", Biomasser!A116) ->  | D120: =IF(Biomasser!J116="","", Biomasser!J116) ->  | E120: =IFERROR(AVERAGEIF(INDIRECT("'Input'!F"&INDEX('Energinetdk rapport'!$K$1:$K$5,MATCH('Energinetdk rapport'!$I$3,'Energinetdk rapport'!$J$1:$J$5,0))):INDIRECT("'Input'!F"&INDEX('Energinetdk rapport'!$L$1:$L$5,MATCH('Energinetdk rapport'!$I$3,'Energinetdk rapport'!$J$1:$J$5,0))),C120,INDIRECT("'Input'!J"&INDEX('Energinetdk rapport'!$K$1:$K$5,MATCH('Energinetdk rapport'!$I$3,'Energinetdk rapport'!$J$1:$J$5,0))):INDIRECT("'Input'!J"&INDEX('Energinetdk rapport'!$L$1:$L$5,MATCH('Energinetdk rapport'!$I$3,'Energinetdk rapport'!$J$1:$J$5,0)))),0) -> 0 | F120: =SUMIFS(INDIRECT("'Input'!H"&INDEX('Energinetdk rapport'!$K$1:$K$5,MATCH('Energinetdk rapport'!$I$3,'Energinetdk rapport'!$J$1:$J$5,0))):INDIRECT("'Input'!H"&INDEX('Energinetdk rapport'!$L$1:$L$5,MATCH('Energinetdk rapport'!$I$3,'Energinetdk rapport'!$J$1:$J$5,0))), INDIRECT("'Input'!F"&INDEX('Energinetdk rapport'!$K$1:$K$5,MATCH('Energinetdk rapport'!$I$3,'Energinetdk rapport'!$J$1:$J$5,0))):INDIRECT("'Input'!F"&INDEX('Energinetdk rapport'!$L$1:$L$5,MATCH('Energinetdk rapport'!$I$3,'Energinetdk rapport'!$J$1:$J$5,0))), C120) -> 0 | G120: 0
C121: =IF(Biomasser!A117="","", Biomasser!A117) ->  | D121: =IF(Biomasser!J117="","", Biomasser!J117) ->  | E121: =IFERROR(AVERAGEIF(INDIRECT("'Input'!F"&INDEX('Energinetdk rapport'!$K$1:$K$5,MATCH('Energinetdk rapport'!$I$3,'Energinetdk rapport'!$J$1:$J$5,0))):INDIRECT("'Input'!F"&INDEX('Energinetdk rapport'!$L$1:$L$5,MATCH('Energinetdk rapport'!$I$3,'Energinetdk rapport'!$J$1:$J$5,0))),C121,INDIRECT("'Input'!J"&INDEX('Energinetdk rapport'!$K$1:$K$5,MATCH('Energinetdk rapport'!$I$3,'Energinetdk rapport'!$J$1:$J$5,0))):INDIRECT("'Input'!J"&INDEX('Energinetdk rapport'!$L$1:$L$5,MATCH('Energinetdk rapport'!$I$3,'Energinetdk rapport'!$J$1:$J$5,0)))),0) -> 0 | F121: =SUMIFS(INDIRECT("'Input'!H"&INDEX('Energinetdk rapport'!$K$1:$K$5,MATCH('Energinetdk rapport'!$I$3,'Energinetdk rapport'!$J$1:$J$5,0))):INDIRECT("'Input'!H"&INDEX('Energinetdk rapport'!$L$1:$L$5,MATCH('Energinetdk rapport'!$I$3,'Energinetdk rapport'!$J$1:$J$5,0))), INDIRECT("'Input'!F"&INDEX('Energinetdk rapport'!$K$1:$K$5,MATCH('Energinetdk rapport'!$I$3,'Energinetdk rapport'!$J$1:$J$5,0))):INDIRECT("'Input'!F"&INDEX('Energinetdk rapport'!$L$1:$L$5,MATCH('Energinetdk rapport'!$I$3,'Energinetdk rapport'!$J$1:$J$5,0))), C121) -> 0 | G121: 0
C122: =IF(Biomasser!A118="","", Biomasser!A118) ->  | D122: =IF(Biomasser!J118="","", Biomasser!J118) ->  | E122: =IFERROR(AVERAGEIF(INDIRECT("'Input'!F"&INDEX('Energinetdk rapport'!$K$1:$K$5,MATCH('Energinetdk rapport'!$I$3,'Energinetdk rapport'!$J$1:$J$5,0))):INDIRECT("'Input'!F"&INDEX('Energinetdk rapport'!$L$1:$L$5,MATCH('Energinetdk rapport'!$I$3,'Energinetdk rapport'!$J$1:$J$5,0))),C122,INDIRECT("'Input'!J"&INDEX('Energinetdk rapport'!$K$1:$K$5,MATCH('Energinetdk rapport'!$I$3,'Energinetdk rapport'!$J$1:$J$5,0))):INDIRECT("'Input'!J"&INDEX('Energinetdk rapport'!$L$1:$L$5,MATCH('Energinetdk rapport'!$I$3,'Energinetdk rapport'!$J$1:$J$5,0)))),0) -> 0 | F122: =SUMIFS(INDIRECT("'Input'!H"&INDEX('Energinetdk rapport'!$K$1:$K$5,MATCH('Energinetdk rapport'!$I$3,'Energinetdk rapport'!$J$1:$J$5,0))):INDIRECT("'Input'!H"&INDEX('Energinetdk rapport'!$L$1:$L$5,MATCH('Energinetdk rapport'!$I$3,'Energinetdk rapport'!$J$1:$J$5,0))), INDIRECT("'Input'!F"&INDEX('Energinetdk rapport'!$K$1:$K$5,MATCH('Energinetdk rapport'!$I$3,'Energinetdk rapport'!$J$1:$J$5,0))):INDIRECT("'Input'!F"&INDEX('Energinetdk rapport'!$L$1:$L$5,MATCH('Energinetdk rapport'!$I$3,'Energinetdk rapport'!$J$1:$J$5,0))), C122) -> 0 | G122: 0
C123: =IF(Biomasser!A119="","", Biomasser!A119) ->  | D123: =IF(Biomasser!J119="","", Biomasser!J119) ->  | E123: =IFERROR(AVERAGEIF(INDIRECT("'Input'!F"&INDEX('Energinetdk rapport'!$K$1:$K$5,MATCH('Energinetdk rapport'!$I$3,'Energinetdk rapport'!$J$1:$J$5,0))):INDIRECT("'Input'!F"&INDEX('Energinetdk rapport'!$L$1:$L$5,MATCH('Energinetdk rapport'!$I$3,'Energinetdk rapport'!$J$1:$J$5,0))),C123,INDIRECT("'Input'!J"&INDEX('Energinetdk rapport'!$K$1:$K$5,MATCH('Energinetdk rapport'!$I$3,'Energinetdk rapport'!$J$1:$J$5,0))):INDIRECT("'Input'!J"&INDEX('Energinetdk rapport'!$L$1:$L$5,MATCH('Energinetdk rapport'!$I$3,'Energinetdk rapport'!$J$1:$J$5,0)))),0) -> 0 | F123: =SUMIFS(INDIRECT("'Input'!H"&INDEX('Energinetdk rapport'!$K$1:$K$5,MATCH('Energinetdk rapport'!$I$3,'Energinetdk rapport'!$J$1:$J$5,0))):INDIRECT("'Input'!H"&INDEX('Energinetdk rapport'!$L$1:$L$5,MATCH('Energinetdk rapport'!$I$3,'Energinetdk rapport'!$J$1:$J$5,0))), INDIRECT("'Input'!F"&INDEX('Energinetdk rapport'!$K$1:$K$5,MATCH('Energinetdk rapport'!$I$3,'Energinetdk rapport'!$J$1:$J$5,0))):INDIRECT("'Input'!F"&INDEX('Energinetdk rapport'!$L$1:$L$5,MATCH('Energinetdk rapport'!$I$3,'Energinetdk rapport'!$J$1:$J$5,0))), C123) -> 0 | G123: 0
C124: =IF(Biomasser!A120="","", Biomasser!A120) ->  | D124: =IF(Biomasser!J120="","", Biomasser!J120) ->  | E124: =IFERROR(AVERAGEIF(INDIRECT("'Input'!F"&INDEX('Energinetdk rapport'!$K$1:$K$5,MATCH('Energinetdk rapport'!$I$3,'Energinetdk rapport'!$J$1:$J$5,0))):INDIRECT("'Input'!F"&INDEX('Energinetdk rapport'!$L$1:$L$5,MATCH('Energinetdk rapport'!$I$3,'Energinetdk rapport'!$J$1:$J$5,0))),C124,INDIRECT("'Input'!J"&INDEX('Energinetdk rapport'!$K$1:$K$5,MATCH('Energinetdk rapport'!$I$3,'Energinetdk rapport'!$J$1:$J$5,0))):INDIRECT("'Input'!J"&INDEX('Energinetdk rapport'!$L$1:$L$5,MATCH('Energinetdk rapport'!$I$3,'Energinetdk rapport'!$J$1:$J$5,0)))),0) -> 0 | F124: =SUMIFS(INDIRECT("'Input'!H"&INDEX('Energinetdk rapport'!$K$1:$K$5,MATCH('Energinetdk rapport'!$I$3,'Energinetdk rapport'!$J$1:$J$5,0))):INDIRECT("'Input'!H"&INDEX('Energinetdk rapport'!$L$1:$L$5,MATCH('Energinetdk rapport'!$I$3,'Energinetdk rapport'!$J$1:$J$5,0))), INDIRECT("'Input'!F"&INDEX('Energinetdk rapport'!$K$1:$K$5,MATCH('Energinetdk rapport'!$I$3,'Energinetdk rapport'!$J$1:$J$5,0))):INDIRECT("'Input'!F"&INDEX('Energinetdk rapport'!$L$1:$L$5,MATCH('Energinetdk rapport'!$I$3,'Energinetdk rapport'!$J$1:$J$5,0))), C124) -> 0 | G124: 0
C125: =IF(Biomasser!A121="","", Biomasser!A121) ->  | D125: =IF(Biomasser!J121="","", Biomasser!J121) ->  | E125: =IFERROR(AVERAGEIF(INDIRECT("'Input'!F"&INDEX('Energinetdk rapport'!$K$1:$K$5,MATCH('Energinetdk rapport'!$I$3,'Energinetdk rapport'!$J$1:$J$5,0))):INDIRECT("'Input'!F"&INDEX('Energinetdk rapport'!$L$1:$L$5,MATCH('Energinetdk rapport'!$I$3,'Energinetdk rapport'!$J$1:$J$5,0))),C125,INDIRECT("'Input'!J"&INDEX('Energinetdk rapport'!$K$1:$K$5,MATCH('Energinetdk rapport'!$I$3,'Energinetdk rapport'!$J$1:$J$5,0))):INDIRECT("'Input'!J"&INDEX('Energinetdk rapport'!$L$1:$L$5,MATCH('Energinetdk rapport'!$I$3,'Energinetdk rapport'!$J$1:$J$5,0)))),0) -> 0 | F125: =SUMIFS(INDIRECT("'Input'!H"&INDEX('Energinetdk rapport'!$K$1:$K$5,MATCH('Energinetdk rapport'!$I$3,'Energinetdk rapport'!$J$1:$J$5,0))):INDIRECT("'Input'!H"&INDEX('Energinetdk rapport'!$L$1:$L$5,MATCH('Energinetdk rapport'!$I$3,'Energinetdk rapport'!$J$1:$J$5,0))), INDIRECT("'Input'!F"&INDEX('Energinetdk rapport'!$K$1:$K$5,MATCH('Energinetdk rapport'!$I$3,'Energinetdk rapport'!$J$1:$J$5,0))):INDIRECT("'Input'!F"&INDEX('Energinetdk rapport'!$L$1:$L$5,MATCH('Energinetdk rapport'!$I$3,'Energinetdk rapport'!$J$1:$J$5,0))), C125) -> 0 | G125: 0
C126: =IF(Biomasser!A122="","", Biomasser!A122) ->  | D126: =IF(Biomasser!J122="","", Biomasser!J122) ->  | E126: =IFERROR(AVERAGEIF(INDIRECT("'Input'!F"&INDEX('Energinetdk rapport'!$K$1:$K$5,MATCH('Energinetdk rapport'!$I$3,'Energinetdk rapport'!$J$1:$J$5,0))):INDIRECT("'Input'!F"&INDEX('Energinetdk rapport'!$L$1:$L$5,MATCH('Energinetdk rapport'!$I$3,'Energinetdk rapport'!$J$1:$J$5,0))),C126,INDIRECT("'Input'!J"&INDEX('Energinetdk rapport'!$K$1:$K$5,MATCH('Energinetdk rapport'!$I$3,'Energinetdk rapport'!$J$1:$J$5,0))):INDIRECT("'Input'!J"&INDEX('Energinetdk rapport'!$L$1:$L$5,MATCH('Energinetdk rapport'!$I$3,'Energinetdk rapport'!$J$1:$J$5,0)))),0) -> 0 | F126: =SUMIFS(INDIRECT("'Input'!H"&INDEX('Energinetdk rapport'!$K$1:$K$5,MATCH('Energinetdk rapport'!$I$3,'Energinetdk rapport'!$J$1:$J$5,0))):INDIRECT("'Input'!H"&INDEX('Energinetdk rapport'!$L$1:$L$5,MATCH('Energinetdk rapport'!$I$3,'Energinetdk rapport'!$J$1:$J$5,0))), INDIRECT("'Input'!F"&INDEX('Energinetdk rapport'!$K$1:$K$5,MATCH('Energinetdk rapport'!$I$3,'Energinetdk rapport'!$J$1:$J$5,0))):INDIRECT("'Input'!F"&INDEX('Energinetdk rapport'!$L$1:$L$5,MATCH('Energinetdk rapport'!$I$3,'Energinetdk rapport'!$J$1:$J$5,0))), C126) -> 0 | G126: 0
C127: =IF(Biomasser!A123="","", Biomasser!A123) ->  | D127: =IF(Biomasser!J123="","", Biomasser!J123) ->  | E127: =IFERROR(AVERAGEIF(INDIRECT("'Input'!F"&INDEX('Energinetdk rapport'!$K$1:$K$5,MATCH('Energinetdk rapport'!$I$3,'Energinetdk rapport'!$J$1:$J$5,0))):INDIRECT("'Input'!F"&INDEX('Energinetdk rapport'!$L$1:$L$5,MATCH('Energinetdk rapport'!$I$3,'Energinetdk rapport'!$J$1:$J$5,0))),C127,INDIRECT("'Input'!J"&INDEX('Energinetdk rapport'!$K$1:$K$5,MATCH('Energinetdk rapport'!$I$3,'Energinetdk rapport'!$J$1:$J$5,0))):INDIRECT("'Input'!J"&INDEX('Energinetdk rapport'!$L$1:$L$5,MATCH('Energinetdk rapport'!$I$3,'Energinetdk rapport'!$J$1:$J$5,0)))),0) -> 0 | F127: =SUMIFS(INDIRECT("'Input'!H"&INDEX('Energinetdk rapport'!$K$1:$K$5,MATCH('Energinetdk rapport'!$I$3,'Energinetdk rapport'!$J$1:$J$5,0))):INDIRECT("'Input'!H"&INDEX('Energinetdk rapport'!$L$1:$L$5,MATCH('Energinetdk rapport'!$I$3,'Energinetdk rapport'!$J$1:$J$5,0))), INDIRECT("'Input'!F"&INDEX('Energinetdk rapport'!$K$1:$K$5,MATCH('Energinetdk rapport'!$I$3,'Energinetdk rapport'!$J$1:$J$5,0))):INDIRECT("'Input'!F"&INDEX('Energinetdk rapport'!$L$1:$L$5,MATCH('Energinetdk rapport'!$I$3,'Energinetdk rapport'!$J$1:$J$5,0))), C127) -> 0 | G127: 0
C128: =IF(Biomasser!A124="","", Biomasser!A124) ->  | D128: =IF(Biomasser!J124="","", Biomasser!J124) ->  | E128: =IFERROR(AVERAGEIF(INDIRECT("'Input'!F"&INDEX('Energinetdk rapport'!$K$1:$K$5,MATCH('Energinetdk rapport'!$I$3,'Energinetdk rapport'!$J$1:$J$5,0))):INDIRECT("'Input'!F"&INDEX('Energinetdk rapport'!$L$1:$L$5,MATCH('Energinetdk rapport'!$I$3,'Energinetdk rapport'!$J$1:$J$5,0))),C128,INDIRECT("'Input'!J"&INDEX('Energinetdk rapport'!$K$1:$K$5,MATCH('Energinetdk rapport'!$I$3,'Energinetdk rapport'!$J$1:$J$5,0))):INDIRECT("'Input'!J"&INDEX('Energinetdk rapport'!$L$1:$L$5,MATCH('Energinetdk rapport'!$I$3,'Energinetdk rapport'!$J$1:$J$5,0)))),0) -> 0 | F128: =SUMIFS(INDIRECT("'Input'!H"&INDEX('Energinetdk rapport'!$K$1:$K$5,MATCH('Energinetdk rapport'!$I$3,'Energinetdk rapport'!$J$1:$J$5,0))):INDIRECT("'Input'!H"&INDEX('Energinetdk rapport'!$L$1:$L$5,MATCH('Energinetdk rapport'!$I$3,'Energinetdk rapport'!$J$1:$J$5,0))), INDIRECT("'Input'!F"&INDEX('Energinetdk rapport'!$K$1:$K$5,MATCH('Energinetdk rapport'!$I$3,'Energinetdk rapport'!$J$1:$J$5,0))):INDIRECT("'Input'!F"&INDEX('Energinetdk rapport'!$L$1:$L$5,MATCH('Energinetdk rapport'!$I$3,'Energinetdk rapport'!$J$1:$J$5,0))), C128) -> 0 | G128: =IFERROR(F128/SUM($F$6:$F$128),0) -> 0
C129: Total | F129: =SUM(F6:F128) -> 0 | G129: =SUM(G6:G128) -> 0

Sheet Unik liste

Sheet Datoark
G1: Tekst dato
E2: Start | F2: Slut
A3: 2015 | B3: Januar | C3: 1 | E3: 6 | F3: =E3+104 -> 110 | G3: 1. januar2015
C4: 2 | E4: =F3+1 -> 111 | F4: =E4+104 -> 215 | G4: 2. januar2015
C5: 3 | E5: =F4+1 -> 216 | F5: 320 | G5: 3. januar2015
C6: 4 | E6: 321 | F6: 425 | G6: 4. januar2015
C7: 5 | E7: 426 | F7: 530 | G7: 5. januar2015 | H7: 1
C8: 6 | E8: 531 | F8: 635 | G8: 6. januar2015 | H8: 2
C9: 7 | E9: 636 | F9: 740 | G9: 7. januar2015 | H9: 3
C10: 8 | E10: 741 | F10: 845 | G10: 8. januar2015 | H10: 4
C11: 9 | E11: 846 | F11: 950 | G11: 9. januar2015 | H11: 5
C12: 10 | E12: 951 | F12: 1055 | G12: 10. januar2015 | H12: 6
C13: 11 | E13: 1056 | F13: 1160 | G13: 11. januar2015 | H13: 7
C14: 12 | E14: 1161 | F14: 1265 | G14: 12. januar2015 | H14: 8
C15: 13 | E15: 1266 | F15: 1370 | G15: 13. januar2015 | H15: 9
C16: 14 | E16: 1371 | F16: 1475 | G16: 14. januar2015 | H16: 10
C17: 15 | E17: 1476 | F17: 1580 | G17: 15. januar2015 | H17: 11
C18: 16 | E18: 1581 | F18: 1685 | G18: 16. januar2015 | H18: 12
C19: 17 | E19: 1686 | F19: 1790 | G19: 17. januar2015 | H19: 13
C20: 18 | E20: 1791 | F20: 1895 | G20: 18. januar2015 | H20: 14
C21: 19 | E21: 1896 | F21: 2000 | G21: 19. januar2015 | H21: 15
C22: 20 | E22: 2001 | F22: 2105 | G22: 20. januar2015 | H22: 16
C23: 21 | E23: 2106 | F23: 2210 | G23: 21. januar2015 | H23: 17
C24: 22 | E24: =F23+1 -> 2211 | F24: 2315 | G24: 22. januar2015 | H24: 18
C25: 23 | E25: 2316 | F25: 2420 | G25: 23. januar2015 | H25: 19
C26: 24 | E26: 2421 | F26: 2525 | G26: 24. januar2015 | H26: 20
C27: 25 | E27: 2526 | F27: 2630 | G27: 25. januar2015 | H27: 21
C28: 26 | E28: 2631 | F28: 2735 | G28: 26. januar2015 | H28: 22
C29: 27 | E29: 2736 | F29: 2840 | G29: 27. januar2015 | H29: 23
C30: 28 | E30: 2841 | F30: 2945 | G30: 28. januar2015 | H30: 24
C31: 29 | E31: 2946 | F31: 3050 | G31: 29. januar2015 | H31: 25
C32: 30 | E32: 3051 | F32: 3155 | G32: 30. januar2015 | H32: 26
C33: 31 | E33: 3156 | F33: 3260 | G33: 31. januar2015 | H33: 27
B34: Februar | C34: 1 | E34: 3261 | F34: 3365 | G34: 1. februar2015 | H34: 28
C35: 2 | E35: =F34+1 -> 3366 | F35: 3470 | G35: 2. februar2015 | H35: 29
C36: 3 | E36: 3471 | F36: 3575 | G36: 3. februar2015 | H36: 30
C37: 4 | E37: 3576 | F37: 3680 | G37: 4. februar2015 | H37: 31
C38: 5 | E38: 3681 | F38: 3785 | G38: 5. februar2015 | H38: 32
C39: 6 | E39: 3786 | F39: 3890 | G39: 6. februar2015 | H39: 33
C40: 7 | E40: 3891 | F40: 3995 | G40: 7. februar2015 | H40: 34
C41: 8 | E41: 3996 | F41: 4100 | G41: 8. februar2015 | H41: 35
C42: 9 | E42: 4101 | F42: 4205 | G42: 9. februar2015 | H42: 36
C43: 10 | E43: 4206 | F43: 4310 | G43: 10. februar2015 | H43: 37
C44: 11 | E44: 4311 | F44: 4415 | G44: 11. februar2015 | H44: 38
C45: 12 | E45: 4416 | F45: 4520 | G45: 12. februar2015 | H45: 39
C46: 13 | E46: =F45+1 -> 4521 | F46: =E46+104 -> 4625 | G46: 13. februar2015 | H46: 40
C47: 14 | E47: =F46+1 -> 4626 | F47: =E47+104 -> 4730 | G47: 14. februar2015 | H47: 41
C48: 15 | E48: =F47+1 -> 4731 | F48: 4835 | G48: 15. februar2015 | H48: 42
C49: 16 | E49: 4836 | F49: 4940 | G49: 16. februar2015 | H49: 43
C50: 17 | E50: 4941 | F50: 5045 | G50: 17. februar2015 | H50: 44
C51: 18 | E51: 5046 | F51: 5150 | G51: 18. februar2015 | H51: 45
C52: 19 | E52: 5151 | F52: 5255 | G52: 19. februar2015 | H52: 46
C53: 20 | E53: 5256 | F53: 5360 | G53: 20. februar2015 | H53: 47
C54: 21 | E54: 5361 | F54: 5465 | G54: 21. februar2015 | H54: 48
C55: 22 | E55: 5466 | F55: 5570 | G55: 22. februar2015 | H55: 49
C56: 23 | E56: 5571 | F56: 5675 | G56: 23. februar2015 | H56: 50
C57: 24 | E57: 5676 | F57: 5780 | G57: 24. februar2015 | H57: 51
C58: 25 | E58: 5781 | F58: 5885 | G58: 25. februar2015 | H58: 52
C59: 26 | E59: 5886 | F59: 5990 | G59: 26. februar2015 | H59: 53
C60: 27 | E60: 5991 | F60: 6095 | G60: 27. februar2015 | H60: 54
C61: 28 | E61: 6096 | F61: 6200 | G61: 28. februar2015 | H61: 55
B62: Marts | C62: 1 | E62: 6201 | F62: 6305 | G62: 1. marts2015 | H62: 56
C63: 2 | E63: 6306 | F63: 6410 | G63: 2. marts2015 | H63: 57
C64: 3 | E64: 6411 | F64: 6515 | G64: 3. marts2015 | H64: 58
C65: 4 | E65: 6516 | F65: 6620 | G65: 4. marts2015 | H65: 59
C66: 5 | E66: 6621 | F66: 6725 | G66: 5. marts2015 | H66: 60
C67: 6 | E67: 6726 | F67: 6830 | G67: 6. marts2015 | H67: 61
C68: 7 | E68: 6831 | F68: =E68+104 -> 6935 | G68: 7. marts2015 | H68: 62
C69: 8 | E69: =F68+1 -> 6936 | F69: 7040 | G69: 8. marts2015 | H69: 63
C70: 9 | E70: 7041 | F70: 7145 | G70: 9. marts2015 | H70: 64
C71: 10 | E71: 7146 | F71: 7250 | G71: 10. marts2015 | H71: 65
C72: 11 | E72: 7251 | F72: 7355 | G72: 11. marts2015 | H72: 66
C73: 12 | E73: 7356 | F73: 7460 | G73: 12. marts2015 | H73: 67
C74: 13 | E74: 7461 | F74: 7565 | G74: 13. marts2015 | H74: 68
C75: 14 | E75: 7566 | F75: 7670 | G75: 14. marts2015 | H75: 69
C76: 15 | E76: 7671 | F76: 7775 | G76: 15. marts2015 | H76: 70
C77: 16 | E77: 7776 | F77: 7880 | G77: 16. marts2015 | H77: 71
C78: 17 | E78: 7881 | F78: 7985 | G78: 17. marts2015 | H78: 72
C79: 18 | E79: 7986 | F79: 8090 | G79: 18. marts2015 | H79: 73
C80: 19 | E80: 8091 | F80: 8195 | G80: 19. marts2015 | H80: 74
C81: 20 | E81: 8196 | F81: 8300 | G81: 20. marts2015 | H81: 75
C82: 21 | E82: 8301 | F82: 8405 | G82: 21. marts2015 | H82: 76
C83: 22 | E83: 8406 | F83: 8510 | G83: 22. marts2015 | H83: 77
C84: 23 | E84: 8511 | F84: 8615 | G84: 23. marts2015 | H84: 78
C85: 24 | E85: 8616 | F85: 8720 | G85: 24. marts2015 | H85: 79
C86: 25 | E86: 8721 | F86: 8825 | G86: 25. marts2015 | H86: 80
C87: 26 | E87: 8826 | F87: 8930 | G87: 26. marts2015 | H87: 81
C88: 27 | E88: 8931 | F88: 9035 | G88: 27. marts2015 | H88: 82
C89: 28 | E89: 9036 | F89: 9140 | G89: 28. marts2015 | H89: 83
C90: 29 | E90: 9141 | F90: 9245 | G90: 29. marts2015 | H90: 84
C91: 30 | E91: 9246 | F91: 9350 | G91: 30. marts2015 | H91: 85
C92: 31 | E92: 9351 | F92: 9455 | G92: 31. marts2015 | H92: 86
B93: April | C93: 1 | E93: 9456 | F93: 9560 | G93: 1. april2015 | H93: 87
C94: 2 | E94: 9561 | F94: 9665 | G94: 2. april2015 | H94: 88
C95: 3 | E95: 9666 | F95: 9770 | G95: 3. april2015 | H95: 89
C96: 4 | E96: 9771 | F96: 9875 | G96: 4. april2015 | H96: 90
C97: 5 | E97: 9876 | F97: 9980 | G97: 5. april2015 | H97: 91
C98: 6 | E98: 9981 | F98: 10085 | G98: 6. april2015 | H98: 92
C99: 7 | E99: 10086 | F99: 10190 | G99: 7. april2015 | H99: 93
C100: 8 | E100: 10191 | F100: 10295 | G100: 8. april2015 | H100: 94
C101: 9 | E101: 10296 | F101: 10400 | G101: 9. april2015 | H101: 95
C102: 10 | E102: 10401 | F102: 10505 | G102: 10. april2015 | H102: 96
C103: 11 | E103: 10506 | F103: 10610 | G103: 11. april2015 | H103: 97
C104: 12 | E104: 10611 | F104: 10715 | G104: 12. april2015 | H104: 98
C105: 13 | E105: 10716 | F105: 10820 | G105: 13. april2015 | H105: 99
C106: 14 | E106: 10821 | F106: 10925 | G106: 14. april2015 | H106: 100
C107: 15 | E107: 10926 | F107: 11030 | G107: 15. april2015 | H107: 101
C108: 16 | E108: 11031 | F108: 11135 | G108: 16. april2015 | H108: 102
C109: 17 | E109: 11136 | F109: 11240 | G109: 17. april2015 | H109: 103
C110: 18 | E110: 11241 | F110: 11345 | G110: 18. april2015 | H110: 104
C111: 19 | E111: 11346 | F111: 11450 | G111: 19. april2015 | H111: 105
C112: 20 | E112: 11451 | F112: 11555 | G112: 20. april2015 | H112: 106
C113: 21 | E113: 11556 | F113: 11660 | G113: 21. april2015 | H113: 107
C114: 22 | E114: 11661 | F114: 11765 | G114: 22. april2015 | H114: 108
C115: 23 | E115: 11766 | F115: 11870 | G115: 23. april2015 | H115: 109
C116: 24 | E116: 11871 | F116: 11975 | G116: 24. april2015 | H116: 110
C117: 25 | E117: 11976 | F117: 12080 | G117: 25. april2015 | H117: 111
C118: 26 | E118: 12081 | F118: 12185 | G118: 26. april2015 | H118: 112
C119: 27 | E119: 12186 | F119: 12290 | G119: 27. april2015 | H119: 113
C120: 28 | E120: 12291 | F120: 12395 | G120: 28. april2015 | H120: 114
C121: 29 | E121: 12396 | F121: 12500 | G121: 29. april2015 | H121: 115
C122: 30 | E122: 12501 | F122: 12605 | G122: 30. april2015 | H122: 116
B123: Maj | C123: 1 | E123: 12606 | F123: 12710 | G123: 1. maj2015 | H123: 117
C124: 2 | E124: 12711 | F124: 12815 | G124: 2. maj2015 | H124: 118
C125: 3 | E125: 12816 | F125: 12920 | G125: 3. maj2015 | H125: 119
C126: 4 | E126: 12921 | F126: 13025 | G126: 4. maj2015 | H126: 120
C127: 5 | E127: 13026 | F127: 13130 | G127: 5. maj2015 | H127: 121
C128: 6 | E128: 13131 | F128: 13235 | G128: 6. maj2015 | H128: 122
C129: 7 | E129: 13236 | F129: 13340 | G129: 7. maj2015 | H129: 123
C130: 8 | E130: 13341 | F130: 13445 | G130: 8. maj2015 | H130: 124
C131: 9 | E131: 13446 | F131: 13550 | G131: 9. maj2015 | H131: 125
C132: 10 | E132: 13551 | F132: =E132+104 -> 13655 | G132: 10. maj2015 | H132: 126
C133: 11 | E133: =F132+1 -> 13656 | F133: 13760 | G133: 11. maj2015 | H133: 127
C134: 12 | E134: 13761 | F134: 13865 | G134: 12. maj2015 | H134: 128
C135: 13 | E135: 13866 | F135: 13970 | G135: 13. maj2015 | H135: 129
C136: 14 | E136: 13971 | F136: 14075 | G136: 14. maj2015 | H136: 130
C137: 15 | E137: 14076 | F137: 14180 | G137: 15. maj2015 | H137: 131
C138: 16 | E138: 14181 | F138: 14285 | G138: 16. maj2015 | H138: 132
C139: 17 | E139: 14286 | F139: 14390 | G139: 17. maj2015 | H139: 133
C140: 18 | E140: 14391 | F140: 14495 | G140: 18. maj2015 | H140: 134
C141: 19 | E141: 14496 | F141: 14600 | G141: 19. maj2015 | H141: 135
C142: 20 | E142: 14601 | F142: 14705 | G142: 20. maj2015 | H142: 136
C143: 21 | E143: 14706 | F143: 14810 | G143: 21. maj2015 | H143: 137
C144: 22 | E144: 14811 | F144: 14915 | G144: 22. maj2015 | H144: 138
C145: 23 | E145: 14916 | F145: 15020 | G145: 23. maj2015 | H145: 139
C146: 24 | E146: 15021 | F146: 15125 | G146: 24. maj2015 | H146: 140
C147: 25 | E147: 15126 | F147: 15230 | G147: 25. maj2015 | H147: 141
C148: 26 | E148: 15231 | F148: 15335 | G148: 26. maj2015 | H148: 142
C149: 27 | E149: 15336 | F149: 15440 | G149: 27. maj2015 | H149: 143
C150: 28 | E150: 15441 | F150: 15545 | G150: 28. maj2015 | H150: 144
C151: 29 | E151: 15546 | F151: 15650 | G151: 29. maj2015 | H151: 145
C152: 30 | E152: 15651 | F152: 15755 | G152: 30. maj2015 | H152: 146
C153: 31 | E153: 15756 | F153: 15860 | G153: 31. maj2015 | H153: 147
B154: Juni | C154: 1 | E154: 15861 | F154: 15965 | G154: 1. juni2015 | H154: 148
C155: 2 | E155: 15966 | F155: 16070 | G155: 2. juni2015 | H155: 149
C156: 3 | E156: 16071 | F156: 16175 | G156: 3. juni2015 | H156: 150
C157: 4 | E157: 16176 | F157: 16280 | G157: 4. juni2015 | H157: 151
C158: 5 | E158: 16281 | F158: 16385 | G158: 5. juni2015 | H158: 152
C159: 6 | E159: 16386 | F159: 16490 | G159: 6. juni2015 | H159: 153
C160: 7 | E160: 16491 | F160: 16595 | G160: 7. juni2015 | H160: 154
C161: 8 | E161: 16596 | F161: 16700 | G161: 8. juni2015 | H161: 155
C162: 9 | E162: 16701 | F162: 16805 | G162: 9. juni2015 | H162: 156
C163: 10 | E163: 16806 | F163: 16910 | G163: 10. juni2015 | H163: 157
C164: 11 | E164: 16911 | F164: 17015 | G164: 11. juni2015 | H164: 158
C165: 12 | E165: 17016 | F165: 17120 | G165: 12. juni2015 | H165: 159
C166: 13 | E166: 17121 | F166: 17225 | G166: 13. juni2015 | H166: 160
C167: 14 | E167: 17226 | F167: 17330 | G167: 14. juni2015 | H167: 161
C168: 15 | E168: 17331 | F168: 17435 | G168: 15. juni2015 | H168: 162
C169: 16 | E169: 17436 | F169: 17540 | G169: 16. juni2015 | H169: 163
C170: 17 | E170: 17541 | F170: 17645 | G170: 17. juni2015 | H170: 164
C171: 18 | E171: 17646 | F171: 17750 | G171: 18. juni2015 | H171: 165
C172: 19 | E172: 17751 | F172: 17855 | G172: 19. juni2015 | H172: 166
C173: 20 | E173: 17856 | F173: 17960 | G173: 20. juni2015 | H173: 167
C174: 21 | E174: 17961 | F174: 18065 | G174: 21. juni2015 | H174: 168
C175: 22 | E175: 18066 | F175: 18170 | G175: 22. juni2015 | H175: 169
C176: 23 | E176: 18171 | F176: 18275 | G176: 23. juni2015 | H176: 170
C177: 24 | E177: 18276 | F177: 18380 | G177: 24. juni2015 | H177: 171
C178: 25 | E178: 18381 | F178: 18485 | G178: 25. juni2015 | H178: 172
C179: 26 | E179: 18486 | F179: 18590 | G179: 26. juni2015 | H179: 173
C180: 27 | E180: 18591 | F180: 18695 | G180: 27. juni2015 | H180: 174
C181: 28 | E181: 18696 | F181: 18800 | G181: 28. juni2015 | H181: 175
C182: 29 | E182: 18801 | F182: 18905 | G182: 29. juni2015 | H182: 176
C183: 30 | E183: 18906 | F183: 19010 | G183: 30. juni2015 | H183: 177
B184: Juli | C184: 1 | E184: 19011 | F184: 19115 | G184: 1. juli2015 | H184: 178
C185: 2 | E185: 19116 | F185: 19220 | G185: 2. juli2015 | H185: 179
C186: 3 | E186: 19221 | F186: 19325 | G186: 3. juli2015 | H186: 180
C187: 4 | E187: 19326 | F187: 19430 | G187: 4. juli2015 | H187: 181
C188: 5 | E188: 19431 | F188: 19535 | G188: 5. juli2015 | H188: 182
C189: 6 | E189: 19536 | F189: 19640 | G189: 6. juli2015 | H189: 183
C190: 7 | E190: 19641 | F190: 19745 | G190: 7. juli2015 | H190: 184
C191: 8 | E191: 19746 | F191: 19850 | G191: 8. juli2015 | H191: 185
C192: 9 | E192: 19851 | F192: 19955 | G192: 9. juli2015 | H192: 186
C193: 10 | E193: 19956 | F193: 20060 | G193: 10. juli2015 | H193: 187
C194: 11 | E194: 20061 | F194: 20165 | G194: 11. juli2015 | H194: 188
C195: 12 | E195: 20166 | F195: 20270 | G195: 12. juli2015 | H195: 189
C196: 13 | E196: 20271 | F196: =E196+104 -> 20375 | G196: 13. juli2015 | H196: 190
C197: 14 | E197: =F196+1 -> 20376 | F197: 20480 | G197: 14. juli2015 | H197: 191
C198: 15 | E198: 20481 | F198: 20585 | G198: 15. juli2015 | H198: 192
C199: 16 | E199: 20586 | F199: 20690 | G199: 16. juli2015 | H199: 193
C200: 17 | E200: 20691 | F200: 20795 | G200: 17. juli2015 | H200: 194
... 534 more rows

Sheet ja-nej
A1: Ja
A2: Nej

Sheet Default biomasser
A1: Biomasse | B1: Tørstof (TS) % | D1: Omsættelig tørstof (VS) VS/TS % | E1: Gaspotentiale m³ CH4/ton VS | F1: Beskrivelse | G1: Dobbelttælling | H1: Gaspotentiale m³ Biogas/ton VS
B2: Lav | C2: Høj
A3: - Energiafgrøder
A4: Majs | B4: 30 | C4: 45 | D4: 0.95 | E4: 305 | F4: Kolber/helsæd | H4: 469.2307692
A5: Roer | B5: 20 | C5: 30 | D5: 0.95 | E5: 357 | F5: Rod | H5: 549.2307692
A6: Korn | B6: 84 | C6: 88 | D6: 0.98 | E6: 370 | F6: Kerner/helsæd | H6: 569.2307692
A7: Græs | B7: 15 | C7: 25 | D7: 0.91 | E7: 324 | F7: Helsæd fra konventionelle arealer i omdrift | H7: 498.4615385
A8: Kløvergræs | B8: 25 | C8: 45 | D8: 0.88 | E8: 302 | F8: Helsæd fra konventionelle arealer i omdrift - kløvergræs fra økologiske arealer er undtaget | H8: 464.6153846
A9: Jordskokker | B9: 0 | C9: 100 | F9: Rod/helsæd
A10: Andre afgrøder | B10: 0 | C10: 100 | F10: Andre afgrøder, der er dyrket med henblik på biogasproduktion, som ikke er omfattet af begrænsningen for energiafgrøder.
A11: Vinterhvede | B11: 84 | C11: 88
A12: Vårhvede | B12: 84 | C12: 88
A13: Rug | B13: 84 | C13: 88
A14: Rughvede | B14: 84 | C14: 88
A15: Havre | B15: 84 | C15: 88
A16: Hvedehelsæd | B16: 30 | C16: 45 | D16: 0.94 | E16: 270 | F16: kerner og halm lagret som ensilage | H16: 415.3846154
A17: Top af sukkerroe og kartoffel | B17: 15 | C17: 35 | D17: 0.8 | E17: 324 | F17: Enten frisk eller som ensilage | H17: 498.4615385
A18: Rod af foderroe | B18: 15 | C18: 25 | D18: 0.95 | E18: 374 | H18: 575.3846154
A19: Top af foderroe | B19: 10 | C19: 15 | D19: 0.85 | E19: 329 | H19: 506.1538462
A20: Foderroe - rod og top frisk | B20: 15 | C20: 25 | D20: 0.93 | E20: 345 | H20: 530.7692308
A21: - Husdyrgødning | G21: x
A22: Kvæggylle | B22: 5 | C22: 10 | D22: 0.85 | E22: 198 | G22: x | H22: 304.6153846
A23: Svinegylle | B23: 5 | C23: 10 | D23: 0.85 | E23: 294 | G23: x | H23: 452.3076923
A24: Minkgylle | B24: 5 | C24: 10 | D24: 0.8 | E24: 356 | G24: x | H24: 547.6923077
A25: Fjerkrægylle | B25: 5 | C25: 15 | D25: 0.8 | E25: 290 | G25: x | H25: 446.1538462
A26: Blandet gylle | B26: 5 | C26: 10 | D26: 0.85 | E26: 285 | G26: x | H26: 438.4615385
A27: Dybstrøelse - Kvæg | B27: 15 | C27: 30 | D27: 0.8 | E27: 248 | G27: x | H27: 381.5384615
A28: Dybstrøelse - Fjerkræ | B28: 60 | C28: 75 | D28: 0.8 | E28: 252 | G28: x | H28: 387.6923077
A29: Dybstrøelse - Andre typer | B29: 15 | C29: 25 | G29: x
A30: Fast gødning | B30: 15 | C30: 25 | D30: 0.55 | E30: 250 | G30: x | H30: 384.6153846
A31: Ajle | B31: 5 | C31: 10 | G31: x
A32: Fiberfraktion | B32: 0 | C32: 100 | F32: Fiberfraktion fra separeret husdyrgødning | G32: x
A33: Flydende fraktion fra separationsanlæg eller biogasanlæg | B33: 0 | C33: 100 | F33: Væskefraktion fra separeret husdyrgødning. | G33: x
A34: Flydende fraktion | B34: 0 | C34: 100 | F34: Væskefraktion fra separeret husdyrgødning, hvor fiberfraktionen afbrændes | G34: x
A35: Anden husdyrgødning | B35: 0 | C35: 100 | G35: x
A36: Forsuret svinegylle | B36: 0 | C36: 10 | D36: 0.8 | E36: 329 | G36: x | H36: 506.1538462
A37: Gylle fra so | B37: 0 | C37: 10 | D37: 0.8 | E37: 248 | G37: x | H37: 381.5384615
